Workbook

Sheet Composition et mode d'emplois
A1: Mode d'emploi résumé :
A3: Il faut remplir la page paramètre (rien de compliqué). Les cellules à remplir sont grises. Les autres feuilles se mettent à jour automatiquement. Les feuilles à faire (bleues) donnent une idée du travail pour maxer le hdv. La feuille planning permet de se projeter des les travaux à réaliser pour maxer son hdv. Les feuilles rouges sont masquées et contiennent les valeurs utiles aux différents calculs. D'autres feuilles sont masquées également afin de ne pas avoir trop de feuilles affichées. Il y a une macro qui permet d'afficher ces feuilles.
A6: Composition du fichier :
A8: Calculs :
A9: À Faire - Récapitulatif | B9: Une vue d'ensemble qui permet de voir de ce qu'il reste à faire en fonction du niveau de l'Hôtel De Ville et de ce qui a déjà été fait. Total des coûts et temps restants par catégorie de bâtiments et par Troupes / Sorts / Héros. Possibilité d'afficher le récapitulatif avec/sans les remparts, avec/sans l'hotel de ville, avec/sans héros (dans le camembert)
A10: À Faire - Détails | B10: Une vue détaillée de ce qu'il reste à faire en fonction du niveau de l'Hôtel De Ville et de ce qui a déjà été fait. Tous les coûts et temps restants pour chaque bâtiment et Troupes / Sorts / Héros.
A11: Production | B11: Une vue qui indique les gains en ressources en fonction du nombre et du niveau des Mines d'Or / Extracteurs / Foreuses et du temps de production. Onglet masqué par défaut.
A12: Rentabilité | B12: Un outil qui permet de calculer la rentabilité d'une attaque en fonction des ressources gagnées et des des troupes formées et du bonus de league eventuel (basé sur le nombre de trophés)
A13: Combats - Loots | B13: Un outil qui permet de calculer les gains et pertes possibles en combat en ligne en fonction des quantités stockées / des niveaux d'Hôtel De Ville / du nombre de trophées. Onglet masqué par défaut.
A14: Troops Training | B14: Un outil qui permet connaître les coûts et temps de formation de troupes en fonction de ce que l'on souhaite former et pouvoir établir sa formation en fonction de ce que l'on peut faire (niveau Laboratoire / niveaux Casernes / niveaux Casernes Noires) Onglet masqué par défaut.
A15: Valeur du Village
A17: Données : (onglets masqués)
A18: Bâtiments | B18: Créations / améliorations de bâtiments possibles en fonction du niveau de l'Hôtel De Ville
A19: Améliorations - Sorts & Troupes | B19: Améliorations de Sorts / Troupes possibles en fonction du niveau de l'Hôtel De Ville
A20: Héros | B20: Améliorations d'Héros possibles en fonction du niveau de l'Hôtel De Ville
A21: Coûts des Améliorations | B21: Coûts et temps des créations / améliorations des Bâtiments / Sorts / Troupes / Héros.
A22: Gains et Stockage | B22: Gains et capacités possibles en fonction du niveau des Réserves et Mines d'Or / Extracteurs / Foreuses.
A23: Trophées | B23: Bonus et coefficient multiplicateur pour les combats en fonction du nombre de Trophées
A24: Training Costs | B24: Coûts et temps des formations de Troupes + Capacité de Laboratoire / Casernes / Casernes Noires / Camps d'Armée
A26: Paramètres | B26: Les champs principaux à indiquer pour utiliser le fichier (niveau de l'Hôtel De Ville, nombre d'ouvriers, nombre et niveaux de Bâtiments / Sorts / Troupes / Héros)
A28: Journal des Modifications | B28: Cette vue permet de tracer l'évolution du fichier à travers les modifications apportées par rapport aux versions précédentes.
A30: Utilisation du fichier :
A32: Renseigner les informations nécessaires dans l'onglet "Paramètres" pour les calculs généraux :
B33: Niveau de l'Hôtel De Ville (Cellule BI2)
B34: Nombre d'ouvriers (Cellule BJ2)
B35: Nombre et niveaux de Bâtiments (Cellules B6:AF45)
B36: Niveaux des Sorts (Cellules AG:AN45)
B37: Niveaux des Troupes Normales (Cellules A06:AX45)
B38: Niveaux des Troupes Noires (Cellules AY6:BD45)
B39: Niveaux des Héros (Cellules BE6:BG45)
A41: Renseigner les informations nécessaires dans l'onglet "Combats - Loots" pour la fonctionnalité qui permet de connaître les gains et pertes possibles en combat en ligne :
B42: Attaque ou Défense (Cellule B2)
B43: Niveau de l'Hôtel De Ville de l'opposant (Cellule C2)
B44: Quantité de ressources dans les Réserves (Cellules B7:D13)
B45: Quantité de ressources dans les Mines / Extracteurs / Foreuses (Cellules E7:G13)
A47: Renseigner les informations nécessaires dans l'onglet "Formation de Troupes" pour la fonctionnalité qui permet connaître les coûts et temps de formation de troupes en fonction de ce que l'on souhaite former et pouvoir établir sa formation :
B48: Choix et nombre de créations pour les Sorts (Cellules G5:G9)
B49: Niveaux des Casernes (Cellules O2:R2)
B50: Choix et nombre de formations de troupes normales (Cellules O5:R14)
B51: Niveaux des Casernes Noires (Cellules AA2:AB2)
B52: Choix et nombre de formations de Troupes Noires (Cellules AA5:AB8)
A54: Enfin, il est possible de choisir l'affichage du temps dans les onglets "À Faire - Récapitulatif" et "Formation de Troupes" ou la période de production dans l'onglet "Production" :
B55: Affichage Temps (Cellule B2)
B56: Période (Cellule B2)
A58: Pour afficher les onglets masqués lancer la macro "Masquage_Onglets_OFF"
A59: Pour reccacher les onglets (uniquement les rouges) lancer la macro "Masquage_Onglets_ON"

Sheet Planning
A1: LVL HdV | C1: Date de Départ | D1: Pas (jour) | E1: Période Sélectionnée | F1: Créer Planning | G1: =Paramètres!BJ2 -> 1 | I1: Période | K1: NB | L1: Besoins d'Or (sans remparts) | N1: Besoins d'Elixir | P1: Besoins d'Elixir Noir | S1: Légende
A2: =Paramètres!$BI$2 -> 1 | C2: 2016-01-10T19:24:48 | D2: 1 | E2: 2016-01-10 | F2: Réinitialiser | I2: =period_selected -> 2016-01-10 | K2: 0 | L2: 0 | N2: 0 | P2: 0 | T2: Planifié | X2: % Réalisé
A3: Planning | I3: =$I2+$D$2 -> 2016-01-11 | K3: 0 | L3: 0 | N3: 0 | P3: 0 | T3: Réel | X3: % Réalisé (au-delà du planifié)
I4: =$I3+$D$2 -> 2016-01-12 | K4: 0 | L4: 0 | N4: 0 | P4: 0 | T4: Réel (au-delà du planifié)
I5: =$I4+$D$2 -> 2016-01-13 | K5: 0 | L5: 0 | N5: 0 | P5: 0 | T5: Ouvriers disponibles | X5: Erreur - Pas suffisament d'Ouvriers
I6: =SUM(I8:I44)+SUM(I70:I73) -> 0 | J6: 0 | K6: 0 | L6: 0 | M6: 0 | N6: 0 | O6: 0 | P6: 0 | Q6: 0 | R6: 0 | S6: 0 | T6: 0 | U6: 0 | V6: 0 | W6: 0 | X6: 0 | Y6: 0 | Z6: 0 | AA6: 0 | AB6: 0 | AC6: 0 | AD6: 0 | AE6: 0 | AF6: 0 | AG6: 0 | AH6: 0 | AI6: 0 | AJ6: 0 | AK6: 0 | AL6: 0 | AM6: 0 | AN6: 0 | AO6: =SUM(AO8:AO44)+SUM(AO70:AO73) -> 0 | AP6: 0 | AQ6: 0 | AR6: 0 | AS6: 0 | AT6: 0 | AU6: 0 | AV6: 0 | AW6: 0 | AX6: 0 | AY6: 0 | AZ6: 0 | BA6: 0 | BB6: 0 | BC6: 0 | BD6: 0 | BE6: 0 | BF6: 0 | BG6: 0 | BH6: 0 | BI6: 0 | BJ6: 0 | BK6: 0 | BL6: 0 | BM6: 0 | BN6: 0 | BO6: 0 | BP6: 0
A7: Construction / Amélioration | B7: + | C7: Coût | D7: Durée Planifée (jours) | E7: Début Planifiée | F7: Début Réel | G7: Durée Réelle | H7: % Réalisé | I7: =$C$2 -> 2016-01-10T19:24:48 | J7: =I$7+$D$2 -> 2016-01-11T19:24:48 | K7: =J$7+$D$2 -> 2016-01-12T19:24:48 | L7: 2016-01-13T19:24:48 | M7: 2016-01-14T19:24:48 | N7: 2016-01-15T19:24:48 | O7: 2016-01-16T19:24:48 | P7: 2016-01-17T19:24:48 | Q7: 2016-01-18T19:24:48 | R7: 2016-01-19T19:24:48 | S7: =R$7+$D$2 -> 2016-01-20T19:24:48 | T7: 2016-01-21T19:24:48 | U7: 2016-01-22T19:24:48 | V7: =U$7+$D$2 -> 2016-01-23T19:24:48 | W7: 2016-01-24T19:24:48 | X7: 2016-01-25T19:24:48 | Y7: 2016-01-26T19:24:48 | Z7: 2016-01-27T19:24:48 | AA7: 2016-01-28T19:24:48 | AB7: =AA$7+$D$2 -> 2016-01-29T19:24:48 | AC7: 2016-01-30T19:24:48 | AD7: 2016-01-31T19:24:48 | AE7: 2016-02-01T19:24:48 | AF7: 2016-02-02T19:24:48 | AG7: 2016-02-03T19:24:48 | AH7: 2016-02-04T19:24:48 | AI7: 2016-02-05T19:24:48 | AJ7: 2016-02-06T19:24:48 | AK7: 2016-02-07T19:24:48 | AL7: 2016-02-08T19:24:48 | AM7: 2016-02-09T19:24:48 | AN7: 2016-02-10T19:24:48 | AO7: 2016-02-11T19:24:48 | AP7: 2016-02-12T19:24:48 | AQ7: 2016-02-13T19:24:48 | AR7: 2016-02-14T19:24:48 | AS7: 2016-02-15T19:24:48 | AT7: 2016-02-16T19:24:48 | AU7: 2016-02-17T19:24:48 | AV7: 2016-02-18T19:24:48 | AW7: 2016-02-19T19:24:48 | AX7: 2016-02-20T19:24:48 | AY7: 2016-02-21T19:24:48 | AZ7: 2016-02-22T19:24:48 | BA7: 2016-02-23T19:24:48 | BB7: 2016-02-24T19:24:48 | BC7: 2016-02-25T19:24:48 | BD7: 2016-02-26T19:24:48 | BE7: 2016-02-27T19:24:48 | BF7: 2016-02-28T19:24:48 | BG7: 2016-02-29T19:24:48 | BH7: 2016-03-01T19:24:48 | BI7: 2016-03-02T19:24:48 | BJ7: 2016-03-03T19:24:48 | BK7: 2016-03-04T19:24:48 | BL7: 2016-03-05T19:24:48 | BM7: 2016-03-06T19:24:48 | BN7: 2016-03-07T19:24:48 | BO7: 2016-03-08T19:24:48 | BP7: 2016-03-09T19:24:48
A8: Bâtiments de Ressources | I8: =IF(ISERROR(Plan),0,Plan) -> 0 | J8: 0 | K8: 0 | L8: 0 | M8: 0 | N8: 0 | O8: 0 | P8: 0 | Q8: 0 | R8: 0 | S8: 0 | T8: 0 | U8: 0 | V8: 0 | W8: 0 | X8: 0 | Y8: =IF(ISERROR(Plan),0,Plan) -> 0 | Z8: 0 | AA8: 0 | AB8: 0 | AC8: 0 | AD8: 0 | AE8: 0 | AF8: 0 | AG8: 0 | AH8: 0 | AI8: 0 | AJ8: 0 | AK8: 0 | AL8: 0 | AM8: 0 | AN8: 0 | AO8: 0 | AP8: 0 | AQ8: 0 | AR8: 0 | AS8: 0 | AT8: 0 | AU8: 0 | AV8: 0 | AW8: 0 | AX8: 0 | AY8: 0 | AZ8: 0 | BA8: 0 | BB8: 0 | BC8: 0 | BD8: 0 | BE8: 0 | BF8: 0 | BG8: 0 | BH8: 0 | BI8: 0 | BJ8: 0 | BK8: 0 | BL8: 0 | BM8: 0 | BN8: 0 | BO8: 0 | BP8: 0
A9: Mine d'Or | C9: =IF($B9<>"",VLOOKUP($B9,COSTS_Gold_Mine[#All],2),"") ->  | D9: =IF($B9<>"",VLOOKUP($B9,COSTS_Gold_Mine[#All],3)/24,"") ->  | G9: =IF($D9<>"",$D9,"") ->  | I9: =IF(ISERROR(Plan),0,Plan) -> 0 | J9: 0 | K9: 0 | L9: 0 | M9: 0 | N9: 0 | O9: 0 | P9: 0 | Q9: 0 | R9: 0 | S9: =IF(ISERROR(Plan),0,Plan) -> 0 | T9: 0 | U9: 0 | V9: 0 | W9: 0 | X9: 0 | Y9: 0 | Z9: 0 | AA9: 0 | AB9: 0 | AC9: =IF(ISERROR(Plan),0,Plan) -> 0 | AD9: 0 | AE9: 0 | AF9: 0 | AG9: 0 | AH9: 0 | AI9: 0 | AJ9: 0 | AK9: 0 | AL9: 0 | AM9: =IF(ISERROR(Plan),0,Plan) -> 0 | AN9: 0 | AO9: 0 | AP9: 0 | AQ9: 0 | AR9: 0 | AS9: 0 | AT9: 0 | AU9: 0 | AV9: 0 | AW9: =IF(ISERROR(Plan),0,Plan) -> 0 | AX9: 0 | AY9: 0 | AZ9: 0 | BA9: 0 | BB9: 0 | BC9: 0 | BD9: 0 | BE9: 0 | BF9: 0 | BG9: =IF(ISERROR(Plan),0,Plan) -> 0 | BH9: 0 | BI9: 0 | BJ9: 0 | BK9: 0 | BL9: 0 | BM9: 0 | BN9: 0 | BO9: 0 | BP9: 0
A10: Extracteur d'Élixir | C10: =IF($B10<>"",VLOOKUP($B10,COSTS_Elixir_Collector[#All],2),"") ->  | D10: =IF($B10<>"",VLOOKUP($B10,COSTS_Elixir_Collector[#All],3)/24,"") ->  | I10: 0 | J10: 0 | K10: 0 | L10: 0 | M10: 0 | N10: 0 | O10: 0 | P10: 0 | Q10: 0 | R10: 0 | S10: 0 | T10: 0 | U10: 0 | V10: 0 | W10: 0 | X10: 0 | Y10: 0 | Z10: 0 | AA10: 0 | AB10: 0 | AC10: 0 | AD10: 0 | AE10: 0 | AF10: 0 | AG10: 0 | AH10: 0 | AI10: 0 | AJ10: 0 | AK10: 0 | AL10: 0 | AM10: 0 | AN10: 0 | AO10: 0 | AP10: 0 | AQ10: 0 | AR10: 0 | AS10: 0 | AT10: 0 | AU10: 0 | AV10: 0 | AW10: 0 | AX10: 0 | AY10: 0 | AZ10: 0 | BA10: 0 | BB10: 0 | BC10: 0 | BD10: 0 | BE10: 0 | BF10: 0 | BG10: 0 | BH10: 0 | BI10: 0 | BJ10: 0 | BK10: 0 | BL10: 0 | BM10: 0 | BN10: 0 | BO10: 0 | BP10: 0
A11: Foreuse d'Élixir Noir | C11: =IF($B11<>"",VLOOKUP($B11,COSTS_Dark_Elixir_Drill[#All],2),"") ->  | D11: =IF($B11<>"",VLOOKUP($B11,COSTS_Elixir_Collector[#All],3)/24,"") ->  | I11: 0 | J11: 0 | K11: 0 | L11: 0 | M11: 0 | N11: 0 | O11: 0 | P11: 0 | Q11: 0 | R11: 0 | S11: 0 | T11: 0 | U11: 0 | V11: 0 | W11: 0 | X11: 0 | Y11: 0 | Z11: 0 | AA11: 0 | AB11: 0 | AC11: 0 | AD11: 0 | AE11: 0 | AF11: 0 | AG11: 0 | AH11: 0 | AI11: 0 | AJ11: 0 | AK11: 0 | AL11: 0 | AM11: 0 | AN11: 0 | AO11: 0 | AP11: 0 | AQ11: 0 | AR11: 0 | AS11: 0 | AT11: 0 | AU11: 0 | AV11: 0 | AW11: 0 | AX11: 0 | AY11: 0 | AZ11: 0 | BA11: 0 | BB11: 0 | BC11: 0 | BD11: 0 | BE11: 0 | BF11: 0 | BG11: 0 | BH11: 0 | BI11: 0 | BJ11: 0 | BK11: 0 | BL11: 0 | BM11: 0 | BN11: 0 | BO11: 0 | BP11: 0
A12: Réserve d'Or | C12: =IF($B12<>"",VLOOKUP($B12,COSTS_Gold_Storage[#All],2),"") ->  | D12: =IF($B12<>"",VLOOKUP($B12,COSTS_Gold_Storage[#All],3)/24,"") ->  | I12: 0 | J12: 0 | K12: 0 | L12: =IF(ISERROR(Plan),0,Plan) -> 0 | M12: 0 | N12: 0 | O12: 0 | P12: 0 | Q12: 0 | R12: 0 | S12: 0 | T12: 0 | U12: 0 | V12: 0 | W12: 0 | X12: 0 | Y12: 0 | Z12: 0 | AA12: 0 | AB12: 0 | AC12: 0 | AD12: 0 | AE12: 0 | AF12: 0 | AG12: 0 | AH12: 0 | AI12: 0 | AJ12: 0 | AK12: 0 | AL12: 0 | AM12: 0 | AN12: 0 | AO12: 0 | AP12: 0 | AQ12: 0 | AR12: 0 | AS12: 0 | AT12: 0 | AU12: 0 | AV12: 0 | AW12: 0 | AX12: 0 | AY12: 0 | AZ12: 0 | BA12: 0 | BB12: 0 | BC12: 0 | BD12: 0 | BE12: 0 | BF12: 0 | BG12: 0 | BH12: 0 | BI12: 0 | BJ12: 0 | BK12: 0 | BL12: 0 | BM12: 0 | BN12: 0 | BO12: 0 | BP12: 0
A13: Réservoir d'Élixir | C13: =IF($B13<>"",VLOOKUP($B13,COSTS_Elixir_Storage[#All],2),"") ->  | D13: =IF($B13<>"",VLOOKUP($B13,COSTS_Elixir_Storage[#All],3)/24,"") ->  | I13: 0 | J13: 0 | K13: 0 | L13: 0 | M13: 0 | N13: 0 | O13: 0 | P13: 0 | Q13: 0 | R13: 0 | S13: 0 | T13: 0 | U13: 0 | V13: 0 | W13: 0 | X13: 0 | Y13: 0 | Z13: 0 | AA13: 0 | AB13: 0 | AC13: 0 | AD13: 0 | AE13: 0 | AF13: 0 | AG13: 0 | AH13: 0 | AI13: 0 | AJ13: 0 | AK13: 0 | AL13: 0 | AM13: 0 | AN13: 0 | AO13: 0 | AP13: 0 | AQ13: 0 | AR13: 0 | AS13: 0 | AT13: 0 | AU13: 0 | AV13: 0 | AW13: 0 | AX13: 0 | AY13: 0 | AZ13: 0 | BA13: 0 | BB13: 0 | BC13: 0 | BD13: 0 | BE13: 0 | BF13: 0 | BG13: 0 | BH13: 0 | BI13: 0 | BJ13: 0 | BK13: 0 | BL13: 0 | BM13: 0 | BN13: 0 | BO13: 0 | BP13: 0
A14: Réservoir d'Élixir Noir | C14: =IF($B14<>"",VLOOKUP($B14,COSTS_Dark_Elixir_Storage[#All],2),"") ->  | D14: =IF($B14<>"",VLOOKUP($B14,COSTS_Dark_Elixir_Storage[#All],3)/24,"") ->  | I14: 0 | J14: 0 | K14: 0 | L14: 0 | M14: 0 | N14: 0 | O14: 0 | P14: 0 | Q14: 0 | R14: 0 | S14: 0 | T14: 0 | U14: 0 | V14: 0 | W14: 0 | X14: 0 | Y14: 0 | Z14: 0 | AA14: 0 | AB14: 0 | AC14: 0 | AD14: 0 | AE14: 0 | AF14: 0 | AG14: 0 | AH14: 0 | AI14: 0 | AJ14: 0 | AK14: 0 | AL14: 0 | AM14: 0 | AN14: 0 | AO14: 0 | AP14: 0 | AQ14: 0 | AR14: 0 | AS14: 0 | AT14: 0 | AU14: 0 | AV14: 0 | AW14: 0 | AX14: 0 | AY14: 0 | AZ14: 0 | BA14: 0 | BB14: 0 | BC14: 0 | BD14: 0 | BE14: 0 | BF14: 0 | BG14: 0 | BH14: 0 | BI14: 0 | BJ14: 0 | BK14: 0 | BL14: 0 | BM14: 0 | BN14: 0 | BO14: 0 | BP14: 0
A15: Bâtiments d'Armée | I15: 0 | J15: 0 | K15: 0 | L15: 0 | M15: 0 | N15: 0 | O15: 0 | P15: 0 | Q15: 0 | R15: 0 | S15: 0 | T15: 0 | U15: 0 | V15: 0 | W15: 0 | X15: 0 | Y15: 0 | Z15: 0 | AA15: 0 | AB15: 0 | AC15: 0 | AD15: 0 | AE15: 0 | AF15: 0 | AG15: 0 | AH15: 0 | AI15: 0 | AJ15: 0 | AK15: 0 | AL15: 0 | AM15: 0 | AN15: 0 | AO15: 0 | AP15: 0 | AQ15: 0 | AR15: 0 | AS15: 0 | AT15: 0 | AU15: 0 | AV15: 0 | AW15: 0 | AX15: 0 | AY15: 0 | AZ15: 0 | BA15: 0 | BB15: 0 | BC15: 0 | BD15: 0 | BE15: 0 | BF15: 0 | BG15: 0 | BH15: 0 | BI15: 0 | BJ15: 0 | BK15: 0 | BL15: 0 | BM15: 0 | BN15: 0 | BO15: 0 | BP15: 0
A16: Caserne | C16: =IF($B16<>"",VLOOKUP($B16,COSTS_Barrack[#All],2),"") ->  | D16: =IF($B16<>"",VLOOKUP($B16,COSTS_Barrack[#All],3)/24,"") ->  | G16: =IF($D16<>"",$D16,"") ->  | I16: 0 | J16: 0 | K16: 0 | L16: 0 | M16: 0 | N16: 0 | O16: 0 | P16: 0 | Q16: 0 | R16: 0 | S16: 0 | T16: 0 | U16: 0 | V16: 0 | W16: 0 | X16: 0 | Y16: 0 | Z16: 0 | AA16: 0 | AB16: 0 | AC16: 0 | AD16: 0 | AE16: 0 | AF16: 0 | AG16: 0 | AH16: 0 | AI16: 0 | AJ16: 0 | AK16: 0 | AL16: 0 | AM16: 0 | AN16: 0 | AO16: 0 | AP16: 0 | AQ16: 0 | AR16: 0 | AS16: 0 | AT16: 0 | AU16: 0 | AV16: 0 | AW16: 0 | AX16: 0 | AY16: 0 | AZ16: 0 | BA16: 0 | BB16: 0 | BC16: 0 | BD16: 0 | BE16: 0 | BF16: 0 | BG16: 0 | BH16: 0 | BI16: 0 | BJ16: 0 | BK16: 0 | BL16: 0 | BM16: 0 | BN16: 0 | BO16: 0 | BP16: 0
A17: Caserne Noire | C17: =IF($B17<>"",VLOOKUP($B17,COSTS_Dark_Barrack[#All],2),"") ->  | D17: =IF($B17<>"",VLOOKUP($B17,COSTS_Dark_Barrack[#All],3)/24,"") ->  | G17: =IF($D17<>"",$D17,"") ->  | I17: 0 | J17: 0 | K17: 0 | L17: 0 | M17: 0 | N17: 0 | O17: 0 | P17: 0 | Q17: 0 | R17: 0 | S17: 0 | T17: 0 | U17: 0 | V17: 0 | W17: 0 | X17: 0 | Y17: 0 | Z17: 0 | AA17: 0 | AB17: 0 | AC17: 0 | AD17: 0 | AE17: 0 | AF17: 0 | AG17: 0 | AH17: 0 | AI17: 0 | AJ17: 0 | AK17: 0 | AL17: 0 | AM17: 0 | AN17: 0 | AO17: 0 | AP17: 0 | AQ17: 0 | AR17: 0 | AS17: 0 | AT17: 0 | AU17: 0 | AV17: 0 | AW17: 0 | AX17: 0 | AY17: 0 | AZ17: 0 | BA17: 0 | BB17: 0 | BC17: 0 | BD17: 0 | BE17: 0 | BF17: 0 | BG17: 0 | BH17: 0 | BI17: 0 | BJ17: 0 | BK17: 0 | BL17: 0 | BM17: 0 | BN17: 0 | BO17: 0 | BP17: 0
A18: Camp Militaire | C18: =IF($B18<>"",VLOOKUP($B18,COSTS_Army_Camp[#All],2),"") ->  | D18: =IF($B18<>"",VLOOKUP($B18,COSTS_Army_Camp[#All],3)/24,"") ->  | I18: 0 | J18: 0 | K18: 0 | L18: 0 | M18: 0 | N18: 0 | O18: 0 | P18: 0 | Q18: 0 | R18: 0 | S18: 0 | T18: 0 | U18: 0 | V18: 0 | W18: 0 | X18: 0 | Y18: 0 | Z18: 0 | AA18: 0 | AB18: 0 | AC18: 0 | AD18: 0 | AE18: 0 | AF18: 0 | AG18: 0 | AH18: 0 | AI18: 0 | AJ18: 0 | AK18: 0 | AL18: 0 | AM18: 0 | AN18: 0 | AO18: 0 | AP18: 0 | AQ18: 0 | AR18: 0 | AS18: 0 | AT18: 0 | AU18: 0 | AV18: 0 | AW18: 0 | AX18: 0 | AY18: 0 | AZ18: 0 | BA18: 0 | BB18: 0 | BC18: 0 | BD18: 0 | BE18: 0 | BF18: 0 | BG18: 0 | BH18: 0 | BI18: 0 | BJ18: 0 | BK18: 0 | BL18: 0 | BM18: 0 | BN18: 0 | BO18: 0 | BP18: 0
A19: Laboratoire | C19: =IF($B19<>"",VLOOKUP($B19,COSTS_Laboratory[#All],2),"") ->  | D19: =IF($B19<>"",VLOOKUP($B19,COSTS_Laboratory[#All],3)/24,"") ->  | I19: 0 | J19: 0 | K19: 0 | L19: 0 | M19: 0 | N19: 0 | O19: 0 | P19: 0 | Q19: 0 | R19: 0 | S19: 0 | T19: 0 | U19: 0 | V19: 0 | W19: 0 | X19: 0 | Y19: 0 | Z19: 0 | AA19: 0 | AB19: 0 | AC19: 0 | AD19: 0 | AE19: 0 | AF19: 0 | AG19: 0 | AH19: 0 | AI19: 0 | AJ19: 0 | AK19: 0 | AL19: 0 | AM19: 0 | AN19: 0 | AO19: 0 | AP19: 0 | AQ19: 0 | AR19: 0 | AS19: 0 | AT19: 0 | AU19: 0 | AV19: 0 | AW19: 0 | AX19: 0 | AY19: 0 | AZ19: 0 | BA19: 0 | BB19: 0 | BC19: 0 | BD19: 0 | BE19: 0 | BF19: 0 | BG19: 0 | BH19: 0 | BI19: 0 | BJ19: 0 | BK19: 0 | BL19: 0 | BM19: 0 | BN19: 0 | BO19: 0 | BP19: 0
A20: Usine de Sorts | C20: =IF($B20<>"",VLOOKUP($B20,COSTS_Spell_Factory[#All],2),"") ->  | D20: =IF($B20<>"",VLOOKUP($B20,COSTS_Spell_Factory[#All],3)/24,"") ->  | I20: 0 | J20: 0 | K20: 0 | L20: 0 | M20: 0 | N20: 0 | O20: 0 | P20: 0 | Q20: 0 | R20: 0 | S20: 0 | T20: 0 | U20: 0 | V20: 0 | W20: 0 | X20: 0 | Y20: 0 | Z20: 0 | AA20: 0 | AB20: 0 | AC20: 0 | AD20: 0 | AE20: 0 | AF20: 0 | AG20: 0 | AH20: 0 | AI20: 0 | AJ20: 0 | AK20: 0 | AL20: 0 | AM20: 0 | AN20: 0 | AO20: 0 | AP20: 0 | AQ20: 0 | AR20: 0 | AS20: 0 | AT20: 0 | AU20: 0 | AV20: 0 | AW20: 0 | AX20: 0 | AY20: 0 | AZ20: 0 | BA20: 0 | BB20: 0 | BC20: 0 | BD20: 0 | BE20: 0 | BF20: 0 | BG20: 0 | BH20: 0 | BI20: 0 | BJ20: 0 | BK20: 0 | BL20: 0 | BM20: 0 | BN20: 0 | BO20: 0 | BP20: 0
A21: Usine de Sorts Noirs | C21: =IF($B21<>"",VLOOKUP($B21,COSTS_Dark_Spell_Factory[#All],2),"") ->  | D21: =IF($B21<>"",VLOOKUP($B21,COSTS_Dark_Spell_Factory[#All],3)/24,"") ->  | I21: =IF(ISERROR(Plan),0,Plan) -> 0 | J21: 0 | K21: 0 | L21: 0 | M21: 0 | N21: 0 | O21: 0 | P21: 0 | Q21: 0 | R21: 0 | S21: 0 | T21: 0 | U21: 0 | V21: 0 | W21: 0 | X21: 0 | Y21: 0 | Z21: 0 | AA21: 0 | AB21: 0 | AC21: 0 | AD21: 0 | AE21: 0 | AF21: 0 | AG21: 0 | AH21: 0 | AI21: 0 | AJ21: 0 | AK21: 0 | AL21: 0 | AM21: 0 | AN21: 0 | AO21: 0 | AP21: 0 | AQ21: 0 | AR21: 0 | AS21: 0 | AT21: 0 | AU21: 0 | AV21: 0 | AW21: 0 | AX21: 0 | AY21: 0 | AZ21: 0 | BA21: 0 | BB21: 0 | BC21: 0 | BD21: 0 | BE21: 0 | BF21: 0 | BG21: 0 | BH21: 0 | BI21: 0 | BJ21: 0 | BK21: 0 | BL21: 0 | BM21: 0 | BN21: 0 | BO21: 0 | BP21: 0
A22: Bâtiments Défensifs | I22: 0 | J22: 0 | K22: 0 | L22: 0 | M22: 0 | N22: 0 | O22: 0 | P22: 0 | Q22: 0 | R22: 0 | S22: 0 | T22: 0 | U22: 0 | V22: 0 | W22: 0 | X22: 0 | Y22: 0 | Z22: 0 | AA22: 0 | AB22: 0 | AC22: 0 | AD22: 0 | AE22: 0 | AF22: 0 | AG22: 0 | AH22: 0 | AI22: 0 | AJ22: 0 | AK22: 0 | AL22: 0 | AM22: 0 | AN22: 0 | AO22: 0 | AP22: 0 | AQ22: 0 | AR22: 0 | AS22: 0 | AT22: 0 | AU22: 0 | AV22: 0 | AW22: 0 | AX22: 0 | AY22: 0 | AZ22: 0 | BA22: 0 | BB22: 0 | BC22: 0 | BD22: 0 | BE22: 0 | BF22: 0 | BG22: 0 | BH22: 0 | BI22: 0 | BJ22: 0 | BK22: 0 | BL22: 0 | BM22: 0 | BN22: 0 | BO22: 0 | BP22: 0
A23: Rempart | C23: =IF($B23<>"",VLOOKUP($B23,COSTS_Wall[#All],2),"") ->  | D23: =IF($B23<>"",VLOOKUP($B23,COSTS_Wall[#All],3)/24,"") ->  | G23: =IF($D23<>"",$D23,"") ->  | I23: 0 | J23: 0 | K23: 0 | L23: 0 | M23: 0 | N23: 0 | O23: 0 | P23: 0 | Q23: 0 | R23: 0 | S23: 0 | T23: 0 | U23: 0 | V23: 0 | W23: 0 | X23: 0 | Y23: 0 | Z23: 0 | AA23: 0 | AB23: 0 | AC23: 0 | AD23: 0 | AE23: 0 | AF23: 0 | AG23: 0 | AH23: 0 | AI23: 0 | AJ23: 0 | AK23: 0 | AL23: 0 | AM23: 0 | AN23: 0 | AO23: 0 | AP23: 0 | AQ23: 0 | AR23: 0 | AS23: 0 | AT23: 0 | AU23: 0 | AV23: 0 | AW23: 0 | AX23: 0 | AY23: 0 | AZ23: 0 | BA23: 0 | BB23: 0 | BC23: 0 | BD23: 0 | BE23: 0 | BF23: 0 | BG23: 0 | BH23: 0 | BI23: 0 | BJ23: 0 | BK23: 0 | BL23: 0 | BM23: 0 | BN23: 0 | BO23: 0 | BP23: 0
A24: Canon | C24: =IF($B24<>"",VLOOKUP($B24,COSTS_Cannon[#All],2),"") ->  | D24: =IF($B24<>"",VLOOKUP($B24,COSTS_Cannon[#All],3)/24,"") ->  | G24: =IF($D24<>"",$D24,"") ->  | I24: 0 | J24: 0 | K24: 0 | L24: 0 | M24: 0 | N24: 0 | O24: 0 | P24: 0 | Q24: 0 | R24: 0 | S24: 0 | T24: 0 | U24: 0 | V24: 0 | W24: 0 | X24: 0 | Y24: 0 | Z24: 0 | AA24: 0 | AB24: 0 | AC24: 0 | AD24: 0 | AE24: 0 | AF24: 0 | AG24: 0 | AH24: 0 | AI24: 0 | AJ24: 0 | AK24: 0 | AL24: 0 | AM24: 0 | AN24: 0 | AO24: 0 | AP24: 0 | AQ24: 0 | AR24: 0 | AS24: 0 | AT24: 0 | AU24: 0 | AV24: 0 | AW24: 0 | AX24: 0 | AY24: 0 | AZ24: 0 | BA24: 0 | BB24: 0 | BC24: 0 | BD24: 0 | BE24: 0 | BF24: 0 | BG24: 0 | BH24: 0 | BI24: 0 | BJ24: 0 | BK24: 0 | BL24: 0 | BM24: 0 | BN24: 0 | BO24: 0 | BP24: 0
A25: Tour d'Archers | C25: =IF($B25<>"",VLOOKUP($B25,COSTS_Archer_Tower[#All],2),"") ->  | D25: =IF($B25<>"",VLOOKUP($B25,COSTS_Cannon[#All],3)/24,"") ->  | I25: =IF(ISERROR(Plan),0,Plan) -> 0 | J25: 0 | K25: 0 | L25: 0 | M25: 0 | N25: 0 | O25: 0 | P25: 0 | Q25: 0 | R25: 0 | S25: 0 | T25: 0 | U25: 0 | V25: 0 | W25: 0 | X25: 0 | Y25: =IF(ISERROR(Plan),0,Plan) -> 0 | Z25: 0 | AA25: 0 | AB25: 0 | AC25: 0 | AD25: 0 | AE25: 0 | AF25: 0 | AG25: 0 | AH25: 0 | AI25: 0 | AJ25: 0 | AK25: 0 | AL25: 0 | AM25: 0 | AN25: 0 | AO25: =IF(ISERROR(Plan),0,Plan) -> 0 | AP25: 0 | AQ25: 0 | AR25: 0 | AS25: 0 | AT25: 0 | AU25: 0 | AV25: 0 | AW25: 0 | AX25: 0 | AY25: 0 | AZ25: 0 | BA25: 0 | BB25: 0 | BC25: 0 | BD25: 0 | BE25: =IF(ISERROR(Plan),0,Plan) -> 0 | BF25: 0 | BG25: 0 | BH25: 0 | BI25: 0 | BJ25: 0 | BK25: 0 | BL25: 0 | BM25: 0 | BN25: 0 | BO25: 0 | BP25: 0
A26: Mortier | C26: =IF($B26<>"",VLOOKUP($B26,COSTS_Mortar[#All],2),"") ->  | D26: =IF($B26<>"",VLOOKUP($B26,COSTS_Mortar[#All],3)/24,"") ->  | I26: 0 | J26: 0 | K26: 0 | L26: 0 | M26: 0 | N26: 0 | O26: 0 | P26: 0 | Q26: 0 | R26: 0 | S26: 0 | T26: 0 | U26: 0 | V26: 0 | W26: 0 | X26: 0 | Y26: =IF(ISERROR(Plan),0,Plan) -> 0 | Z26: 0 | AA26: 0 | AB26: 0 | AC26: 0 | AD26: 0 | AE26: 0 | AF26: 0 | AG26: 0 | AH26: 0 | AI26: 0 | AJ26: 0 | AK26: 0 | AL26: 0 | AM26: 0 | AN26: 0 | AO26: =IF(ISERROR(Plan),0,Plan) -> 0 | AP26: 0 | AQ26: 0 | AR26: 0 | AS26: 0 | AT26: 0 | AU26: 0 | AV26: 0 | AW26: 0 | AX26: 0 | AY26: 0 | AZ26: 0 | BA26: 0 | BB26: 0 | BC26: 0 | BD26: 0 | BE26: =IF(ISERROR(Plan),0,Plan) -> 0 | BF26: 0 | BG26: 0 | BH26: 0 | BI26: 0 | BJ26: 0 | BK26: 0 | BL26: 0 | BM26: 0 | BN26: 0 | BO26: 0 | BP26: 0
A27: Défense Antiaérienne | C27: =IF($B27<>"",VLOOKUP($B27,COSTS_Air_Defense[#All],2),"") ->  | D27: =IF($B27<>"",VLOOKUP($B27,COSTS_Air_Defense[#All],3)/24,"") ->  | I27: 0 | J27: 0 | K27: 0 | L27: 0 | M27: 0 | N27: 0 | O27: 0 | P27: 0 | Q27: 0 | R27: 0 | S27: 0 | T27: 0 | U27: 0 | V27: 0 | W27: 0 | X27: 0 | Y27: 0 | Z27: 0 | AA27: 0 | AB27: 0 | AC27: 0 | AD27: 0 | AE27: 0 | AF27: 0 | AG27: 0 | AH27: 0 | AI27: 0 | AJ27: 0 | AK27: 0 | AL27: 0 | AM27: 0 | AN27: 0 | AO27: 0 | AP27: 0 | AQ27: 0 | AR27: 0 | AS27: 0 | AT27: 0 | AU27: 0 | AV27: 0 | AW27: 0 | AX27: 0 | AY27: 0 | AZ27: 0 | BA27: 0 | BB27: 0 | BC27: 0 | BD27: 0 | BE27: 0 | BF27: 0 | BG27: 0 | BH27: 0 | BI27: 0 | BJ27: 0 | BK27: 0 | BL27: 0 | BM27: 0 | BN27: 0 | BO27: 0 | BP27: 0
A28: Tour de Sorciers | C28: =IF($B28<>"",VLOOKUP($B28,COSTS_Wizard_Tower[#All],2),"") ->  | D28: =IF($B28<>"",VLOOKUP($B28,COSTS_Wizard_Tower[#All],3)/24,"") ->  | I28: 0 | J28: 0 | K28: 0 | L28: 0 | M28: 0 | N28: 0 | O28: 0 | P28: 0 | Q28: 0 | R28: 0 | S28: 0 | T28: 0 | U28: 0 | V28: 0 | W28: 0 | X28: 0 | Y28: 0 | Z28: 0 | AA28: 0 | AB28: 0 | AC28: 0 | AD28: 0 | AE28: 0 | AF28: 0 | AG28: 0 | AH28: 0 | AI28: 0 | AJ28: 0 | AK28: 0 | AL28: 0 | AM28: 0 | AN28: 0 | AO28: 0 | AP28: 0 | AQ28: 0 | AR28: 0 | AS28: 0 | AT28: 0 | AU28: 0 | AV28: 0 | AW28: 0 | AX28: 0 | AY28: 0 | AZ28: 0 | BA28: 0 | BB28: 0 | BC28: 0 | BD28: 0 | BE28: 0 | BF28: 0 | BG28: 0 | BH28: 0 | BI28: 0 | BJ28: 0 | BK28: 0 | BL28: 0 | BM28: 0 | BN28: 0 | BO28: 0 | BP28: 0
A29: Propulseur d'air | C29: =IF($B29<>"",VLOOKUP($B29,COSTS_Air_Sweeper[#All],2),"") ->  | D29: =IF($B29<>"",VLOOKUP($B29,COSTS_Air_Sweeper[#All],3)/24,"") ->  | I29: 0 | J29: 0 | K29: 0 | L29: 0 | M29: 0 | N29: 0 | O29: 0 | P29: 0 | Q29: 0 | R29: 0 | S29: 0 | T29: 0 | U29: 0 | V29: 0 | W29: 0 | X29: 0 | Y29: 0 | Z29: 0 | AA29: 0 | AB29: 0 | AC29: 0 | AD29: 0 | AE29: 0 | AF29: 0 | AG29: 0 | AH29: 0 | AI29: 0 | AJ29: 0 | AK29: 0 | AL29: 0 | AM29: 0 | AN29: 0 | AO29: 0 | AP29: 0 | AQ29: 0 | AR29: 0 | AS29: 0 | AT29: 0 | AU29: 0 | AV29: 0 | AW29: 0 | AX29: 0 | AY29: 0 | AZ29: 0 | BA29: 0 | BB29: 0 | BC29: 0 | BD29: 0 | BE29: 0 | BF29: 0 | BG29: 0 | BH29: 0 | BI29: 0 | BJ29: 0 | BK29: 0 | BL29: 0 | BM29: 0 | BN29: 0 | BO29: 0 | BP29: 0
A30: Tesla Camouflée | C30: =IF($B30<>"",VLOOKUP($B30,COSTS_Hidden_Tesla[#All],2),"") ->  | D30: =IF($B30<>"",VLOOKUP($B30,COSTS_Hidden_Tesla[#All],3)/24,"") ->  | I30: 0 | J30: 0 | K30: 0 | L30: 0 | M30: 0 | N30: 0 | O30: 0 | P30: 0 | Q30: 0 | R30: 0 | S30: 0 | T30: 0 | U30: 0 | V30: 0 | W30: 0 | X30: 0 | Y30: 0 | Z30: 0 | AA30: 0 | AB30: 0 | AC30: 0 | AD30: 0 | AE30: 0 | AF30: 0 | AG30: 0 | AH30: 0 | AI30: 0 | AJ30: 0 | AK30: 0 | AL30: 0 | AM30: 0 | AN30: 0 | AO30: 0 | AP30: 0 | AQ30: 0 | AR30: 0 | AS30: 0 | AT30: 0 | AU30: 0 | AV30: 0 | AW30: 0 | AX30: 0 | AY30: 0 | AZ30: 0 | BA30: 0 | BB30: 0 | BC30: 0 | BD30: 0 | BE30: 0 | BF30: 0 | BG30: 0 | BH30: 0 | BI30: 0 | BJ30: 0 | BK30: 0 | BL30: 0 | BM30: 0 | BN30: 0 | BO30: 0 | BP30: 0
A31: Arc-X | C31: =IF($B31<>"",VLOOKUP($B31,COSTS_XBow[#All],2),"") ->  | D31: =IF($B31<>"",VLOOKUP($B31,COSTS_XBow[#All],3)/24,"") ->  | I31: 0 | J31: 0 | K31: 0 | L31: 0 | M31: 0 | N31: 0 | O31: 0 | P31: 0 | Q31: 0 | R31: 0 | S31: 0 | T31: 0 | U31: 0 | V31: 0 | W31: 0 | X31: 0 | Y31: 0 | Z31: 0 | AA31: 0 | AB31: 0 | AC31: 0 | AD31: 0 | AE31: 0 | AF31: 0 | AG31: 0 | AH31: 0 | AI31: 0 | AJ31: 0 | AK31: 0 | AL31: 0 | AM31: 0 | AN31: 0 | AO31: 0 | AP31: 0 | AQ31: 0 | AR31: 0 | AS31: 0 | AT31: 0 | AU31: 0 | AV31: 0 | AW31: 0 | AX31: 0 | AY31: 0 | AZ31: 0 | BA31: 0 | BB31: 0 | BC31: 0 | BD31: 0 | BE31: 0 | BF31: 0 | BG31: 0 | BH31: 0 | BI31: 0 | BJ31: 0 | BK31: 0 | BL31: 0 | BM31: 0 | BN31: 0 | BO31: 0 | BP31: 0
A32: Tour de l'Enfer | C32: =IF($B32<>"",VLOOKUP($B32,COSTS_Inferno_Tower[#All],2),"") ->  | D32: =IF($B32<>"",VLOOKUP($B32,COSTS_Inferno_Tower[#All],3)/24,"") ->  | I32: 0 | J32: 0 | K32: 0 | L32: 0 | M32: 0 | N32: 0 | O32: 0 | P32: 0 | Q32: 0 | R32: 0 | S32: 0 | T32: 0 | U32: 0 | V32: 0 | W32: 0 | X32: 0 | Y32: 0 | Z32: 0 | AA32: 0 | AB32: 0 | AC32: 0 | AD32: 0 | AE32: 0 | AF32: 0 | AG32: 0 | AH32: 0 | AI32: 0 | AJ32: 0 | AK32: 0 | AL32: 0 | AM32: 0 | AN32: 0 | AO32: 0 | AP32: 0 | AQ32: 0 | AR32: 0 | AS32: 0 | AT32: 0 | AU32: 0 | AV32: 0 | AW32: 0 | AX32: 0 | AY32: 0 | AZ32: 0 | BA32: 0 | BB32: 0 | BC32: 0 | BD32: 0 | BE32: 0 | BF32: 0 | BG32: 0 | BH32: 0 | BI32: 0 | BJ32: 0 | BK32: 0 | BL32: 0 | BM32: 0 | BN32: 0 | BO32: 0 | BP32: 0
A33: Aigle Artilleur | C33: =IF($B33<>"",VLOOKUP($B33,COSTS_Defense_Aigle[#All],2),"") ->  | D33: =IF($B33<>"",VLOOKUP($B33,COSTS_Defense_Aigle[#All],3)/24,"") ->  | I33: 0 | J33: 0 | K33: 0 | L33: 0 | M33: 0 | N33: 0 | O33: 0 | P33: 0 | Q33: 0 | R33: 0 | S33: 0 | T33: 0 | U33: 0 | V33: 0 | W33: 0 | X33: 0 | Y33: 0 | Z33: 0 | AA33: 0 | AB33: 0 | AC33: 0 | AD33: 0 | AE33: 0 | AF33: 0 | AG33: 0 | AH33: 0 | AI33: 0 | AJ33: 0 | AK33: 0 | AL33: 0 | AM33: 0 | AN33: 0 | AO33: =IF(ISERROR(Plan),0,Plan) -> 0 | AP33: 0 | AQ33: 0 | AR33: 0 | AS33: 0 | AT33: 0 | AU33: 0 | AV33: 0 | AW33: 0 | AX33: 0 | AY33: 0 | AZ33: 0 | BA33: 0 | BB33: 0 | BC33: 0 | BD33: 0 | BE33: 0 | BF33: 0 | BG33: 0 | BH33: 0 | BI33: 0 | BJ33: 0 | BK33: 0 | BL33: 0 | BM33: 0 | BN33: 0 | BO33: 0 | BP33: 0
A34: Pièges Défensifs | I34: 0 | J34: 0 | K34: 0 | L34: 0 | M34: 0 | N34: 0 | O34: 0 | P34: 0 | Q34: 0 | R34: 0 | S34: 0 | T34: 0 | U34: 0 | V34: 0 | W34: 0 | X34: 0 | Y34: 0 | Z34: 0 | AA34: 0 | AB34: =IF(ISERROR(Plan),0,Plan) -> 0 | AC34: 0 | AD34: 0 | AE34: 0 | AF34: 0 | AG34: 0 | AH34: 0 | AI34: 0 | AJ34: 0 | AK34: 0 | AL34: 0 | AM34: 0 | AN34: 0 | AO34: 0 | AP34: 0 | AQ34: 0 | AR34: 0 | AS34: 0 | AT34: 0 | AU34: 0 | AV34: 0 | AW34: 0 | AX34: 0 | AY34: 0 | AZ34: 0 | BA34: 0 | BB34: 0 | BC34: 0 | BD34: 0 | BE34: 0 | BF34: 0 | BG34: 0 | BH34: 0 | BI34: 0 | BJ34: 0 | BK34: 0 | BL34: 0 | BM34: 0 | BN34: 0 | BO34: 0 | BP34: 0
A35: Bombe | C35: =IF($B35<>"",VLOOKUP($B35,COSTS_Bomb[#All],2),"") ->  | D35: =IF($B35<>"",VLOOKUP($B35,COSTS_Bomb[#All],3)/24,"") ->  | G35: =IF($D35<>"",$D35,"") ->  | I35: 0 | J35: 0 | K35: 0 | L35: 0 | M35: 0 | N35: 0 | O35: 0 | P35: 0 | Q35: 0 | R35: 0 | S35: 0 | T35: 0 | U35: 0 | V35: 0 | W35: 0 | X35: 0 | Y35: =IF(ISERROR(Plan),0,Plan) -> 0 | Z35: 0 | AA35: 0 | AB35: 0 | AC35: 0 | AD35: 0 | AE35: 0 | AF35: 0 | AG35: 0 | AH35: 0 | AI35: 0 | AJ35: 0 | AK35: 0 | AL35: 0 | AM35: 0 | AN35: 0 | AO35: 0 | AP35: 0 | AQ35: 0 | AR35: 0 | AS35: 0 | AT35: 0 | AU35: 0 | AV35: 0 | AW35: 0 | AX35: 0 | AY35: 0 | AZ35: 0 | BA35: 0 | BB35: 0 | BC35: 0 | BD35: 0 | BE35: 0 | BF35: 0 | BG35: 0 | BH35: 0 | BI35: 0 | BJ35: 0 | BK35: =IF(ISERROR(Plan),0,Plan) -> 0 | BL35: 0 | BM35: 0 | BN35: 0 | BO35: 0 | BP35: 0
A36: Piège à ressort | C36: =IF($B36<>"",VLOOKUP($B36,COSTS_Spring_Trap[#All],2),"") ->  | D36: =IF($B36<>"",VLOOKUP($B36,COSTS_Spring_Trap[#All],3)/24,"") ->  | I36: 0 | J36: 0 | K36: 0 | L36: 0 | M36: 0 | N36: 0 | O36: 0 | P36: 0 | Q36: 0 | R36: =IF(ISERROR(Plan),0,Plan) -> 0 | S36: 0 | T36: 0 | U36: 0 | V36: 0 | W36: 0 | X36: 0 | Y36: 0 | Z36: 0 | AA36: 0 | AB36: 0 | AC36: 0 | AD36: 0 | AE36: 0 | AF36: 0 | AG36: 0 | AH36: 0 | AI36: 0 | AJ36: 0 | AK36: 0 | AL36: 0 | AM36: 0 | AN36: 0 | AO36: 0 | AP36: 0 | AQ36: 0 | AR36: 0 | AS36: 0 | AT36: 0 | AU36: 0 | AV36: 0 | AW36: 0 | AX36: 0 | AY36: 0 | AZ36: 0 | BA36: 0 | BB36: 0 | BC36: 0 | BD36: 0 | BE36: =IF(ISERROR(Plan),0,Plan) -> 0 | BF36: 0 | BG36: 0 | BH36: 0 | BI36: 0 | BJ36: 0 | BK36: 0 | BL36: 0 | BM36: 0 | BN36: 0 | BO36: 0 | BP36: 0
A37: Bombe géante | C37: =IF($B37<>"",VLOOKUP($B37,COSTS_Giant_Bomb[#All],2),"") ->  | D37: =IF($B37<>"",VLOOKUP($B37,COSTS_Giant_Bomb[#All],3)/24,"") ->  | I37: =IF(ISERROR(Plan),0,Plan) -> 0 | J37: 0 | K37: 0 | L37: 0 | M37: 0 | N37: 0 | O37: 0 | P37: 0 | Q37: 0 | R37: 0 | S37: 0 | T37: 0 | U37: 0 | V37: 0 | W37: 0 | X37: 0 | Y37: 0 | Z37: 0 | AA37: 0 | AB37: 0 | AC37: 0 | AD37: 0 | AE37: 0 | AF37: 0 | AG37: 0 | AH37: 0 | AI37: 0 | AJ37: 0 | AK37: 0 | AL37: 0 | AM37: 0 | AN37: 0 | AO37: 0 | AP37: 0 | AQ37: 0 | AR37: 0 | AS37: 0 | AT37: 0 | AU37: 0 | AV37: 0 | AW37: 0 | AX37: 0 | AY37: 0 | AZ37: 0 | BA37: 0 | BB37: 0 | BC37: 0 | BD37: 0 | BE37: 0 | BF37: 0 | BG37: 0 | BH37: 0 | BI37: 0 | BJ37: 0 | BK37: 0 | BL37: 0 | BM37: 0 | BN37: 0 | BO37: 0 | BP37: 0
A38: Bombe aérienne | C38: =IF($B38<>"",VLOOKUP($B38,COST_Air_Bomb[#All],2),"") ->  | D38: =IF($B38<>"",VLOOKUP($B38,COST_Air_Bomb[#All],3)/24,"") ->  | I38: 0 | J38: 0 | K38: 0 | L38: 0 | M38: 0 | N38: 0 | O38: 0 | P38: 0 | Q38: 0 | R38: 0 | S38: 0 | T38: 0 | U38: 0 | V38: 0 | W38: 0 | X38: 0 | Y38: 0 | Z38: 0 | AA38: 0 | AB38: 0 | AC38: 0 | AD38: 0 | AE38: 0 | AF38: 0 | AG38: 0 | AH38: 0 | AI38: 0 | AJ38: 0 | AK38: 0 | AL38: 0 | AM38: 0 | AN38: 0 | AO38: 0 | AP38: 0 | AQ38: 0 | AR38: 0 | AS38: 0 | AT38: 0 | AU38: 0 | AV38: 0 | AW38: 0 | AX38: 0 | AY38: 0 | AZ38: 0 | BA38: 0 | BB38: 0 | BC38: 0 | BD38: 0 | BE38: 0 | BF38: 0 | BG38: 0 | BH38: 0 | BI38: 0 | BJ38: 0 | BK38: 0 | BL38: 0 | BM38: 0 | BN38: 0 | BO38: 0 | BP38: 0
A39: Tête chercheuse | C39: =IF($B39<>"",VLOOKUP($B39,COST_Seeking_Air_Mine[#All],2),"") ->  | D39: =IF($B39<>"",VLOOKUP($B39,COST_Seeking_Air_Mine[#All],3)/24,"") ->  | I39: 0 | J39: 0 | K39: 0 | L39: 0 | M39: 0 | N39: 0 | O39: 0 | P39: 0 | Q39: 0 | R39: 0 | S39: 0 | T39: 0 | U39: 0 | V39: 0 | W39: 0 | X39: 0 | Y39: 0 | Z39: 0 | AA39: 0 | AB39: 0 | AC39: 0 | AD39: 0 | AE39: 0 | AF39: 0 | AG39: 0 | AH39: 0 | AI39: 0 | AJ39: 0 | AK39: 0 | AL39: 0 | AM39: 0 | AN39: 0 | AO39: 0 | AP39: 0 | AQ39: 0 | AR39: 0 | AS39: 0 | AT39: 0 | AU39: 0 | AV39: 0 | AW39: 0 | AX39: 0 | AY39: 0 | AZ39: 0 | BA39: 0 | BB39: 0 | BC39: 0 | BD39: 0 | BE39: 0 | BF39: 0 | BG39: 0 | BH39: 0 | BI39: 0 | BJ39: 0 | BK39: 0 | BL39: 0 | BM39: 0 | BN39: 0 | BO39: 0 | BP39: 0
A40: Piège squelettique | C40: =IF($B40<>"",VLOOKUP($B40,COST_Skeleton_Trap[#All],2),"") ->  | D40: =IF($B40<>"",VLOOKUP($B40,COST_Skeleton_Trap[#All],3)/24,"") ->  | I40: 0 | J40: 0 | K40: 0 | L40: 0 | M40: 0 | N40: 0 | O40: 0 | P40: 0 | Q40: 0 | R40: 0 | S40: 0 | T40: 0 | U40: 0 | V40: 0 | W40: 0 | X40: 0 | Y40: 0 | Z40: 0 | AA40: 0 | AB40: 0 | AC40: 0 | AD40: 0 | AE40: 0 | AF40: 0 | AG40: 0 | AH40: 0 | AI40: 0 | AJ40: 0 | AK40: 0 | AL40: 0 | AM40: 0 | AN40: 0 | AO40: 0 | AP40: 0 | AQ40: 0 | AR40: 0 | AS40: 0 | AT40: 0 | AU40: 0 | AV40: 0 | AW40: 0 | AX40: 0 | AY40: 0 | AZ40: 0 | BA40: 0 | BB40: 0 | BC40: 0 | BD40: 0 | BE40: 0 | BF40: 0 | BG40: 0 | BH40: 0 | BI40: 0 | BJ40: 0 | BK40: 0 | BL40: 0 | BM40: 0 | BN40: 0 | BO40: 0 | BP40: 0
A41: Bâtiments Autres | I41: 0 | J41: 0 | K41: 0 | L41: 0 | M41: 0 | N41: 0 | O41: 0 | P41: 0 | Q41: 0 | R41: 0 | S41: 0 | T41: 0 | U41: 0 | V41: 0 | W41: 0 | X41: 0 | Y41: 0 | Z41: 0 | AA41: 0 | AB41: 0 | AC41: 0 | AD41: 0 | AE41: 0 | AF41: 0 | AG41: 0 | AH41: 0 | AI41: 0 | AJ41: 0 | AK41: 0 | AL41: 0 | AM41: 0 | AN41: 0 | AO41: 0 | AP41: 0 | AQ41: 0 | AR41: 0 | AS41: 0 | AT41: 0 | AU41: 0 | AV41: 0 | AW41: 0 | AX41: 0 | AY41: 0 | AZ41: 0 | BA41: 0 | BB41: 0 | BC41: 0 | BD41: 0 | BE41: 0 | BF41: 0 | BG41: 0 | BH41: 0 | BI41: 0 | BJ41: 0 | BK41: 0 | BL41: 0 | BM41: 0 | BN41: 0 | BO41: 0 | BP41: 0
A42: Château de Clan | C42: =IF($B42<>"",VLOOKUP($B42,COSTS_Clan_Castle[#All],2),"") ->  | D42: =IF($B42<>"",VLOOKUP($B42,COSTS_Clan_Castle[#All],3)/24,"") ->  | G42: =IF($D42<>"",$D42,"") ->  | I42: 0 | J42: 0 | K42: 0 | L42: 0 | M42: 0 | N42: 0 | O42: 0 | P42: 0 | Q42: 0 | R42: 0 | S42: 0 | T42: 0 | U42: 0 | V42: 0 | W42: 0 | X42: 0 | Y42: 0 | Z42: 0 | AA42: 0 | AB42: 0 | AC42: 0 | AD42: 0 | AE42: 0 | AF42: 0 | AG42: 0 | AH42: 0 | AI42: 0 | AJ42: 0 | AK42: 0 | AL42: 0 | AM42: 0 | AN42: 0 | AO42: 0 | AP42: 0 | AQ42: 0 | AR42: 0 | AS42: 0 | AT42: 0 | AU42: 0 | AV42: 0 | AW42: 0 | AX42: 0 | AY42: 0 | AZ42: 0 | BA42: 0 | BB42: 0 | BC42: 0 | BD42: 0 | BE42: 0 | BF42: 0 | BG42: 0 | BH42: 0 | BI42: 0 | BJ42: 0 | BK42: 0 | BL42: 0 | BM42: 0 | BN42: 0 | BO42: 0 | BP42: 0
A43: Hôtel de Ville | C43: =IF($B43<>"",VLOOKUP($B43,COSTS_Town_Home[#All],2),"") ->  | D43: =IF($B43<>"",VLOOKUP($B43,COSTS_Town_Home[#All],3)/24,"") ->  | G43: =IF($D43<>"",$D43,"") ->  | I43: 0 | J43: 0 | K43: 0 | L43: 0 | M43: 0 | N43: 0 | O43: 0 | P43: 0 | Q43: 0 | R43: 0 | S43: 0 | T43: 0 | U43: 0 | V43: 0 | W43: 0 | X43: 0 | Y43: 0 | Z43: 0 | AA43: 0 | AB43: 0 | AC43: 0 | AD43: 0 | AE43: 0 | AF43: 0 | AG43: 0 | AH43: 0 | AI43: 0 | AJ43: 0 | AK43: 0 | AL43: 0 | AM43: 0 | AN43: 0 | AO43: 0 | AP43: 0 | AQ43: 0 | AR43: 0 | AS43: 0 | AT43: 0 | AU43: 0 | AV43: 0 | AW43: 0 | AX43: 0 | AY43: 0 | AZ43: 0 | BA43: 0 | BB43: 0 | BC43: 0 | BD43: 0 | BE43: 0 | BF43: 0 | BG43: 0 | BH43: 0 | BI43: 0 | BJ43: 0 | BK43: 0 | BL43: 0 | BM43: 0 | BN43: 0 | BO43: 0 | BP43: 0
A44: Améliorations de Sorts | I44: 0 | J44: 0 | K44: 0 | L44: 0 | M44: 0 | N44: 0 | O44: 0 | P44: 0 | Q44: 0 | R44: 0 | S44: 0 | T44: 0 | U44: 0 | V44: 0 | W44: 0 | X44: 0 | Y44: 0 | Z44: 0 | AA44: 0 | AB44: 0 | AC44: 0 | AD44: 0 | AE44: 0 | AF44: 0 | AG44: 0 | AH44: 0 | AI44: 0 | AJ44: 0 | AK44: 0 | AL44: 0 | AM44: 0 | AN44: 0 | AO44: 0 | AP44: 0 | AQ44: 0 | AR44: 0 | AS44: 0 | AT44: 0 | AU44: 0 | AV44: 0 | AW44: 0 | AX44: 0 | AY44: 0 | AZ44: 0 | BA44: 0 | BB44: 0 | BC44: 0 | BD44: 0 | BE44: 0 | BF44: 0 | BG44: 0 | BH44: 0 | BI44: 0 | BJ44: 0 | BK44: 0 | BL44: 0 | BM44: 0 | BN44: 0 | BO44: 0 | BP44: 0
A45: Sort de Foudre | C45: =IF($B45<>"",VLOOKUP($B45,COSTS_Spell_Lightning[#All],2),"") ->  | D45: =IF($B45<>"",VLOOKUP($B45,COSTS_Spell_Lightning[#All],3)/24,"") ->  | G45: =IF($D45<>"",$D45,"") ->  | I45: 0 | J45: 0 | K45: 0 | L45: 0 | M45: 0 | N45: 0 | O45: 0 | P45: =IF(ISERROR(Plan),0,Plan) -> 0 | Q45: 0 | R45: 0 | S45: 0 | T45: 0 | U45: 0 | V45: 0 | W45: 0 | X45: 0 | Y45: 0 | Z45: 0 | AA45: 0 | AB45: 0 | AC45: 0 | AD45: 0 | AE45: 0 | AF45: 0 | AG45: 0 | AH45: 0 | AI45: 0 | AJ45: 0 | AK45: 0 | AL45: 0 | AM45: 0 | AN45: 0 | AO45: 0 | AP45: 0 | AQ45: 0 | AR45: 0 | AS45: 0 | AT45: 0 | AU45: 0 | AV45: 0 | AW45: 0 | AX45: 0 | AY45: 0 | AZ45: 0 | BA45: 0 | BB45: 0 | BC45: 0 | BD45: 0 | BE45: 0 | BF45: 0 | BG45: 0 | BH45: 0 | BI45: 0 | BJ45: 0 | BK45: 0 | BL45: 0 | BM45: 0 | BN45: 0 | BO45: 0 | BP45: 0
A46: Sort de Guérison | C46: =IF($B46<>"",VLOOKUP($B46,COSTS_Spell_Healing[#All],2),"") ->  | D46: =IF($B46<>"",VLOOKUP($B46,COSTS_Spell_Healing[#All],3)/24,"") ->  | G46: =IF($D46<>"",$D46,"") ->  | I46: =IF(ISERROR(Plan),0,Plan) -> 0 | J46: 0 | K46: 0 | L46: 0 | M46: 0 | N46: 0 | O46: 0 | P46: 0 | Q46: 0 | R46: 0 | S46: 0 | T46: 0 | U46: 0 | V46: 0 | W46: 0 | X46: 0 | Y46: 0 | Z46: 0 | AA46: 0 | AB46: 0 | AC46: 0 | AD46: 0 | AE46: 0 | AF46: 0 | AG46: 0 | AH46: 0 | AI46: 0 | AJ46: 0 | AK46: 0 | AL46: 0 | AM46: 0 | AN46: 0 | AO46: 0 | AP46: 0 | AQ46: 0 | AR46: 0 | AS46: 0 | AT46: 0 | AU46: 0 | AV46: 0 | AW46: 0 | AX46: 0 | AY46: 0 | AZ46: 0 | BA46: 0 | BB46: 0 | BC46: 0 | BD46: 0 | BE46: 0 | BF46: 0 | BG46: 0 | BH46: 0 | BI46: 0 | BJ46: 0 | BK46: 0 | BL46: 0 | BM46: 0 | BN46: 0 | BO46: 0 | BP46: 0
A47: Sort de Rage | C47: =IF($B47<>"",VLOOKUP($B47,COSTS_Spell_Rage[#All],2),"") ->  | D47: =IF($B47<>"",VLOOKUP($B47,COSTS_Spell_Rage[#All],3)/24,"") ->  | I47: 0 | J47: 0 | K47: 0 | L47: 0 | M47: 0 | N47: 0 | O47: 0 | P47: 0 | Q47: 0 | R47: 0 | S47: 0 | T47: 0 | U47: 0 | V47: 0 | W47: 0 | X47: 0 | Y47: 0 | Z47: 0 | AA47: 0 | AB47: 0 | AC47: 0 | AD47: 0 | AE47: 0 | AF47: 0 | AG47: 0 | AH47: 0 | AI47: 0 | AJ47: 0 | AK47: 0 | AL47: 0 | AM47: 0 | AN47: 0 | AO47: 0 | AP47: 0 | AQ47: 0 | AR47: 0 | AS47: 0 | AT47: 0 | AU47: 0 | AV47: 0 | AW47: 0 | AX47: 0 | AY47: 0 | AZ47: 0 | BA47: 0 | BB47: 0 | BC47: 0 | BD47: 0 | BE47: 0 | BF47: 0 | BG47: 0 | BH47: 0 | BI47: 0 | BJ47: 0 | BK47: 0 | BL47: 0 | BM47: 0 | BN47: 0 | BO47: 0 | BP47: 0
A48: Sort de Saut | C48: =IF($B48<>"",VLOOKUP($B48,COSTS_Spell_Jump[#All],2),"") ->  | D48: =IF($B48<>"",VLOOKUP($B48,COSTS_Spell_Jump[#All],3)/24,"") ->  | I48: 0 | J48: 0 | K48: 0 | L48: 0 | M48: 0 | N48: 0 | O48: 0 | P48: 0 | Q48: 0 | R48: 0 | S48: 0 | T48: 0 | U48: 0 | V48: 0 | W48: 0 | X48: 0 | Y48: 0 | Z48: 0 | AA48: 0 | AB48: 0 | AC48: 0 | AD48: 0 | AE48: 0 | AF48: 0 | AG48: 0 | AH48: 0 | AI48: 0 | AJ48: 0 | AK48: 0 | AL48: 0 | AM48: 0 | AN48: 0 | AO48: 0 | AP48: 0 | AQ48: 0 | AR48: 0 | AS48: 0 | AT48: 0 | AU48: 0 | AV48: 0 | AW48: 0 | AX48: 0 | AY48: 0 | AZ48: 0 | BA48: 0 | BB48: 0 | BC48: 0 | BD48: 0 | BE48: 0 | BF48: 0 | BG48: 0 | BH48: 0 | BI48: 0 | BJ48: 0 | BK48: 0 | BL48: 0 | BM48: 0 | BN48: 0 | BO48: 0 | BP48: 0
A49: Sort de Gel | C49: =IF($B49<>"",VLOOKUP($B49,COSTS_Spell_Freeze[#All],2),"") ->  | D49: =IF($B49<>"",VLOOKUP($B49,COSTS_Spell_Freeze[#All],3)/24,"") ->  | I49: 0 | J49: 0 | K49: 0 | L49: 0 | M49: 0 | N49: 0 | O49: 0 | P49: 0 | Q49: 0 | R49: 0 | S49: 0 | T49: 0 | U49: 0 | V49: 0 | W49: 0 | X49: 0 | Y49: 0 | Z49: 0 | AA49: 0 | AB49: 0 | AC49: 0 | AD49: 0 | AE49: 0 | AF49: 0 | AG49: 0 | AH49: 0 | AI49: 0 | AJ49: 0 | AK49: 0 | AL49: 0 | AM49: 0 | AN49: 0 | AO49: 0 | AP49: 0 | AQ49: 0 | AR49: 0 | AS49: 0 | AT49: 0 | AU49: 0 | AV49: 0 | AW49: 0 | AX49: 0 | AY49: 0 | AZ49: 0 | BA49: 0 | BB49: 0 | BC49: 0 | BD49: =IF(ISERROR(Plan),0,Plan) -> 0 | BE49: 0 | BF49: 0 | BG49: 0 | BH49: 0 | BI49: 0 | BJ49: 0 | BK49: 0 | BL49: 0 | BM49: 0 | BN49: 0 | BO49: 0 | BP49: 0
A50: Sort de Poison | C50: =IF($B50<>"",VLOOKUP($B50,COSTS_Spell_Poison[#All],2),"") ->  | D50: =IF($B50<>"",VLOOKUP($B50,COSTS_Spell_Poison[#All],3)/24,"") ->  | I50: =IF(ISERROR(Plan),0,Plan) -> 0 | J50: 0 | K50: 0 | L50: 0 | M50: 0 | N50: 0 | O50: 0 | P50: 0 | Q50: 0 | R50: 0 | S50: 0 | T50: 0 | U50: 0 | V50: 0 | W50: 0 | X50: 0 | Y50: 0 | Z50: 0 | AA50: 0 | AB50: 0 | AC50: 0 | AD50: 0 | AE50: 0 | AF50: 0 | AG50: 0 | AH50: 0 | AI50: 0 | AJ50: 0 | AK50: 0 | AL50: 0 | AM50: 0 | AN50: 0 | AO50: 0 | AP50: 0 | AQ50: 0 | AR50: 0 | AS50: 0 | AT50: 0 | AU50: 0 | AV50: 0 | AW50: 0 | AX50: 0 | AY50: 0 | AZ50: 0 | BA50: 0 | BB50: 0 | BC50: 0 | BD50: 0 | BE50: 0 | BF50: 0 | BG50: 0 | BH50: 0 | BI50: 0 | BJ50: 0 | BK50: 0 | BL50: 0 | BM50: 0 | BN50: 0 | BO50: 0 | BP50: 0
A51: Sort de Séisme | C51: =IF($B51<>"",VLOOKUP($B51,COSTS_Spell_Earthquake[#All],2),"") ->  | D51: =IF($B51<>"",VLOOKUP($B51,COSTS_Spell_Earthquake[#All],3)/24,"") ->  | I51: 0 | J51: 0 | K51: 0 | L51: 0 | M51: 0 | N51: 0 | O51: 0 | P51: 0 | Q51: 0 | R51: 0 | S51: 0 | T51: 0 | U51: 0 | V51: 0 | W51: 0 | X51: 0 | Y51: 0 | Z51: 0 | AA51: 0 | AB51: 0 | AC51: 0 | AD51: 0 | AE51: 0 | AF51: 0 | AG51: 0 | AH51: 0 | AI51: 0 | AJ51: 0 | AK51: 0 | AL51: 0 | AM51: 0 | AN51: 0 | AO51: 0 | AP51: 0 | AQ51: 0 | AR51: 0 | AS51: 0 | AT51: 0 | AU51: 0 | AV51: 0 | AW51: 0 | AX51: 0 | AY51: 0 | AZ51: 0 | BA51: 0 | BB51: 0 | BC51: 0 | BD51: 0 | BE51: 0 | BF51: 0 | BG51: 0 | BH51: 0 | BI51: 0 | BJ51: 0 | BK51: 0 | BL51: 0 | BM51: 0 | BN51: 0 | BO51: 0 | BP51: 0
A52: Sort de Hâte | C52: =IF($B52<>"",VLOOKUP($B52,COSTS_Spell_Haste[#All],2),"") ->  | D52: =IF($B52<>"",VLOOKUP($B52,COSTS_Spell_Haste[#All],3)/24,"") ->  | I52: 0 | J52: 0 | K52: 0 | L52: 0 | M52: 0 | N52: 0 | O52: 0 | P52: 0 | Q52: 0 | R52: 0 | S52: 0 | T52: 0 | U52: 0 | V52: 0 | W52: 0 | X52: 0 | Y52: 0 | Z52: 0 | AA52: 0 | AB52: 0 | AC52: 0 | AD52: 0 | AE52: 0 | AF52: 0 | AG52: 0 | AH52: 0 | AI52: 0 | AJ52: 0 | AK52: 0 | AL52: 0 | AM52: 0 | AN52: 0 | AO52: 0 | AP52: 0 | AQ52: 0 | AR52: 0 | AS52: 0 | AT52: 0 | AU52: 0 | AV52: 0 | AW52: 0 | AX52: 0 | AY52: 0 | AZ52: 0 | BA52: 0 | BB52: 0 | BC52: 0 | BD52: 0 | BE52: 0 | BF52: 0 | BG52: 0 | BH52: 0 | BI52: 0 | BJ52: 0 | BK52: 0 | BL52: 0 | BM52: 0 | BN52: 0 | BO52: 0 | BP52: 0
A53: Améliorations de Troupes | I53: 0 | J53: 0 | K53: 0 | L53: 0 | M53: 0 | N53: 0 | O53: 0 | P53: 0 | Q53: 0 | R53: 0 | S53: 0 | T53: 0 | U53: 0 | V53: 0 | W53: 0 | X53: 0 | Y53: 0 | Z53: 0 | AA53: 0 | AB53: 0 | AC53: 0 | AD53: 0 | AE53: 0 | AF53: 0 | AG53: 0 | AH53: 0 | AI53: 0 | AJ53: 0 | AK53: 0 | AL53: 0 | AM53: 0 | AN53: 0 | AO53: 0 | AP53: 0 | AQ53: 0 | AR53: 0 | AS53: 0 | AT53: 0 | AU53: 0 | AV53: 0 | AW53: 0 | AX53: 0 | AY53: 0 | AZ53: 0 | BA53: 0 | BB53: 0 | BC53: 0 | BD53: 0 | BE53: 0 | BF53: 0 | BG53: 0 | BH53: 0 | BI53: 0 | BJ53: 0 | BK53: 0 | BL53: 0 | BM53: 0 | BN53: 0 | BO53: 0 | BP53: 0
A54: Barbare | C54: =IF($B54<>"",VLOOKUP($B54,COSTS_Barbarian[#All],2),"") ->  | D54: =IF($B54<>"",VLOOKUP($B54,COSTS_Barbarian[#All],3)/24,"") ->  | I54: 0 | J54: 0 | K54: 0 | L54: 0 | M54: 0 | N54: 0 | O54: 0 | P54: 0 | Q54: 0 | R54: 0 | S54: 0 | T54: 0 | U54: 0 | V54: 0 | W54: 0 | X54: =IF(ISERROR(Plan),0,Plan) -> 0 | Y54: 0 | Z54: 0 | AA54: 0 | AB54: 0 | AC54: 0 | AD54: 0 | AE54: 0 | AF54: 0 | AG54: 0 | AH54: 0 | AI54: 0 | AJ54: 0 | AK54: 0 | AL54: 0 | AM54: 0 | AN54: =IF(ISERROR(Plan),0,Plan) -> 0 | AO54: 0 | AP54: 0 | AQ54: 0 | AR54: 0 | AS54: 0 | AT54: 0 | AU54: 0 | AV54: 0 | AW54: 0 | AX54: 0 | AY54: 0 | AZ54: 0 | BA54: 0 | BB54: 0 | BC54: 0 | BD54: =IF(ISERROR(Plan),0,Plan) -> 0 | BE54: 0 | BF54: 0 | BG54: 0 | BH54: 0 | BI54: 0 | BJ54: 0 | BK54: 0 | BL54: 0 | BM54: 0 | BN54: 0 | BO54: 0 | BP54: 0
A55: Archer | C55: =IF($B55<>"",VLOOKUP($B55,COSTS_Archer[#All],2),"") ->  | D55: =IF($B55<>"",VLOOKUP($B55,COSTS_Archer[#All],3)/24,"") ->  | I55: =IF(ISERROR(Plan),0,Plan) -> 0 | J55: 0 | K55: 0 | L55: 0 | M55: 0 | N55: 0 | O55: 0 | P55: 0 | Q55: 0 | R55: 0 | S55: 0 | T55: 0 | U55: 0 | V55: 0 | W55: 0 | X55: 0 | Y55: 0 | Z55: 0 | AA55: 0 | AB55: 0 | AC55: 0 | AD55: 0 | AE55: 0 | AF55: 0 | AG55: 0 | AH55: 0 | AI55: 0 | AJ55: 0 | AK55: 0 | AL55: 0 | AM55: 0 | AN55: 0 | AO55: 0 | AP55: 0 | AQ55: 0 | AR55: 0 | AS55: 0 | AT55: 0 | AU55: 0 | AV55: 0 | AW55: 0 | AX55: 0 | AY55: 0 | AZ55: 0 | BA55: 0 | BB55: 0 | BC55: 0 | BD55: 0 | BE55: 0 | BF55: 0 | BG55: 0 | BH55: 0 | BI55: 0 | BJ55: 0 | BK55: 0 | BL55: 0 | BM55: 0 | BN55: 0 | BO55: 0 | BP55: 0
A56: Gobelin | C56: =IF($B56<>"",VLOOKUP($B56,COSTS_Goblin[#All],2),"") ->  | D56: =IF($B56<>"",VLOOKUP($B56,COSTS_Goblin[#All],3)/24,"") ->  | I56: 0 | J56: 0 | K56: 0 | L56: 0 | M56: 0 | N56: 0 | O56: 0 | P56: 0 | Q56: 0 | R56: 0 | S56: 0 | T56: 0 | U56: 0 | V56: 0 | W56: 0 | X56: 0 | Y56: 0 | Z56: 0 | AA56: 0 | AB56: 0 | AC56: =IF(ISERROR(Plan),0,Plan) -> 0 | AD56: 0 | AE56: 0 | AF56: 0 | AG56: 0 | AH56: 0 | AI56: 0 | AJ56: 0 | AK56: 0 | AL56: 0 | AM56: =IF(ISERROR(Plan),0,Plan) -> 0 | AN56: 0 | AO56: 0 | AP56: 0 | AQ56: 0 | AR56: 0 | AS56: 0 | AT56: 0 | AU56: 0 | AV56: 0 | AW56: 0 | AX56: 0 | AY56: 0 | AZ56: 0 | BA56: 0 | BB56: 0 | BC56: 0 | BD56: 0 | BE56: 0 | BF56: 0 | BG56: 0 | BH56: 0 | BI56: 0 | BJ56: 0 | BK56: 0 | BL56: 0 | BM56: 0 | BN56: 0 | BO56: 0 | BP56: 0
A57: Géant | C57: =IF($B57<>"",VLOOKUP($B57,COSTS_Giant[#All],2),"") ->  | D57: =IF($B57<>"",VLOOKUP($B57,COSTS_Giant[#All],3)/24,"") ->  | I57: 0 | J57: 0 | K57: 0 | L57: 0 | M57: 0 | N57: 0 | O57: 0 | P57: 0 | Q57: 0 | R57: 0 | S57: 0 | T57: 0 | U57: 0 | V57: 0 | W57: 0 | X57: 0 | Y57: 0 | Z57: 0 | AA57: 0 | AB57: 0 | AC57: 0 | AD57: 0 | AE57: 0 | AF57: 0 | AG57: 0 | AH57: 0 | AI57: 0 | AJ57: 0 | AK57: 0 | AL57: 0 | AM57: 0 | AN57: 0 | AO57: 0 | AP57: 0 | AQ57: 0 | AR57: 0 | AS57: 0 | AT57: 0 | AU57: 0 | AV57: 0 | AW57: 0 | AX57: 0 | AY57: 0 | AZ57: 0 | BA57: 0 | BB57: 0 | BC57: 0 | BD57: 0 | BE57: 0 | BF57: 0 | BG57: 0 | BH57: 0 | BI57: 0 | BJ57: 0 | BK57: 0 | BL57: 0 | BM57: 0 | BN57: 0 | BO57: 0 | BP57: 0
A58: Sapeur | C58: =IF($B58<>"",VLOOKUP($B58,COSTS_Wall_Breaker[#All],2),"") ->  | D58: =IF($B58<>"",VLOOKUP($B58,COSTS_Wall_Breaker[#All],3)/24,"") ->  | I58: 0 | J58: 0 | K58: 0 | L58: 0 | M58: 0 | N58: 0 | O58: 0 | P58: 0 | Q58: 0 | R58: 0 | S58: 0 | T58: 0 | U58: 0 | V58: 0 | W58: 0 | X58: 0 | Y58: 0 | Z58: 0 | AA58: 0 | AB58: 0 | AC58: 0 | AD58: 0 | AE58: 0 | AF58: 0 | AG58: 0 | AH58: 0 | AI58: 0 | AJ58: 0 | AK58: 0 | AL58: 0 | AM58: 0 | AN58: 0 | AO58: 0 | AP58: 0 | AQ58: 0 | AR58: 0 | AS58: 0 | AT58: 0 | AU58: 0 | AV58: 0 | AW58: 0 | AX58: 0 | AY58: 0 | AZ58: 0 | BA58: 0 | BB58: 0 | BC58: 0 | BD58: 0 | BE58: 0 | BF58: 0 | BG58: 0 | BH58: 0 | BI58: 0 | BJ58: 0 | BK58: 0 | BL58: 0 | BM58: 0 | BN58: 0 | BO58: 0 | BP58: 0
A59: Ballon | C59: =IF($B59<>"",VLOOKUP($B59,COSTS_Balloon[#All],2),"") ->  | D59: =IF($B59<>"",VLOOKUP($B59,COSTS_Balloon[#All],3)/24,"") ->  | I59: 0 | J59: 0 | K59: 0 | L59: 0 | M59: 0 | N59: 0 | O59: 0 | P59: 0 | Q59: 0 | R59: 0 | S59: 0 | T59: 0 | U59: 0 | V59: 0 | W59: 0 | X59: 0 | Y59: 0 | Z59: 0 | AA59: 0 | AB59: 0 | AC59: 0 | AD59: 0 | AE59: 0 | AF59: 0 | AG59: 0 | AH59: 0 | AI59: 0 | AJ59: 0 | AK59: 0 | AL59: 0 | AM59: 0 | AN59: 0 | AO59: 0 | AP59: 0 | AQ59: 0 | AR59: 0 | AS59: 0 | AT59: 0 | AU59: 0 | AV59: 0 | AW59: 0 | AX59: 0 | AY59: 0 | AZ59: 0 | BA59: 0 | BB59: 0 | BC59: 0 | BD59: 0 | BE59: 0 | BF59: 0 | BG59: 0 | BH59: 0 | BI59: 0 | BJ59: 0 | BK59: 0 | BL59: =IF(ISERROR(Plan),0,Plan) -> 0 | BM59: 0 | BN59: 0 | BO59: 0 | BP59: 0
A60: Sorcier | C60: =IF($B60<>"",VLOOKUP($B60,COSTS_Wizard[#All],2),"") ->  | D60: =IF($B60<>"",VLOOKUP($B60,COSTS_Wizard[#All],3)/24,"") ->  | I60: 0 | J60: 0 | K60: 0 | L60: 0 | M60: 0 | N60: 0 | O60: 0 | P60: 0 | Q60: 0 | R60: 0 | S60: 0 | T60: 0 | U60: 0 | V60: 0 | W60: 0 | X60: 0 | Y60: 0 | Z60: 0 | AA60: 0 | AB60: 0 | AC60: 0 | AD60: 0 | AE60: 0 | AF60: 0 | AG60: 0 | AH60: 0 | AI60: 0 | AJ60: 0 | AK60: 0 | AL60: 0 | AM60: 0 | AN60: 0 | AO60: 0 | AP60: 0 | AQ60: 0 | AR60: 0 | AS60: 0 | AT60: 0 | AU60: 0 | AV60: 0 | AW60: 0 | AX60: 0 | AY60: 0 | AZ60: 0 | BA60: 0 | BB60: 0 | BC60: 0 | BD60: 0 | BE60: 0 | BF60: 0 | BG60: 0 | BH60: 0 | BI60: 0 | BJ60: 0 | BK60: 0 | BL60: 0 | BM60: 0 | BN60: 0 | BO60: 0 | BP60: 0
A61: Guérisseuse | C61: =IF($B61<>"",VLOOKUP($B61,COSTS_Healer[#All],2),"") ->  | D61: =IF($B61<>"",VLOOKUP($B61,COSTS_Healer[#All],3)/24,"") ->  | I61: 0 | J61: 0 | K61: 0 | L61: 0 | M61: 0 | N61: 0 | O61: 0 | P61: 0 | Q61: 0 | R61: 0 | S61: 0 | T61: 0 | U61: 0 | V61: 0 | W61: 0 | X61: 0 | Y61: 0 | Z61: 0 | AA61: 0 | AB61: 0 | AC61: 0 | AD61: 0 | AE61: 0 | AF61: 0 | AG61: 0 | AH61: 0 | AI61: 0 | AJ61: 0 | AK61: 0 | AL61: 0 | AM61: 0 | AN61: 0 | AO61: 0 | AP61: 0 | AQ61: 0 | AR61: 0 | AS61: 0 | AT61: 0 | AU61: 0 | AV61: 0 | AW61: 0 | AX61: 0 | AY61: 0 | AZ61: 0 | BA61: 0 | BB61: 0 | BC61: 0 | BD61: 0 | BE61: 0 | BF61: 0 | BG61: 0 | BH61: 0 | BI61: 0 | BJ61: 0 | BK61: 0 | BL61: 0 | BM61: 0 | BN61: 0 | BO61: 0 | BP61: 0
A62: Dragon | C62: =IF($B62<>"",VLOOKUP($B62,COSTS_Dragon[#All],2),"") ->  | D62: =IF($B62<>"",VLOOKUP($B62,COSTS_Dragon[#All],3)/24,"") ->  | I62: 0 | J62: 0 | K62: 0 | L62: 0 | M62: 0 | N62: 0 | O62: 0 | P62: 0 | Q62: 0 | R62: 0 | S62: 0 | T62: 0 | U62: 0 | V62: 0 | W62: 0 | X62: 0 | Y62: 0 | Z62: 0 | AA62: 0 | AB62: 0 | AC62: 0 | AD62: 0 | AE62: 0 | AF62: 0 | AG62: 0 | AH62: 0 | AI62: 0 | AJ62: 0 | AK62: 0 | AL62: 0 | AM62: 0 | AN62: 0 | AO62: 0 | AP62: 0 | AQ62: 0 | AR62: 0 | AS62: 0 | AT62: 0 | AU62: 0 | AV62: 0 | AW62: 0 | AX62: 0 | AY62: 0 | AZ62: 0 | BA62: 0 | BB62: 0 | BC62: 0 | BD62: 0 | BE62: 0 | BF62: 0 | BG62: 0 | BH62: 0 | BI62: 0 | BJ62: 0 | BK62: 0 | BL62: 0 | BM62: 0 | BN62: 0 | BO62: 0 | BP62: 0
A63: P.E.K.K.A | C63: =IF($B63<>"",VLOOKUP($B63,COSTS_PEKKA[#All],2),"") ->  | D63: =IF($B63<>"",VLOOKUP($B63,COSTS_PEKKA[#All],3)/24,"") ->  | I63: 0 | J63: 0 | K63: 0 | L63: 0 | M63: 0 | N63: 0 | O63: 0 | P63: 0 | Q63: 0 | R63: 0 | S63: 0 | T63: 0 | U63: 0 | V63: 0 | W63: 0 | X63: 0 | Y63: 0 | Z63: 0 | AA63: 0 | AB63: 0 | AC63: 0 | AD63: 0 | AE63: 0 | AF63: 0 | AG63: 0 | AH63: 0 | AI63: 0 | AJ63: 0 | AK63: 0 | AL63: 0 | AM63: 0 | AN63: 0 | AO63: 0 | AP63: 0 | AQ63: 0 | AR63: 0 | AS63: 0 | AT63: 0 | AU63: 0 | AV63: 0 | AW63: 0 | AX63: 0 | AY63: 0 | AZ63: 0 | BA63: 0 | BB63: 0 | BC63: 0 | BD63: 0 | BE63: 0 | BF63: 0 | BG63: 0 | BH63: 0 | BI63: 0 | BJ63: 0 | BK63: 0 | BL63: 0 | BM63: 0 | BN63: 0 | BO63: 0 | BP63: 0
A64: Serviteur | C64: =IF($B64<>"",VLOOKUP($B64,COSTS_Minion[#All],2),"") ->  | D64: =IF($B64<>"",VLOOKUP($B64,COSTS_Minion[#All],3)/24,"") ->  | I64: 0 | J64: 0 | K64: 0 | L64: 0 | M64: 0 | N64: 0 | O64: 0 | P64: 0 | Q64: 0 | R64: 0 | S64: 0 | T64: 0 | U64: 0 | V64: 0 | W64: 0 | X64: 0 | Y64: 0 | Z64: 0 | AA64: 0 | AB64: 0 | AC64: 0 | AD64: 0 | AE64: 0 | AF64: 0 | AG64: 0 | AH64: 0 | AI64: 0 | AJ64: 0 | AK64: 0 | AL64: 0 | AM64: 0 | AN64: 0 | AO64: 0 | AP64: 0 | AQ64: 0 | AR64: 0 | AS64: 0 | AT64: 0 | AU64: 0 | AV64: 0 | AW64: 0 | AX64: 0 | AY64: 0 | AZ64: 0 | BA64: 0 | BB64: 0 | BC64: 0 | BD64: 0 | BE64: 0 | BF64: 0 | BG64: 0 | BH64: 0 | BI64: 0 | BJ64: 0 | BK64: 0 | BL64: 0 | BM64: 0 | BN64: 0 | BO64: 0 | BP64: 0
A65: Chevaucheur de Cochon | C65: =IF($B65<>"",VLOOKUP($B65,COSTS_Hog_Rider[#All],2),"") ->  | D65: =IF($B65<>"",VLOOKUP($B65,COSTS_Hog_Rider[#All],3)/24,"") ->  | I65: 0 | J65: 0 | K65: 0 | L65: 0 | M65: 0 | N65: 0 | O65: 0 | P65: 0 | Q65: 0 | R65: 0 | S65: 0 | T65: 0 | U65: 0 | V65: 0 | W65: 0 | X65: 0 | Y65: 0 | Z65: 0 | AA65: 0 | AB65: 0 | AC65: 0 | AD65: 0 | AE65: 0 | AF65: 0 | AG65: 0 | AH65: 0 | AI65: 0 | AJ65: 0 | AK65: 0 | AL65: 0 | AM65: 0 | AN65: 0 | AO65: 0 | AP65: 0 | AQ65: 0 | AR65: 0 | AS65: 0 | AT65: 0 | AU65: 0 | AV65: 0 | AW65: 0 | AX65: 0 | AY65: 0 | AZ65: 0 | BA65: 0 | BB65: 0 | BC65: 0 | BD65: 0 | BE65: 0 | BF65: 0 | BG65: 0 | BH65: 0 | BI65: 0 | BJ65: 0 | BK65: 0 | BL65: 0 | BM65: 0 | BN65: 0 | BO65: 0 | BP65: 0
A66: Valkyrie | C66: =IF($B66<>"",VLOOKUP($B66,COSTS_Valkyrie[#All],2),"") ->  | D66: =IF($B66<>"",VLOOKUP($B66,COSTS_Valkyrie[#All],3)/24,"") ->  | I66: 0 | J66: 0 | K66: 0 | L66: 0 | M66: 0 | N66: 0 | O66: 0 | P66: 0 | Q66: 0 | R66: 0 | S66: 0 | T66: 0 | U66: 0 | V66: 0 | W66: 0 | X66: 0 | Y66: 0 | Z66: 0 | AA66: 0 | AB66: 0 | AC66: 0 | AD66: 0 | AE66: 0 | AF66: 0 | AG66: 0 | AH66: 0 | AI66: 0 | AJ66: 0 | AK66: 0 | AL66: 0 | AM66: 0 | AN66: 0 | AO66: 0 | AP66: 0 | AQ66: 0 | AR66: 0 | AS66: 0 | AT66: 0 | AU66: 0 | AV66: 0 | AW66: 0 | AX66: 0 | AY66: 0 | AZ66: 0 | BA66: 0 | BB66: 0 | BC66: 0 | BD66: 0 | BE66: 0 | BF66: 0 | BG66: 0 | BH66: 0 | BI66: 0 | BJ66: 0 | BK66: 0 | BL66: 0 | BM66: 0 | BN66: 0 | BO66: 0 | BP66: 0
A67: Golem | C67: =IF($B67<>"",VLOOKUP($B67,COSTS_Golem[#All],2),"") ->  | D67: =IF($B67<>"",VLOOKUP($B67,COSTS_Golem[#All],3)/24,"") ->  | G67: =IF($D67<>"",$D67,"") ->  | I67: 0 | J67: 0 | K67: 0 | L67: 0 | M67: 0 | N67: 0 | O67: 0 | P67: 0 | Q67: 0 | R67: 0 | S67: 0 | T67: 0 | U67: 0 | V67: 0 | W67: 0 | X67: 0 | Y67: 0 | Z67: 0 | AA67: 0 | AB67: 0 | AC67: 0 | AD67: 0 | AE67: 0 | AF67: 0 | AG67: 0 | AH67: 0 | AI67: 0 | AJ67: 0 | AK67: 0 | AL67: 0 | AM67: 0 | AN67: 0 | AO67: 0 | AP67: 0 | AQ67: 0 | AR67: 0 | AS67: 0 | AT67: 0 | AU67: 0 | AV67: 0 | AW67: 0 | AX67: 0 | AY67: 0 | AZ67: 0 | BA67: 0 | BB67: 0 | BC67: 0 | BD67: 0 | BE67: 0 | BF67: 0 | BG67: 0 | BH67: 0 | BI67: 0 | BJ67: 0 | BK67: 0 | BL67: 0 | BM67: 0 | BN67: 0 | BO67: 0 | BP67: 0
A68: Sorcière | C68: =IF($B68<>"",VLOOKUP($B68,COSTS_Witch[#All],2),"") ->  | D68: =IF($B68<>"",VLOOKUP($B68,COSTS_Witch[#All],3)/24,"") ->  | I68: 0 | J68: 0 | K68: 0 | L68: 0 | M68: 0 | N68: 0 | O68: 0 | P68: 0 | Q68: 0 | R68: 0 | S68: 0 | T68: 0 | U68: 0 | V68: 0 | W68: 0 | X68: 0 | Y68: 0 | Z68: 0 | AA68: 0 | AB68: 0 | AC68: 0 | AD68: 0 | AE68: 0 | AF68: 0 | AG68: 0 | AH68: 0 | AI68: 0 | AJ68: 0 | AK68: 0 | AL68: 0 | AM68: 0 | AN68: 0 | AO68: 0 | AP68: 0 | AQ68: 0 | AR68: 0 | AS68: 0 | AT68: 0 | AU68: 0 | AV68: 0 | AW68: 0 | AX68: 0 | AY68: 0 | AZ68: 0 | BA68: 0 | BB68: 0 | BC68: 0 | BD68: 0 | BE68: 0 | BF68: 0 | BG68: 0 | BH68: 0 | BI68: 0 | BJ68: 0 | BK68: 0 | BL68: 0 | BM68: 0 | BN68: 0 | BO68: 0 | BP68: 0
A69: Molosse de lave | C69: =IF($B69<>"",VLOOKUP($B69,COSTS_Lava_Hound[#All],2),"") ->  | D69: =IF($B69<>"",VLOOKUP($B69,COSTS_Lava_Hound[#All],3)/24,"") ->  | I69: 0 | J69: 0 | K69: 0 | L69: 0 | M69: 0 | N69: 0 | O69: 0 | P69: 0 | Q69: 0 | R69: 0 | S69: 0 | T69: 0 | U69: 0 | V69: 0 | W69: 0 | X69: 0 | Y69: 0 | Z69: 0 | AA69: 0 | AB69: 0 | AC69: 0 | AD69: 0 | AE69: 0 | AF69: 0 | AG69: 0 | AH69: 0 | AI69: 0 | AJ69: 0 | AK69: 0 | AL69: 0 | AM69: 0 | AN69: 0 | AO69: 0 | AP69: 0 | AQ69: 0 | AR69: 0 | AS69: 0 | AT69: 0 | AU69: 0 | AV69: 0 | AW69: 0 | AX69: 0 | AY69: 0 | AZ69: 0 | BA69: 0 | BB69: 0 | BC69: 0 | BD69: 0 | BE69: 0 | BF69: 0 | BG69: 0 | BH69: 0 | BI69: 0 | BJ69: 0 | BK69: 0 | BL69: 0 | BM69: 0 | BN69: 0 | BO69: 0 | BP69: 0
A70: Héros | I70: 0 | J70: 0 | K70: 0 | L70: 0 | M70: 0 | N70: 0 | O70: 0 | P70: 0 | Q70: 0 | R70: 0 | S70: 0 | T70: 0 | U70: 0 | V70: 0 | W70: 0 | X70: 0 | Y70: 0 | Z70: 0 | AA70: 0 | AB70: 0 | AC70: 0 | AD70: 0 | AE70: 0 | AF70: 0 | AG70: 0 | AH70: 0 | AI70: 0 | AJ70: 0 | AK70: 0 | AL70: 0 | AM70: 0 | AN70: 0 | AO70: 0 | AP70: 0 | AQ70: 0 | AR70: 0 | AS70: 0 | AT70: 0 | AU70: 0 | AV70: 0 | AW70: 0 | AX70: 0 | AY70: 0 | AZ70: 0 | BA70: 0 | BB70: 0 | BC70: 0 | BD70: 0 | BE70: 0 | BF70: 0 | BG70: 0 | BH70: 0 | BI70: 0 | BJ70: 0 | BK70: 0 | BL70: 0 | BM70: 0 | BN70: 0 | BO70: 0 | BP70: 0
A71: Roi des Barbares | C71: =IF($B71<>"",VLOOKUP($B71,COSTS_Barbarian_King[#All],2),"") ->  | D71: =IF($B71<>"",VLOOKUP($B71,COSTS_Barbarian_King[#All],3)/24,"") ->  | I71: 0 | J71: 0 | K71: 0 | L71: 0 | M71: 0 | N71: 0 | O71: 0 | P71: 0 | Q71: 0 | R71: 0 | S71: 0 | T71: 0 | U71: 0 | V71: 0 | W71: 0 | X71: 0 | Y71: 0 | Z71: 0 | AA71: 0 | AB71: 0 | AC71: 0 | AD71: 0 | AE71: 0 | AF71: 0 | AG71: 0 | AH71: 0 | AI71: 0 | AJ71: 0 | AK71: 0 | AL71: 0 | AM71: 0 | AN71: 0 | AO71: 0 | AP71: 0 | AQ71: 0 | AR71: 0 | AS71: 0 | AT71: 0 | AU71: 0 | AV71: 0 | AW71: 0 | AX71: 0 | AY71: 0 | AZ71: 0 | BA71: 0 | BB71: 0 | BC71: 0 | BD71: 0 | BE71: 0 | BF71: 0 | BG71: 0 | BH71: 0 | BI71: 0 | BJ71: 0 | BK71: 0 | BL71: 0 | BM71: 0 | BN71: 0 | BO71: 0 | BP71: 0
A72: Reine des Archers | C72: =IF($B72<>"",VLOOKUP($B72,COSTS_Archer_Queen[#All],2),"") ->  | D72: =IF($B72<>"",VLOOKUP($B72,COSTS_Archer_Queen[#All],3)/24,"") ->  | I72: 0 | J72: 0 | K72: 0 | L72: 0 | M72: 0 | N72: 0 | O72: 0 | P72: 0 | Q72: 0 | R72: 0 | S72: 0 | T72: 0 | U72: =IF(ISERROR(Plan),0,Plan) -> 0 | V72: 0 | W72: 0 | X72: 0 | Y72: 0 | Z72: 0 | AA72: 0 | AB72: 0 | AC72: 0 | AD72: 0 | AE72: 0 | AF72: 0 | AG72: 0 | AH72: 0 | AI72: 0 | AJ72: 0 | AK72: 0 | AL72: 0 | AM72: 0 | AN72: 0 | AO72: 0 | AP72: 0 | AQ72: 0 | AR72: 0 | AS72: 0 | AT72: 0 | AU72: 0 | AV72: 0 | AW72: 0 | AX72: 0 | AY72: 0 | AZ72: 0 | BA72: 0 | BB72: 0 | BC72: 0 | BD72: 0 | BE72: 0 | BF72: 0 | BG72: 0 | BH72: 0 | BI72: 0 | BJ72: 0 | BK72: 0 | BL72: 0 | BM72: 0 | BN72: 0 | BO72: 0 | BP72: 0
A73: Grand Gardien | C73: =IF($B73<>"",VLOOKUP($B73,COSTS_Grand_Warden[#All],2),"") ->  | D73: =IF($B73<>"",VLOOKUP($B73,COSTS_Grand_Warden[#All],3)/24,"") ->  | G73: =IF($D73<>"",$D73,"") ->  | I73: 0 | J73: 0 | K73: 0 | L73: 0 | M73: 0 | N73: 0 | O73: 0 | P73: 0 | Q73: 0 | R73: 0 | S73: 0 | T73: 0 | U73: 0 | V73: 0 | W73: 0 | X73: 0 | Y73: 0 | Z73: 0 | AA73: 0 | AB73: 0 | AC73: 0 | AD73: 0 | AE73: 0 | AF73: 0 | AG73: 0 | AH73: 0 | AI73: 0 | AJ73: 0 | AK73: 0 | AL73: 0 | AM73: 0 | AN73: 0 | AO73: 0 | AP73: 0 | AQ73: 0 | AR73: 0 | AS73: 0 | AT73: 0 | AU73: 0 | AV73: 0 | AW73: 0 | AX73: 0 | AY73: 0 | AZ73: 0 | BA73: 0 | BB73: 0 | BC73: 0 | BD73: 0 | BE73: 0 | BF73: 0 | BG73: 0 | BH73: 0 | BI73: 0 | BJ73: 0 | BK73: 0 | BL73: 0 | BM73: 0 | BN73: 0 | BO73: 0 | BP73: 0

Sheet À Faire - Récapitulatif
A1: LVL HdV | B1: Affichage Temps | D1: Mur | E1: HDV | F1: Héros | H1: Or Total : | K1: Élixir Total : | M1: Élixir Noir Total : | O1: Temps Total : | Q1: ='Paramètres - Admin'!$D$7 & IF($B$2='Paramètres - Admin'!$B$2,TEXT((E13+K13+E28+Q27+Q13)*60*60,"# 0")&" " & 'Paramètres - Admin'!$B$2,IF($B$2='Paramètres - Admin'!$B$3,TEXT((E13+K13+E28+Q27+Q13)*60,"# 0")&" " & 'Paramètres - Admin'!$B$3,IF($B$2='Paramètres - Admin'!$B$4,TEXT((E13+K13+E28+Q27+Q13),"# 0,00")&" " & 'Paramètres - Admin'!$B$4,IF($B$2='Paramètres - Admin'!$B$5,TEXT((E13+K13+E28+Q27+Q13)/24,"# 0,00")&" " & 'Paramètres - Admin'!$B$5,IF($B$2='Paramètres - Admin'!$B$6,TEXT(((E13+K13+E28+Q27+Q13)/24)/30,"# 0,00")&" " & 'Paramètres - Admin'!$B$6,IF((E13+K13+E28+Q27+Q13)/24>=1,INT((E13+K13+E28+Q27+Q13)/24)&" " & 'Paramètres - Admin'!$D$4 & " " & HOUR((E13+K13+E28+Q27+Q13)/24-INT((E13+K13+E28+Q27+Q13)/24))&" " & 'Paramètres - Admin'!$D$3 & " " & MINUTE((E13+K13+E28+Q27+Q13)/24-INT((E13+K13+E28+Q27+Q13)/24))&" " & 'Paramètres - Admin'!$D$2,HOUR((E13+K13+E28+Q27+Q13)/24-INT((E13+K13+E28+Q27+Q13)/24))&" " & 'Paramètres - Admin'!$D$3 & " " & MINUTE((E13+K13+E28+Q27+Q13)/24-INT((E13+K13+E28+Q27+Q13)/24))&" " & 'Paramètres - Admin'!$D$2)))))) -> Bâtiments : 0,15 jours | T1: => Temps par Ouvrier : | W1: Améliorations Troupes/Sorts :
A2: =Paramètres!$BI$2 -> 1 | B2: jours | D2: Oui | E2: Oui | F2: Oui | H2: =TEXT(D8+D11+D28+P27+P13,"# ### ### ##0") -> 4 250 | K2: =TEXT(D7+D9+D10+D12+J13+P22+J27,"# ### ### ##0") -> 4 700 | M2: =TEXT(V13+V27,"# ### ### ##0") -> 0 | O2: =IF($B$2='Paramètres - Admin'!$B$2,TEXT((Z6)*60*60,"# 0")&" " & 'Paramètres - Admin'!$B$2,IF($B$2='Paramètres - Admin'!$B$3,TEXT(Z6*60,"# 0")&" " & 'Paramètres - Admin'!$B$3,IF($B$2='Paramètres - Admin'!$B$4,TEXT(Z6,"# 0,00")&" " & 'Paramètres - Admin'!$B$4,IF($B$2='Paramètres - Admin'!$B$5,TEXT(Z6/24,"# 0,00")&" " & 'Paramètres - Admin'!$B$5,IF($B$2='Paramètres - Admin'!$B$6,TEXT((Z6/24)/30,"# 0,00")&" " & 'Paramètres - Admin'!$B$6,IF(Z6/24>=1,INT(Z6/24)&" " & 'Paramètres - Admin'!$D$4 & " " & HOUR(Z6/24-INT(Z6/24))&" " & 'Paramètres - Admin'!$D$3 & " " & MINUTE(Z6/24-INT(Z6/24))&" " & 'Paramètres - Admin'!$D$2,HOUR(Z6/24-INT(Z6/24))&" " & 'Paramètres - Admin'!$D$3 & " " & MINUTE(Z6/24-INT(Z6/24))&" " & 'Paramètres - Admin'!$D$2)))))) -> 0,15 jours | Q2: ='Paramètres - Admin'!$D$6 & IF($B$2='Paramètres - Admin'!$B$2,TEXT(W27*60*60,"# 0")&" " & 'Paramètres - Admin'!$B$2,IF($B$2='Paramètres - Admin'!$B$3,TEXT(W27*60,"# 0")&" " & 'Paramètres - Admin'!$B$3,IF($B$2='Paramètres - Admin'!$B$4,TEXT(W27,"# 0,00")&" " & 'Paramètres - Admin'!$B$4,IF($B$2='Paramètres - Admin'!$B$5,TEXT(W27/24,"# 0,00")&" " & 'Paramètres - Admin'!$B$5,IF($B$2='Paramètres - Admin'!$B$6,TEXT((W27/24)/30,"# 0,00")&" " & 'Paramètres - Admin'!$B$6,IF(W27/24>=1,INT(W27/24)&" " & 'Paramètres - Admin'!$D$4 & " " & HOUR(W27/24-INT(W27/24))&" " & 'Paramètres - Admin'!$D$3 & " " & MINUTE(W27/24-INT(W27/24))&" " & 'Paramètres - Admin'!$D$2,HOUR(W27/24-INT(W27/24))&" " & 'Paramètres - Admin'!$D$3 & " " & MINUTE(W27/24-INT(W27/24))&" " & 'Paramètres - Admin'!$D$2)))))) -> Héros : 0,00 jours | T2: =IF($B$2='Paramètres - Admin'!$B$2,TEXT((E13+K13+E28+Q27+Q13+W27)/Paramètres!$BJ$2*60*60,"# 0")&" " & 'Paramètres - Admin'!$B$2,IF($B$2='Paramètres - Admin'!$B$3,TEXT((E13+K13+E28+Q27+Q13+W27)/Paramètres!$BJ$2*60,"# 0")&" " & 'Paramètres - Admin'!$B$3,IF($B$2='Paramètres - Admin'!$B$4,TEXT((E13+K13+E28+Q27+Q13+W27)/Paramètres!$BJ$2,"# 0,00")&" " & 'Paramètres - Admin'!$B$4,IF($B$2='Paramètres - Admin'!$B$5,TEXT((E13+K13+E28+Q27+Q13+W27)/Paramètres!$BJ$2/24,"# 0,00")&" " & 'Paramètres - Admin'!$B$5,IF($B$2='Paramètres - Admin'!$B$6,TEXT(((E13+K13+E28+Q27+Q13+W27)/Paramètres!$BJ$2/24)/30,"# 0,00")&" " & 'Paramètres - Admin'!$B$6,IF((E13+K13+E28+Q27+Q13+W27)/Paramètres!$BJ$2/24>=1,INT((E13+K13+E28+Q27+Q13+W27)/Paramètres!$BJ$2/24)&" " & 'Paramètres - Admin'!$D$4 & " " & HOUR((E13+K13+E28+Q27+Q13+W27)/Paramètres!$BJ$2/24-INT((E13+K13+E28+Q27+Q13+W27)/Paramètres!$BJ$2/24))&" " & 'Paramètres - Admin'!$D$3 & " " & MINUTE((E13+K13+E28+Q27+Q13+W27)/Paramètres!$BJ$2/24-INT((E13+K13+E28+Q27+Q13+W27)/Paramètres!$BJ$2/24))&" " & 'Paramètres - Admin'!$D$2,HOUR((E13+K13+E28+Q27+Q13+W27)/Paramètres!$BJ$2/24-INT((E13+K13+E28+Q27+Q13+W27)/Paramètres!$BJ$2/24))&" " & 'Paramètres - Admin'!$D$3 & " " & MINUTE((E13+K13+E28+Q27+Q13+W27)/Paramètres!$BJ$2/24-INT((E13+K13+E28+Q27+Q13+W27)/Paramètres!$BJ$2/24))&" " & 'Paramètres - Admin'!$D$2)))))) -> 0,15 jours | W2: =IF($B$2='Paramètres - Admin'!$B$2,TEXT((Q22+K27+W13+W20)*60*60,"# 0")&" " & 'Paramètres - Admin'!$B$2,IF($B$2='Paramètres - Admin'!$B$3,TEXT((Q22+K27+W13+W20)*60,"# 0")&" " & 'Paramètres - Admin'!$B$3,IF($B$2='Paramètres - Admin'!$B$4,TEXT((Q22+K27+W13+W20),"# 0,00")&" " & 'Paramètres - Admin'!$B$4,IF($B$2='Paramètres - Admin'!$B$5,TEXT((Q22+K27+W13+W20)/24,"# 0,00")&" " & 'Paramètres - Admin'!$B$5,IF($B$2='Paramètres - Admin'!$B$6,TEXT(((Q22+K27+W13+W20)/24)/30,"# 0,00")&" " & 'Paramètres - Admin'!$B$6,IF((Q22+K27+W13+W20)/24>=1,INT((Q22+K27+W13+W20)/24)&" " & 'Paramètres - Admin'!$D$4 & " " & HOUR((Q22+K27+W13+W20)/24-INT((Q22+K27+W13+W20)/24))&" " & 'Paramètres - Admin'!$D$3 & " " & MINUTE((Q22+K27+W13+W20)/24-INT((Q22+K27+W13+W20)/24))&" " & 'Paramètres - Admin'!$D$2,HOUR((Q22+K27+W13+W20)/24-INT((Q22+K27+W13+W20)/24))&" " & 'Paramètres - Admin'!$D$3 & " " & MINUTE((Q22+K27+W13+W20)/24-INT((Q22+K27+W13+W20)/24))&" " & 'Paramètres - Admin'!$D$2)))))) -> 0,00 jours
A3: Tableaux récapitulatifs | Y3: Or | Z3: =D8+D11+D28+P27+P13-IF(D2="Non",D17,0)-IF(E2="Non",P26,0) -> 4250
Y4: Élixir | Z4: =D7+D9+D10+D12+J13+P22+J27+IF(F2="Non",0,V26) -> 4700
A5: Bâtiments de Ressources | G5: Bâtiments d'Armée | M5: Pièges Défensifs | S5: Améliorations de Troupes Noires | Y5: Élixir Noir | Z5: =V13+V20+IF(F2="Non",0,V27) -> 0
A6: Bâtiment | B6: À Faire | C6: Up. | D6: Coût Total | E6: Temps Total | F6: Temps Total | G6: Bâtiment | H6: À Faire | I6: Up. | J6: Coût Total | K6: Temps Total | L6: Temps Total | M6: Bâtiment | N6: À Faire | O6: Up. | P6: Coût Total | Q6: Temps Total | R6: Temps Total | S6: Troupe Noire | T6: À Faire | U6: Up. | V6: Coût Total | W6: Temps Total | X6: Temps Total | Y6: Temps | Z6: =E13+K13+Q13+W13+K27+E28+Q22+Q27+W20+W27 -> 3.67
A7: Mine d'Or | B7: ='À Faire - Détails'!H5 -> 1 | C7: ='À Faire - Détails'!I5 -> 2 | D7: ='À Faire - Détails'!H19 -> 450 | E7: ='À Faire - Détails'!I19 -> 0.1 | F7: =IF($B$2='Paramètres - Admin'!$B$2,TEXT(E7*60*60,"# 0")&" " & 'Paramètres - Admin'!$B$2,IF($B$2='Paramètres - Admin'!$B$3,TEXT(E7*60,"# 0")&" " & 'Paramètres - Admin'!$B$3,IF($B$2='Paramètres - Admin'!$B$4,TEXT(E7,"# 0,00")&" " & 'Paramètres - Admin'!$B$4,IF($B$2='Paramètres - Admin'!$B$5,TEXT(E7/24,"# 0,00")&" " & 'Paramètres - Admin'!$B$5,IF($B$2='Paramètres - Admin'!$B$6,TEXT((E7/24)/30,"# 0,00")&" " & 'Paramètres - Admin'!$B$6,IF(E7/24>=1,INT(E7/24)&" " & 'Paramètres - Admin'!$D$4 & " " & HOUR(E7/24-INT(E7/24))&" " & 'Paramètres - Admin'!$D$3 & " " & MINUTE(E7/24-INT(E7/24))&" " & 'Paramètres - Admin'!$D$2,HOUR(E7/24-INT(E7/24))&" " & 'Paramètres - Admin'!$D$3 & " " & MINUTE(E7/24-INT(E7/24))&" " & 'Paramètres - Admin'!$D$2)))))) -> 0,00 jours | G7: Caserne | H7: ='À Faire - Détails'!H50 -> 1 | I7: ='À Faire - Détails'!I50 -> 3 | J7: ='À Faire - Détails'!H62 -> 3700 | K7: ='À Faire - Détails'!I62 -> 2.27 | L7: =IF($B$2='Paramètres - Admin'!$B$2,TEXT(K7*60*60,"# 0")&" " & 'Paramètres - Admin'!$B$2,IF($B$2='Paramètres - Admin'!$B$3,TEXT(K7*60,"# 0")&" " & 'Paramètres - Admin'!$B$3,IF($B$2='Paramètres - Admin'!$B$4,TEXT(K7,"# 0,00")&" " & 'Paramètres - Admin'!$B$4,IF($B$2='Paramètres - Admin'!$B$5,TEXT(K7/24,"# 0,00")&" " & 'Paramètres - Admin'!$B$5,IF($B$2='Paramètres - Admin'!$B$6,TEXT((K7/24)/30,"# 0,00")&" " & 'Paramètres - Admin'!$B$6,IF(K7/24>=1,INT(K7/24)&" " & 'Paramètres - Admin'!$D$4 & " " & HOUR(K7/24-INT(K7/24))&" " & 'Paramètres - Admin'!$D$3 & " " & MINUTE(K7/24-INT(K7/24))&" " & 'Paramètres - Admin'!$D$2,HOUR(K7/24-INT(K7/24))&" " & 'Paramètres - Admin'!$D$3 & " " & MINUTE(K7/24-INT(K7/24))&" " & 'Paramètres - Admin'!$D$2)))))) -> 0,09 jours | M7: Bombe | N7: ='À Faire - Détails'!H155 -> 0 | O7: ='À Faire - Détails'!I155 -> 0 | P7: ='À Faire - Détails'!H163 -> 0 | Q7: ='À Faire - Détails'!I163 -> 0 | R7: =IF($B$2='Paramètres - Admin'!$B$2,TEXT(Q7*60*60,"# 0")&" " & 'Paramètres - Admin'!$B$2,IF($B$2='Paramètres - Admin'!$B$3,TEXT(Q7*60,"# 0")&" " & 'Paramètres - Admin'!$B$3,IF($B$2='Paramètres - Admin'!$B$4,TEXT(Q7,"# 0,00")&" " & 'Paramètres - Admin'!$B$4,IF($B$2='Paramètres - Admin'!$B$5,TEXT(Q7/24,"# 0,00")&" " & 'Paramètres - Admin'!$B$5,IF($B$2='Paramètres - Admin'!$B$6,TEXT((Q7/24)/30,"# 0,00")&" " & 'Paramètres - Admin'!$B$6,IF(Q7/24>=1,INT(Q7/24)&" " & 'Paramètres - Admin'!$D$4 & " " & HOUR(Q7/24-INT(Q7/24))&" " & 'Paramètres - Admin'!$D$3 & " " & MINUTE(Q7/24-INT(Q7/24))&" " & 'Paramètres - Admin'!$D$2,HOUR(Q7/24-INT(Q7/24))&" " & 'Paramètres - Admin'!$D$3 & " " & MINUTE(Q7/24-INT(Q7/24))&" " & 'Paramètres - Admin'!$D$2)))))) -> 0,00 jours | S7: Serviteur | T7: ='À Faire - Détails'!H302 -> 0 | U7: ='À Faire - Détails'!I302 -> 0 | V7: ='À Faire - Détails'!H311 -> 0 | W7: ='À Faire - Détails'!I311 -> 0 | X7: =IF($B$2='Paramètres - Admin'!$B$2,TEXT(W7*60*60,"# 0")&" " & 'Paramètres - Admin'!$B$2,IF($B$2='Paramètres - Admin'!$B$3,TEXT(W7*60,"# 0")&" " & 'Paramètres - Admin'!$B$3,IF($B$2='Paramètres - Admin'!$B$4,TEXT(W7,"# 0,00")&" " & 'Paramètres - Admin'!$B$4,IF($B$2='Paramètres - Admin'!$B$5,TEXT(W7/24,"# 0,00")&" " & 'Paramètres - Admin'!$B$5,IF($B$2='Paramètres - Admin'!$B$6,TEXT((W7/24)/30,"# 0,00")&" " & 'Paramètres - Admin'!$B$6,IF(W7/24>=1,INT(W7/24)&" " & 'Paramètres - Admin'!$D$4 & " " & HOUR(W7/24-INT(W7/24))&" " & 'Paramètres - Admin'!$D$3 & " " & MINUTE(W7/24-INT(W7/24))&" " & 'Paramètres - Admin'!$D$2,HOUR(W7/24-INT(W7/24))&" " & 'Paramètres - Admin'!$D$3 & " " & MINUTE(W7/24-INT(W7/24))&" " & 'Paramètres - Admin'!$D$2)))))) -> 0,00 jours
A8: Extracteur d'Élixir | B8: ='À Faire - Détails'!Q5 -> 1 | C8: ='À Faire - Détails'!R5 -> 2 | D8: ='À Faire - Détails'!Q19 -> 450 | E8: ='À Faire - Détails'!R19 -> 0.1 | F8: =IF($B$2='Paramètres - Admin'!$B$2,TEXT(E8*60*60,"# 0")&" " & 'Paramètres - Admin'!$B$2,IF($B$2='Paramètres - Admin'!$B$3,TEXT(E8*60,"# 0")&" " & 'Paramètres - Admin'!$B$3,IF($B$2='Paramètres - Admin'!$B$4,TEXT(E8,"# 0,00")&" " & 'Paramètres - Admin'!$B$4,IF($B$2='Paramètres - Admin'!$B$5,TEXT(E8/24,"# 0,00")&" " & 'Paramètres - Admin'!$B$5,IF($B$2='Paramètres - Admin'!$B$6,TEXT((E8/24)/30,"# 0,00")&" " & 'Paramètres - Admin'!$B$6,IF(E8/24>=1,INT(E8/24)&" " & 'Paramètres - Admin'!$D$4 & " " & HOUR(E8/24-INT(E8/24))&" " & 'Paramètres - Admin'!$D$3 & " " & MINUTE(E8/24-INT(E8/24))&" " & 'Paramètres - Admin'!$D$2,HOUR(E8/24-INT(E8/24))&" " & 'Paramètres - Admin'!$D$3 & " " & MINUTE(E8/24-INT(E8/24))&" " & 'Paramètres - Admin'!$D$2)))))) -> 0,00 jours | G8: Caserne Noire | H8: ='À Faire - Détails'!H64 -> 0 | I8: ='À Faire - Détails'!I64 -> 0 | J8: ='À Faire - Détails'!H72 -> 0 | K8: ='À Faire - Détails'!I72 -> 0 | L8: =IF($B$2='Paramètres - Admin'!$B$2,TEXT(K8*60*60,"# 0")&" " & 'Paramètres - Admin'!$B$2,IF($B$2='Paramètres - Admin'!$B$3,TEXT(K8*60,"# 0")&" " & 'Paramètres - Admin'!$B$3,IF($B$2='Paramètres - Admin'!$B$4,TEXT(K8,"# 0,00")&" " & 'Paramètres - Admin'!$B$4,IF($B$2='Paramètres - Admin'!$B$5,TEXT(K8/24,"# 0,00")&" " & 'Paramètres - Admin'!$B$5,IF($B$2='Paramètres - Admin'!$B$6,TEXT((K8/24)/30,"# 0,00")&" " & 'Paramètres - Admin'!$B$6,IF(K8/24>=1,INT(K8/24)&" " & 'Paramètres - Admin'!$D$4 & " " & HOUR(K8/24-INT(K8/24))&" " & 'Paramètres - Admin'!$D$3 & " " & MINUTE(K8/24-INT(K8/24))&" " & 'Paramètres - Admin'!$D$2,HOUR(K8/24-INT(K8/24))&" " & 'Paramètres - Admin'!$D$3 & " " & MINUTE(K8/24-INT(K8/24))&" " & 'Paramètres - Admin'!$D$2)))))) -> 0,00 jours | M8: Piège à ressort | N8: ='À Faire - Détails'!H165 -> 0 | O8: ='À Faire - Détails'!I165 -> 0 | P8: ='À Faire - Détails'!H168 -> 0 | Q8: ='À Faire - Détails'!I168 -> 0 | R8: =IF($B$2='Paramètres - Admin'!$B$2,TEXT(Q8*60*60,"# 0")&" " & 'Paramètres - Admin'!$B$2,IF($B$2='Paramètres - Admin'!$B$3,TEXT(Q8*60,"# 0")&" " & 'Paramètres - Admin'!$B$3,IF($B$2='Paramètres - Admin'!$B$4,TEXT(Q8,"# 0,00")&" " & 'Paramètres - Admin'!$B$4,IF($B$2='Paramètres - Admin'!$B$5,TEXT(Q8/24,"# 0,00")&" " & 'Paramètres - Admin'!$B$5,IF($B$2='Paramètres - Admin'!$B$6,TEXT((Q8/24)/30,"# 0,00")&" " & 'Paramètres - Admin'!$B$6,IF(Q8/24>=1,INT(Q8/24)&" " & 'Paramètres - Admin'!$D$4 & " " & HOUR(Q8/24-INT(Q8/24))&" " & 'Paramètres - Admin'!$D$3 & " " & MINUTE(Q8/24-INT(Q8/24))&" " & 'Paramètres - Admin'!$D$2,HOUR(Q8/24-INT(Q8/24))&" " & 'Paramètres - Admin'!$D$3 & " " & MINUTE(Q8/24-INT(Q8/24))&" " & 'Paramètres - Admin'!$D$2)))))) -> 0,00 jours | S8: Chevaucheur de Cochon | T8: ='À Faire - Détails'!Q302 -> 0 | U8: ='À Faire - Détails'!R302 -> 0 | V8: ='À Faire - Détails'!Q309 -> 0 | W8: ='À Faire - Détails'!R309 -> 0 | X8: =IF($B$2='Paramètres - Admin'!$B$2,TEXT(W8*60*60,"# 0")&" " & 'Paramètres - Admin'!$B$2,IF($B$2='Paramètres - Admin'!$B$3,TEXT(W8*60,"# 0")&" " & 'Paramètres - Admin'!$B$3,IF($B$2='Paramètres - Admin'!$B$4,TEXT(W8,"# 0,00")&" " & 'Paramètres - Admin'!$B$4,IF($B$2='Paramètres - Admin'!$B$5,TEXT(W8/24,"# 0,00")&" " & 'Paramètres - Admin'!$B$5,IF($B$2='Paramètres - Admin'!$B$6,TEXT((W8/24)/30,"# 0,00")&" " & 'Paramètres - Admin'!$B$6,IF(W8/24>=1,INT(W8/24)&" " & 'Paramètres - Admin'!$D$4 & " " & HOUR(W8/24-INT(W8/24))&" " & 'Paramètres - Admin'!$D$3 & " " & MINUTE(W8/24-INT(W8/24))&" " & 'Paramètres - Admin'!$D$2,HOUR(W8/24-INT(W8/24))&" " & 'Paramètres - Admin'!$D$3 & " " & MINUTE(W8/24-INT(W8/24))&" " & 'Paramètres - Admin'!$D$2)))))) -> 0,00 jours
A9: Foreuse d'Élixir Noir | B9: ='À Faire - Détails'!H37 -> 0 | C9: ='À Faire - Détails'!I37 -> 0 | D9: ='À Faire - Détails'!H45 -> 0 | E9: ='À Faire - Détails'!I45 -> 0 | F9: =IF($B$2='Paramètres - Admin'!$B$2,TEXT(E9*60*60,"# 0")&" " & 'Paramètres - Admin'!$B$2,IF($B$2='Paramètres - Admin'!$B$3,TEXT(E9*60,"# 0")&" " & 'Paramètres - Admin'!$B$3,IF($B$2='Paramètres - Admin'!$B$4,TEXT(E9,"# 0,00")&" " & 'Paramètres - Admin'!$B$4,IF($B$2='Paramètres - Admin'!$B$5,TEXT(E9/24,"# 0,00")&" " & 'Paramètres - Admin'!$B$5,IF($B$2='Paramètres - Admin'!$B$6,TEXT((E9/24)/30,"# 0,00")&" " & 'Paramètres - Admin'!$B$6,IF(E9/24>=1,INT(E9/24)&" " & 'Paramètres - Admin'!$D$4 & " " & HOUR(E9/24-INT(E9/24))&" " & 'Paramètres - Admin'!$D$3 & " " & MINUTE(E9/24-INT(E9/24))&" " & 'Paramètres - Admin'!$D$2,HOUR(E9/24-INT(E9/24))&" " & 'Paramètres - Admin'!$D$3 & " " & MINUTE(E9/24-INT(E9/24))&" " & 'Paramètres - Admin'!$D$2)))))) -> 0,00 jours | G9: Camp Militaire | H9: ='À Faire - Détails'!Q63 -> 1 | I9: ='À Faire - Détails'!R63 -> 1 | J9: ='À Faire - Détails'!Q73 -> 250 | K9: ='À Faire - Détails'!R73 -> 0.08333333333 | L9: =IF($B$2='Paramètres - Admin'!$B$2,TEXT(K9*60*60,"# 0")&" " & 'Paramètres - Admin'!$B$2,IF($B$2='Paramètres - Admin'!$B$3,TEXT(K9*60,"# 0")&" " & 'Paramètres - Admin'!$B$3,IF($B$2='Paramètres - Admin'!$B$4,TEXT(K9,"# 0,00")&" " & 'Paramètres - Admin'!$B$4,IF($B$2='Paramètres - Admin'!$B$5,TEXT(K9/24,"# 0,00")&" " & 'Paramètres - Admin'!$B$5,IF($B$2='Paramètres - Admin'!$B$6,TEXT((K9/24)/30,"# 0,00")&" " & 'Paramètres - Admin'!$B$6,IF(K9/24>=1,INT(K9/24)&" " & 'Paramètres - Admin'!$D$4 & " " & HOUR(K9/24-INT(K9/24))&" " & 'Paramètres - Admin'!$D$3 & " " & MINUTE(K9/24-INT(K9/24))&" " & 'Paramètres - Admin'!$D$2,HOUR(K9/24-INT(K9/24))&" " & 'Paramètres - Admin'!$D$3 & " " & MINUTE(K9/24-INT(K9/24))&" " & 'Paramètres - Admin'!$D$2)))))) -> 0,00 jours | M9: Bombe géante | N9: ='À Faire - Détails'!H170 -> 0 | O9: ='À Faire - Détails'!I170 -> 0 | P9: ='À Faire - Détails'!H176 -> 0 | Q9: ='À Faire - Détails'!I176 -> 0 | R9: =IF($B$2='Paramètres - Admin'!$B$2,TEXT(Q9*60*60,"# 0")&" " & 'Paramètres - Admin'!$B$2,IF($B$2='Paramètres - Admin'!$B$3,TEXT(Q9*60,"# 0")&" " & 'Paramètres - Admin'!$B$3,IF($B$2='Paramètres - Admin'!$B$4,TEXT(Q9,"# 0,00")&" " & 'Paramètres - Admin'!$B$4,IF($B$2='Paramètres - Admin'!$B$5,TEXT(Q9/24,"# 0,00")&" " & 'Paramètres - Admin'!$B$5,IF($B$2='Paramètres - Admin'!$B$6,TEXT((Q9/24)/30,"# 0,00")&" " & 'Paramètres - Admin'!$B$6,IF(Q9/24>=1,INT(Q9/24)&" " & 'Paramètres - Admin'!$D$4 & " " & HOUR(Q9/24-INT(Q9/24))&" " & 'Paramètres - Admin'!$D$3 & " " & MINUTE(Q9/24-INT(Q9/24))&" " & 'Paramètres - Admin'!$D$2,HOUR(Q9/24-INT(Q9/24))&" " & 'Paramètres - Admin'!$D$3 & " " & MINUTE(Q9/24-INT(Q9/24))&" " & 'Paramètres - Admin'!$D$2)))))) -> 0,00 jours | S9: Valkyrie | T9: ='À Faire - Détails'!H313 -> 0 | U9: ='À Faire - Détails'!I313 -> 0 | V9: ='À Faire - Détails'!H319 -> 0 | W9: ='À Faire - Détails'!I319 -> 0 | X9: =IF($B$2='Paramètres - Admin'!$B$2,TEXT(W9*60*60,"# 0")&" " & 'Paramètres - Admin'!$B$2,IF($B$2='Paramètres - Admin'!$B$3,TEXT(W9*60,"# 0")&" " & 'Paramètres - Admin'!$B$3,IF($B$2='Paramètres - Admin'!$B$4,TEXT(W9,"# 0,00")&" " & 'Paramètres - Admin'!$B$4,IF($B$2='Paramètres - Admin'!$B$5,TEXT(W9/24,"# 0,00")&" " & 'Paramètres - Admin'!$B$5,IF($B$2='Paramètres - Admin'!$B$6,TEXT((W9/24)/30,"# 0,00")&" " & 'Paramètres - Admin'!$B$6,IF(W9/24>=1,INT(W9/24)&" " & 'Paramètres - Admin'!$D$4 & " " & HOUR(W9/24-INT(W9/24))&" " & 'Paramètres - Admin'!$D$3 & " " & MINUTE(W9/24-INT(W9/24))&" " & 'Paramètres - Admin'!$D$2,HOUR(W9/24-INT(W9/24))&" " & 'Paramètres - Admin'!$D$3 & " " & MINUTE(W9/24-INT(W9/24))&" " & 'Paramètres - Admin'!$D$2)))))) -> 0,00 jours
A10: Réserve d'Or | B10: ='À Faire - Détails'!H21 -> 1 | C10: ='À Faire - Détails'!I21 -> 1 | D10: ='À Faire - Détails'!H35 -> 300 | E10: ='À Faire - Détails'!I35 -> 0.25 | F10: =IF($B$2='Paramètres - Admin'!$B$2,TEXT(E10*60*60,"# 0")&" " & 'Paramètres - Admin'!$B$2,IF($B$2='Paramètres - Admin'!$B$3,TEXT(E10*60,"# 0")&" " & 'Paramètres - Admin'!$B$3,IF($B$2='Paramètres - Admin'!$B$4,TEXT(E10,"# 0,00")&" " & 'Paramètres - Admin'!$B$4,IF($B$2='Paramètres - Admin'!$B$5,TEXT(E10/24,"# 0,00")&" " & 'Paramètres - Admin'!$B$5,IF($B$2='Paramètres - Admin'!$B$6,TEXT((E10/24)/30,"# 0,00")&" " & 'Paramètres - Admin'!$B$6,IF(E10/24>=1,INT(E10/24)&" " & 'Paramètres - Admin'!$D$4 & " " & HOUR(E10/24-INT(E10/24))&" " & 'Paramètres - Admin'!$D$3 & " " & MINUTE(E10/24-INT(E10/24))&" " & 'Paramètres - Admin'!$D$2,HOUR(E10/24-INT(E10/24))&" " & 'Paramètres - Admin'!$D$3 & " " & MINUTE(E10/24-INT(E10/24))&" " & 'Paramètres - Admin'!$D$2)))))) -> 0,01 jours | G10: Laboratoire | H10: ='À Faire - Détails'!Q50 -> 0 | I10: ='À Faire - Détails'!R50 -> 0 | J10: ='À Faire - Détails'!Q61 -> 0 | K10: ='À Faire - Détails'!R61 -> 0 | L10: =IF($B$2='Paramètres - Admin'!$B$2,TEXT(K10*60*60,"# 0")&" " & 'Paramètres - Admin'!$B$2,IF($B$2='Paramètres - Admin'!$B$3,TEXT(K10*60,"# 0")&" " & 'Paramètres - Admin'!$B$3,IF($B$2='Paramètres - Admin'!$B$4,TEXT(K10,"# 0,00")&" " & 'Paramètres - Admin'!$B$4,IF($B$2='Paramètres - Admin'!$B$5,TEXT(K10/24,"# 0,00")&" " & 'Paramètres - Admin'!$B$5,IF($B$2='Paramètres - Admin'!$B$6,TEXT((K10/24)/30,"# 0,00")&" " & 'Paramètres - Admin'!$B$6,IF(K10/24>=1,INT(K10/24)&" " & 'Paramètres - Admin'!$D$4 & " " & HOUR(K10/24-INT(K10/24))&" " & 'Paramètres - Admin'!$D$3 & " " & MINUTE(K10/24-INT(K10/24))&" " & 'Paramètres - Admin'!$D$2,HOUR(K10/24-INT(K10/24))&" " & 'Paramètres - Admin'!$D$3 & " " & MINUTE(K10/24-INT(K10/24))&" " & 'Paramètres - Admin'!$D$2)))))) -> 0,00 jours | M10: Bombe aérienne | N10: ='À Faire - Détails'!Q155 -> 0 | O10: ='À Faire - Détails'!R155 -> 0 | P10: ='À Faire - Détails'!Q161 -> 0 | Q10: ='À Faire - Détails'!R161 -> 0 | R10: =IF($B$2='Paramètres - Admin'!$B$2,TEXT(Q10*60*60,"# 0")&" " & 'Paramètres - Admin'!$B$2,IF($B$2='Paramètres - Admin'!$B$3,TEXT(Q10*60,"# 0")&" " & 'Paramètres - Admin'!$B$3,IF($B$2='Paramètres - Admin'!$B$4,TEXT(Q10,"# 0,00")&" " & 'Paramètres - Admin'!$B$4,IF($B$2='Paramètres - Admin'!$B$5,TEXT(Q10/24,"# 0,00")&" " & 'Paramètres - Admin'!$B$5,IF($B$2='Paramètres - Admin'!$B$6,TEXT((Q10/24)/30,"# 0,00")&" " & 'Paramètres - Admin'!$B$6,IF(Q10/24>=1,INT(Q10/24)&" " & 'Paramètres - Admin'!$D$4 & " " & HOUR(Q10/24-INT(Q10/24))&" " & 'Paramètres - Admin'!$D$3 & " " & MINUTE(Q10/24-INT(Q10/24))&" " & 'Paramètres - Admin'!$D$2,HOUR(Q10/24-INT(Q10/24))&" " & 'Paramètres - Admin'!$D$3 & " " & MINUTE(Q10/24-INT(Q10/24))&" " & 'Paramètres - Admin'!$D$2)))))) -> 0,00 jours | S10: Golem | T10: ='À Faire - Détails'!Q311 -> 0 | U10: ='À Faire - Détails'!R311 -> 0 | V10: ='À Faire - Détails'!Q318 -> 0 | W10: ='À Faire - Détails'!R318 -> 0 | X10: =IF($B$2='Paramètres - Admin'!$B$2,TEXT(W10*60*60,"# 0")&" " & 'Paramètres - Admin'!$B$2,IF($B$2='Paramètres - Admin'!$B$3,TEXT(W10*60,"# 0")&" " & 'Paramètres - Admin'!$B$3,IF($B$2='Paramètres - Admin'!$B$4,TEXT(W10,"# 0,00")&" " & 'Paramètres - Admin'!$B$4,IF($B$2='Paramètres - Admin'!$B$5,TEXT(W10/24,"# 0,00")&" " & 'Paramètres - Admin'!$B$5,IF($B$2='Paramètres - Admin'!$B$6,TEXT((W10/24)/30,"# 0,00")&" " & 'Paramètres - Admin'!$B$6,IF(W10/24>=1,INT(W10/24)&" " & 'Paramètres - Admin'!$D$4 & " " & HOUR(W10/24-INT(W10/24))&" " & 'Paramètres - Admin'!$D$3 & " " & MINUTE(W10/24-INT(W10/24))&" " & 'Paramètres - Admin'!$D$2,HOUR(W10/24-INT(W10/24))&" " & 'Paramètres - Admin'!$D$3 & " " & MINUTE(W10/24-INT(W10/24))&" " & 'Paramètres - Admin'!$D$2)))))) -> 0,00 jours
A11: Réservoir d'Élixir | B11: ='À Faire - Détails'!Q21 -> 1 | C11: ='À Faire - Détails'!R21 -> 1 | D11: ='À Faire - Détails'!Q35 -> 300 | E11: ='À Faire - Détails'!R35 -> 0.25 | F11: =IF($B$2='Paramètres - Admin'!$B$2,TEXT(E11*60*60,"# 0")&" " & 'Paramètres - Admin'!$B$2,IF($B$2='Paramètres - Admin'!$B$3,TEXT(E11*60,"# 0")&" " & 'Paramètres - Admin'!$B$3,IF($B$2='Paramètres - Admin'!$B$4,TEXT(E11,"# 0,00")&" " & 'Paramètres - Admin'!$B$4,IF($B$2='Paramètres - Admin'!$B$5,TEXT(E11/24,"# 0,00")&" " & 'Paramètres - Admin'!$B$5,IF($B$2='Paramètres - Admin'!$B$6,TEXT((E11/24)/30,"# 0,00")&" " & 'Paramètres - Admin'!$B$6,IF(E11/24>=1,INT(E11/24)&" " & 'Paramètres - Admin'!$D$4 & " " & HOUR(E11/24-INT(E11/24))&" " & 'Paramètres - Admin'!$D$3 & " " & MINUTE(E11/24-INT(E11/24))&" " & 'Paramètres - Admin'!$D$2,HOUR(E11/24-INT(E11/24))&" " & 'Paramètres - Admin'!$D$3 & " " & MINUTE(E11/24-INT(E11/24))&" " & 'Paramètres - Admin'!$D$2)))))) -> 0,01 jours | G11: Usine de Sorts | H11: ='À Faire - Détails'!H74 -> 0 | I11: ='À Faire - Détails'!I74 -> 0 | J11: ='À Faire - Détails'!H81 -> 0 | K11: ='À Faire - Détails'!I81 -> 0 | L11: =IF($B$2='Paramètres - Admin'!$B$2,TEXT(K11*60*60,"# 0")&" " & 'Paramètres - Admin'!$B$2,IF($B$2='Paramètres - Admin'!$B$3,TEXT(K11*60,"# 0")&" " & 'Paramètres - Admin'!$B$3,IF($B$2='Paramètres - Admin'!$B$4,TEXT(K11,"# 0,00")&" " & 'Paramètres - Admin'!$B$4,IF($B$2='Paramètres - Admin'!$B$5,TEXT(K11/24,"# 0,00")&" " & 'Paramètres - Admin'!$B$5,IF($B$2='Paramètres - Admin'!$B$6,TEXT((K11/24)/30,"# 0,00")&" " & 'Paramètres - Admin'!$B$6,IF(K11/24>=1,INT(K11/24)&" " & 'Paramètres - Admin'!$D$4 & " " & HOUR(K11/24-INT(K11/24))&" " & 'Paramètres - Admin'!$D$3 & " " & MINUTE(K11/24-INT(K11/24))&" " & 'Paramètres - Admin'!$D$2,HOUR(K11/24-INT(K11/24))&" " & 'Paramètres - Admin'!$D$3 & " " & MINUTE(K11/24-INT(K11/24))&" " & 'Paramètres - Admin'!$D$2)))))) -> 0,00 jours | M11: Tête chercheuse | N11: ='À Faire - Détails'!Q163 -> 0 | O11: ='À Faire - Détails'!R163 -> 0 | P11: ='À Faire - Détails'!Q168 -> 0 | Q11: ='À Faire - Détails'!R168 -> 0 | R11: =IF($B$2='Paramètres - Admin'!$B$2,TEXT(Q11*60*60,"# 0")&" " & 'Paramètres - Admin'!$B$2,IF($B$2='Paramètres - Admin'!$B$3,TEXT(Q11*60,"# 0")&" " & 'Paramètres - Admin'!$B$3,IF($B$2='Paramètres - Admin'!$B$4,TEXT(Q11,"# 0,00")&" " & 'Paramètres - Admin'!$B$4,IF($B$2='Paramètres - Admin'!$B$5,TEXT(Q11/24,"# 0,00")&" " & 'Paramètres - Admin'!$B$5,IF($B$2='Paramètres - Admin'!$B$6,TEXT((Q11/24)/30,"# 0,00")&" " & 'Paramètres - Admin'!$B$6,IF(Q11/24>=1,INT(Q11/24)&" " & 'Paramètres - Admin'!$D$4 & " " & HOUR(Q11/24-INT(Q11/24))&" " & 'Paramètres - Admin'!$D$3 & " " & MINUTE(Q11/24-INT(Q11/24))&" " & 'Paramètres - Admin'!$D$2,HOUR(Q11/24-INT(Q11/24))&" " & 'Paramètres - Admin'!$D$3 & " " & MINUTE(Q11/24-INT(Q11/24))&" " & 'Paramètres - Admin'!$D$2)))))) -> 0,00 jours | S11: Sorcière | T11: ='À Faire - Détails'!H321 -> 0 | U11: ='À Faire - Détails'!I321 -> 0 | V11: ='À Faire - Détails'!H324 -> 0 | W11: ='À Faire - Détails'!I326 -> 0 | X11: =IF($B$2='Paramètres - Admin'!$B$2,TEXT(W11*60*60,"# 0")&" " & 'Paramètres - Admin'!$B$2,IF($B$2='Paramètres - Admin'!$B$3,TEXT(W11*60,"# 0")&" " & 'Paramètres - Admin'!$B$3,IF($B$2='Paramètres - Admin'!$B$4,TEXT(W11,"# 0,00")&" " & 'Paramètres - Admin'!$B$4,IF($B$2='Paramètres - Admin'!$B$5,TEXT(W11/24,"# 0,00")&" " & 'Paramètres - Admin'!$B$5,IF($B$2='Paramètres - Admin'!$B$6,TEXT((W11/24)/30,"# 0,00")&" " & 'Paramètres - Admin'!$B$6,IF(W11/24>=1,INT(W11/24)&" " & 'Paramètres - Admin'!$D$4 & " " & HOUR(W11/24-INT(W11/24))&" " & 'Paramètres - Admin'!$D$3 & " " & MINUTE(W11/24-INT(W11/24))&" " & 'Paramètres - Admin'!$D$2,HOUR(W11/24-INT(W11/24))&" " & 'Paramètres - Admin'!$D$3 & " " & MINUTE(W11/24-INT(W11/24))&" " & 'Paramètres - Admin'!$D$2)))))) -> 0,00 jours
A12: Réservoir d'Élixir Noir | B12: ='À Faire - Détails'!Q37 -> 0 | C12: ='À Faire - Détails'!R37 -> 0 | D12: ='À Faire - Détails'!Q45 -> 0 | E12: ='À Faire - Détails'!R45 -> 0 | F12: =IF($B$2='Paramètres - Admin'!$B$2,TEXT(E12*60*60,"# 0")&" " & 'Paramètres - Admin'!$B$2,IF($B$2='Paramètres - Admin'!$B$3,TEXT(E12*60,"# 0")&" " & 'Paramètres - Admin'!$B$3,IF($B$2='Paramètres - Admin'!$B$4,TEXT(E12,"# 0,00")&" " & 'Paramètres - Admin'!$B$4,IF($B$2='Paramètres - Admin'!$B$5,TEXT(E12/24,"# 0,00")&" " & 'Paramètres - Admin'!$B$5,IF($B$2='Paramètres - Admin'!$B$6,TEXT((E12/24)/30,"# 0,00")&" " & 'Paramètres - Admin'!$B$6,IF(E12/24>=1,INT(E12/24)&" " & 'Paramètres - Admin'!$D$4 & " " & HOUR(E12/24-INT(E12/24))&" " & 'Paramètres - Admin'!$D$3 & " " & MINUTE(E12/24-INT(E12/24))&" " & 'Paramètres - Admin'!$D$2,HOUR(E12/24-INT(E12/24))&" " & 'Paramètres - Admin'!$D$3 & " " & MINUTE(E12/24-INT(E12/24))&" " & 'Paramètres - Admin'!$D$2)))))) -> 0,00 jours | G12: Usine de Sorts Noirs | H12: ='À Faire - Détails'!Q75 -> 0 | I12: ='À Faire - Détails'!R75 -> 0 | J12: ='À Faire - Détails'!Q80 -> 0 | K12: ='À Faire - Détails'!R80 -> 0 | L12: =IF($B$2='Paramètres - Admin'!$B$2,TEXT(K12*60*60,"# 0")&" " & 'Paramètres - Admin'!$B$2,IF($B$2='Paramètres - Admin'!$B$3,TEXT(K12*60,"# 0")&" " & 'Paramètres - Admin'!$B$3,IF($B$2='Paramètres - Admin'!$B$4,TEXT(K12,"# 0,00")&" " & 'Paramètres - Admin'!$B$4,IF($B$2='Paramètres - Admin'!$B$5,TEXT(K12/24,"# 0,00")&" " & 'Paramètres - Admin'!$B$5,IF($B$2='Paramètres - Admin'!$B$6,TEXT((K12/24)/30,"# 0,00")&" " & 'Paramètres - Admin'!$B$6,IF(K12/24>=1,INT(K12/24)&" " & 'Paramètres - Admin'!$D$4 & " " & HOUR(K12/24-INT(K12/24))&" " & 'Paramètres - Admin'!$D$3 & " " & MINUTE(K12/24-INT(K12/24))&" " & 'Paramètres - Admin'!$D$2,HOUR(K12/24-INT(K12/24))&" " & 'Paramètres - Admin'!$D$3 & " " & MINUTE(K12/24-INT(K12/24))&" " & 'Paramètres - Admin'!$D$2)))))) -> 0,00 jours | M12: Piège squelettique | N12: ='À Faire - Détails'!Q170 -> 0 | O12: ='À Faire - Détails'!R170 -> 0 | P12: ='À Faire - Détails'!Q175 -> 0 | Q12: ='À Faire - Détails'!R175 -> 0 | R12: =IF($B$2='Paramètres - Admin'!$B$2,TEXT(Q12*60*60,"# 0")&" " & 'Paramètres - Admin'!$B$2,IF($B$2='Paramètres - Admin'!$B$3,TEXT(Q12*60,"# 0")&" " & 'Paramètres - Admin'!$B$3,IF($B$2='Paramètres - Admin'!$B$4,TEXT(Q12,"# 0,00")&" " & 'Paramètres - Admin'!$B$4,IF($B$2='Paramètres - Admin'!$B$5,TEXT(Q12/24,"# 0,00")&" " & 'Paramètres - Admin'!$B$5,IF($B$2='Paramètres - Admin'!$B$6,TEXT((Q12/24)/30,"# 0,00")&" " & 'Paramètres - Admin'!$B$6,IF(Q12/24>=1,INT(Q12/24)&" " & 'Paramètres - Admin'!$D$4 & " " & HOUR(Q12/24-INT(Q12/24))&" " & 'Paramètres - Admin'!$D$3 & " " & MINUTE(Q12/24-INT(Q12/24))&" " & 'Paramètres - Admin'!$D$2,HOUR(Q12/24-INT(Q12/24))&" " & 'Paramètres - Admin'!$D$3 & " " & MINUTE(Q12/24-INT(Q12/24))&" " & 'Paramètres - Admin'!$D$2)))))) -> 0,00 jours | S12: Molosse de lave | T12: ='À Faire - Détails'!Q320 -> 0 | U12: ='À Faire - Détails'!R320 -> 0 | V12: ='À Faire - Détails'!Q325 -> 0 | W12: ='À Faire - Détails'!R325 -> 0 | X12: =IF($B$2='Paramètres - Admin'!$B$2,TEXT(W12*60*60,"# 0")&" " & 'Paramètres - Admin'!$B$2,IF($B$2='Paramètres - Admin'!$B$3,TEXT(W12*60,"# 0")&" " & 'Paramètres - Admin'!$B$3,IF($B$2='Paramètres - Admin'!$B$4,TEXT(W12,"# 0,00")&" " & 'Paramètres - Admin'!$B$4,IF($B$2='Paramètres - Admin'!$B$5,TEXT(W12/24,"# 0,00")&" " & 'Paramètres - Admin'!$B$5,IF($B$2='Paramètres - Admin'!$B$6,TEXT((W12/24)/30,"# 0,00")&" " & 'Paramètres - Admin'!$B$6,IF(W12/24>=1,INT(W12/24)&" " & 'Paramètres - Admin'!$D$4 & " " & HOUR(W12/24-INT(W12/24))&" " & 'Paramètres - Admin'!$D$3 & " " & MINUTE(W12/24-INT(W12/24))&" " & 'Paramètres - Admin'!$D$2,HOUR(W12/24-INT(W12/24))&" " & 'Paramètres - Admin'!$D$3 & " " & MINUTE(W12/24-INT(W12/24))&" " & 'Paramètres - Admin'!$D$2)))))) -> 0,00 jours
A13: Total | B13: =SUM(B7:B12) -> 4 | C13: =SUM(C7:C12) -> 6 | D13: =SUM(D7:D12) -> 1500 | E13: =SUM(E7:E12) -> 0.7 | F13: =IF($B$2='Paramètres - Admin'!$B$2,TEXT(E13*60*60,"# 0")&" " & 'Paramètres - Admin'!$B$2,IF($B$2='Paramètres - Admin'!$B$3,TEXT(E13*60,"# 0")&" " & 'Paramètres - Admin'!$B$3,IF($B$2='Paramètres - Admin'!$B$4,TEXT(E13,"# 0,00")&" " & 'Paramètres - Admin'!$B$4,IF($B$2='Paramètres - Admin'!$B$5,TEXT(E13/24,"# 0,00")&" " & 'Paramètres - Admin'!$B$5,IF($B$2='Paramètres - Admin'!$B$6,TEXT((E13/24)/30,"# 0,00")&" " & 'Paramètres - Admin'!$B$6,IF(E13/24>=1,INT(E13/24)&" " & 'Paramètres - Admin'!$D$4 & " " & HOUR(E13/24-INT(E13/24))&" " & 'Paramètres - Admin'!$D$3 & " " & MINUTE(E13/24-INT(E13/24))&" " & 'Paramètres - Admin'!$D$2,HOUR(E13/24-INT(E13/24))&" " & 'Paramètres - Admin'!$D$3 & " " & MINUTE(E13/24-INT(E13/24))&" " & 'Paramètres - Admin'!$D$2)))))) -> 0,03 jours | G13: Total | H13: =SUM(H7:H12) -> 2 | I13: =SUM(I7:I12) -> 4 | J13: =SUM(J7:J12) -> 3950 | K13: =SUM(K7:K12) -> 2.353333333 | L13: =IF($B$2='Paramètres - Admin'!$B$2,TEXT(K13*60*60,"# 0")&" " & 'Paramètres - Admin'!$B$2,IF($B$2='Paramètres - Admin'!$B$3,TEXT(K13*60,"# 0")&" " & 'Paramètres - Admin'!$B$3,IF($B$2='Paramètres - Admin'!$B$4,TEXT(K13,"# 0,00")&" " & 'Paramètres - Admin'!$B$4,IF($B$2='Paramètres - Admin'!$B$5,TEXT(K13/24,"# 0,00")&" " & 'Paramètres - Admin'!$B$5,IF($B$2='Paramètres - Admin'!$B$6,TEXT((K13/24)/30,"# 0,00")&" " & 'Paramètres - Admin'!$B$6,IF(K13/24>=1,INT(K13/24)&" " & 'Paramètres - Admin'!$D$4 & " " & HOUR(K13/24-INT(K13/24))&" " & 'Paramètres - Admin'!$D$3 & " " & MINUTE(K13/24-INT(K13/24))&" " & 'Paramètres - Admin'!$D$2,HOUR(K13/24-INT(K13/24))&" " & 'Paramètres - Admin'!$D$3 & " " & MINUTE(K13/24-INT(K13/24))&" " & 'Paramètres - Admin'!$D$2)))))) -> 0,10 jours | M13: Total | N13: =SUM(N7:N12) -> 0 | O13: =SUM(O7:O12) -> 0 | P13: =SUM(P7:P12) -> 0 | Q13: =SUM(Q7:Q12) -> 0 | R13: =IF($B$2='Paramètres - Admin'!$B$2,TEXT(Q13*60*60,"# 0")&" " & 'Paramètres - Admin'!$B$2,IF($B$2='Paramètres - Admin'!$B$3,TEXT(Q13*60,"# 0")&" " & 'Paramètres - Admin'!$B$3,IF($B$2='Paramètres - Admin'!$B$4,TEXT(Q13,"# 0,00")&" " & 'Paramètres - Admin'!$B$4,IF($B$2='Paramètres - Admin'!$B$5,TEXT(Q13/24,"# 0,00")&" " & 'Paramètres - Admin'!$B$5,IF($B$2='Paramètres - Admin'!$B$6,TEXT((Q13/24)/30,"# 0,00")&" " & 'Paramètres - Admin'!$B$6,IF(Q13/24>=1,INT(Q13/24)&" " & 'Paramètres - Admin'!$D$4 & " " & HOUR(Q13/24-INT(Q13/24))&" " & 'Paramètres - Admin'!$D$3 & " " & MINUTE(Q13/24-INT(Q13/24))&" " & 'Paramètres - Admin'!$D$2,HOUR(Q13/24-INT(Q13/24))&" " & 'Paramètres - Admin'!$D$3 & " " & MINUTE(Q13/24-INT(Q13/24))&" " & 'Paramètres - Admin'!$D$2)))))) -> 0,00 jours | S13: Total | T13: =SUM(T7:T12) -> 0 | U13: =SUM(U7:U12) -> 0 | V13: =SUM(V7:V12) -> 0 | W13: =SUM(W7:W12) -> 0 | X13: =IF($B$2='Paramètres - Admin'!$B$2,TEXT(W13*60*60,"# 0")&" " & 'Paramètres - Admin'!$B$2,IF($B$2='Paramètres - Admin'!$B$3,TEXT(W13*60,"# 0")&" " & 'Paramètres - Admin'!$B$3,IF($B$2='Paramètres - Admin'!$B$4,TEXT(W13,"# 0,00")&" " & 'Paramètres - Admin'!$B$4,IF($B$2='Paramètres - Admin'!$B$5,TEXT(W13/24,"# 0,00")&" " & 'Paramètres - Admin'!$B$5,IF($B$2='Paramètres - Admin'!$B$6,TEXT((W13/24)/30,"# 0,00")&" " & 'Paramètres - Admin'!$B$6,IF(W13/24>=1,INT(W13/24)&" " & 'Paramètres - Admin'!$D$4 & " " & HOUR(W13/24-INT(W13/24))&" " & 'Paramètres - Admin'!$D$3 & " " & MINUTE(W13/24-INT(W13/24))&" " & 'Paramètres - Admin'!$D$2,HOUR(W13/24-INT(W13/24))&" " & 'Paramètres - Admin'!$D$3 & " " & MINUTE(W13/24-INT(W13/24))&" " & 'Paramètres - Admin'!$D$2)))))) -> 0,00 jours
A15: Bâtiments Défensifs | G15: Améliorations de Troupes | M15: Améliorations de Sorts | S15: Améliorations de Sorts Noirs
A16: Bâtiment | B16: À Faire | C16: Up. | D16: Coût Total | E16: Temps Total | F16: Temps Total | G16: Troupe Normale | H16: À Faire | I16: Up. | J16: Coût Total | K16: Temps Total | L16: Temps Total | M16: Sort | N16: À Faire | O16: Up. | P16: Coût Total | Q16: Temps Total | R16: Temps Total | S16: Sort | T16: À Faire | U16: Up. | V16: Coût Total | W16: Temps Total | X16: Temps Total
A17: Rempart | B17: ='À Faire - Détails'!H86 -> 0 | C17: ='À Faire - Détails'!I86 -> 0 | D17: ='À Faire - Détails'!H99 -> 0 | E17: ='À Faire - Détails'!I99 -> 0 | F17: =IF($B$2='Paramètres - Admin'!$B$2,TEXT(E17*60*60,"# 0")&" " & 'Paramètres - Admin'!$B$2,IF($B$2='Paramètres - Admin'!$B$3,TEXT(E17*60,"# 0")&" " & 'Paramètres - Admin'!$B$3,IF($B$2='Paramètres - Admin'!$B$4,TEXT(E17,"# 0,00")&" " & 'Paramètres - Admin'!$B$4,IF($B$2='Paramètres - Admin'!$B$5,TEXT(E17/24,"# 0,00")&" " & 'Paramètres - Admin'!$B$5,IF($B$2='Paramètres - Admin'!$B$6,TEXT((E17/24)/30,"# 0,00")&" " & 'Paramètres - Admin'!$B$6,IF(E17/24>=1,INT(E17/24)&" " & 'Paramètres - Admin'!$D$4 & " " & HOUR(E17/24-INT(E17/24))&" " & 'Paramètres - Admin'!$D$3 & " " & MINUTE(E17/24-INT(E17/24))&" " & 'Paramètres - Admin'!$D$2,HOUR(E17/24-INT(E17/24))&" " & 'Paramètres - Admin'!$D$3 & " " & MINUTE(E17/24-INT(E17/24))&" " & 'Paramètres - Admin'!$D$2)))))) -> 0,00 jours | G17: Barbare | H17: ='À Faire - Détails'!H227 -> 0 | I17: ='À Faire - Détails'!I227 -> 0 | J17: ='À Faire - Détails'!H236 -> 0 | K17: ='À Faire - Détails'!I236 -> 0 | L17: =IF($B$2='Paramètres - Admin'!$B$2,TEXT(K17*60*60,"# 0")&" " & 'Paramètres - Admin'!$B$2,IF($B$2='Paramètres - Admin'!$B$3,TEXT(K17*60,"# 0")&" " & 'Paramètres - Admin'!$B$3,IF($B$2='Paramètres - Admin'!$B$4,TEXT(K17,"# 0,00")&" " & 'Paramètres - Admin'!$B$4,IF($B$2='Paramètres - Admin'!$B$5,TEXT(K17/24,"# 0,00")&" " & 'Paramètres - Admin'!$B$5,IF($B$2='Paramètres - Admin'!$B$6,TEXT((K17/24)/30,"# 0,00")&" " & 'Paramètres - Admin'!$B$6,IF(K17/24>=1,INT(K17/24)&" " & 'Paramètres - Admin'!$D$4 & " " & HOUR(K17/24-INT(K17/24))&" " & 'Paramètres - Admin'!$D$3 & " " & MINUTE(K17/24-INT(K17/24))&" " & 'Paramètres - Admin'!$D$2,HOUR(K17/24-INT(K17/24))&" " & 'Paramètres - Admin'!$D$3 & " " & MINUTE(K17/24-INT(K17/24))&" " & 'Paramètres - Admin'!$D$2)))))) -> 0,00 jours | M17: Sort de Foudre | N17: ='À Faire - Détails'!H197 -> 0 | O17: ='À Faire - Détails'!I197 -> 0 | P17: ='À Faire - Détails'!H206 -> 0 | Q17: ='À Faire - Détails'!I206 -> 0 | R17: =IF($B$2='Paramètres - Admin'!$B$2,TEXT(Q17*60*60,"# 0")&" " & 'Paramètres - Admin'!$B$2,IF($B$2='Paramètres - Admin'!$B$3,TEXT(Q17*60,"# 0")&" " & 'Paramètres - Admin'!$B$3,IF($B$2='Paramètres - Admin'!$B$4,TEXT(Q17,"# 0,00")&" " & 'Paramètres - Admin'!$B$4,IF($B$2='Paramètres - Admin'!$B$5,TEXT(Q17/24,"# 0,00")&" " & 'Paramètres - Admin'!$B$5,IF($B$2='Paramètres - Admin'!$B$6,TEXT((Q17/24)/30,"# 0,00")&" " & 'Paramètres - Admin'!$B$6,IF(Q17/24>=1,INT(Q17/24)&" " & 'Paramètres - Admin'!$D$4 & " " & HOUR(Q17/24-INT(Q17/24))&" " & 'Paramètres - Admin'!$D$3 & " " & MINUTE(Q17/24-INT(Q17/24))&" " & 'Paramètres - Admin'!$D$2,HOUR(Q17/24-INT(Q17/24))&" " & 'Paramètres - Admin'!$D$3 & " " & MINUTE(Q17/24-INT(Q17/24))&" " & 'Paramètres - Admin'!$D$2)))))) -> 0,00 jours | S17: Sort de Poison | T17: ='À Faire - Détails'!H283 -> 0 | U17: ='À Faire - Détails'!I283 -> 0 | V17: ='À Faire - Détails'!H289 -> 0 | W17: ='À Faire - Détails'!I289 -> 0 | X17: =IF($B$2='Paramètres - Admin'!$B$2,TEXT(W17*60*60,"# 0")&" " & 'Paramètres - Admin'!$B$2,IF($B$2='Paramètres - Admin'!$B$3,TEXT(W17*60,"# 0")&" " & 'Paramètres - Admin'!$B$3,IF($B$2='Paramètres - Admin'!$B$4,TEXT(W17,"# 0,00")&" " & 'Paramètres - Admin'!$B$4,IF($B$2='Paramètres - Admin'!$B$5,TEXT(W17/24,"# 0,00")&" " & 'Paramètres - Admin'!$B$5,IF($B$2='Paramètres - Admin'!$B$6,TEXT((W17/24)/30,"# 0,00")&" " & 'Paramètres - Admin'!$B$6,IF(W17/24>=1,INT(W17/24)&" " & 'Paramètres - Admin'!$D$4 & " " & HOUR(W17/24-INT(W17/24))&" " & 'Paramètres - Admin'!$D$3 & " " & MINUTE(W17/24-INT(W17/24))&" " & 'Paramètres - Admin'!$D$2,HOUR(W17/24-INT(W17/24))&" " & 'Paramètres - Admin'!$D$3 & " " & MINUTE(W17/24-INT(W17/24))&" " & 'Paramètres - Admin'!$D$2)))))) -> 0,00 jours
A18: Canon | B18: ='À Faire - Détails'!H101 -> 2 | C18: ='À Faire - Détails'!I101 -> 4 | D18: ='À Faire - Détails'!H116 -> 2500 | E18: ='À Faire - Détails'!I116 -> 0.5333333333 | F18: =IF($B$2='Paramètres - Admin'!$B$2,TEXT(E18*60*60,"# 0")&" " & 'Paramètres - Admin'!$B$2,IF($B$2='Paramètres - Admin'!$B$3,TEXT(E18*60,"# 0")&" " & 'Paramètres - Admin'!$B$3,IF($B$2='Paramètres - Admin'!$B$4,TEXT(E18,"# 0,00")&" " & 'Paramètres - Admin'!$B$4,IF($B$2='Paramètres - Admin'!$B$5,TEXT(E18/24,"# 0,00")&" " & 'Paramètres - Admin'!$B$5,IF($B$2='Paramètres - Admin'!$B$6,TEXT((E18/24)/30,"# 0,00")&" " & 'Paramètres - Admin'!$B$6,IF(E18/24>=1,INT(E18/24)&" " & 'Paramètres - Admin'!$D$4 & " " & HOUR(E18/24-INT(E18/24))&" " & 'Paramètres - Admin'!$D$3 & " " & MINUTE(E18/24-INT(E18/24))&" " & 'Paramètres - Admin'!$D$2,HOUR(E18/24-INT(E18/24))&" " & 'Paramètres - Admin'!$D$3 & " " & MINUTE(E18/24-INT(E18/24))&" " & 'Paramètres - Admin'!$D$2)))))) -> 0,02 jours | G18: Archer | H18: ='À Faire - Détails'!H238 -> 0 | I18: ='À Faire - Détails'!I238 -> 0 | J18: ='À Faire - Détails'!H247 -> 0 | K18: ='À Faire - Détails'!I247 -> 0 | L18: =IF($B$2='Paramètres - Admin'!$B$2,TEXT(K18*60*60,"# 0")&" " & 'Paramètres - Admin'!$B$2,IF($B$2='Paramètres - Admin'!$B$3,TEXT(K18*60,"# 0")&" " & 'Paramètres - Admin'!$B$3,IF($B$2='Paramètres - Admin'!$B$4,TEXT(K18,"# 0,00")&" " & 'Paramètres - Admin'!$B$4,IF($B$2='Paramètres - Admin'!$B$5,TEXT(K18/24,"# 0,00")&" " & 'Paramètres - Admin'!$B$5,IF($B$2='Paramètres - Admin'!$B$6,TEXT((K18/24)/30,"# 0,00")&" " & 'Paramètres - Admin'!$B$6,IF(K18/24>=1,INT(K18/24)&" " & 'Paramètres - Admin'!$D$4 & " " & HOUR(K18/24-INT(K18/24))&" " & 'Paramètres - Admin'!$D$3 & " " & MINUTE(K18/24-INT(K18/24))&" " & 'Paramètres - Admin'!$D$2,HOUR(K18/24-INT(K18/24))&" " & 'Paramètres - Admin'!$D$3 & " " & MINUTE(K18/24-INT(K18/24))&" " & 'Paramètres - Admin'!$D$2)))))) -> 0,00 jours | M18: Sort de Guérison | N18: ='À Faire - Détails'!Q197 -> 0 | O18: ='À Faire - Détails'!R197 -> 0 | P18: ='À Faire - Détails'!Q205 -> 0 | Q18: ='À Faire - Détails'!R205 -> 0 | R18: =IF($B$2='Paramètres - Admin'!$B$2,TEXT(Q18*60*60,"# 0")&" " & 'Paramètres - Admin'!$B$2,IF($B$2='Paramètres - Admin'!$B$3,TEXT(Q18*60,"# 0")&" " & 'Paramètres - Admin'!$B$3,IF($B$2='Paramètres - Admin'!$B$4,TEXT(Q18,"# 0,00")&" " & 'Paramètres - Admin'!$B$4,IF($B$2='Paramètres - Admin'!$B$5,TEXT(Q18/24,"# 0,00")&" " & 'Paramètres - Admin'!$B$5,IF($B$2='Paramètres - Admin'!$B$6,TEXT((Q18/24)/30,"# 0,00")&" " & 'Paramètres - Admin'!$B$6,IF(Q18/24>=1,INT(Q18/24)&" " & 'Paramètres - Admin'!$D$4 & " " & HOUR(Q18/24-INT(Q18/24))&" " & 'Paramètres - Admin'!$D$3 & " " & MINUTE(Q18/24-INT(Q18/24))&" " & 'Paramètres - Admin'!$D$2,HOUR(Q18/24-INT(Q18/24))&" " & 'Paramètres - Admin'!$D$3 & " " & MINUTE(Q18/24-INT(Q18/24))&" " & 'Paramètres - Admin'!$D$2)))))) -> 0,00 jours | S18: Sort de Séisme | T18: ='À Faire - Détails'!Q283 -> 0 | U18: ='À Faire - Détails'!R283 -> 0 | V18: ='À Faire - Détails'!Q289 -> 0 | W18: ='À Faire - Détails'!R289 -> 0 | X18: =IF($B$2='Paramètres - Admin'!$B$2,TEXT(W18*60*60,"# 0")&" " & 'Paramètres - Admin'!$B$2,IF($B$2='Paramètres - Admin'!$B$3,TEXT(W18*60,"# 0")&" " & 'Paramètres - Admin'!$B$3,IF($B$2='Paramètres - Admin'!$B$4,TEXT(W18,"# 0,00")&" " & 'Paramètres - Admin'!$B$4,IF($B$2='Paramètres - Admin'!$B$5,TEXT(W18/24,"# 0,00")&" " & 'Paramètres - Admin'!$B$5,IF($B$2='Paramètres - Admin'!$B$6,TEXT((W18/24)/30,"# 0,00")&" " & 'Paramètres - Admin'!$B$6,IF(W18/24>=1,INT(W18/24)&" " & 'Paramètres - Admin'!$D$4 & " " & HOUR(W18/24-INT(W18/24))&" " & 'Paramètres - Admin'!$D$3 & " " & MINUTE(W18/24-INT(W18/24))&" " & 'Paramètres - Admin'!$D$2,HOUR(W18/24-INT(W18/24))&" " & 'Paramètres - Admin'!$D$3 & " " & MINUTE(W18/24-INT(W18/24))&" " & 'Paramètres - Admin'!$D$2)))))) -> 0,00 jours
A19: Tour d'Archers | B19: ='À Faire - Détails'!H118 -> 0 | C19: ='À Faire - Détails'!I118 -> 0 | D19: ='À Faire - Détails'!H133 -> 0 | E19: ='À Faire - Détails'!I133 -> 0 | F19: =IF($B$2='Paramètres - Admin'!$B$2,TEXT(E19*60*60,"# 0")&" " & 'Paramètres - Admin'!$B$2,IF($B$2='Paramètres - Admin'!$B$3,TEXT(E19*60,"# 0")&" " & 'Paramètres - Admin'!$B$3,IF($B$2='Paramètres - Admin'!$B$4,TEXT(E19,"# 0,00")&" " & 'Paramètres - Admin'!$B$4,IF($B$2='Paramètres - Admin'!$B$5,TEXT(E19/24,"# 0,00")&" " & 'Paramètres - Admin'!$B$5,IF($B$2='Paramètres - Admin'!$B$6,TEXT((E19/24)/30,"# 0,00")&" " & 'Paramètres - Admin'!$B$6,IF(E19/24>=1,INT(E19/24)&" " & 'Paramètres - Admin'!$D$4 & " " & HOUR(E19/24-INT(E19/24))&" " & 'Paramètres - Admin'!$D$3 & " " & MINUTE(E19/24-INT(E19/24))&" " & 'Paramètres - Admin'!$D$2,HOUR(E19/24-INT(E19/24))&" " & 'Paramètres - Admin'!$D$3 & " " & MINUTE(E19/24-INT(E19/24))&" " & 'Paramètres - Admin'!$D$2)))))) -> 0,00 jours | G19: Gobelin | H19: ='À Faire - Détails'!H249 -> 0 | I19: ='À Faire - Détails'!I249 -> 0 | J19: ='À Faire - Détails'!H257 -> 0 | K19: ='À Faire - Détails'!I257 -> 0 | L19: =IF($B$2='Paramètres - Admin'!$B$2,TEXT(K19*60*60,"# 0")&" " & 'Paramètres - Admin'!$B$2,IF($B$2='Paramètres - Admin'!$B$3,TEXT(K19*60,"# 0")&" " & 'Paramètres - Admin'!$B$3,IF($B$2='Paramètres - Admin'!$B$4,TEXT(K19,"# 0,00")&" " & 'Paramètres - Admin'!$B$4,IF($B$2='Paramètres - Admin'!$B$5,TEXT(K19/24,"# 0,00")&" " & 'Paramètres - Admin'!$B$5,IF($B$2='Paramètres - Admin'!$B$6,TEXT((K19/24)/30,"# 0,00")&" " & 'Paramètres - Admin'!$B$6,IF(K19/24>=1,INT(K19/24)&" " & 'Paramètres - Admin'!$D$4 & " " & HOUR(K19/24-INT(K19/24))&" " & 'Paramètres - Admin'!$D$3 & " " & MINUTE(K19/24-INT(K19/24))&" " & 'Paramètres - Admin'!$D$2,HOUR(K19/24-INT(K19/24))&" " & 'Paramètres - Admin'!$D$3 & " " & MINUTE(K19/24-INT(K19/24))&" " & 'Paramètres - Admin'!$D$2)))))) -> 0,00 jours | M19: Sort de Rage | N19: ='À Faire - Détails'!H208 -> 0 | O19: ='À Faire - Détails'!I208 -> 0 | P19: ='À Faire - Détails'!H215 -> 0 | Q19: ='À Faire - Détails'!I215 -> 0 | R19: =IF($B$2='Paramètres - Admin'!$B$2,TEXT(Q19*60*60,"# 0")&" " & 'Paramètres - Admin'!$B$2,IF($B$2='Paramètres - Admin'!$B$3,TEXT(Q19*60,"# 0")&" " & 'Paramètres - Admin'!$B$3,IF($B$2='Paramètres - Admin'!$B$4,TEXT(Q19,"# 0,00")&" " & 'Paramètres - Admin'!$B$4,IF($B$2='Paramètres - Admin'!$B$5,TEXT(Q19/24,"# 0,00")&" " & 'Paramètres - Admin'!$B$5,IF($B$2='Paramètres - Admin'!$B$6,TEXT((Q19/24)/30,"# 0,00")&" " & 'Paramètres - Admin'!$B$6,IF(Q19/24>=1,INT(Q19/24)&" " & 'Paramètres - Admin'!$D$4 & " " & HOUR(Q19/24-INT(Q19/24))&" " & 'Paramètres - Admin'!$D$3 & " " & MINUTE(Q19/24-INT(Q19/24))&" " & 'Paramètres - Admin'!$D$2,HOUR(Q19/24-INT(Q19/24))&" " & 'Paramètres - Admin'!$D$3 & " " & MINUTE(Q19/24-INT(Q19/24))&" " & 'Paramètres - Admin'!$D$2)))))) -> 0,00 jours | S19: Sort de Hâte | T19: ='À Faire - Détails'!H291 -> 0 | U19: ='À Faire - Détails'!I291 -> 0 | V19: ='À Faire - Détails'!H297 -> 0 | W19: ='À Faire - Détails'!I297 -> 0 | X19: =IF($B$2='Paramètres - Admin'!$B$2,TEXT(W19*60*60,"# 0")&" " & 'Paramètres - Admin'!$B$2,IF($B$2='Paramètres - Admin'!$B$3,TEXT(W19*60,"# 0")&" " & 'Paramètres - Admin'!$B$3,IF($B$2='Paramètres - Admin'!$B$4,TEXT(W19,"# 0,00")&" " & 'Paramètres - Admin'!$B$4,IF($B$2='Paramètres - Admin'!$B$5,TEXT(W19/24,"# 0,00")&" " & 'Paramètres - Admin'!$B$5,IF($B$2='Paramètres - Admin'!$B$6,TEXT((W19/24)/30,"# 0,00")&" " & 'Paramètres - Admin'!$B$6,IF(W19/24>=1,INT(W19/24)&" " & 'Paramètres - Admin'!$D$4 & " " & HOUR(W19/24-INT(W19/24))&" " & 'Paramètres - Admin'!$D$3 & " " & MINUTE(W19/24-INT(W19/24))&" " & 'Paramètres - Admin'!$D$2,HOUR(W19/24-INT(W19/24))&" " & 'Paramètres - Admin'!$D$3 & " " & MINUTE(W19/24-INT(W19/24))&" " & 'Paramètres - Admin'!$D$2)))))) -> 0,00 jours
A20: Mortier | B20: ='À Faire - Détails'!H135 -> 0 | C20: ='À Faire - Détails'!I135 -> 0 | D20: ='À Faire - Détails'!H145 -> 0 | E20: ='À Faire - Détails'!I145 -> 0 | F20: =IF($B$2='Paramètres - Admin'!$B$2,TEXT(E20*60*60,"# 0")&" " & 'Paramètres - Admin'!$B$2,IF($B$2='Paramètres - Admin'!$B$3,TEXT(E20*60,"# 0")&" " & 'Paramètres - Admin'!$B$3,IF($B$2='Paramètres - Admin'!$B$4,TEXT(E20,"# 0,00")&" " & 'Paramètres - Admin'!$B$4,IF($B$2='Paramètres - Admin'!$B$5,TEXT(E20/24,"# 0,00")&" " & 'Paramètres - Admin'!$B$5,IF($B$2='Paramètres - Admin'!$B$6,TEXT((E20/24)/30,"# 0,00")&" " & 'Paramètres - Admin'!$B$6,IF(E20/24>=1,INT(E20/24)&" " & 'Paramètres - Admin'!$D$4 & " " & HOUR(E20/24-INT(E20/24))&" " & 'Paramètres - Admin'!$D$3 & " " & MINUTE(E20/24-INT(E20/24))&" " & 'Paramètres - Admin'!$D$2,HOUR(E20/24-INT(E20/24))&" " & 'Paramètres - Admin'!$D$3 & " " & MINUTE(E20/24-INT(E20/24))&" " & 'Paramètres - Admin'!$D$2)))))) -> 0,00 jours | G20: Géant | H20: ='À Faire - Détails'!H259 -> 0 | I20: ='À Faire - Détails'!I259 -> 0 | J20: ='À Faire - Détails'!H268 -> 0 | K20: ='À Faire - Détails'!I268 -> 0 | L20: =IF($B$2='Paramètres - Admin'!$B$2,TEXT(K20*60*60,"# 0")&" " & 'Paramètres - Admin'!$B$2,IF($B$2='Paramètres - Admin'!$B$3,TEXT(K20*60,"# 0")&" " & 'Paramètres - Admin'!$B$3,IF($B$2='Paramètres - Admin'!$B$4,TEXT(K20,"# 0,00")&" " & 'Paramètres - Admin'!$B$4,IF($B$2='Paramètres - Admin'!$B$5,TEXT(K20/24,"# 0,00")&" " & 'Paramètres - Admin'!$B$5,IF($B$2='Paramètres - Admin'!$B$6,TEXT((K20/24)/30,"# 0,00")&" " & 'Paramètres - Admin'!$B$6,IF(K20/24>=1,INT(K20/24)&" " & 'Paramètres - Admin'!$D$4 & " " & HOUR(K20/24-INT(K20/24))&" " & 'Paramètres - Admin'!$D$3 & " " & MINUTE(K20/24-INT(K20/24))&" " & 'Paramètres - Admin'!$D$2,HOUR(K20/24-INT(K20/24))&" " & 'Paramètres - Admin'!$D$3 & " " & MINUTE(K20/24-INT(K20/24))&" " & 'Paramètres - Admin'!$D$2)))))) -> 0,00 jours | M20: Sort de Saut | N20: ='À Faire - Détails'!H217 -> 0 | O20: ='À Faire - Détails'!I217 -> 0 | P20: ='À Faire - Détails'!H222 -> 0 | Q20: ='À Faire - Détails'!I222 -> 0 | R20: =IF($B$2='Paramètres - Admin'!$B$2,TEXT(Q20*60*60,"# 0")&" " & 'Paramètres - Admin'!$B$2,IF($B$2='Paramètres - Admin'!$B$3,TEXT(Q20*60,"# 0")&" " & 'Paramètres - Admin'!$B$3,IF($B$2='Paramètres - Admin'!$B$4,TEXT(Q20,"# 0,00")&" " & 'Paramètres - Admin'!$B$4,IF($B$2='Paramètres - Admin'!$B$5,TEXT(Q20/24,"# 0,00")&" " & 'Paramètres - Admin'!$B$5,IF($B$2='Paramètres - Admin'!$B$6,TEXT((Q20/24)/30,"# 0,00")&" " & 'Paramètres - Admin'!$B$6,IF(Q20/24>=1,INT(Q20/24)&" " & 'Paramètres - Admin'!$D$4 & " " & HOUR(Q20/24-INT(Q20/24))&" " & 'Paramètres - Admin'!$D$3 & " " & MINUTE(Q20/24-INT(Q20/24))&" " & 'Paramètres - Admin'!$D$2,HOUR(Q20/24-INT(Q20/24))&" " & 'Paramètres - Admin'!$D$3 & " " & MINUTE(Q20/24-INT(Q20/24))&" " & 'Paramètres - Admin'!$D$2)))))) -> 0,00 jours | S20: Total | T20: =SUM(T17:T19) -> 0 | U20: =SUM(U17:U19) -> 0 | V20: =SUM(V17:V19) -> 0 | W20: =SUM(W17:W19) -> 0 | X20: =IF($B$2='Paramètres - Admin'!$B$2,TEXT(W20*60*60,"# 0")&" " & 'Paramètres - Admin'!$B$2,IF($B$2='Paramètres - Admin'!$B$3,TEXT(W20*60,"# 0")&" " & 'Paramètres - Admin'!$B$3,IF($B$2='Paramètres - Admin'!$B$4,TEXT(W20,"# 0,00")&" " & 'Paramètres - Admin'!$B$4,IF($B$2='Paramètres - Admin'!$B$5,TEXT(W20/24,"# 0,00")&" " & 'Paramètres - Admin'!$B$5,IF($B$2='Paramètres - Admin'!$B$6,TEXT((W20/24)/30,"# 0,00")&" " & 'Paramètres - Admin'!$B$6,IF(W20/24>=1,INT(W20/24)&" " & 'Paramètres - Admin'!$D$4 & " " & HOUR(W20/24-INT(W20/24))&" " & 'Paramètres - Admin'!$D$3 & " " & MINUTE(W20/24-INT(W20/24))&" " & 'Paramètres - Admin'!$D$2,HOUR(W20/24-INT(W20/24))&" " & 'Paramètres - Admin'!$D$3 & " " & MINUTE(W20/24-INT(W20/24))&" " & 'Paramètres - Admin'!$D$2)))))) -> 0,00 jours
A21: Défense Antiaérienne | B21: ='À Faire - Détails'!Q86 -> 0 | C21: ='À Faire - Détails'!R86 -> 0 | D21: ='À Faire - Détails'!Q96 -> 0 | E21: ='À Faire - Détails'!R96 -> 0 | F21: =IF($B$2='Paramètres - Admin'!$B$2,TEXT(E21*60*60,"# 0")&" " & 'Paramètres - Admin'!$B$2,IF($B$2='Paramètres - Admin'!$B$3,TEXT(E21*60,"# 0")&" " & 'Paramètres - Admin'!$B$3,IF($B$2='Paramètres - Admin'!$B$4,TEXT(E21,"# 0,00")&" " & 'Paramètres - Admin'!$B$4,IF($B$2='Paramètres - Admin'!$B$5,TEXT(E21/24,"# 0,00")&" " & 'Paramètres - Admin'!$B$5,IF($B$2='Paramètres - Admin'!$B$6,TEXT((E21/24)/30,"# 0,00")&" " & 'Paramètres - Admin'!$B$6,IF(E21/24>=1,INT(E21/24)&" " & 'Paramètres - Admin'!$D$4 & " " & HOUR(E21/24-INT(E21/24))&" " & 'Paramètres - Admin'!$D$3 & " " & MINUTE(E21/24-INT(E21/24))&" " & 'Paramètres - Admin'!$D$2,HOUR(E21/24-INT(E21/24))&" " & 'Paramètres - Admin'!$D$3 & " " & MINUTE(E21/24-INT(E21/24))&" " & 'Paramètres - Admin'!$D$2)))))) -> 0,00 jours | G21: Sapeur | H21: ='À Faire - Détails'!H270 -> 0 | I21: ='À Faire - Détails'!I270 -> 0 | J21: ='À Faire - Détails'!H278 -> 0 | K21: ='À Faire - Détails'!I278 -> 0 | L21: =IF($B$2='Paramètres - Admin'!$B$2,TEXT(K21*60*60,"# 0")&" " & 'Paramètres - Admin'!$B$2,IF($B$2='Paramètres - Admin'!$B$3,TEXT(K21*60,"# 0")&" " & 'Paramètres - Admin'!$B$3,IF($B$2='Paramètres - Admin'!$B$4,TEXT(K21,"# 0,00")&" " & 'Paramètres - Admin'!$B$4,IF($B$2='Paramètres - Admin'!$B$5,TEXT(K21/24,"# 0,00")&" " & 'Paramètres - Admin'!$B$5,IF($B$2='Paramètres - Admin'!$B$6,TEXT((K21/24)/30,"# 0,00")&" " & 'Paramètres - Admin'!$B$6,IF(K21/24>=1,INT(K21/24)&" " & 'Paramètres - Admin'!$D$4 & " " & HOUR(K21/24-INT(K21/24))&" " & 'Paramètres - Admin'!$D$3 & " " & MINUTE(K21/24-INT(K21/24))&" " & 'Paramètres - Admin'!$D$2,HOUR(K21/24-INT(K21/24))&" " & 'Paramètres - Admin'!$D$3 & " " & MINUTE(K21/24-INT(K21/24))&" " & 'Paramètres - Admin'!$D$2)))))) -> 0,00 jours | M21: Sort de Gel | N21: ='À Faire - Détails'!Q207 -> 0 | O21: ='À Faire - Détails'!R207 -> 0 | P21: ='À Faire - Détails'!Q214 -> 0 | Q21: ='À Faire - Détails'!R214 -> 0 | R21: =IF($B$2='Paramètres - Admin'!$B$2,TEXT(Q21*60*60,"# 0")&" " & 'Paramètres - Admin'!$B$2,IF($B$2='Paramètres - Admin'!$B$3,TEXT(Q21*60,"# 0")&" " & 'Paramètres - Admin'!$B$3,IF($B$2='Paramètres - Admin'!$B$4,TEXT(Q21,"# 0,00")&" " & 'Paramètres - Admin'!$B$4,IF($B$2='Paramètres - Admin'!$B$5,TEXT(Q21/24,"# 0,00")&" " & 'Paramètres - Admin'!$B$5,IF($B$2='Paramètres - Admin'!$B$6,TEXT((Q21/24)/30,"# 0,00")&" " & 'Paramètres - Admin'!$B$6,IF(Q21/24>=1,INT(Q21/24)&" " & 'Paramètres - Admin'!$D$4 & " " & HOUR(Q21/24-INT(Q21/24))&" " & 'Paramètres - Admin'!$D$3 & " " & MINUTE(Q21/24-INT(Q21/24))&" " & 'Paramètres - Admin'!$D$2,HOUR(Q21/24-INT(Q21/24))&" " & 'Paramètres - Admin'!$D$3 & " " & MINUTE(Q21/24-INT(Q21/24))&" " & 'Paramètres - Admin'!$D$2)))))) -> 0,00 jours
A22: Tour de Sorciers | B22: ='À Faire - Détails'!Q98 -> 0 | C22: ='À Faire - Détails'!R98 -> 0 | D22: ='À Faire - Détails'!Q109 -> 0 | E22: ='À Faire - Détails'!R109 -> 0 | F22: =IF($B$2='Paramètres - Admin'!$B$2,TEXT(E22*60*60,"# 0")&" " & 'Paramètres - Admin'!$B$2,IF($B$2='Paramètres - Admin'!$B$3,TEXT(E22*60,"# 0")&" " & 'Paramètres - Admin'!$B$3,IF($B$2='Paramètres - Admin'!$B$4,TEXT(E22,"# 0,00")&" " & 'Paramètres - Admin'!$B$4,IF($B$2='Paramètres - Admin'!$B$5,TEXT(E22/24,"# 0,00")&" " & 'Paramètres - Admin'!$B$5,IF($B$2='Paramètres - Admin'!$B$6,TEXT((E22/24)/30,"# 0,00")&" " & 'Paramètres - Admin'!$B$6,IF(E22/24>=1,INT(E22/24)&" " & 'Paramètres - Admin'!$D$4 & " " & HOUR(E22/24-INT(E22/24))&" " & 'Paramètres - Admin'!$D$3 & " " & MINUTE(E22/24-INT(E22/24))&" " & 'Paramètres - Admin'!$D$2,HOUR(E22/24-INT(E22/24))&" " & 'Paramètres - Admin'!$D$3 & " " & MINUTE(E22/24-INT(E22/24))&" " & 'Paramètres - Admin'!$D$2)))))) -> 0,00 jours | G22: Ballon | H22: ='À Faire - Détails'!Q227 -> 0 | I22: ='À Faire - Détails'!R227 -> 0 | J22: ='À Faire - Détails'!Q235 -> 0 | K22: ='À Faire - Détails'!R235 -> 0 | L22: =IF($B$2='Paramètres - Admin'!$B$2,TEXT(K22*60*60,"# 0")&" " & 'Paramètres - Admin'!$B$2,IF($B$2='Paramètres - Admin'!$B$3,TEXT(K22*60,"# 0")&" " & 'Paramètres - Admin'!$B$3,IF($B$2='Paramètres - Admin'!$B$4,TEXT(K22,"# 0,00")&" " & 'Paramètres - Admin'!$B$4,IF($B$2='Paramètres - Admin'!$B$5,TEXT(K22/24,"# 0,00")&" " & 'Paramètres - Admin'!$B$5,IF($B$2='Paramètres - Admin'!$B$6,TEXT((K22/24)/30,"# 0,00")&" " & 'Paramètres - Admin'!$B$6,IF(K22/24>=1,INT(K22/24)&" " & 'Paramètres - Admin'!$D$4 & " " & HOUR(K22/24-INT(K22/24))&" " & 'Paramètres - Admin'!$D$3 & " " & MINUTE(K22/24-INT(K22/24))&" " & 'Paramètres - Admin'!$D$2,HOUR(K22/24-INT(K22/24))&" " & 'Paramètres - Admin'!$D$3 & " " & MINUTE(K22/24-INT(K22/24))&" " & 'Paramètres - Admin'!$D$2)))))) -> 0,00 jours | M22: Total | N22: =SUM(N17:N21) -> 0 | O22: =SUM(O17:O21) -> 0 | P22: =SUM(P17:P21) -> 0 | Q22: =SUM(Q17:Q21) -> 0 | R22: =IF($B$2='Paramètres - Admin'!$B$2,TEXT(Q22*60*60,"# 0")&" " & 'Paramètres - Admin'!$B$2,IF($B$2='Paramètres - Admin'!$B$3,TEXT(Q22*60,"# 0")&" " & 'Paramètres - Admin'!$B$3,IF($B$2='Paramètres - Admin'!$B$4,TEXT(Q22,"# 0,00")&" " & 'Paramètres - Admin'!$B$4,IF($B$2='Paramètres - Admin'!$B$5,TEXT(Q22/24,"# 0,00")&" " & 'Paramètres - Admin'!$B$5,IF($B$2='Paramètres - Admin'!$B$6,TEXT((Q22/24)/30,"# 0,00")&" " & 'Paramètres - Admin'!$B$6,IF(Q22/24>=1,INT(Q22/24)&" " & 'Paramètres - Admin'!$D$4 & " " & HOUR(Q22/24-INT(Q22/24))&" " & 'Paramètres - Admin'!$D$3 & " " & MINUTE(Q22/24-INT(Q22/24))&" " & 'Paramètres - Admin'!$D$2,HOUR(Q22/24-INT(Q22/24))&" " & 'Paramètres - Admin'!$D$3 & " " & MINUTE(Q22/24-INT(Q22/24))&" " & 'Paramètres - Admin'!$D$2)))))) -> 0,00 jours | S22: Héros
A23: Propulseur d'air | B23: ='À Faire - Détails'!Q138 -> 0 | C23: ='À Faire - Détails'!R138 -> 0 | D23: ='À Faire - Détails'!Q146 -> 0 | E23: ='À Faire - Détails'!R146 -> 0 | F23: =IF($B$2='Paramètres - Admin'!$B$2,TEXT(E23*60*60,"# 0")&" " & 'Paramètres - Admin'!$B$2,IF($B$2='Paramètres - Admin'!$B$3,TEXT(E23*60,"# 0")&" " & 'Paramètres - Admin'!$B$3,IF($B$2='Paramètres - Admin'!$B$4,TEXT(E23,"# 0,00")&" " & 'Paramètres - Admin'!$B$4,IF($B$2='Paramètres - Admin'!$B$5,TEXT(E23/24,"# 0,00")&" " & 'Paramètres - Admin'!$B$5,IF($B$2='Paramètres - Admin'!$B$6,TEXT((E23/24)/30,"# 0,00")&" " & 'Paramètres - Admin'!$B$6,IF(E23/24>=1,INT(E23/24)&" " & 'Paramètres - Admin'!$D$4 & " " & HOUR(E23/24-INT(E23/24))&" " & 'Paramètres - Admin'!$D$3 & " " & MINUTE(E23/24-INT(E23/24))&" " & 'Paramètres - Admin'!$D$2,HOUR(E23/24-INT(E23/24))&" " & 'Paramètres - Admin'!$D$3 & " " & MINUTE(E23/24-INT(E23/24))&" " & 'Paramètres - Admin'!$D$2)))))) -> 0,00 jours | G23: Sorcier | H23: ='À Faire - Détails'!Q237 -> 0 | I23: ='À Faire - Détails'!R237 -> 0 | J23: ='À Faire - Détails'!Q245 -> 0 | K23: ='À Faire - Détails'!R245 -> 0 | L23: =IF($B$2='Paramètres - Admin'!$B$2,TEXT(K23*60*60,"# 0")&" " & 'Paramètres - Admin'!$B$2,IF($B$2='Paramètres - Admin'!$B$3,TEXT(K23*60,"# 0")&" " & 'Paramètres - Admin'!$B$3,IF($B$2='Paramètres - Admin'!$B$4,TEXT(K23,"# 0,00")&" " & 'Paramètres - Admin'!$B$4,IF($B$2='Paramètres - Admin'!$B$5,TEXT(K23/24,"# 0,00")&" " & 'Paramètres - Admin'!$B$5,IF($B$2='Paramètres - Admin'!$B$6,TEXT((K23/24)/30,"# 0,00")&" " & 'Paramètres - Admin'!$B$6,IF(K23/24>=1,INT(K23/24)&" " & 'Paramètres - Admin'!$D$4 & " " & HOUR(K23/24-INT(K23/24))&" " & 'Paramètres - Admin'!$D$3 & " " & MINUTE(K23/24-INT(K23/24))&" " & 'Paramètres - Admin'!$D$2,HOUR(K23/24-INT(K23/24))&" " & 'Paramètres - Admin'!$D$3 & " " & MINUTE(K23/24-INT(K23/24))&" " & 'Paramètres - Admin'!$D$2)))))) -> 0,00 jours | M23: Bâtiments Autres | S23: Héros | T23: À Faire | U23: Up. | V23: Coût Total | W23: Temps Total | X23: Temps Total
A24: Tesla Camouflée | B24: ='À Faire - Détails'!Q111 -> 0 | C24: ='À Faire - Détails'!R111 -> 0 | D24: ='À Faire - Détails'!Q121 -> 0 | E24: ='À Faire - Détails'!R121 -> 0 | F24: =IF($B$2='Paramètres - Admin'!$B$2,TEXT(E24*60*60,"# 0")&" " & 'Paramètres - Admin'!$B$2,IF($B$2='Paramètres - Admin'!$B$3,TEXT(E24*60,"# 0")&" " & 'Paramètres - Admin'!$B$3,IF($B$2='Paramètres - Admin'!$B$4,TEXT(E24,"# 0,00")&" " & 'Paramètres - Admin'!$B$4,IF($B$2='Paramètres - Admin'!$B$5,TEXT(E24/24,"# 0,00")&" " & 'Paramètres - Admin'!$B$5,IF($B$2='Paramètres - Admin'!$B$6,TEXT((E24/24)/30,"# 0,00")&" " & 'Paramètres - Admin'!$B$6,IF(E24/24>=1,INT(E24/24)&" " & 'Paramètres - Admin'!$D$4 & " " & HOUR(E24/24-INT(E24/24))&" " & 'Paramètres - Admin'!$D$3 & " " & MINUTE(E24/24-INT(E24/24))&" " & 'Paramètres - Admin'!$D$2,HOUR(E24/24-INT(E24/24))&" " & 'Paramètres - Admin'!$D$3 & " " & MINUTE(E24/24-INT(E24/24))&" " & 'Paramètres - Admin'!$D$2)))))) -> 0,00 jours | G24: Guérisseuse | H24: ='À Faire - Détails'!Q247 -> 0 | I24: ='À Faire - Détails'!R247 -> 0 | J24: ='À Faire - Détails'!Q253 -> 0 | K24: ='À Faire - Détails'!R253 -> 0 | L24: =IF($B$2='Paramètres - Admin'!$B$2,TEXT(K24*60*60,"# 0")&" " & 'Paramètres - Admin'!$B$2,IF($B$2='Paramètres - Admin'!$B$3,TEXT(K24*60,"# 0")&" " & 'Paramètres - Admin'!$B$3,IF($B$2='Paramètres - Admin'!$B$4,TEXT(K24,"# 0,00")&" " & 'Paramètres - Admin'!$B$4,IF($B$2='Paramètres - Admin'!$B$5,TEXT(K24/24,"# 0,00")&" " & 'Paramètres - Admin'!$B$5,IF($B$2='Paramètres - Admin'!$B$6,TEXT((K24/24)/30,"# 0,00")&" " & 'Paramètres - Admin'!$B$6,IF(K24/24>=1,INT(K24/24)&" " & 'Paramètres - Admin'!$D$4 & " " & HOUR(K24/24-INT(K24/24))&" " & 'Paramètres - Admin'!$D$3 & " " & MINUTE(K24/24-INT(K24/24))&" " & 'Paramètres - Admin'!$D$2,HOUR(K24/24-INT(K24/24))&" " & 'Paramètres - Admin'!$D$3 & " " & MINUTE(K24/24-INT(K24/24))&" " & 'Paramètres - Admin'!$D$2)))))) -> 0,00 jours | M24: Bâtiment | N24: À Faire | O24: Up. | P24: Coût Total | Q24: Temps Total | R24: Temps Total | S24: Roi des Barbares | T24: ='À Faire - Détails'!H331 -> 0 | U24: ='À Faire - Détails'!I331 -> 0 | V24: ='À Faire - Détails'!H373 -> 0 | W24: ='À Faire - Détails'!I373 -> 0 | X24: =IF($B$2='Paramètres - Admin'!$B$2,TEXT(W24*60*60,"# 0")&" " & 'Paramètres - Admin'!$B$2,IF($B$2='Paramètres - Admin'!$B$3,TEXT(W24*60,"# 0")&" " & 'Paramètres - Admin'!$B$3,IF($B$2='Paramètres - Admin'!$B$4,TEXT(W24,"# 0,00")&" " & 'Paramètres - Admin'!$B$4,IF($B$2='Paramètres - Admin'!$B$5,TEXT(W24/24,"# 0,00")&" " & 'Paramètres - Admin'!$B$5,IF($B$2='Paramètres - Admin'!$B$6,TEXT((W24/24)/30,"# 0,00")&" " & 'Paramètres - Admin'!$B$6,IF(W24/24>=1,INT(W24/24)&" " & 'Paramètres - Admin'!$D$4 & " " & HOUR(W24/24-INT(W24/24))&" " & 'Paramètres - Admin'!$D$3 & " " & MINUTE(W24/24-INT(W24/24))&" " & 'Paramètres - Admin'!$D$2,HOUR(W24/24-INT(W24/24))&" " & 'Paramètres - Admin'!$D$3 & " " & MINUTE(W24/24-INT(W24/24))&" " & 'Paramètres - Admin'!$D$2)))))) -> 0,00 jours
A25: Arc-X | B25: ='À Faire - Détails'!Q123 -> 0 | C25: ='À Faire - Détails'!R123 -> 0 | D25: ='À Faire - Détails'!Q129 -> 0 | E25: ='À Faire - Détails'!R129 -> 0 | F25: =IF($B$2='Paramètres - Admin'!$B$2,TEXT(E25*60*60,"# 0")&" " & 'Paramètres - Admin'!$B$2,IF($B$2='Paramètres - Admin'!$B$3,TEXT(E25*60,"# 0")&" " & 'Paramètres - Admin'!$B$3,IF($B$2='Paramètres - Admin'!$B$4,TEXT(E25,"# 0,00")&" " & 'Paramètres - Admin'!$B$4,IF($B$2='Paramètres - Admin'!$B$5,TEXT(E25/24,"# 0,00")&" " & 'Paramètres - Admin'!$B$5,IF($B$2='Paramètres - Admin'!$B$6,TEXT((E25/24)/30,"# 0,00")&" " & 'Paramètres - Admin'!$B$6,IF(E25/24>=1,INT(E25/24)&" " & 'Paramètres - Admin'!$D$4 & " " & HOUR(E25/24-INT(E25/24))&" " & 'Paramètres - Admin'!$D$3 & " " & MINUTE(E25/24-INT(E25/24))&" " & 'Paramètres - Admin'!$D$2,HOUR(E25/24-INT(E25/24))&" " & 'Paramètres - Admin'!$D$3 & " " & MINUTE(E25/24-INT(E25/24))&" " & 'Paramètres - Admin'!$D$2)))))) -> 0,00 jours | G25: Dragon | H25: ='À Faire - Détails'!Q255 -> 0 | I25: ='À Faire - Détails'!R255 -> 0 | J25: ='À Faire - Détails'!Q262 -> 0 | K25: ='À Faire - Détails'!R262 -> 0 | L25: =IF($B$2='Paramètres - Admin'!$B$2,TEXT(K25*60*60,"# 0")&" " & 'Paramètres - Admin'!$B$2,IF($B$2='Paramètres - Admin'!$B$3,TEXT(K25*60,"# 0")&" " & 'Paramètres - Admin'!$B$3,IF($B$2='Paramètres - Admin'!$B$4,TEXT(K25,"# 0,00")&" " & 'Paramètres - Admin'!$B$4,IF($B$2='Paramètres - Admin'!$B$5,TEXT(K25/24,"# 0,00")&" " & 'Paramètres - Admin'!$B$5,IF($B$2='Paramètres - Admin'!$B$6,TEXT((K25/24)/30,"# 0,00")&" " & 'Paramètres - Admin'!$B$6,IF(K25/24>=1,INT(K25/24)&" " & 'Paramètres - Admin'!$D$4 & " " & HOUR(K25/24-INT(K25/24))&" " & 'Paramètres - Admin'!$D$3 & " " & MINUTE(K25/24-INT(K25/24))&" " & 'Paramètres - Admin'!$D$2,HOUR(K25/24-INT(K25/24))&" " & 'Paramètres - Admin'!$D$3 & " " & MINUTE(K25/24-INT(K25/24))&" " & 'Paramètres - Admin'!$D$2)))))) -> 0,00 jours | M25: Château de Clan | N25: ='À Faire - Détails'!H180 -> 0 | O25: ='À Faire - Détails'!I180 -> 0 | P25: ='À Faire - Détails'!H188 -> 0 | Q25: ='À Faire - Détails'!I188 -> 0 | R25: =IF($B$2='Paramètres - Admin'!$B$2,TEXT(Q25*60*60,"# 0")&" " & 'Paramètres - Admin'!$B$2,IF($B$2='Paramètres - Admin'!$B$3,TEXT(Q25*60,"# 0")&" " & 'Paramètres - Admin'!$B$3,IF($B$2='Paramètres - Admin'!$B$4,TEXT(Q25,"# 0,00")&" " & 'Paramètres - Admin'!$B$4,IF($B$2='Paramètres - Admin'!$B$5,TEXT(Q25/24,"# 0,00")&" " & 'Paramètres - Admin'!$B$5,IF($B$2='Paramètres - Admin'!$B$6,TEXT((Q25/24)/30,"# 0,00")&" " & 'Paramètres - Admin'!$B$6,IF(Q25/24>=1,INT(Q25/24)&" " & 'Paramètres - Admin'!$D$4 & " " & HOUR(Q25/24-INT(Q25/24))&" " & 'Paramètres - Admin'!$D$3 & " " & MINUTE(Q25/24-INT(Q25/24))&" " & 'Paramètres - Admin'!$D$2,HOUR(Q25/24-INT(Q25/24))&" " & 'Paramètres - Admin'!$D$3 & " " & MINUTE(Q25/24-INT(Q25/24))&" " & 'Paramètres - Admin'!$D$2)))))) -> 0,00 jours | S25: Reine des Archers | T25: ='À Faire - Détails'!Q331 -> 0 | U25: ='À Faire - Détails'!R331 -> 0 | V25: ='À Faire - Détails'!Q373 -> 0 | W25: ='À Faire - Détails'!R373 -> 0 | X25: =IF($B$2='Paramètres - Admin'!$B$2,TEXT(W25*60*60,"# 0")&" " & 'Paramètres - Admin'!$B$2,IF($B$2='Paramètres - Admin'!$B$3,TEXT(W25*60,"# 0")&" " & 'Paramètres - Admin'!$B$3,IF($B$2='Paramètres - Admin'!$B$4,TEXT(W25,"# 0,00")&" " & 'Paramètres - Admin'!$B$4,IF($B$2='Paramètres - Admin'!$B$5,TEXT(W25/24,"# 0,00")&" " & 'Paramètres - Admin'!$B$5,IF($B$2='Paramètres - Admin'!$B$6,TEXT((W25/24)/30,"# 0,00")&" " & 'Paramètres - Admin'!$B$6,IF(W25/24>=1,INT(W25/24)&" " & 'Paramètres - Admin'!$D$4 & " " & HOUR(W25/24-INT(W25/24))&" " & 'Paramètres - Admin'!$D$3 & " " & MINUTE(W25/24-INT(W25/24))&" " & 'Paramètres - Admin'!$D$2,HOUR(W25/24-INT(W25/24))&" " & 'Paramètres - Admin'!$D$3 & " " & MINUTE(W25/24-INT(W25/24))&" " & 'Paramètres - Admin'!$D$2)))))) -> 0,00 jours
A26: Tour de l'Enfer | B26: ='À Faire - Détails'!Q131 -> 0 | C26: ='À Faire - Détails'!R131 -> 0 | D26: ='À Faire - Détails'!Q136 -> 0 | E26: ='À Faire - Détails'!R136 -> 0 | F26: =IF($B$2='Paramètres - Admin'!$B$2,TEXT(E26*60*60,"# 0")&" " & 'Paramètres - Admin'!$B$2,IF($B$2='Paramètres - Admin'!$B$3,TEXT(E26*60,"# 0")&" " & 'Paramètres - Admin'!$B$3,IF($B$2='Paramètres - Admin'!$B$4,TEXT(E26,"# 0,00")&" " & 'Paramètres - Admin'!$B$4,IF($B$2='Paramètres - Admin'!$B$5,TEXT(E26/24,"# 0,00")&" " & 'Paramètres - Admin'!$B$5,IF($B$2='Paramètres - Admin'!$B$6,TEXT((E26/24)/30,"# 0,00")&" " & 'Paramètres - Admin'!$B$6,IF(E26/24>=1,INT(E26/24)&" " & 'Paramètres - Admin'!$D$4 & " " & HOUR(E26/24-INT(E26/24))&" " & 'Paramètres - Admin'!$D$3 & " " & MINUTE(E26/24-INT(E26/24))&" " & 'Paramètres - Admin'!$D$2,HOUR(E26/24-INT(E26/24))&" " & 'Paramètres - Admin'!$D$3 & " " & MINUTE(E26/24-INT(E26/24))&" " & 'Paramètres - Admin'!$D$2)))))) -> 0,00 jours | G26: P.E.K.K.A | H26: ='À Faire - Détails'!Q264 -> 0 | I26: ='À Faire - Détails'!R264 -> 0 | J26: ='À Faire - Détails'!Q271 -> 0 | K26: ='À Faire - Détails'!R271 -> 0 | L26: =IF($B$2='Paramètres - Admin'!$B$2,TEXT(K26*60*60,"# 0")&" " & 'Paramètres - Admin'!$B$2,IF($B$2='Paramètres - Admin'!$B$3,TEXT(K26*60,"# 0")&" " & 'Paramètres - Admin'!$B$3,IF($B$2='Paramètres - Admin'!$B$4,TEXT(K26,"# 0,00")&" " & 'Paramètres - Admin'!$B$4,IF($B$2='Paramètres - Admin'!$B$5,TEXT(K26/24,"# 0,00")&" " & 'Paramètres - Admin'!$B$5,IF($B$2='Paramètres - Admin'!$B$6,TEXT((K26/24)/30,"# 0,00")&" " & 'Paramètres - Admin'!$B$6,IF(K26/24>=1,INT(K26/24)&" " & 'Paramètres - Admin'!$D$4 & " " & HOUR(K26/24-INT(K26/24))&" " & 'Paramètres - Admin'!$D$3 & " " & MINUTE(K26/24-INT(K26/24))&" " & 'Paramètres - Admin'!$D$2,HOUR(K26/24-INT(K26/24))&" " & 'Paramètres - Admin'!$D$3 & " " & MINUTE(K26/24-INT(K26/24))&" " & 'Paramètres - Admin'!$D$2)))))) -> 0,00 jours | M26: Hôtel de Ville | N26: ='À Faire - Détails'!Q180 -> 0 | O26: ='À Faire - Détails'!R180 -> 1 | P26: ='À Faire - Détails'!Q193 -> 1000 | Q26: ='À Faire - Détails'!R193 -> 0.08333333333 | R26: =IF($B$2='Paramètres - Admin'!$B$2,TEXT(Q26*60*60,"# 0")&" " & 'Paramètres - Admin'!$B$2,IF($B$2='Paramètres - Admin'!$B$3,TEXT(Q26*60,"# 0")&" " & 'Paramètres - Admin'!$B$3,IF($B$2='Paramètres - Admin'!$B$4,TEXT(Q26,"# 0,00")&" " & 'Paramètres - Admin'!$B$4,IF($B$2='Paramètres - Admin'!$B$5,TEXT(Q26/24,"# 0,00")&" " & 'Paramètres - Admin'!$B$5,IF($B$2='Paramètres - Admin'!$B$6,TEXT((Q26/24)/30,"# 0,00")&" " & 'Paramètres - Admin'!$B$6,IF(Q26/24>=1,INT(Q26/24)&" " & 'Paramètres - Admin'!$D$4 & " " & HOUR(Q26/24-INT(Q26/24))&" " & 'Paramètres - Admin'!$D$3 & " " & MINUTE(Q26/24-INT(Q26/24))&" " & 'Paramètres - Admin'!$D$2,HOUR(Q26/24-INT(Q26/24))&" " & 'Paramètres - Admin'!$D$3 & " " & MINUTE(Q26/24-INT(Q26/24))&" " & 'Paramètres - Admin'!$D$2)))))) -> 0,00 jours | S26: Grand Gardien | T26: ='À Faire - Détails'!Z331 -> 0 | U26: ='À Faire - Détails'!AA331 -> 0 | V26: ='À Faire - Détails'!Z373 -> 0 | W26: ='À Faire - Détails'!AA373 -> 0 | X26: =IF($B$2='Paramètres - Admin'!$B$2,TEXT(W26*60*60,"# 0")&" " & 'Paramètres - Admin'!$B$2,IF($B$2='Paramètres - Admin'!$B$3,TEXT(W26*60,"# 0")&" " & 'Paramètres - Admin'!$B$3,IF($B$2='Paramètres - Admin'!$B$4,TEXT(W26,"# 0,00")&" " & 'Paramètres - Admin'!$B$4,IF($B$2='Paramètres - Admin'!$B$5,TEXT(W26/24,"# 0,00")&" " & 'Paramètres - Admin'!$B$5,IF($B$2='Paramètres - Admin'!$B$6,TEXT((W26/24)/30,"# 0,00")&" " & 'Paramètres - Admin'!$B$6,IF(W26/24>=1,INT(W26/24)&" " & 'Paramètres - Admin'!$D$4 & " " & HOUR(W26/24-INT(W26/24))&" " & 'Paramètres - Admin'!$D$3 & " " & MINUTE(W26/24-INT(W26/24))&" " & 'Paramètres - Admin'!$D$2,HOUR(W26/24-INT(W26/24))&" " & 'Paramètres - Admin'!$D$3 & " " & MINUTE(W26/24-INT(W26/24))&" " & 'Paramètres - Admin'!$D$2)))))) -> 0,00 jours
A27: Aigle Artilleur | B27: ='À Faire - Détails'!H147 -> 0 | C27: ='À Faire - Détails'!I147 -> 0 | D27: ='À Faire - Détails'!H151 -> 0 | E27: ='À Faire - Détails'!I151 -> 0 | F27: =IF($B$2='Paramètres - Admin'!$B$2,TEXT(E27*60*60,"# 0")&" " & 'Paramètres - Admin'!$B$2,IF($B$2='Paramètres - Admin'!$B$3,TEXT(E27*60,"# 0")&" " & 'Paramètres - Admin'!$B$3,IF($B$2='Paramètres - Admin'!$B$4,TEXT(E27,"# 0,00")&" " & 'Paramètres - Admin'!$B$4,IF($B$2='Paramètres - Admin'!$B$5,TEXT(E27/24,"# 0,00")&" " & 'Paramètres - Admin'!$B$5,IF($B$2='Paramètres - Admin'!$B$6,TEXT((E27/24)/30,"# 0,00")&" " & 'Paramètres - Admin'!$B$6,IF(E27/24>=1,INT(E27/24)&" " & 'Paramètres - Admin'!$D$4 & " " & HOUR(E27/24-INT(E27/24))&" " & 'Paramètres - Admin'!$D$3 & " " & MINUTE(E27/24-INT(E27/24))&" " & 'Paramètres - Admin'!$D$2,HOUR(E27/24-INT(E27/24))&" " & 'Paramètres - Admin'!$D$3 & " " & MINUTE(E27/24-INT(E27/24))&" " & 'Paramètres - Admin'!$D$2)))))) -> 0,00 jours | G27: Total | H27: =SUM(H17:H26) -> 0 | I27: =SUM(I17:I26) -> 0 | J27: =SUM(J17:J26) -> 0 | K27: =SUM(K17:K26) -> 0 | L27: =IF($B$2='Paramètres - Admin'!$B$2,TEXT(K27*60*60,"# 0")&" " & 'Paramètres - Admin'!$B$2,IF($B$2='Paramètres - Admin'!$B$3,TEXT(K27*60,"# 0")&" " & 'Paramètres - Admin'!$B$3,IF($B$2='Paramètres - Admin'!$B$4,TEXT(K27,"# 0,00")&" " & 'Paramètres - Admin'!$B$4,IF($B$2='Paramètres - Admin'!$B$5,TEXT(K27/24,"# 0,00")&" " & 'Paramètres - Admin'!$B$5,IF($B$2='Paramètres - Admin'!$B$6,TEXT((K27/24)/30,"# 0,00")&" " & 'Paramètres - Admin'!$B$6,IF(K27/24>=1,INT(K27/24)&" " & 'Paramètres - Admin'!$D$4 & " " & HOUR(K27/24-INT(K27/24))&" " & 'Paramètres - Admin'!$D$3 & " " & MINUTE(K27/24-INT(K27/24))&" " & 'Paramètres - Admin'!$D$2,HOUR(K27/24-INT(K27/24))&" " & 'Paramètres - Admin'!$D$3 & " " & MINUTE(K27/24-INT(K27/24))&" " & 'Paramètres - Admin'!$D$2)))))) -> 0,00 jours | M27: Total | N27: =SUM(N25:N26) -> 0 | O27: =SUM(O25:O26) -> 1 | P27: =SUM(P25:P26) -> 1000 | Q27: =SUM(Q25:Q26) -> 0.08333333333 | R27: =IF($B$2='Paramètres - Admin'!$B$2,TEXT(Q27*60*60,"# 0")&" " & 'Paramètres - Admin'!$B$2,IF($B$2='Paramètres - Admin'!$B$3,TEXT(Q27*60,"# 0")&" " & 'Paramètres - Admin'!$B$3,IF($B$2='Paramètres - Admin'!$B$4,TEXT(Q27,"# 0,00")&" " & 'Paramètres - Admin'!$B$4,IF($B$2='Paramètres - Admin'!$B$5,TEXT(Q27/24,"# 0,00")&" " & 'Paramètres - Admin'!$B$5,IF($B$2='Paramètres - Admin'!$B$6,TEXT((Q27/24)/30,"# 0,00")&" " & 'Paramètres - Admin'!$B$6,IF(Q27/24>=1,INT(Q27/24)&" " & 'Paramètres - Admin'!$D$4 & " " & HOUR(Q27/24-INT(Q27/24))&" " & 'Paramètres - Admin'!$D$3 & " " & MINUTE(Q27/24-INT(Q27/24))&" " & 'Paramètres - Admin'!$D$2,HOUR(Q27/24-INT(Q27/24))&" " & 'Paramètres - Admin'!$D$3 & " " & MINUTE(Q27/24-INT(Q27/24))&" " & 'Paramètres - Admin'!$D$2)))))) -> 0,00 jours | S27: Total | T27: =SUM(T24:T26) -> 0 | U27: =SUM(U24:U26) -> 0 | V27: =SUM(V24:V25) -> 0 | W27: =SUM(W24:W26) -> 0 | X27: =IF($B$2='Paramètres - Admin'!$B$2,TEXT(W27*60*60,"# 0")&" " & 'Paramètres - Admin'!$B$2,IF($B$2='Paramètres - Admin'!$B$3,TEXT(W27*60,"# 0")&" " & 'Paramètres - Admin'!$B$3,IF($B$2='Paramètres - Admin'!$B$4,TEXT(W27,"# 0,00")&" " & 'Paramètres - Admin'!$B$4,IF($B$2='Paramètres - Admin'!$B$5,TEXT(W27/24,"# 0,00")&" " & 'Paramètres - Admin'!$B$5,IF($B$2='Paramètres - Admin'!$B$6,TEXT((W27/24)/30,"# 0,00")&" " & 'Paramètres - Admin'!$B$6,IF(W27/24>=1,INT(W27/24)&" " & 'Paramètres - Admin'!$D$4 & " " & HOUR(W27/24-INT(W27/24))&" " & 'Paramètres - Admin'!$D$3 & " " & MINUTE(W27/24-INT(W27/24))&" " & 'Paramètres - Admin'!$D$2,HOUR(W27/24-INT(W27/24))&" " & 'Paramètres - Admin'!$D$3 & " " & MINUTE(W27/24-INT(W27/24))&" " & 'Paramètres - Admin'!$D$2)))))) -> 0,00 jours
A28: Total | B28: =SUM(B17:B27) -> 2 | C28: =SUM(C17:C27) -> 4 | D28: =SUM(D17:D27) -> 2500 | E28: =SUM(E17:E27) -> 0.5333333333 | F28: =IF($B$2='Paramètres - Admin'!$B$2,TEXT(E28*60*60,"# 0")&" " & 'Paramètres - Admin'!$B$2,IF($B$2='Paramètres - Admin'!$B$3,TEXT(E28*60,"# 0")&" " & 'Paramètres - Admin'!$B$3,IF($B$2='Paramètres - Admin'!$B$4,TEXT(E28,"# 0,00")&" " & 'Paramètres - Admin'!$B$4,IF($B$2='Paramètres - Admin'!$B$5,TEXT(E28/24,"# 0,00")&" " & 'Paramètres - Admin'!$B$5,IF($B$2='Paramètres - Admin'!$B$6,TEXT((E28/24)/30,"# 0,00")&" " & 'Paramètres - Admin'!$B$6,IF(E28/24>=1,INT(E28/24)&" " & 'Paramètres - Admin'!$D$4 & " " & HOUR(E28/24-INT(E28/24))&" " & 'Paramètres - Admin'!$D$3 & " " & MINUTE(E28/24-INT(E28/24))&" " & 'Paramètres - Admin'!$D$2,HOUR(E28/24-INT(E28/24))&" " & 'Paramètres - Admin'!$D$3 & " " & MINUTE(E28/24-INT(E28/24))&" " & 'Paramètres - Admin'!$D$2)))))) -> 0,02 jours

Sheet À Faire - Détails
A1: LVL HdV | C1: Or Total : | F1: Élixir Total : | I1: Élixir Noir Total : | K1: Temps Total : | N1: ='À Faire - Récapitulatif'!Q1 -> Bâtiments : 0,15 jours | R1: => Temps par Ouvrier : | U1: Améliorations de Troupes/Sorts :
A2: =Paramètres!$BI$2 -> 1 | C2: ='À Faire - Récapitulatif'!H2 -> 4 250 | F2: ='À Faire - Récapitulatif'!K2 -> 4 700 | I2: ='À Faire - Récapitulatif'!M2 -> 0 | K2: ='À Faire - Récapitulatif'!O2 -> 0,15 jours | N2: ='À Faire - Récapitulatif'!Q2 -> Héros : 0,00 jours | R2: ='À Faire - Récapitulatif'!T2 -> 0,15 jours | U2: ='À Faire - Récapitulatif'!W2 -> 0,00 jours
A3: Bâtiments de Ressources
A4: Mine d'Or | D4: Max | E4: Max + | G4: Actuel | H4: À Faire | I4: Améliorations | J4: Extracteur d'Élixir | M4: Max | N4: Max + | P4: Actuel | Q4: À Faire | R4: Améliorations
D5: =VLOOKUP($A$2,AVAILABLE_Buildings_Resource[#All],MATCH(A4,AVAILABLE_Buildings_Resource[#Headers],0)) -> 1 | E5: =VLOOKUP($A$2,AVAILABLE_Buildings_Resource[#All],MATCH(A4,AVAILABLE_Buildings_Resource[#Headers],0)+1) -> 2 | G5: =IF(SUM(B7:B18)>D5,"Error",SUM(B7:B18)) -> 0 | H5: =IF(G$5="Error","Error",D5-G5) -> 1 | I5: =IF(G$5="Error","Error",SUM(D7:D18)) -> 2 | M5: =VLOOKUP($A$2,AVAILABLE_Buildings_Resource[#All],MATCH(J4,AVAILABLE_Buildings_Resource[#Headers],0)) -> 1 | N5: =VLOOKUP($A$2,AVAILABLE_Buildings_Resource[#All],MATCH(J4,AVAILABLE_Buildings_Resource[#Headers],0)+1) -> 2 | P5: =IF(SUM(K7:K18)>M5,"Error",SUM(K7:K18)) -> 0 | Q5: =IF(P$5="Error","Error",M5-P5) -> 1 | R5: =IF(P$5="Error","Error",SUM(M7:M18)) -> 2
A6: + | B6: NB | D6: NB | E6: + | F6: Coût | G6: Temps | H6: Coût Total | I6: Temps Total | J6: + | K6: NB | M6: NB | N6: + | O6: Coût | P6: Temps | Q6: Coût Total | R6: Temps Total
A7: 1 | B7: =IF(Paramètres!B6=0,"",Paramètres!B6) ->  | C7: =IF(C6<>0,C6+IF(AND(B6<>"",A6<E$5),B6,0),IF(AND(B6<>"",A6<E$5),B6,0)) -> 0 | D7: =IF(E7<>"/",IF(G$5="Error","Error",$H$5+C7),"/") -> 1 | E7: =IF(G$5="Error","Error",IF(AND($E$5<>"/",$E$5>'Paramètres - Admin'!$A2),'Paramètres - Admin'!$A3,"/")) -> 1 | F7: =IF(E7<>"/",VLOOKUP(E7,COSTS_Gold_Mine[#All],2),"/") -> 150 | G7: =IF(E7<>"/",VLOOKUP(E7,COSTS_Gold_Mine[#All],3),"/") -> 0.01666666667 | H7: =IF(G$5="Error","Error",IF(F7<>"/",D7*F7,0)) -> 150 | I7: =IF(G$5="Error","Error",IF(G7<>"/",D7*G7,0)) -> 0.01666666667 | J7: 1 | K7: =IF(Paramètres!C6=0,"",Paramètres!C6) ->  | L7: =IF(L6<>0,L6+IF(AND(K6<>"",J6<N$5),K6,0),IF(AND(K6<>"",J6<N$5),K6,0)) -> 0 | M7: =IF(N7<>"/",IF(P$5="Error","Error",$Q$5+L7),"/") -> 1 | N7: =IF(P$5="Error","Error",IF(AND($N$5<>"/",$N$5>'Paramètres - Admin'!$A2),'Paramètres - Admin'!$A3,"/")) -> 1 | O7: =IF(N7<>"/",VLOOKUP(N7,COSTS_Elixir_Collector[#All],2),"/") -> 150 | P7: =IF(N7<>"/",VLOOKUP(N7,COSTS_Elixir_Collector[#All],3),"/") -> 0.01666666667 | Q7: =IF(P$5="Error","Error",IF(O7<>"/",M7*O7,0)) -> 150 | R7: =IF(P$5="Error","Error",IF(P7<>"/",M7*P7,0)) -> 0.01666666667
A8: 2 | B8: =IF(Paramètres!B7=0,"",Paramètres!B7) ->  | C8: =IF(C7<>0,C7+IF(AND(B7<>"",A7<E$5),B7,0),IF(AND(B7<>"",A7<E$5),B7,0)) -> 0 | D8: 1 | E8: =IF(G$5="Error","Error",IF(AND($E$5<>"/",$E$5>'Paramètres - Admin'!$A3),'Paramètres - Admin'!$A4,"/")) -> 2 | F8: =IF(E8<>"/",VLOOKUP(E8,COSTS_Gold_Mine[#All],2),"/") -> 300 | G8: =IF(E8<>"/",VLOOKUP(E8,COSTS_Gold_Mine[#All],3),"/") -> 0.08333333333 | H8: 300 | I8: 0.08333333333 | J8: 2 | K8: =IF(Paramètres!C7=0,"",Paramètres!C7) ->  | L8: =IF(L7<>0,L7+IF(AND(K7<>"",J7<N$5),K7,0),IF(AND(K7<>"",J7<N$5),K7,0)) -> 0 | M8: 1 | N8: =IF(P$5="Error","Error",IF(AND($N$5<>"/",$N$5>'Paramètres - Admin'!$A3),'Paramètres - Admin'!$A4,"/")) -> 2 | O8: =IF(N8<>"/",VLOOKUP(N8,COSTS_Elixir_Collector[#All],2),"/") -> 300 | P8: =IF(N8<>"/",VLOOKUP(N8,COSTS_Elixir_Collector[#All],3),"/") -> 0.08333333333 | Q8: 300 | R8: 0.08333333333
A9: 3 | B9: =IF(Paramètres!B8=0,"",Paramètres!B8) ->  | C9: 0 | D9: / | E9: =IF(G$5="Error","Error",IF(AND($E$5<>"/",$E$5>'Paramètres - Admin'!$A4),'Paramètres - Admin'!$A5,"/")) -> / | F9: =IF(E9<>"/",VLOOKUP(E9,COSTS_Gold_Mine[#All],2),"/") -> / | G9: =IF(E9<>"/",VLOOKUP(E9,COSTS_Gold_Mine[#All],3),"/") -> / | H9: 0 | I9: 0 | J9: 3 | K9: =IF(Paramètres!C8=0,"",Paramètres!C8) ->  | L9: 0 | M9: / | N9: =IF(P$5="Error","Error",IF(AND($N$5<>"/",$N$5>'Paramètres - Admin'!$A4),'Paramètres - Admin'!$A5,"/")) -> / | O9: =IF(N9<>"/",VLOOKUP(N9,COSTS_Elixir_Collector[#All],2),"/") -> / | P9: =IF(N9<>"/",VLOOKUP(N9,COSTS_Elixir_Collector[#All],3),"/") -> / | Q9: 0 | R9: 0
A10: 4 | B10: =IF(Paramètres!B9=0,"",Paramètres!B9) ->  | C10: 0 | D10: / | E10: =IF(G$5="Error","Error",IF(AND($E$5<>"/",$E$5>'Paramètres - Admin'!$A5),'Paramètres - Admin'!$A6,"/")) -> / | F10: =IF(E10<>"/",VLOOKUP(E10,COSTS_Gold_Mine[#All],2),"/") -> / | G10: =IF(E10<>"/",VLOOKUP(E10,COSTS_Gold_Mine[#All],3),"/") -> / | H10: 0 | I10: 0 | J10: 4 | K10: =IF(Paramètres!C9=0,"",Paramètres!C9) ->  | L10: 0 | M10: / | N10: =IF(P$5="Error","Error",IF(AND($N$5<>"/",$N$5>'Paramètres - Admin'!$A5),'Paramètres - Admin'!$A6,"/")) -> / | O10: =IF(N10<>"/",VLOOKUP(N10,COSTS_Elixir_Collector[#All],2),"/") -> / | P10: =IF(N10<>"/",VLOOKUP(N10,COSTS_Elixir_Collector[#All],3),"/") -> / | Q10: 0 | R10: 0
A11: 5 | B11: =IF(Paramètres!B10=0,"",Paramètres!B10) ->  | C11: 0 | D11: / | E11: =IF(G$5="Error","Error",IF(AND($E$5<>"/",$E$5>'Paramètres - Admin'!$A6),'Paramètres - Admin'!$A7,"/")) -> / | F11: =IF(E11<>"/",VLOOKUP(E11,COSTS_Gold_Mine[#All],2),"/") -> / | G11: =IF(E11<>"/",VLOOKUP(E11,COSTS_Gold_Mine[#All],3),"/") -> / | H11: 0 | I11: 0 | J11: 5 | K11: =IF(Paramètres!C10=0,"",Paramètres!C10) ->  | L11: 0 | M11: / | N11: =IF(P$5="Error","Error",IF(AND($N$5<>"/",$N$5>'Paramètres - Admin'!$A6),'Paramètres - Admin'!$A7,"/")) -> / | O11: =IF(N11<>"/",VLOOKUP(N11,COSTS_Elixir_Collector[#All],2),"/") -> / | P11: =IF(N11<>"/",VLOOKUP(N11,COSTS_Elixir_Collector[#All],3),"/") -> / | Q11: 0 | R11: 0
A12: 6 | B12: =IF(Paramètres!B11=0,"",Paramètres!B11) ->  | C12: 0 | D12: / | E12: =IF(G$5="Error","Error",IF(AND($E$5<>"/",$E$5>'Paramètres - Admin'!$A7),'Paramètres - Admin'!$A8,"/")) -> / | F12: =IF(E12<>"/",VLOOKUP(E12,COSTS_Gold_Mine[#All],2),"/") -> / | G12: =IF(E12<>"/",VLOOKUP(E12,COSTS_Gold_Mine[#All],3),"/") -> / | H12: 0 | I12: 0 | J12: 6 | K12: =IF(Paramètres!C11=0,"",Paramètres!C11) ->  | L12: 0 | M12: / | N12: =IF(P$5="Error","Error",IF(AND($N$5<>"/",$N$5>'Paramètres - Admin'!$A7),'Paramètres - Admin'!$A8,"/")) -> / | O12: =IF(N12<>"/",VLOOKUP(N12,COSTS_Elixir_Collector[#All],2),"/") -> / | P12: =IF(N12<>"/",VLOOKUP(N12,COSTS_Elixir_Collector[#All],3),"/") -> / | Q12: 0 | R12: 0
A13: 7 | B13: =IF(Paramètres!B12=0,"",Paramètres!B12) ->  | C13: 0 | D13: / | E13: =IF(G$5="Error","Error",IF(AND($E$5<>"/",$E$5>'Paramètres - Admin'!$A8),'Paramètres - Admin'!$A9,"/")) -> / | F13: =IF(E13<>"/",VLOOKUP(E13,COSTS_Gold_Mine[#All],2),"/") -> / | G13: =IF(E13<>"/",VLOOKUP(E13,COSTS_Gold_Mine[#All],3),"/") -> / | H13: 0 | I13: 0 | J13: 7 | K13: =IF(Paramètres!C12=0,"",Paramètres!C12) ->  | L13: 0 | M13: / | N13: =IF(P$5="Error","Error",IF(AND($N$5<>"/",$N$5>'Paramètres - Admin'!$A8),'Paramètres - Admin'!$A9,"/")) -> / | O13: =IF(N13<>"/",VLOOKUP(N13,COSTS_Elixir_Collector[#All],2),"/") -> / | P13: =IF(N13<>"/",VLOOKUP(N13,COSTS_Elixir_Collector[#All],3),"/") -> / | Q13: 0 | R13: 0
A14: 8 | B14: =IF(Paramètres!B13=0,"",Paramètres!B13) ->  | C14: 0 | D14: / | E14: =IF(G$5="Error","Error",IF(AND($E$5<>"/",$E$5>'Paramètres - Admin'!$A9),'Paramètres - Admin'!$A10,"/")) -> / | F14: =IF(E14<>"/",VLOOKUP(E14,COSTS_Gold_Mine[#All],2),"/") -> / | G14: =IF(E14<>"/",VLOOKUP(E14,COSTS_Gold_Mine[#All],3),"/") -> / | H14: 0 | I14: 0 | J14: 8 | K14: =IF(Paramètres!C13=0,"",Paramètres!C13) ->  | L14: 0 | M14: / | N14: =IF(P$5="Error","Error",IF(AND($N$5<>"/",$N$5>'Paramètres - Admin'!$A9),'Paramètres - Admin'!$A10,"/")) -> / | O14: =IF(N14<>"/",VLOOKUP(N14,COSTS_Elixir_Collector[#All],2),"/") -> / | P14: =IF(N14<>"/",VLOOKUP(N14,COSTS_Elixir_Collector[#All],3),"/") -> / | Q14: 0 | R14: 0
A15: 9 | B15: =IF(Paramètres!B14=0,"",Paramètres!B14) ->  | C15: 0 | D15: / | E15: =IF(G$5="Error","Error",IF(AND($E$5<>"/",$E$5>'Paramètres - Admin'!$A10),'Paramètres - Admin'!$A11,"/")) -> / | F15: =IF(E15<>"/",VLOOKUP(E15,COSTS_Gold_Mine[#All],2),"/") -> / | G15: =IF(E15<>"/",VLOOKUP(E15,COSTS_Gold_Mine[#All],3),"/") -> / | H15: 0 | I15: 0 | J15: 9 | K15: =IF(Paramètres!C14=0,"",Paramètres!C14) ->  | L15: 0 | M15: / | N15: =IF(P$5="Error","Error",IF(AND($N$5<>"/",$N$5>'Paramètres - Admin'!$A10),'Paramètres - Admin'!$A11,"/")) -> / | O15: =IF(N15<>"/",VLOOKUP(N15,COSTS_Elixir_Collector[#All],2),"/") -> / | P15: =IF(N15<>"/",VLOOKUP(N15,COSTS_Elixir_Collector[#All],3),"/") -> / | Q15: 0 | R15: 0
A16: 10 | B16: =IF(Paramètres!B15=0,"",Paramètres!B15) ->  | C16: 0 | D16: / | E16: =IF(G$5="Error","Error",IF(AND($E$5<>"/",$E$5>'Paramètres - Admin'!$A11),'Paramètres - Admin'!$A12,"/")) -> / | F16: =IF(E16<>"/",VLOOKUP(E16,COSTS_Gold_Mine[#All],2),"/") -> / | G16: =IF(E16<>"/",VLOOKUP(E16,COSTS_Gold_Mine[#All],3),"/") -> / | H16: 0 | I16: 0 | J16: 10 | K16: =IF(Paramètres!C15=0,"",Paramètres!C15) ->  | L16: 0 | M16: / | N16: =IF(P$5="Error","Error",IF(AND($N$5<>"/",$N$5>'Paramètres - Admin'!$A11),'Paramètres - Admin'!$A12,"/")) -> / | O16: =IF(N16<>"/",VLOOKUP(N16,COSTS_Elixir_Collector[#All],2),"/") -> / | P16: =IF(N16<>"/",VLOOKUP(N16,COSTS_Elixir_Collector[#All],3),"/") -> / | Q16: 0 | R16: 0
A17: 11 | B17: =IF(Paramètres!B16=0,"",Paramètres!B16) ->  | C17: 0 | D17: / | E17: =IF(G$5="Error","Error",IF(AND($E$5<>"/",$E$5>'Paramètres - Admin'!$A12),'Paramètres - Admin'!$A13,"/")) -> / | F17: =IF(E17<>"/",VLOOKUP(E17,COSTS_Gold_Mine[#All],2),"/") -> / | G17: =IF(E17<>"/",VLOOKUP(E17,COSTS_Gold_Mine[#All],3),"/") -> / | H17: 0 | I17: 0 | J17: 11 | K17: =IF(Paramètres!C16=0,"",Paramètres!C16) ->  | L17: =IF(L16<>0,L16+IF(AND(K16<>"",J16<N$5),K16,0),IF(AND(K16<>"",J16<N$5),K16,0)) -> 0 | M17: / | N17: =IF(P$5="Error","Error",IF(AND($N$5<>"/",$N$5>'Paramètres - Admin'!$A12),'Paramètres - Admin'!$A13,"/")) -> / | O17: =IF(N17<>"/",VLOOKUP(N17,COSTS_Elixir_Collector[#All],2),"/") -> / | P17: =IF(N17<>"/",VLOOKUP(N17,COSTS_Elixir_Collector[#All],3),"/") -> / | Q17: 0 | R17: 0
A18: 12 | B18: =IF(Paramètres!B17=0,"",Paramètres!B17) ->  | C18: =IF(C17<>0,C17+IF(AND(B17<>"",A17<E$5),B17,0),IF(AND(B17<>"",A17<E$5),B17,0)) -> 0 | D18: / | E18: =IF(G$5="Error","Error",IF(AND($E$5<>"/",$E$5>'Paramètres - Admin'!$A13),'Paramètres - Admin'!$A14,"/")) -> / | F18: =IF(E18<>"/",VLOOKUP(E18,COSTS_Gold_Mine[#All],2),"/") -> / | G18: =IF(E18<>"/",VLOOKUP(E18,COSTS_Gold_Mine[#All],3),"/") -> / | H18: 0 | I18: 0 | J18: 12 | K18: =IF(Paramètres!C17=0,"",Paramètres!C17) ->  | L18: =IF(L17<>0,L17+IF(AND(K17<>"",J17<N$5),K17,0),IF(AND(K17<>"",J17<N$5),K17,0)) -> 0 | M18: / | N18: =IF(P$5="Error","Error",IF(AND($N$5<>"/",$N$5>'Paramètres - Admin'!$A13),'Paramètres - Admin'!$A14,"/")) -> / | O18: =IF(N18<>"/",VLOOKUP(N18,COSTS_Elixir_Collector[#All],2),"/") -> / | P18: =IF(N18<>"/",VLOOKUP(N18,COSTS_Elixir_Collector[#All],3),"/") -> / | Q18: 0 | R18: 0
G19: Total | H19: =IF(G$5="Error","Error",SUM(H7:H18)) -> 450 | I19: =IF(G$5="Error","Error",SUM(I7:I18)) -> 0.1 | P19: Total | Q19: =IF(P$5="Error","Error",SUM(Q7:Q18)) -> 450 | R19: =IF(P$5="Error","Error",SUM(R7:R18)) -> 0.1
A20: Réserve d'Or | D20: Max | E20: Max + | G20: Actuel | H20: À Faire | I20: Améliorations | J20: Réservoir d'Élixir | M20: Max | N20: Max + | P20: Actuel | Q20: À Faire | R20: Améliorations
D21: =VLOOKUP($A$2,AVAILABLE_Buildings_Resource[#All],MATCH(A20,AVAILABLE_Buildings_Resource[#Headers],0)) -> 1 | E21: =VLOOKUP($A$2,AVAILABLE_Buildings_Resource[#All],MATCH(A20,AVAILABLE_Buildings_Resource[#Headers],0)+1) -> 1 | G21: =IF(SUM(B23:B34)>D21,"Error",SUM(B23:B34)) -> 0 | H21: =IF(G$21="Error","Error",D21-G21) -> 1 | I21: =IF(G$21="Error","Error",SUM(D23:D33)) -> 1 | M21: =VLOOKUP($A$2,AVAILABLE_Buildings_Resource[#All],MATCH(J20,AVAILABLE_Buildings_Resource[#Headers],0)) -> 1 | N21: =VLOOKUP($A$2,AVAILABLE_Buildings_Resource[#All],MATCH(J20,AVAILABLE_Buildings_Resource[#Headers],0)+1) -> 1 | P21: =IF(SUM(K23:K34)>M21,"Error",SUM(K23:K34)) -> 0 | Q21: =IF(P$21="Error","Error",M21-P21) -> 1 | R21: =IF(P$21="Error","Error",SUM(M23:M33)) -> 1
A22: + | B22: NB | D22: NB | E22: + | F22: Coût | G22: Temps | H22: Coût Total | I22: Temps Total | J22: + | K22: NB | M22: NB | N22: + | O22: Coût | P22: Temps | Q22: Coût Total | R22: Temps Total
A23: 1 | B23: =IF(Paramètres!E6=0,"",Paramètres!E6) ->  | C23: =IF(C22<>0,C22+IF(AND(B22<>"",A22<E$21),B22,0),IF(AND(B22<>"",A22<E$21),B22,0)) -> 0 | D23: =IF(E23<>"/",IF(G$21="Error","Error",$H$21+C23),"/") -> 1 | E23: =IF(G$21="Error","Error",IF(AND($E$21<>"/",$E$21>'Paramètres - Admin'!$A2),'Paramètres - Admin'!$A3,"/")) -> 1 | F23: =IF(E23<>"/",VLOOKUP(E23,COSTS_Gold_Storage[#All],2),"/") -> 300 | G23: =IF(E23<>"/",VLOOKUP(E23,COSTS_Gold_Storage[#All],3),"/") -> 0.25 | H23: =IF(G$21="Error","Error",IF(F23<>"/",D23*F23,0)) -> 300 | I23: =IF(G$21="Error","Error",IF(G23<>"/",D23*G23,0)) -> 0.25 | J23: 1 | K23: =IF(Paramètres!F6=0,"",Paramètres!F6) ->  | L23: =IF(L22<>0,L22+IF(AND(K22<>"",J22<N$21),K22,0),IF(AND(K22<>"",J22<N$21),K22,0)) -> 0 | M23: =IF(N23<>"/",IF(P$21="Error","Error",$Q$21+L23),"/") -> 1 | N23: =IF(P$21="Error","Error",IF(AND($N$21<>"/",$N$21>'Paramètres - Admin'!$A2),'Paramètres - Admin'!$A3,"/")) -> 1 | O23: =IF(N23<>"/",VLOOKUP(N23,COSTS_Elixir_Storage[#All],2),"/") -> 300 | P23: =IF(N23<>"/",VLOOKUP(N23,COSTS_Elixir_Storage[#All],3),"/") -> 0.25 | Q23: =IF(P$21="Error","Error",IF(O23<>"/",M23*O23,0)) -> 300 | R23: =IF(P$21="Error","Error",IF(P23<>"/",M23*P23,0)) -> 0.25
A24: 2 | B24: =IF(Paramètres!E7=0,"",Paramètres!E7) ->  | C24: 0 | D24: / | E24: =IF(G$21="Error","Error",IF(AND($E$21<>"/",$E$21>'Paramètres - Admin'!$A3),'Paramètres - Admin'!$A4,"/")) -> / | F24: =IF(E24<>"/",VLOOKUP(E24,COSTS_Gold_Storage[#All],2),"/") -> / | G24: =IF(E24<>"/",VLOOKUP(E24,COSTS_Gold_Storage[#All],3),"/") -> / | H24: 0 | I24: 0 | J24: 2 | K24: =IF(Paramètres!F7=0,"",Paramètres!F7) ->  | L24: =IF(L23<>0,L23+IF(AND(K23<>"",J23<N$21),K23,0),IF(AND(K23<>"",J23<N$21),K23,0)) -> 0 | M24: / | N24: =IF(P$21="Error","Error",IF(AND($N$21<>"/",$N$21>'Paramètres - Admin'!$A3),'Paramètres - Admin'!$A4,"/")) -> / | O24: =IF(N24<>"/",VLOOKUP(N24,COSTS_Elixir_Storage[#All],2),"/") -> / | P24: =IF(N24<>"/",VLOOKUP(N24,COSTS_Elixir_Storage[#All],3),"/") -> / | Q24: 0 | R24: 0
A25: 3 | B25: =IF(Paramètres!E8=0,"",Paramètres!E8) ->  | C25: 0 | D25: / | E25: =IF(G$21="Error","Error",IF(AND($E$21<>"/",$E$21>'Paramètres - Admin'!$A4),'Paramètres - Admin'!$A5,"/")) -> / | F25: =IF(E25<>"/",VLOOKUP(E25,COSTS_Gold_Storage[#All],2),"/") -> / | G25: =IF(E25<>"/",VLOOKUP(E25,COSTS_Gold_Storage[#All],3),"/") -> / | H25: 0 | I25: 0 | J25: 3 | K25: =IF(Paramètres!F8=0,"",Paramètres!F8) ->  | L25: 0 | M25: / | N25: =IF(P$21="Error","Error",IF(AND($N$21<>"/",$N$21>'Paramètres - Admin'!$A4),'Paramètres - Admin'!$A5,"/")) -> / | O25: =IF(N25<>"/",VLOOKUP(N25,COSTS_Elixir_Storage[#All],2),"/") -> / | P25: =IF(N25<>"/",VLOOKUP(N25,COSTS_Elixir_Storage[#All],3),"/") -> / | Q25: 0 | R25: 0
A26: 4 | B26: =IF(Paramètres!E9=0,"",Paramètres!E9) ->  | C26: 0 | D26: / | E26: =IF(G$21="Error","Error",IF(AND($E$21<>"/",$E$21>'Paramètres - Admin'!$A5),'Paramètres - Admin'!$A6,"/")) -> / | F26: =IF(E26<>"/",VLOOKUP(E26,COSTS_Gold_Storage[#All],2),"/") -> / | G26: =IF(E26<>"/",VLOOKUP(E26,COSTS_Gold_Storage[#All],3),"/") -> / | H26: 0 | I26: 0 | J26: 4 | K26: =IF(Paramètres!F9=0,"",Paramètres!F9) ->  | L26: 0 | M26: / | N26: =IF(P$21="Error","Error",IF(AND($N$21<>"/",$N$21>'Paramètres - Admin'!$A5),'Paramètres - Admin'!$A6,"/")) -> / | O26: =IF(N26<>"/",VLOOKUP(N26,COSTS_Elixir_Storage[#All],2),"/") -> / | P26: =IF(N26<>"/",VLOOKUP(N26,COSTS_Elixir_Storage[#All],3),"/") -> / | Q26: 0 | R26: 0
A27: 5 | B27: =IF(Paramètres!E10=0,"",Paramètres!E10) ->  | C27: 0 | D27: / | E27: =IF(G$21="Error","Error",IF(AND($E$21<>"/",$E$21>'Paramètres - Admin'!$A6),'Paramètres - Admin'!$A7,"/")) -> / | F27: =IF(E27<>"/",VLOOKUP(E27,COSTS_Gold_Storage[#All],2),"/") -> / | G27: =IF(E27<>"/",VLOOKUP(E27,COSTS_Gold_Storage[#All],3),"/") -> / | H27: 0 | I27: 0 | J27: 5 | K27: =IF(Paramètres!F10=0,"",Paramètres!F10) ->  | L27: 0 | M27: / | N27: =IF(P$21="Error","Error",IF(AND($N$21<>"/",$N$21>'Paramètres - Admin'!$A6),'Paramètres - Admin'!$A7,"/")) -> / | O27: =IF(N27<>"/",VLOOKUP(N27,COSTS_Elixir_Storage[#All],2),"/") -> / | P27: =IF(N27<>"/",VLOOKUP(N27,COSTS_Elixir_Storage[#All],3),"/") -> / | Q27: 0 | R27: 0
A28: 6 | B28: =IF(Paramètres!E11=0,"",Paramètres!E11) ->  | C28: 0 | D28: / | E28: =IF(G$21="Error","Error",IF(AND($E$21<>"/",$E$21>'Paramètres - Admin'!$A7),'Paramètres - Admin'!$A8,"/")) -> / | F28: =IF(E28<>"/",VLOOKUP(E28,COSTS_Gold_Storage[#All],2),"/") -> / | G28: =IF(E28<>"/",VLOOKUP(E28,COSTS_Gold_Storage[#All],3),"/") -> / | H28: 0 | I28: 0 | J28: 6 | K28: =IF(Paramètres!F11=0,"",Paramètres!F11) ->  | L28: 0 | M28: / | N28: =IF(P$21="Error","Error",IF(AND($N$21<>"/",$N$21>'Paramètres - Admin'!$A7),'Paramètres - Admin'!$A8,"/")) -> / | O28: =IF(N28<>"/",VLOOKUP(N28,COSTS_Elixir_Storage[#All],2),"/") -> / | P28: =IF(N28<>"/",VLOOKUP(N28,COSTS_Elixir_Storage[#All],3),"/") -> / | Q28: 0 | R28: 0
A29: 7 | B29: =IF(Paramètres!E12=0,"",Paramètres!E12) ->  | C29: 0 | D29: / | E29: =IF(G$21="Error","Error",IF(AND($E$21<>"/",$E$21>'Paramètres - Admin'!$A8),'Paramètres - Admin'!$A9,"/")) -> / | F29: =IF(E29<>"/",VLOOKUP(E29,COSTS_Gold_Storage[#All],2),"/") -> / | G29: =IF(E29<>"/",VLOOKUP(E29,COSTS_Gold_Storage[#All],3),"/") -> / | H29: 0 | I29: 0 | J29: 7 | K29: =IF(Paramètres!F12=0,"",Paramètres!F12) ->  | L29: 0 | M29: / | N29: =IF(P$21="Error","Error",IF(AND($N$21<>"/",$N$21>'Paramètres - Admin'!$A8),'Paramètres - Admin'!$A9,"/")) -> / | O29: =IF(N29<>"/",VLOOKUP(N29,COSTS_Elixir_Storage[#All],2),"/") -> / | P29: =IF(N29<>"/",VLOOKUP(N29,COSTS_Elixir_Storage[#All],3),"/") -> / | Q29: 0 | R29: 0
A30: 8 | B30: =IF(Paramètres!E13=0,"",Paramètres!E13) ->  | C30: 0 | D30: / | E30: =IF(G$21="Error","Error",IF(AND($E$21<>"/",$E$21>'Paramètres - Admin'!$A9),'Paramètres - Admin'!$A10,"/")) -> / | F30: =IF(E30<>"/",VLOOKUP(E30,COSTS_Gold_Storage[#All],2),"/") -> / | G30: =IF(E30<>"/",VLOOKUP(E30,COSTS_Gold_Storage[#All],3),"/") -> / | H30: 0 | I30: 0 | J30: 8 | K30: =IF(Paramètres!F13=0,"",Paramètres!F13) ->  | L30: 0 | M30: / | N30: =IF(P$21="Error","Error",IF(AND($N$21<>"/",$N$21>'Paramètres - Admin'!$A9),'Paramètres - Admin'!$A10,"/")) -> / | O30: =IF(N30<>"/",VLOOKUP(N30,COSTS_Elixir_Storage[#All],2),"/") -> / | P30: =IF(N30<>"/",VLOOKUP(N30,COSTS_Elixir_Storage[#All],3),"/") -> / | Q30: 0 | R30: 0
A31: 9 | B31: =IF(Paramètres!E14=0,"",Paramètres!E14) ->  | C31: 0 | D31: / | E31: =IF(G$21="Error","Error",IF(AND($E$21<>"/",$E$21>'Paramètres - Admin'!$A10),'Paramètres - Admin'!$A11,"/")) -> / | F31: =IF(E31<>"/",VLOOKUP(E31,COSTS_Gold_Storage[#All],2),"/") -> / | G31: =IF(E31<>"/",VLOOKUP(E31,COSTS_Gold_Storage[#All],3),"/") -> / | H31: 0 | I31: 0 | J31: 9 | K31: =IF(Paramètres!F14=0,"",Paramètres!F14) ->  | L31: 0 | M31: / | N31: =IF(P$21="Error","Error",IF(AND($N$21<>"/",$N$21>'Paramètres - Admin'!$A10),'Paramètres - Admin'!$A11,"/")) -> / | O31: =IF(N31<>"/",VLOOKUP(N31,COSTS_Elixir_Storage[#All],2),"/") -> / | P31: =IF(N31<>"/",VLOOKUP(N31,COSTS_Elixir_Storage[#All],3),"/") -> / | Q31: 0 | R31: 0
A32: 10 | B32: =IF(Paramètres!E15=0,"",Paramètres!E15) ->  | C32: 0 | D32: / | E32: =IF(G$21="Error","Error",IF(AND($E$21<>"/",$E$21>'Paramètres - Admin'!$A11),'Paramètres - Admin'!$A12,"/")) -> / | F32: =IF(E32<>"/",VLOOKUP(E32,COSTS_Gold_Storage[#All],2),"/") -> / | G32: =IF(E32<>"/",VLOOKUP(E32,COSTS_Gold_Storage[#All],3),"/") -> / | H32: 0 | I32: 0 | J32: 10 | K32: =IF(Paramètres!F15=0,"",Paramètres!F15) ->  | L32: 0 | M32: / | N32: =IF(P$21="Error","Error",IF(AND($N$21<>"/",$N$21>'Paramètres - Admin'!$A11),'Paramètres - Admin'!$A12,"/")) -> / | O32: =IF(N32<>"/",VLOOKUP(N32,COSTS_Elixir_Storage[#All],2),"/") -> / | P32: =IF(N32<>"/",VLOOKUP(N32,COSTS_Elixir_Storage[#All],3),"/") -> / | Q32: 0 | R32: 0
A33: 11 | B33: =IF(Paramètres!E16=0,"",Paramètres!E16) ->  | C33: 0 | D33: / | E33: =IF(G$21="Error","Error",IF(AND($E$21<>"/",$E$21>'Paramètres - Admin'!$A12),'Paramètres - Admin'!$A13,"/")) -> / | F33: =IF(E33<>"/",VLOOKUP(E33,COSTS_Gold_Storage[#All],2),"/") -> / | G33: =IF(E33<>"/",VLOOKUP(E33,COSTS_Gold_Storage[#All],3),"/") -> / | H33: 0 | I33: 0 | J33: 11 | K33: =IF(Paramètres!F16=0,"",Paramètres!F16) ->  | L33: 0 | M33: / | N33: =IF(P$21="Error","Error",IF(AND($N$21<>"/",$N$21>'Paramètres - Admin'!$A12),'Paramètres - Admin'!$A13,"/")) -> / | O33: =IF(N33<>"/",VLOOKUP(N33,COSTS_Elixir_Storage[#All],2),"/") -> / | P33: =IF(N33<>"/",VLOOKUP(N33,COSTS_Elixir_Storage[#All],3),"/") -> / | Q33: 0 | R33: 0
A34: 12 | B34: =IF(Paramètres!E17=0,"",Paramètres!E17) ->  | C34: 0 | D34: / | E34: =IF(G$21="Error","Error",IF(AND($E$21<>"/",$E$21>'Paramètres - Admin'!$A13),'Paramètres - Admin'!$A14,"/")) -> / | F34: =IF(E34<>"/",VLOOKUP(E34,COSTS_Gold_Storage[#All],2),"/") -> / | G34: =IF(E34<>"/",VLOOKUP(E34,COSTS_Gold_Storage[#All],3),"/") -> / | H34: 0 | I34: 0 | J34: 12 | K34: =IF(Paramètres!F17=0,"",Paramètres!F17) ->  | L34: =IF(L33<>0,L33+IF(AND(K33<>"",J33<N$21),K33,0),IF(AND(K33<>"",J33<N$21),K33,0)) -> 0 | M34: / | N34: =IF(P$21="Error","Error",IF(AND($N$21<>"/",$N$21>'Paramètres - Admin'!$A13),'Paramètres - Admin'!$A14,"/")) -> / | O34: =IF(N34<>"/",VLOOKUP(N34,COSTS_Elixir_Storage[#All],2),"/") -> / | P34: =IF(N34<>"/",VLOOKUP(N34,COSTS_Elixir_Storage[#All],3),"/") -> / | Q34: 0 | R34: 0
G35: Total | H35: =IF(G$21="Error","Error",SUM(H23:H33)) -> 300 | I35: =IF(G$21="Error","Error",SUM(I23:I33)) -> 0.25 | P35: Total | Q35: =IF(P$21="Error","Error",SUM(Q23:Q33)) -> 300 | R35: =IF(P$21="Error","Error",SUM(R23:R33)) -> 0.25
A36: Foreuse d'Élixir Noir | D36: Max | E36: Max + | G36: Actuel | H36: À Faire | I36: Améliorations | J36: Réservoir d'Élixir Noir | M36: Max | N36: Max + | P36: Actuel | Q36: À Faire | R36: Améliorations
D37: =VLOOKUP($A$2,AVAILABLE_Buildings_Resource[#All],MATCH(A36,AVAILABLE_Buildings_Resource[#Headers],0)) -> 0 | E37: =VLOOKUP($A$2,AVAILABLE_Buildings_Resource[#All],MATCH(A36,AVAILABLE_Buildings_Resource[#Headers],0)+1) -> 0 | G37: =IF(SUM(B39:B44)>D37,"Error",SUM(B39:B44)) -> 0 | H37: =IF(G$37="Error","Error",D37-G37) -> 0 | I37: =IF(G$37="Error","Error",SUM(D39:D44)) -> 0 | M37: =VLOOKUP($A$2,AVAILABLE_Buildings_Resource[#All],MATCH(J36,AVAILABLE_Buildings_Resource[#Headers],0)) -> 0 | N37: =VLOOKUP($A$2,AVAILABLE_Buildings_Resource[#All],MATCH(J36,AVAILABLE_Buildings_Resource[#Headers],0)+1) -> 0 | P37: =IF(SUM(K39:K44)>M37,"Error",SUM(K39:K44)) -> 0 | Q37: =IF(P$37="Error","Error",M37-P37) -> 0 | R37: =IF(P$37="Error","Error",SUM(M39:M44)) -> 0
A38: + | B38: NB | D38: NB | E38: + | F38: Coût | G38: Temps | H38: Coût Total | I38: Temps Total | J38: + | K38: NB | M38: NB | N38: + | O38: Coût | P38: Temps | Q38: Coût Total | R38: Temps Total
A39: 1 | B39: =IF(Paramètres!D6=0,"",Paramètres!D6) ->  | C39: =IF(C38<>0,C38+IF(AND(B38<>"",A38<E$37),B38,0),IF(AND(B38<>"",A38<E$37),B38,0)) -> 0 | D39: =IF(E39<>"/",IF(G$37="Error","Error",$H$37+C39),"/") -> / | E39: =IF(G$37="Error","Error",IF(AND($E$37<>"/",$E$37>'Paramètres - Admin'!$A2),'Paramètres - Admin'!$A3,"/")) -> / | F39: =IF(E39<>"/",VLOOKUP(E39,COSTS_Dark_Elixir_Drill[#All],2),"/") -> / | G39: =IF(E39<>"/",VLOOKUP(E39,COSTS_Dark_Elixir_Drill[#All],3),"/") -> / | H39: =IF(G$37="Error","Error",IF(F39<>"/",D39*F39,0)) -> 0 | I39: =IF(G$37="Error","Error",IF(G39<>"/",D39*G39,0)) -> 0 | J39: 1 | K39: =IF(Paramètres!G6=0,"",Paramètres!G6) ->  | L39: =IF(L38<>0,L38+IF(AND(K38<>"",J38<N$37),K38,0),IF(AND(K38<>"",J38<N$37),K38,0)) -> 0 | M39: =IF(N39<>"/",IF(P$37="Error","Error",$Q$37+L39),"/") -> / | N39: =IF(P$37="Error","Error",IF(AND($N$37<>"/",$N$37>'Paramètres - Admin'!$A2),'Paramètres - Admin'!$A3,"/")) -> / | O39: =IF(N39<>"/",VLOOKUP(N39,COSTS_Dark_Elixir_Storage[#All],2),"/") -> / | P39: =IF(N39<>"/",VLOOKUP(N39,COSTS_Dark_Elixir_Storage[#All],3),"/") -> / | Q39: =IF(P$37="Error","Error",IF(O39<>"/",M39*O39,0)) -> 0 | R39: =IF(P$37="Error","Error",IF(P39<>"/",M39*P39,0)) -> 0
A40: 2 | B40: =IF(Paramètres!D7=0,"",Paramètres!D7) ->  | C40: 0 | D40: / | E40: =IF(G$37="Error","Error",IF(AND($E$37<>"/",$E$37>'Paramètres - Admin'!$A3),'Paramètres - Admin'!$A4,"/")) -> / | F40: =IF(E40<>"/",VLOOKUP(E40,COSTS_Dark_Elixir_Drill[#All],2),"/") -> / | G40: =IF(E40<>"/",VLOOKUP(E40,COSTS_Dark_Elixir_Drill[#All],3),"/") -> / | H40: 0 | I40: 0 | J40: 2 | K40: =IF(Paramètres!G7=0,"",Paramètres!G7) ->  | L40: 0 | M40: / | N40: =IF(P$37="Error","Error",IF(AND($N$37<>"/",$N$37>'Paramètres - Admin'!$A3),'Paramètres - Admin'!$A4,"/")) -> / | O40: =IF(N40<>"/",VLOOKUP(N40,COSTS_Dark_Elixir_Storage[#All],2),"/") -> / | P40: =IF(N40<>"/",VLOOKUP(N40,COSTS_Dark_Elixir_Storage[#All],3),"/") -> / | Q40: 0 | R40: 0
A41: 3 | B41: =IF(Paramètres!D8=0,"",Paramètres!D8) ->  | C41: 0 | D41: / | E41: =IF(G$37="Error","Error",IF(AND($E$37<>"/",$E$37>'Paramètres - Admin'!$A4),'Paramètres - Admin'!$A5,"/")) -> / | F41: =IF(E41<>"/",VLOOKUP(E41,COSTS_Dark_Elixir_Drill[#All],2),"/") -> / | G41: =IF(E41<>"/",VLOOKUP(E41,COSTS_Dark_Elixir_Drill[#All],3),"/") -> / | H41: 0 | I41: 0 | J41: 3 | K41: =IF(Paramètres!G8=0,"",Paramètres!G8) ->  | L41: 0 | M41: / | N41: =IF(P$37="Error","Error",IF(AND($N$37<>"/",$N$37>'Paramètres - Admin'!$A4),'Paramètres - Admin'!$A5,"/")) -> / | O41: =IF(N41<>"/",VLOOKUP(N41,COSTS_Dark_Elixir_Storage[#All],2),"/") -> / | P41: =IF(N41<>"/",VLOOKUP(N41,COSTS_Dark_Elixir_Storage[#All],3),"/") -> / | Q41: 0 | R41: 0
A42: 4 | B42: =IF(Paramètres!D9=0,"",Paramètres!D9) ->  | C42: 0 | D42: / | E42: =IF(G$37="Error","Error",IF(AND($E$37<>"/",$E$37>'Paramètres - Admin'!$A5),'Paramètres - Admin'!$A6,"/")) -> / | F42: =IF(E42<>"/",VLOOKUP(E42,COSTS_Dark_Elixir_Drill[#All],2),"/") -> / | G42: =IF(E42<>"/",VLOOKUP(E42,COSTS_Dark_Elixir_Drill[#All],3),"/") -> / | H42: 0 | I42: 0 | J42: 4 | K42: =IF(Paramètres!G9=0,"",Paramètres!G9) ->  | L42: 0 | M42: / | N42: =IF(P$37="Error","Error",IF(AND($N$37<>"/",$N$37>'Paramètres - Admin'!$A5),'Paramètres - Admin'!$A6,"/")) -> / | O42: =IF(N42<>"/",VLOOKUP(N42,COSTS_Dark_Elixir_Storage[#All],2),"/") -> / | P42: =IF(N42<>"/",VLOOKUP(N42,COSTS_Dark_Elixir_Storage[#All],3),"/") -> / | Q42: 0 | R42: 0
A43: 5 | B43: =IF(Paramètres!D10=0,"",Paramètres!D10) ->  | C43: 0 | D43: / | E43: =IF(G$37="Error","Error",IF(AND($E$37<>"/",$E$37>'Paramètres - Admin'!$A6),'Paramètres - Admin'!$A7,"/")) -> / | F43: =IF(E43<>"/",VLOOKUP(E43,COSTS_Dark_Elixir_Drill[#All],2),"/") -> / | G43: =IF(E43<>"/",VLOOKUP(E43,COSTS_Dark_Elixir_Drill[#All],3),"/") -> / | H43: 0 | I43: 0 | J43: 5 | K43: =IF(Paramètres!G10=0,"",Paramètres!G10) ->  | L43: 0 | M43: / | N43: =IF(P$37="Error","Error",IF(AND($N$37<>"/",$N$37>'Paramètres - Admin'!$A6),'Paramètres - Admin'!$A7,"/")) -> / | O43: =IF(N43<>"/",VLOOKUP(N43,COSTS_Dark_Elixir_Storage[#All],2),"/") -> / | P43: =IF(N43<>"/",VLOOKUP(N43,COSTS_Dark_Elixir_Storage[#All],3),"/") -> / | Q43: 0 | R43: 0
A44: 6 | B44: =IF(Paramètres!D11=0,"",Paramètres!D11) ->  | C44: 0 | D44: / | E44: =IF(G$37="Error","Error",IF(AND($E$37<>"/",$E$37>'Paramètres - Admin'!$A7),'Paramètres - Admin'!$A8,"/")) -> / | F44: =IF(E44<>"/",VLOOKUP(E44,COSTS_Dark_Elixir_Drill[#All],2),"/") -> / | G44: =IF(E44<>"/",VLOOKUP(E44,COSTS_Dark_Elixir_Drill[#All],3),"/") -> / | H44: 0 | I44: 0 | J44: 6 | K44: =IF(Paramètres!G11=0,"",Paramètres!G11) ->  | L44: 0 | M44: / | N44: =IF(P$37="Error","Error",IF(AND($N$37<>"/",$N$37>'Paramètres - Admin'!$A7),'Paramètres - Admin'!$A8,"/")) -> / | O44: =IF(N44<>"/",VLOOKUP(N44,COSTS_Dark_Elixir_Storage[#All],2),"/") -> / | P44: =IF(N44<>"/",VLOOKUP(N44,COSTS_Dark_Elixir_Storage[#All],3),"/") -> / | Q44: 0 | R44: 0
G45: Total | H45: =IF(G$37="Error","Error",SUM(H39:H44)) -> 0 | I45: =IF(G$37="Error","Error",SUM(I39:I44)) -> 0 | P45: Total | Q45: =IF(P$37="Error","Error",SUM(Q39:Q44)) -> 0 | R45: =IF(P$37="Error","Error",SUM(R39:R44)) -> 0
A48: Bâtiments d'Armée
A49: Caserne | D49: Max | E49: Max + | G49: Actuel | H49: À Faire | I49: Améliorations | J49: Laboratoire | M49: Max | N49: Max + | P49: Actuel | Q49: À Faire | R49: Améliorations
D50: =VLOOKUP($A$2,AVAILABLE_Buildings_Army[#All],MATCH(A49,AVAILABLE_Buildings_Army[#Headers],0)) -> 1 | E50: =VLOOKUP($A$2,AVAILABLE_Buildings_Army[#All],MATCH(A49,AVAILABLE_Buildings_Army[#Headers],0)+1) -> 3 | G50: =IF(SUM(B52:B61)>D50,"Error",SUM(B52:B61)) -> 0 | H50: =IF(G$50="Error","Error",D50-G50) -> 1 | I50: =IF(G$50="Error","Error",SUM(D52:D61)) -> 3 | M50: =VLOOKUP($A$2,AVAILABLE_Buildings_Army[#All],MATCH(J49,AVAILABLE_Buildings_Army[#Headers],0)) -> 0 | N50: =VLOOKUP($A$2,AVAILABLE_Buildings_Army[#All],MATCH(J49,AVAILABLE_Buildings_Army[#Headers],0)+1) -> 0 | P50: =IF(SUM(K52:K60)>M50,"Error",SUM(K52:K60)) -> 0 | Q50: =IF(P$50="Error","Error",M50-P50) -> 0 | R50: =IF(P$50="Error","Error",SUM(M52:M59)) -> 0
A51: + | B51: NB | D51: NB | E51: + | F51: Coût | G51: Temps | H51: Coût Total | I51: Temps Total | J51: + | K51: NB | M51: NB | N51: + | O51: Coût | P51: Temps | Q51: Coût Total | R51: Temps Total
A52: 1 | B52: =IF(Paramètres!H6=0,"",Paramètres!H6) ->  | C52: =IF(C51<>0,C51+IF(AND(B51<>"",A51<E$50),B51,0),IF(AND(B51<>"",A51<E$50),B51,0)) -> 0 | D52: =IF(E52<>"/",IF(G$50="Error","Error",$H$50+C52),"/") -> 1 | E52: =IF(G$50="Error","Error",IF(AND($E$50<>"/",$E$50>'Paramètres - Admin'!$A2),'Paramètres - Admin'!$A3,"/")) -> 1 | F52: =IF(E52<>"/",VLOOKUP(E52,COSTS_Barrack[#All],2),"/") -> 200 | G52: =IF(E52<>"/",VLOOKUP(E52,COSTS_Barrack[#All],3),"/") -> 0.02 | H52: =IF(G$50="Error","Error",IF(F52<>"/",D52*F52,0)) -> 200 | I52: =IF(G$50="Error","Error",IF(G52<>"/",D52*G52,0)) -> 0.02 | J52: 1 | K52: =IF(Paramètres!K6=0,"",Paramètres!K6) ->  | L52: =IF(L51<>0,L51+IF(AND(K51<>"",J51<N$50),K51,0),IF(AND(K51<>"",J51<N$50),K51,0)) -> 0 | M52: =IF(N52<>"/",IF(P$50="Error","Error",$Q$50+L52),"/") -> / | N52: =IF(P$50="Error","Error",IF(AND($N$50<>"/",$N$50>'Paramètres - Admin'!$A2),'Paramètres - Admin'!$A3,"/")) -> / | O52: =IF(N52<>"/",VLOOKUP(N52,COSTS_Laboratory[#All],2),"/") -> / | P52: =IF(N52<>"/",VLOOKUP(N52,COSTS_Laboratory[#All],3),"/") -> / | Q52: =IF(P$50="Error","Error",IF(O52<>"/",M52*O52,0)) -> 0 | R52: =IF(P$50="Error","Error",IF(P52<>"/",M52*P52,0)) -> 0
A53: 2 | B53: =IF(Paramètres!H7=0,"",Paramètres!H7) ->  | C53: 0 | D53: 1 | E53: =IF(G$50="Error","Error",IF(AND($E$50<>"/",$E$50>'Paramètres - Admin'!$A3),'Paramètres - Admin'!$A4,"/")) -> 2 | F53: =IF(E53<>"/",VLOOKUP(E53,COSTS_Barrack[#All],2),"/") -> 1000 | G53: =IF(E53<>"/",VLOOKUP(E53,COSTS_Barrack[#All],3),"/") -> 0.25 | H53: 1000 | I53: 0.25 | J53: 2 | K53: =IF(Paramètres!K7=0,"",Paramètres!K7) ->  | L53: 0 | M53: / | N53: =IF(P$50="Error","Error",IF(AND($N$50<>"/",$N$50>'Paramètres - Admin'!$A3),'Paramètres - Admin'!$A4,"/")) -> / | O53: =IF(N53<>"/",VLOOKUP(N53,COSTS_Laboratory[#All],2),"/") -> / | P53: =IF(N53<>"/",VLOOKUP(N53,COSTS_Laboratory[#All],3),"/") -> / | Q53: 0 | R53: 0
A54: 3 | B54: =IF(Paramètres!H8=0,"",Paramètres!H8) ->  | C54: 0 | D54: 1 | E54: =IF(G$50="Error","Error",IF(AND($E$50<>"/",$E$50>'Paramètres - Admin'!$A4),'Paramètres - Admin'!$A5,"/")) -> 3 | F54: =IF(E54<>"/",VLOOKUP(E54,COSTS_Barrack[#All],2),"/") -> 2500 | G54: =IF(E54<>"/",VLOOKUP(E54,COSTS_Barrack[#All],3),"/") -> 2 | H54: 2500 | I54: 2 | J54: 3 | K54: =IF(Paramètres!K8=0,"",Paramètres!K8) ->  | L54: 0 | M54: / | N54: =IF(P$50="Error","Error",IF(AND($N$50<>"/",$N$50>'Paramètres - Admin'!$A4),'Paramètres - Admin'!$A5,"/")) -> / | O54: =IF(N54<>"/",VLOOKUP(N54,COSTS_Laboratory[#All],2),"/") -> / | P54: =IF(N54<>"/",VLOOKUP(N54,COSTS_Laboratory[#All],3),"/") -> / | Q54: 0 | R54: 0
A55: 4 | B55: =IF(Paramètres!H9=0,"",Paramètres!H9) ->  | C55: 0 | D55: / | E55: =IF(G$50="Error","Error",IF(AND($E$50<>"/",$E$50>'Paramètres - Admin'!$A5),'Paramètres - Admin'!$A6,"/")) -> / | F55: =IF(E55<>"/",VLOOKUP(E55,COSTS_Barrack[#All],2),"/") -> / | G55: =IF(E55<>"/",VLOOKUP(E55,COSTS_Barrack[#All],3),"/") -> / | H55: 0 | I55: 0 | J55: 4 | K55: =IF(Paramètres!K9=0,"",Paramètres!K9) ->  | L55: 0 | M55: / | N55: =IF(P$50="Error","Error",IF(AND($N$50<>"/",$N$50>'Paramètres - Admin'!$A5),'Paramètres - Admin'!$A6,"/")) -> / | O55: =IF(N55<>"/",VLOOKUP(N55,COSTS_Laboratory[#All],2),"/") -> / | P55: =IF(N55<>"/",VLOOKUP(N55,COSTS_Laboratory[#All],3),"/") -> / | Q55: 0 | R55: 0
A56: 5 | B56: =IF(Paramètres!H10=0,"",Paramètres!H10) ->  | C56: 0 | D56: / | E56: =IF(G$50="Error","Error",IF(AND($E$50<>"/",$E$50>'Paramètres - Admin'!$A6),'Paramètres - Admin'!$A7,"/")) -> / | F56: =IF(E56<>"/",VLOOKUP(E56,COSTS_Barrack[#All],2),"/") -> / | G56: =IF(E56<>"/",VLOOKUP(E56,COSTS_Barrack[#All],3),"/") -> / | H56: 0 | I56: 0 | J56: 5 | K56: =IF(Paramètres!K10=0,"",Paramètres!K10) ->  | L56: 0 | M56: / | N56: =IF(P$50="Error","Error",IF(AND($N$50<>"/",$N$50>'Paramètres - Admin'!$A6),'Paramètres - Admin'!$A7,"/")) -> / | O56: =IF(N56<>"/",VLOOKUP(N56,COSTS_Laboratory[#All],2),"/") -> / | P56: =IF(N56<>"/",VLOOKUP(N56,COSTS_Laboratory[#All],3),"/") -> / | Q56: 0 | R56: 0
A57: 6 | B57: =IF(Paramètres!H11=0,"",Paramètres!H11) ->  | C57: 0 | D57: / | E57: =IF(G$50="Error","Error",IF(AND($E$50<>"/",$E$50>'Paramètres - Admin'!$A7),'Paramètres - Admin'!$A8,"/")) -> / | F57: =IF(E57<>"/",VLOOKUP(E57,COSTS_Barrack[#All],2),"/") -> / | G57: =IF(E57<>"/",VLOOKUP(E57,COSTS_Barrack[#All],3),"/") -> / | H57: 0 | I57: 0 | J57: 6 | K57: =IF(Paramètres!K11=0,"",Paramètres!K11) ->  | L57: 0 | M57: / | N57: =IF(P$50="Error","Error",IF(AND($N$50<>"/",$N$50>'Paramètres - Admin'!$A7),'Paramètres - Admin'!$A8,"/")) -> / | O57: =IF(N57<>"/",VLOOKUP(N57,COSTS_Laboratory[#All],2),"/") -> / | P57: =IF(N57<>"/",VLOOKUP(N57,COSTS_Laboratory[#All],3),"/") -> / | Q57: 0 | R57: 0
A58: 7 | B58: =IF(Paramètres!H12=0,"",Paramètres!H12) ->  | C58: 0 | D58: / | E58: =IF(G$50="Error","Error",IF(AND($E$50<>"/",$E$50>'Paramètres - Admin'!$A8),'Paramètres - Admin'!$A9,"/")) -> / | F58: =IF(E58<>"/",VLOOKUP(E58,COSTS_Barrack[#All],2),"/") -> / | G58: =IF(E58<>"/",VLOOKUP(E58,COSTS_Barrack[#All],3),"/") -> / | H58: 0 | I58: 0 | J58: 7 | K58: =IF(Paramètres!K12=0,"",Paramètres!K12) ->  | L58: 0 | M58: / | N58: =IF(P$50="Error","Error",IF(AND($N$50<>"/",$N$50>'Paramètres - Admin'!$A8),'Paramètres - Admin'!$A9,"/")) -> / | O58: =IF(N58<>"/",VLOOKUP(N58,COSTS_Laboratory[#All],2),"/") -> / | P58: =IF(N58<>"/",VLOOKUP(N58,COSTS_Laboratory[#All],3),"/") -> / | Q58: 0 | R58: 0
A59: 8 | B59: =IF(Paramètres!H13=0,"",Paramètres!H13) ->  | C59: 0 | D59: / | E59: =IF(G$50="Error","Error",IF(AND($E$50<>"/",$E$50>'Paramètres - Admin'!$A9),'Paramètres - Admin'!$A10,"/")) -> / | F59: =IF(E59<>"/",VLOOKUP(E59,COSTS_Barrack[#All],2),"/") -> / | G59: =IF(E59<>"/",VLOOKUP(E59,COSTS_Barrack[#All],3),"/") -> / | H59: 0 | I59: 0 | J59: 8 | K59: =IF(Paramètres!K13=0,"",Paramètres!K13) ->  | L59: 0 | M59: / | N59: =IF(P$50="Error","Error",IF(AND($N$50<>"/",$N$50>'Paramètres - Admin'!$A9),'Paramètres - Admin'!$A10,"/")) -> / | O59: =IF(N59<>"/",VLOOKUP(N59,COSTS_Laboratory[#All],2),"/") -> / | P59: =IF(N59<>"/",VLOOKUP(N59,COSTS_Laboratory[#All],3),"/") -> / | Q59: 0 | R59: 0
A60: 9 | B60: =IF(Paramètres!H14=0,"",Paramètres!H14) ->  | C60: 0 | D60: / | E60: =IF(G$50="Error","Error",IF(AND($E$50<>"/",$E$50>'Paramètres - Admin'!$A10),'Paramètres - Admin'!$A11,"/")) -> / | F60: =IF(E60<>"/",VLOOKUP(E60,COSTS_Barrack[#All],2),"/") -> / | G60: =IF(E60<>"/",VLOOKUP(E60,COSTS_Barrack[#All],3),"/") -> / | H60: 0 | I60: 0 | J60: 9 | K60: =IF(Paramètres!K14=0,"",Paramètres!K14) ->  | L60: 0 | M60: / | N60: =IF(P$50="Error","Error",IF(AND($N$50<>"/",$N$50>'Paramètres - Admin'!$A10),'Paramètres - Admin'!$A11,"/")) -> / | O60: =IF(N60<>"/",VLOOKUP(N60,COSTS_Laboratory[#All],2),"/") -> / | P60: =IF(N60<>"/",VLOOKUP(N60,COSTS_Laboratory[#All],3),"/") -> / | Q60: 0 | R60: 0
A61: 10 | B61: =IF(Paramètres!H15=0,"",Paramètres!H15) ->  | C61: 0 | D61: / | E61: =IF(G$50="Error","Error",IF(AND($E$50<>"/",$E$50>'Paramètres - Admin'!$A11),'Paramètres - Admin'!$A12,"/")) -> / | F61: =IF(E61<>"/",VLOOKUP(E61,COSTS_Barrack[#All],2),"/") -> / | G61: =IF(E61<>"/",VLOOKUP(E61,COSTS_Barrack[#All],3),"/") -> / | H61: 0 | I61: 0 | P61: Total | Q61: =IF(P$50="Error","Error",SUM(Q52:Q59)) -> 0 | R61: =IF(P$50="Error","Error",SUM(R52:R59)) -> 0
G62: Total | H62: =IF(G$50="Error","Error",SUM(H52:H61)) -> 3700 | I62: =IF(G$50="Error","Error",SUM(I52:I61)) -> 2.27 | J62: Camp Militaire | M62: Max | N62: Max + | P62: Actuel | Q62: À Faire | R62: Améliorations
A63: Caserne Noire | D63: Max | E63: Max + | G63: Actuel | H63: À Faire | I63: Améliorations | M63: =VLOOKUP($A$2,AVAILABLE_Buildings_Army[#All],MATCH(J62,AVAILABLE_Buildings_Army[#Headers],0)) -> 1 | N63: =VLOOKUP($A$2,AVAILABLE_Buildings_Army[#All],MATCH(J62,AVAILABLE_Buildings_Army[#Headers],0)+1) -> 1 | P63: =IF(SUM(K65:K72)>M63,"Error",SUM(K65:K72)) -> 0 | Q63: =IF(P$63="Error","Error",M63-P63) -> 1 | R63: =IF(P$63="Error","Error",SUM(M65:M72)) -> 1
D64: =VLOOKUP($A$2,AVAILABLE_Buildings_Army[#All],MATCH(A63,AVAILABLE_Buildings_Army[#Headers],0)) -> 0 | E64: =VLOOKUP($A$2,AVAILABLE_Buildings_Army[#All],MATCH(A63,AVAILABLE_Buildings_Army[#Headers],0)+1) -> 0 | G64: =IF(SUM(B66:B71)>D64,"Error",SUM(B66:B71)) -> 0 | H64: =IF(G$64="Error","Error",D64-G64) -> 0 | I64: =IF(G$64="Error","Error",SUM(D66:D71)) -> 0 | J64: + | K64: NB | M64: NB | N64: + | O64: Coût | P64: Temps | Q64: Coût Total | R64: Temps Total
A65: + | B65: NB | D65: NB | E65: + | F65: Coût | G65: Temps | H65: Coût Total | I65: Temps Total | J65: 1 | K65: =IF(Paramètres!J6=0,"",Paramètres!J6) ->  | L65: =IF(L64<>0,L64+IF(AND(K64<>"",J64<N$63),K64,0),IF(AND(K64<>"",J64<N$63),K64,0)) -> 0 | M65: =IF(N65<>"/",IF(P$63="Error","Error",$Q$63+L65),"/") -> 1 | N65: =IF(P$63="Error","Error",IF(AND($N$63<>"/",$N$63>'Paramètres - Admin'!$A2),'Paramètres - Admin'!$A3,"/")) -> 1 | O65: =IF(N65<>"/",VLOOKUP(N65,COSTS_Army_Camp[#All],2),"/") -> 250 | P65: =IF(N65<>"/",VLOOKUP(N65,COSTS_Army_Camp[#All],3),"/") -> 0.08333333333 | Q65: =IF(P$63="Error","Error",IF(O65<>"/",M65*O65,0)) -> 250 | R65: =IF(P$63="Error","Error",IF(P65<>"/",M65*P65,0)) -> 0.08333333333
A66: 1 | B66: =IF(Paramètres!I6=0,"",Paramètres!I6) ->  | C66: =IF(C65<>0,C65+IF(AND(B65<>"",A65<E$64),B65,0),IF(AND(B65<>"",A65<E$64),B65,0)) -> 0 | D66: =IF(E66<>"/",IF(G$64="Error","Error",$H$64+C66),"/") -> / | E66: =IF(G$64="Error","Error",IF(AND($E$64<>"/",$E$64>'Paramètres - Admin'!$A2),'Paramètres - Admin'!$A3,"/")) -> / | F66: =IF(E66<>"/",VLOOKUP(E66,COSTS_Dark_Barrack[#All],2),"/") -> / | G66: =IF(E66<>"/",VLOOKUP(E66,COSTS_Dark_Barrack[#All],3),"/") -> / | H66: =IF(G$64="Error","Error",IF(F66<>"/",D66*F66,0)) -> 0 | I66: =IF(G$64="Error","Error",IF(G66<>"/",D66*G66,0)) -> 0 | J66: 2 | K66: =IF(Paramètres!J7=0,"",Paramètres!J7) ->  | L66: =IF(L65<>0,L65+IF(AND(K65<>"",J65<E$5),K65,0),IF(AND(K65<>"",J65<E$5),K65,0)) -> 0 | M66: / | N66: =IF(P$63="Error","Error",IF(AND($N$63<>"/",$N$63>'Paramètres - Admin'!$A3),'Paramètres - Admin'!$A4,"/")) -> / | O66: =IF(N66<>"/",VLOOKUP(N66,COSTS_Army_Camp[#All],2),"/") -> / | P66: =IF(N66<>"/",VLOOKUP(N66,COSTS_Army_Camp[#All],3),"/") -> / | Q66: 0 | R66: 0
A67: 2 | B67: =IF(Paramètres!I7=0,"",Paramètres!I7) ->  | C67: 0 | D67: / | E67: =IF(G$64="Error","Error",IF(AND($E$64<>"/",$E$64>'Paramètres - Admin'!$A3),'Paramètres - Admin'!$A4,"/")) -> / | F67: =IF(E67<>"/",VLOOKUP(E67,COSTS_Dark_Barrack[#All],2),"/") -> / | G67: =IF(E67<>"/",VLOOKUP(E67,COSTS_Dark_Barrack[#All],3),"/") -> / | H67: 0 | I67: 0 | J67: 3 | K67: =IF(Paramètres!J8=0,"",Paramètres!J8) ->  | L67: 0 | M67: / | N67: =IF(P$63="Error","Error",IF(AND($N$63<>"/",$N$63>'Paramètres - Admin'!$A4),'Paramètres - Admin'!$A5,"/")) -> / | O67: =IF(N67<>"/",VLOOKUP(N67,COSTS_Army_Camp[#All],2),"/") -> / | P67: =IF(N67<>"/",VLOOKUP(N67,COSTS_Army_Camp[#All],3),"/") -> / | Q67: 0 | R67: 0
A68: 3 | B68: =IF(Paramètres!I8=0,"",Paramètres!I8) ->  | C68: 0 | D68: / | E68: =IF(G$64="Error","Error",IF(AND($E$64<>"/",$E$64>'Paramètres - Admin'!$A4),'Paramètres - Admin'!$A5,"/")) -> / | F68: =IF(E68<>"/",VLOOKUP(E68,COSTS_Dark_Barrack[#All],2),"/") -> / | G68: =IF(E68<>"/",VLOOKUP(E68,COSTS_Dark_Barrack[#All],3),"/") -> / | H68: 0 | I68: 0 | J68: 4 | K68: =IF(Paramètres!J9=0,"",Paramètres!J9) ->  | L68: 0 | M68: / | N68: =IF(P$63="Error","Error",IF(AND($N$63<>"/",$N$63>'Paramètres - Admin'!$A5),'Paramètres - Admin'!$A6,"/")) -> / | O68: =IF(N68<>"/",VLOOKUP(N68,COSTS_Army_Camp[#All],2),"/") -> / | P68: =IF(N68<>"/",VLOOKUP(N68,COSTS_Army_Camp[#All],3),"/") -> / | Q68: 0 | R68: 0
A69: 4 | B69: =IF(Paramètres!I9=0,"",Paramètres!I9) ->  | C69: 0 | D69: / | E69: =IF(G$64="Error","Error",IF(AND($E$64<>"/",$E$64>'Paramètres - Admin'!$A5),'Paramètres - Admin'!$A6,"/")) -> / | F69: =IF(E69<>"/",VLOOKUP(E69,COSTS_Dark_Barrack[#All],2),"/") -> / | G69: =IF(E69<>"/",VLOOKUP(E69,COSTS_Dark_Barrack[#All],3),"/") -> / | H69: 0 | I69: 0 | J69: 5 | K69: =IF(Paramètres!J10=0,"",Paramètres!J10) ->  | L69: 0 | M69: / | N69: =IF(P$63="Error","Error",IF(AND($N$63<>"/",$N$63>'Paramètres - Admin'!$A6),'Paramètres - Admin'!$A7,"/")) -> / | O69: =IF(N69<>"/",VLOOKUP(N69,COSTS_Army_Camp[#All],2),"/") -> / | P69: =IF(N69<>"/",VLOOKUP(N69,COSTS_Army_Camp[#All],3),"/") -> / | Q69: 0 | R69: 0
A70: 5 | B70: =IF(Paramètres!I10=0,"",Paramètres!I10) ->  | C70: 0 | D70: / | E70: =IF(G$64="Error","Error",IF(AND($E$64<>"/",$E$64>'Paramètres - Admin'!$A6),'Paramètres - Admin'!$A7,"/")) -> / | F70: =IF(E70<>"/",VLOOKUP(E70,COSTS_Dark_Barrack[#All],2),"/") -> / | G70: =IF(E70<>"/",VLOOKUP(E70,COSTS_Dark_Barrack[#All],3),"/") -> / | H70: 0 | I70: 0 | J70: 6 | K70: =IF(Paramètres!J11=0,"",Paramètres!J11) ->  | L70: 0 | M70: / | N70: =IF(P$63="Error","Error",IF(AND($N$63<>"/",$N$63>'Paramètres - Admin'!$A7),'Paramètres - Admin'!$A8,"/")) -> / | O70: =IF(N70<>"/",VLOOKUP(N70,COSTS_Army_Camp[#All],2),"/") -> / | P70: =IF(N70<>"/",VLOOKUP(N70,COSTS_Army_Camp[#All],3),"/") -> / | Q70: 0 | R70: 0
A71: 6 | B71: =IF(Paramètres!I11=0,"",Paramètres!I11) ->  | C71: 0 | D71: / | E71: =IF(G$64="Error","Error",IF(AND($E$64<>"/",$E$64>'Paramètres - Admin'!$A7),'Paramètres - Admin'!$A8,"/")) -> / | F71: =IF(E71<>"/",VLOOKUP(E71,COSTS_Dark_Barrack[#All],2),"/") -> / | G71: =IF(E71<>"/",VLOOKUP(E71,COSTS_Dark_Barrack[#All],3),"/") -> / | H71: 0 | I71: 0 | J71: 7 | K71: =IF(Paramètres!J12=0,"",Paramètres!J12) ->  | L71: 0 | M71: / | N71: =IF(P$63="Error","Error",IF(AND($N$63<>"/",$N$63>'Paramètres - Admin'!$A8),'Paramètres - Admin'!$A9,"/")) -> / | O71: =IF(N71<>"/",VLOOKUP(N71,COSTS_Army_Camp[#All],2),"/") -> / | P71: =IF(N71<>"/",VLOOKUP(N71,COSTS_Army_Camp[#All],3),"/") -> / | Q71: 0 | R71: 0
G72: Total | H72: =IF(G$64="Error","Error",SUM(H66:H71)) -> 0 | I72: =IF(G$64="Error","Error",SUM(I66:I71)) -> 0 | J72: 8 | K72: =IF(Paramètres!J13=0,"",Paramètres!J13) ->  | L72: 0 | M72: / | N72: =IF(P$63="Error","Error",IF(AND($N$63<>"/",$N$63>'Paramètres - Admin'!$A9),'Paramètres - Admin'!$A10,"/")) -> / | O72: =IF(N72<>"/",VLOOKUP(N72,COSTS_Army_Camp[#All],2),"/") -> / | P72: =IF(N72<>"/",VLOOKUP(N72,COSTS_Army_Camp[#All],3),"/") -> / | Q72: 0 | R72: 0
A73: Usine de Sorts | D73: Max | E73: Max + | G73: Actuel | H73: À Faire | I73: Améliorations | P73: Total | Q73: =IF(P$63="Error","Error",SUM(Q65:Q72)) -> 250 | R73: =IF(P$63="Error","Error",SUM(R65:R72)) -> 0.08333333333
D74: =VLOOKUP($A$2,AVAILABLE_Buildings_Army[#All],MATCH(A73,AVAILABLE_Buildings_Army[#Headers],0)) -> 0 | E74: =VLOOKUP($A$2,AVAILABLE_Buildings_Army[#All],MATCH(A73,AVAILABLE_Buildings_Army[#Headers],0)+1) -> 0 | G74: =IF(SUM(B76:B80)>D74,"Error",SUM(B76:B80)) -> 0 | H74: =IF(G$74="Error","Error",D74-G74) -> 0 | I74: =IF(G$74="Error","Error",SUM(D76:D80)) -> 0 | J74: Usine de Sorts Noirs | M74: Max | N74: Max + | P74: Actuel | Q74: À Faire | R74: Améliorations
A75: + | B75: NB | D75: NB | E75: + | F75: Coût | G75: Temps | H75: Coût Total | I75: Temps Total | M75: =VLOOKUP($A$2,AVAILABLE_Buildings_Army[#All],MATCH(J74,AVAILABLE_Buildings_Army[#Headers],0)) -> 0 | N75: =VLOOKUP($A$2,AVAILABLE_Buildings_Army[#All],MATCH(J74,AVAILABLE_Buildings_Army[#Headers],0)+1) -> 0 | P75: =IF(SUM(K77:K79)>M75,"Error",SUM(K77:K79)) -> 0 | Q75: =IF(P$75="Error","Error",M75-P75) -> 0 | R75: =IF(P$75="Error","Error",SUM(M77:M79)) -> 0
A76: 1 | B76: =IF(Paramètres!L6=0,"",Paramètres!L6) ->  | C76: =IF(C75<>0,C75+IF(AND(B75<>"",A75<E$74),B75,0),IF(AND(B75<>"",A75<E$74),B75,0)) -> 0 | D76: =IF(E76<>"/",IF(G$74="Error","Error",$H$74+C76),"/") -> / | E76: =IF(G$74="Error","Error",IF(AND($E$74<>"/",$E$74>'Paramètres - Admin'!$A2),'Paramètres - Admin'!$A3,"/")) -> / | F76: =IF(E76<>"/",VLOOKUP(E76,COSTS_Spell_Factory[#All],2),"/") -> / | G76: =IF(E76<>"/",VLOOKUP(E76,COSTS_Spell_Factory[#All],3),"/") -> / | H76: =IF(G$74="Error","Error",IF(F76<>"/",D76*F76,0)) -> 0 | I76: =IF(G$74="Error","Error",IF(G76<>"/",D76*G76,0)) -> 0 | J76: + | K76: NB | M76: NB | N76: + | O76: Coût | P76: Temps | Q76: Coût Total | R76: Temps Total
A77: 2 | B77: =IF(Paramètres!L7=0,"",Paramètres!L7) ->  | C77: =IF(C76<>0,C76+IF(AND(B76<>"",A76<E$74),B76,0),IF(AND(B76<>"",A76<E$74),B76,0)) -> 0 | D77: =IF(E77<>"/",IF(G$74="Error","Error",$H$74+C77),"/") -> / | E77: =IF(G$74="Error","Error",IF(AND($E$74<>"/",$E$74>'Paramètres - Admin'!$A3),'Paramètres - Admin'!$A4,"/")) -> / | F77: =IF(E77<>"/",VLOOKUP(E77,COSTS_Spell_Factory[#All],2),"/") -> / | G77: =IF(E77<>"/",VLOOKUP(E77,COSTS_Spell_Factory[#All],3),"/") -> / | H77: =IF(G$74="Error","Error",IF(F77<>"/",D77*F77,0)) -> 0 | I77: =IF(G$74="Error","Error",IF(G77<>"/",D77*G77,0)) -> 0 | J77: 1 | K77: =IF(Paramètres!M6=0,"",Paramètres!M6) ->  | L77: =IF(L76<>0,L76+IF(AND(K76<>"",J76<N$75),K76,0),IF(AND(K76<>"",J76<N$75),K76,0)) -> 0 | M77: =IF(N77<>"/",IF(P$75="Error","Error",$Q$75+L77),"/") -> / | N77: =IF(P$75="Error","Error",IF(AND($N$75<>"/",$N$75>'Paramètres - Admin'!$A2),'Paramètres - Admin'!$A3,"/")) -> / | O77: =IF(N77<>"/",VLOOKUP(N77,COSTS_Dark_Spell_Factory[#All],2),"/") -> / | P77: =IF(N77<>"/",VLOOKUP(N77,COSTS_Dark_Spell_Factory[#All],3),"/") -> / | Q77: =IF(P$75="Error","Error",IF(O77<>"/",M77*O77,0)) -> 0 | R77: =IF(P$75="Error","Error",IF(P77<>"/",M77*P77,0)) -> 0
A78: 3 | B78: =IF(Paramètres!L8=0,"",Paramètres!L8) ->  | C78: =IF(C77<>0,C77+IF(AND(B77<>"",A77<E$74),B77,0),IF(AND(B77<>"",A77<E$74),B77,0)) -> 0 | D78: =IF(E78<>"/",IF(G$74="Error","Error",$H$74+C78),"/") -> / | E78: =IF(G$74="Error","Error",IF(AND($E$74<>"/",$E$74>'Paramètres - Admin'!$A4),'Paramètres - Admin'!$A5,"/")) -> / | F78: =IF(E78<>"/",VLOOKUP(E78,COSTS_Spell_Factory[#All],2),"/") -> / | G78: =IF(E78<>"/",VLOOKUP(E78,COSTS_Spell_Factory[#All],3),"/") -> / | H78: =IF(G$74="Error","Error",IF(F78<>"/",D78*F78,0)) -> 0 | I78: =IF(G$74="Error","Error",IF(G78<>"/",D78*G78,0)) -> 0 | J78: 2 | K78: =IF(Paramètres!M7=0,"",Paramètres!M7) ->  | L78: =IF(L77<>0,L77+IF(AND(K77<>"",J77<N$75),K77,0),IF(AND(K77<>"",J77<N$75),K77,0)) -> 0 | M78: =IF(N78<>"/",IF(P$75="Error","Error",$Q$75+L78),"/") -> / | N78: =IF(P$75="Error","Error",IF(AND($N$75<>"/",$N$75>'Paramètres - Admin'!$A3),'Paramètres - Admin'!$A4,"/")) -> / | O78: =IF(N78<>"/",VLOOKUP(N78,COSTS_Dark_Spell_Factory[#All],2),"/") -> / | P78: =IF(N78<>"/",VLOOKUP(N78,COSTS_Dark_Spell_Factory[#All],3),"/") -> / | Q78: =IF(G$74="Error","Error",IF(O78<>"/",M78*O78,0)) -> 0 | R78: =IF(G$74="Error","Error",IF(P78<>"/",M78*P78,0)) -> 0
A79: 4 | B79: =IF(Paramètres!L9=0,"",Paramètres!L9) ->  | C79: =IF(C78<>0,C78+IF(AND(B78<>"",A78<E$74),B78,0),IF(AND(B78<>"",A78<E$74),B78,0)) -> 0 | D79: =IF(E79<>"/",IF(G$74="Error","Error",$H$74+C79),"/") -> / | E79: =IF(G$74="Error","Error",IF(AND($E$74<>"/",$E$74>'Paramètres - Admin'!$A5),'Paramètres - Admin'!$A6,"/")) -> / | F79: =IF(E79<>"/",VLOOKUP(E79,COSTS_Spell_Factory[#All],2),"/") -> / | G79: =IF(E79<>"/",VLOOKUP(E79,COSTS_Spell_Factory[#All],3),"/") -> / | H79: =IF(G$74="Error","Error",IF(F79<>"/",D79*F79,0)) -> 0 | I79: =IF(G$74="Error","Error",IF(G79<>"/",D79*G79,0)) -> 0 | J79: 3 | K79: =IF(Paramètres!M8=0,"",Paramètres!M8) ->  | L79: =IF(L78<>0,L78+IF(AND(K78<>"",J78<N$75),K78,0),IF(AND(K78<>"",J78<N$75),K78,0)) -> 0 | M79: =IF(N79<>"/",IF(P$75="Error","Error",$Q$75+L79),"/") -> / | N79: =IF(P$75="Error","Error",IF(AND($N$75<>"/",$N$75>'Paramètres - Admin'!$A4),'Paramètres - Admin'!$A5,"/")) -> / | O79: =IF(N79<>"/",VLOOKUP(N79,COSTS_Dark_Spell_Factory[#All],2),"/") -> / | P79: =IF(N79<>"/",VLOOKUP(N79,COSTS_Dark_Spell_Factory[#All],3),"/") -> / | Q79: =IF(G$74="Error","Error",IF(O79<>"/",M79*O79,0)) -> 0 | R79: =IF(G$74="Error","Error",IF(P79<>"/",M79*P79,0)) -> 0
A80: 5 | B80: =IF(Paramètres!L10=0,"",Paramètres!L10) ->  | C80: =IF(C79<>0,C79+IF(AND(B79<>"",A79<E$74),B79,0),IF(AND(B79<>"",A79<E$74),B79,0)) -> 0 | D80: =IF(E80<>"/",IF(G$74="Error","Error",$H$74+C80),"/") -> / | E80: =IF(G$74="Error","Error",IF(AND($E$74<>"/",$E$74>'Paramètres - Admin'!$A6),'Paramètres - Admin'!$A7,"/")) -> / | F80: =IF(E80<>"/",VLOOKUP(E80,COSTS_Spell_Factory[#All],2),"/") -> / | G80: =IF(E80<>"/",VLOOKUP(E80,COSTS_Spell_Factory[#All],3),"/") -> / | H80: =IF(G$74="Error","Error",IF(F80<>"/",D80*F80,0)) -> 0 | I80: =IF(G$74="Error","Error",IF(G80<>"/",D80*G80,0)) -> 0 | P80: Total | Q80: =IF(G$74="Error","Error",SUM(Q77:Q79)) -> 0 | R80: =IF(G$74="Error","Error",SUM(R77:R79)) -> 0
G81: Total | H81: =IF(G$74="Error","Error",SUM(H76:H80)) -> 0 | I81: =IF(G$74="Error","Error",SUM(I76:I80)) -> 0
A84: Bâtiments Défensifs
A85: Rempart | D85: Max | E85: Max + | G85: Actuel | H85: À Faire | I85: Améliorations | J85: Défense Antiaérienne | M85: Max | N85: Max + | P85: Actuel | Q85: À Faire | R85: Améliorations
D86: =VLOOKUP($A$2,AVAILABLE_Buildings_Defensive[#All],MATCH(A85,AVAILABLE_Buildings_Defensive[#Headers],0)) -> 0 | E86: =VLOOKUP($A$2,AVAILABLE_Buildings_Defensive[#All],MATCH(A85,AVAILABLE_Buildings_Defensive[#Headers],0)+1) -> 0 | G86: =IF(SUM(B88:B98)>D86,"Error",SUM(B88:B98)) -> 0 | H86: =IF(G$86="Error","Error",D86-G86) -> 0 | I86: =IF(G$86="Error","Error",SUM(D88:D98)) -> 0 | M86: =VLOOKUP($A$2,AVAILABLE_Buildings_Defensive[#All],MATCH(J85,AVAILABLE_Buildings_Defensive[#Headers],0)) -> 0 | N86: =VLOOKUP($A$2,AVAILABLE_Buildings_Defensive[#All],MATCH(J85,AVAILABLE_Buildings_Defensive[#Headers],0)+1) -> 0 | P86: =IF(SUM(K88:K95)>M86,"Error",SUM(K88:K95)) -> 0 | Q86: =IF(P$86="Error","Error",M86-P86) -> 0 | R86: =IF(P$86="Error","Error",SUM(M88:M95)) -> 0
A87: + | B87: NB | D87: NB | E87: + | F87: Coût | G87: Temps | H87: Coût Total | I87: Temps Total | J87: + | K87: NB | M87: NB | N87: + | O87: Coût | P87: Temps | Q87: Coût Total | R87: Temps Total
A88: 1 | B88: =IF(Paramètres!N6=0,"",Paramètres!N6) ->  | C88: =IF(C87<>0,C87+IF(AND(B87<>"",A87<E$86),B87,0),IF(AND(B87<>"",A87<E$86),B87,0)) -> 0 | D88: =IF(E88<>"/",IF(G$86="Error","Error",$H$86+C88),"/") -> / | E88: =IF(G$86="Error","Error",IF(AND($E$86<>"/",$E$86>'Paramètres - Admin'!$A2),'Paramètres - Admin'!$A3,"/")) -> / | F88: =IF(E88<>"/",VLOOKUP(E88,COSTS_Wall[#All],2),"/") -> / | G88: =IF(E88<>"/",VLOOKUP(E88,COSTS_Wall[#All],3),"/") -> / | H88: =IF(G$86="Error","Error",IF(F88<>"/",D88*F88,0)) -> 0 | I88: =IF(G$86="Error","Error",IF(G88<>"/",D88*G88,0)) -> 0 | J88: 1 | K88: =IF(Paramètres!R6=0,"",Paramètres!R6) ->  | L88: =IF(L87<>0,L87+IF(AND(K87<>"",J87<N$86),K87,0),IF(AND(K87<>"",J87<N$86),K87,0)) -> 0 | M88: =IF(N88<>"/",IF(P$86="Error","Error",$Q$86+L88),"/") -> / | N88: =IF(P$86="Error","Error",IF(AND($N$86<>"/",$N$86>'Paramètres - Admin'!$A2),'Paramètres - Admin'!$A3,"/")) -> / | O88: =IF(N88<>"/",VLOOKUP(N88,COSTS_Air_Defense[#All],2),"/") -> / | P88: =IF(N88<>"/",VLOOKUP(N88,COSTS_Air_Defense[#All],3),"/") -> / | Q88: =IF(P$86="Error","Error",IF(O88<>"/",M88*O88,0)) -> 0 | R88: =IF(P$86="Error","Error",IF(P88<>"/",M88*P88,0)) -> 0
A89: 2 | B89: =IF(Paramètres!N7=0,"",Paramètres!N7) ->  | C89: =IF(C88<>0,C88+IF(AND(B88<>"",A88<E$86),B88,0),IF(AND(B88<>"",A88<E$86),B88,0)) -> 0 | D89: / | E89: =IF(G$86="Error","Error",IF(AND($E$86<>"/",$E$86>'Paramètres - Admin'!$A3),'Paramètres - Admin'!$A4,"/")) -> / | F89: =IF(E89<>"/",VLOOKUP(E89,COSTS_Wall[#All],2),"/") -> / | G89: =IF(E89<>"/",VLOOKUP(E89,COSTS_Wall[#All],3),"/") -> / | H89: 0 | I89: 0 | J89: 2 | K89: =IF(Paramètres!R7=0,"",Paramètres!R7) ->  | L89: 0 | M89: / | N89: =IF(P$86="Error","Error",IF(AND($N$86<>"/",$N$86>'Paramètres - Admin'!$A3),'Paramètres - Admin'!$A4,"/")) -> / | O89: =IF(N89<>"/",VLOOKUP(N89,COSTS_Air_Defense[#All],2),"/") -> / | P89: =IF(N89<>"/",VLOOKUP(N89,COSTS_Air_Defense[#All],3),"/") -> / | Q89: 0 | R89: 0
A90: 3 | B90: =IF(Paramètres!N8=0,"",Paramètres!N8) ->  | C90: 0 | D90: / | E90: =IF(G$86="Error","Error",IF(AND($E$86<>"/",$E$86>'Paramètres - Admin'!$A4),'Paramètres - Admin'!$A5,"/")) -> / | F90: =IF(E90<>"/",VLOOKUP(E90,COSTS_Wall[#All],2),"/") -> / | G90: =IF(E90<>"/",VLOOKUP(E90,COSTS_Wall[#All],3),"/") -> / | H90: 0 | I90: 0 | J90: 3 | K90: =IF(Paramètres!R8=0,"",Paramètres!R8) ->  | L90: 0 | M90: / | N90: =IF(P$86="Error","Error",IF(AND($N$86<>"/",$N$86>'Paramètres - Admin'!$A4),'Paramètres - Admin'!$A5,"/")) -> / | O90: =IF(N90<>"/",VLOOKUP(N90,COSTS_Air_Defense[#All],2),"/") -> / | P90: =IF(N90<>"/",VLOOKUP(N90,COSTS_Air_Defense[#All],3),"/") -> / | Q90: 0 | R90: 0
A91: 4 | B91: =IF(Paramètres!N9=0,"",Paramètres!N9) ->  | C91: 0 | D91: / | E91: =IF(G$86="Error","Error",IF(AND($E$86<>"/",$E$86>'Paramètres - Admin'!$A5),'Paramètres - Admin'!$A6,"/")) -> / | F91: =IF(E91<>"/",VLOOKUP(E91,COSTS_Wall[#All],2),"/") -> / | G91: =IF(E91<>"/",VLOOKUP(E91,COSTS_Wall[#All],3),"/") -> / | H91: 0 | I91: 0 | J91: 4 | K91: =IF(Paramètres!R9=0,"",Paramètres!R9) ->  | L91: 0 | M91: / | N91: =IF(P$86="Error","Error",IF(AND($N$86<>"/",$N$86>'Paramètres - Admin'!$A5),'Paramètres - Admin'!$A6,"/")) -> / | O91: =IF(N91<>"/",VLOOKUP(N91,COSTS_Air_Defense[#All],2),"/") -> / | P91: =IF(N91<>"/",VLOOKUP(N91,COSTS_Air_Defense[#All],3),"/") -> / | Q91: 0 | R91: 0
A92: 5 | B92: =IF(Paramètres!N10=0,"",Paramètres!N10) ->  | C92: 0 | D92: / | E92: =IF(G$86="Error","Error",IF(AND($E$86<>"/",$E$86>'Paramètres - Admin'!$A6),'Paramètres - Admin'!$A7,"/")) -> / | F92: =IF(E92<>"/",VLOOKUP(E92,COSTS_Wall[#All],2),"/") -> / | G92: =IF(E92<>"/",VLOOKUP(E92,COSTS_Wall[#All],3),"/") -> / | H92: 0 | I92: 0 | J92: 5 | K92: =IF(Paramètres!R10=0,"",Paramètres!R10) ->  | L92: 0 | M92: / | N92: =IF(P$86="Error","Error",IF(AND($N$86<>"/",$N$86>'Paramètres - Admin'!$A6),'Paramètres - Admin'!$A7,"/")) -> / | O92: =IF(N92<>"/",VLOOKUP(N92,COSTS_Air_Defense[#All],2),"/") -> / | P92: =IF(N92<>"/",VLOOKUP(N92,COSTS_Air_Defense[#All],3),"/") -> / | Q92: 0 | R92: 0
A93: 6 | B93: =IF(Paramètres!N11=0,"",Paramètres!N11) ->  | C93: 0 | D93: / | E93: =IF(G$86="Error","Error",IF(AND($E$86<>"/",$E$86>'Paramètres - Admin'!$A7),'Paramètres - Admin'!$A8,"/")) -> / | F93: =IF(E93<>"/",VLOOKUP(E93,COSTS_Wall[#All],2),"/") -> / | G93: =IF(E93<>"/",VLOOKUP(E93,COSTS_Wall[#All],3),"/") -> / | H93: 0 | I93: 0 | J93: 6 | K93: =IF(Paramètres!R11=0,"",Paramètres!R11) ->  | L93: 0 | M93: / | N93: =IF(P$86="Error","Error",IF(AND($N$86<>"/",$N$86>'Paramètres - Admin'!$A7),'Paramètres - Admin'!$A8,"/")) -> / | O93: =IF(N93<>"/",VLOOKUP(N93,COSTS_Air_Defense[#All],2),"/") -> / | P93: =IF(N93<>"/",VLOOKUP(N93,COSTS_Air_Defense[#All],3),"/") -> / | Q93: 0 | R93: 0
A94: 7 | B94: =IF(Paramètres!N12=0,"",Paramètres!N12) ->  | C94: 0 | D94: / | E94: =IF(G$86="Error","Error",IF(AND($E$86<>"/",$E$86>'Paramètres - Admin'!$A8),'Paramètres - Admin'!$A9,"/")) -> / | F94: =IF(E94<>"/",VLOOKUP(E94,COSTS_Wall[#All],2),"/") -> / | G94: =IF(E94<>"/",VLOOKUP(E94,COSTS_Wall[#All],3),"/") -> / | H94: 0 | I94: 0 | J94: 7 | K94: =IF(Paramètres!R12=0,"",Paramètres!R12) ->  | L94: 0 | M94: / | N94: =IF(P$86="Error","Error",IF(AND($N$86<>"/",$N$86>'Paramètres - Admin'!$A8),'Paramètres - Admin'!$A9,"/")) -> / | O94: =IF(N94<>"/",VLOOKUP(N94,COSTS_Air_Defense[#All],2),"/") -> / | P94: =IF(N94<>"/",VLOOKUP(N94,COSTS_Air_Defense[#All],3),"/") -> / | Q94: 0 | R94: 0
A95: 8 | B95: =IF(Paramètres!N13=0,"",Paramètres!N13) ->  | C95: 0 | D95: / | E95: =IF(G$86="Error","Error",IF(AND($E$86<>"/",$E$86>'Paramètres - Admin'!$A9),'Paramètres - Admin'!$A10,"/")) -> / | F95: =IF(E95<>"/",VLOOKUP(E95,COSTS_Wall[#All],2),"/") -> / | G95: =IF(E95<>"/",VLOOKUP(E95,COSTS_Wall[#All],3),"/") -> / | H95: 0 | I95: 0 | J95: 8 | K95: =IF(Paramètres!R13=0,"",Paramètres!R13) ->  | L95: 0 | M95: / | N95: =IF(P$86="Error","Error",IF(AND($N$86<>"/",$N$86>'Paramètres - Admin'!$A9),'Paramètres - Admin'!$A10,"/")) -> / | O95: =IF(N95<>"/",VLOOKUP(N95,COSTS_Air_Defense[#All],2),"/") -> / | P95: =IF(N95<>"/",VLOOKUP(N95,COSTS_Air_Defense[#All],3),"/") -> / | Q95: 0 | R95: 0
A96: 9 | B96: =IF(Paramètres!N14=0,"",Paramètres!N14) ->  | C96: 0 | D96: / | E96: =IF(G$86="Error","Error",IF(AND($E$86<>"/",$E$86>'Paramètres - Admin'!$A10),'Paramètres - Admin'!$A11,"/")) -> / | F96: =IF(E96<>"/",VLOOKUP(E96,COSTS_Wall[#All],2),"/") -> / | G96: =IF(E96<>"/",VLOOKUP(E96,COSTS_Wall[#All],3),"/") -> / | H96: 0 | I96: 0 | P96: Total | Q96: =IF(P$86="Error","Error",SUM(Q88:Q95)) -> 0 | R96: =IF(P$86="Error","Error",SUM(R88:R95)) -> 0
A97: 10 | B97: =IF(Paramètres!N15=0,"",Paramètres!N15) ->  | C97: 0 | D97: / | E97: =IF(G$86="Error","Error",IF(AND($E$86<>"/",$E$86>'Paramètres - Admin'!$A11),'Paramètres - Admin'!$A12,"/")) -> / | F97: =IF(E97<>"/",VLOOKUP(E97,COSTS_Wall[#All],2),"/") -> / | G97: =IF(E97<>"/",VLOOKUP(E97,COSTS_Wall[#All],3),"/") -> / | H97: 0 | I97: 0 | J97: Tour de Sorciers | M97: Max | N97: Max + | P97: Actuel | Q97: À Faire | R97: Améliorations
A98: 11 | B98: =IF(Paramètres!N16=0,"",Paramètres!N16) ->  | C98: 0 | D98: / | E98: =IF(G$86="Error","Error",IF(AND($E$86<>"/",$E$86>'Paramètres - Admin'!$A12),'Paramètres - Admin'!$A13,"/")) -> / | F98: =IF(E98<>"/",VLOOKUP(E98,COSTS_Wall[#All],2),"/") -> / | G98: =IF(E98<>"/",VLOOKUP(E98,COSTS_Wall[#All],3),"/") -> / | H98: 0 | I98: 0 | M98: =VLOOKUP($A$2,AVAILABLE_Buildings_Defensive[#All],MATCH(J97,AVAILABLE_Buildings_Defensive[#Headers],0)) -> 0 | N98: =VLOOKUP($A$2,AVAILABLE_Buildings_Defensive[#All],MATCH(J97,AVAILABLE_Buildings_Defensive[#Headers],0)+1) -> 0 | P98: =IF(SUM(K100:K108)>M98,"Error",SUM(K100:K108)) -> 0 | Q98: =IF(P$98="Error","Error",M98-P98) -> 0 | R98: =IF(P$98="Error","Error",SUM(M100:M107)) -> 0
G99: Total | H99: =IF(G$86="Error","Error",SUM(H88:H98)) -> 0 | I99: =IF(G$86="Error","Error",SUM(I88:I98)) -> 0 | J99: + | K99: NB | M99: NB | N99: + | O99: Coût | P99: Temps | Q99: Coût Total | R99: Temps Total
A100: Canon | D100: Max | E100: Max + | G100: Actuel | H100: À Faire | I100: Améliorations | J100: 1 | K100: =IF(Paramètres!S6=0,"",Paramètres!S6) ->  | L100: =IF(L99<>0,L99+IF(AND(K99<>"",J99<N$98),K99,0),IF(AND(K99<>"",J99<N$98),K99,0)) -> 0 | M100: =IF(N100<>"/",IF(P$98="Error","Error",$Q$98+L100),"/") -> / | N100: =IF(P$98="Error","Error",IF(AND($N$98<>"/",$N$98>'Paramètres - Admin'!$A2),'Paramètres - Admin'!$A3,"/")) -> / | O100: =IF(N100<>"/",VLOOKUP(N100,COSTS_Wizard_Tower[#All],2),"/") -> / | P100: =IF(N100<>"/",VLOOKUP(N100,COSTS_Wizard_Tower[#All],3),"/") -> / | Q100: =IF(P$98="Error","Error",IF(O100<>"/",M100*O100,0)) -> 0 | R100: =IF(P$98="Error","Error",IF(P100<>"/",M100*P100,0)) -> 0
D101: =VLOOKUP($A$2,AVAILABLE_Buildings_Defensive[#All],MATCH(A100,AVAILABLE_Buildings_Defensive[#Headers],0)) -> 2 | E101: =VLOOKUP($A$2,AVAILABLE_Buildings_Defensive[#All],MATCH(A100,AVAILABLE_Buildings_Defensive[#Headers],0)+1) -> 2 | G101: =IF(SUM(B103:B115)>D101,"Error",SUM(B103:B115)) -> 0 | H101: =IF(G$101="Error","Error",D101-G101) -> 2 | I101: =IF(G$101="Error","Error",SUM(D103:D115)) -> 4 | J101: 2 | K101: =IF(Paramètres!S7=0,"",Paramètres!S7) ->  | L101: 0 | M101: / | N101: =IF(P$98="Error","Error",IF(AND($N$98<>"/",$N$98>'Paramètres - Admin'!$A3),'Paramètres - Admin'!$A4,"/")) -> / | O101: =IF(N101<>"/",VLOOKUP(N101,COSTS_Wizard_Tower[#All],2),"/") -> / | P101: =IF(N101<>"/",VLOOKUP(N101,COSTS_Wizard_Tower[#All],3),"/") -> / | Q101: 0 | R101: 0
A102: + | B102: NB | D102: NB | E102: + | F102: Coût | G102: Temps | H102: Coût Total | I102: Temps Total | J102: 3 | K102: =IF(Paramètres!S8=0,"",Paramètres!S8) ->  | L102: 0 | M102: / | N102: =IF(P$98="Error","Error",IF(AND($N$98<>"/",$N$98>'Paramètres - Admin'!$A4),'Paramètres - Admin'!$A5,"/")) -> / | O102: =IF(N102<>"/",VLOOKUP(N102,COSTS_Wizard_Tower[#All],2),"/") -> / | P102: =IF(N102<>"/",VLOOKUP(N102,COSTS_Wizard_Tower[#All],3),"/") -> / | Q102: 0 | R102: 0
A103: 1 | B103: =IF(Paramètres!O6=0,"",Paramètres!O6) ->  | C103: =IF(C102<>0,C102+IF(AND(B102<>"",A102<$E$101),B102,0),IF(AND(B102<>"",A102<$E$101),B102,0)) -> 0 | D103: =IF(E103<>"/",IF(G$101="Error","Error",$H$101+C103),"/") -> 2 | E103: =IF(G$101="Error","Error",IF(AND($E$101<>"/",$E$101>'Paramètres - Admin'!$A2),'Paramètres - Admin'!$A3,"/")) -> 1 | F103: =IF(E103<>"/",VLOOKUP(E103,COSTS_Cannon[#All],2),"/") -> 250 | G103: =IF(E103<>"/",VLOOKUP(E103,COSTS_Cannon[#All],3),"/") -> 0.01666666667 | H103: =IF(G$101="Error","Error",IF(F103<>"/",D103*F103,0)) -> 500 | I103: =IF(G$101="Error","Error",IF(G103<>"/",D103*G103,0)) -> 0.03333333333 | J103: 4 | K103: =IF(Paramètres!S9=0,"",Paramètres!S9) ->  | L103: 0 | M103: / | N103: =IF(P$98="Error","Error",IF(AND($N$98<>"/",$N$98>'Paramètres - Admin'!$A5),'Paramètres - Admin'!$A6,"/")) -> / | O103: =IF(N103<>"/",VLOOKUP(N103,COSTS_Wizard_Tower[#All],2),"/") -> / | P103: =IF(N103<>"/",VLOOKUP(N103,COSTS_Wizard_Tower[#All],3),"/") -> / | Q103: 0 | R103: 0
A104: 2 | B104: =IF(Paramètres!O7=0,"",Paramètres!O7) ->  | C104: =IF(C103<>0,C103+IF(AND(B103<>"",A103<$E$101),B103,0),IF(AND(B103<>"",A103<$E$101),B103,0)) -> 0 | D104: 2 | E104: =IF(G$101="Error","Error",IF(AND($E$101<>"/",$E$101>'Paramètres - Admin'!$A3),'Paramètres - Admin'!$A4,"/")) -> 2 | F104: =IF(E104<>"/",VLOOKUP(E104,COSTS_Cannon[#All],2),"/") -> 1000 | G104: =IF(E104<>"/",VLOOKUP(E104,COSTS_Cannon[#All],3),"/") -> 0.25 | H104: 2000 | I104: 0.5 | J104: 5 | K104: =IF(Paramètres!S10=0,"",Paramètres!S10) ->  | L104: 0 | M104: / | N104: =IF(P$98="Error","Error",IF(AND($N$98<>"/",$N$98>'Paramètres - Admin'!$A6),'Paramètres - Admin'!$A7,"/")) -> / | O104: =IF(N104<>"/",VLOOKUP(N104,COSTS_Wizard_Tower[#All],2),"/") -> / | P104: =IF(N104<>"/",VLOOKUP(N104,COSTS_Wizard_Tower[#All],3),"/") -> / | Q104: 0 | R104: 0
A105: 3 | B105: =IF(Paramètres!O8=0,"",Paramètres!O8) ->  | C105: 0 | D105: / | E105: =IF(G$101="Error","Error",IF(AND($E$101<>"/",$E$101>'Paramètres - Admin'!$A4),'Paramètres - Admin'!$A5,"/")) -> / | F105: =IF(E105<>"/",VLOOKUP(E105,COSTS_Cannon[#All],2),"/") -> / | G105: =IF(E105<>"/",VLOOKUP(E105,COSTS_Cannon[#All],3),"/") -> / | H105: 0 | I105: 0 | J105: 6 | K105: =IF(Paramètres!S11=0,"",Paramètres!S11) ->  | L105: 0 | M105: / | N105: =IF(P$98="Error","Error",IF(AND($N$98<>"/",$N$98>'Paramètres - Admin'!$A7),'Paramètres - Admin'!$A8,"/")) -> / | O105: =IF(N105<>"/",VLOOKUP(N105,COSTS_Wizard_Tower[#All],2),"/") -> / | P105: =IF(N105<>"/",VLOOKUP(N105,COSTS_Wizard_Tower[#All],3),"/") -> / | Q105: 0 | R105: 0
A106: 4 | B106: =IF(Paramètres!O9=0,"",Paramètres!O9) ->  | C106: 0 | D106: / | E106: =IF(G$101="Error","Error",IF(AND($E$101<>"/",$E$101>'Paramètres - Admin'!$A5),'Paramètres - Admin'!$A6,"/")) -> / | F106: =IF(E106<>"/",VLOOKUP(E106,COSTS_Cannon[#All],2),"/") -> / | G106: =IF(E106<>"/",VLOOKUP(E106,COSTS_Cannon[#All],3),"/") -> / | H106: 0 | I106: 0 | J106: 7 | K106: =IF(Paramètres!S12=0,"",Paramètres!S12) ->  | L106: 0 | M106: / | N106: =IF(P$98="Error","Error",IF(AND($N$98<>"/",$N$98>'Paramètres - Admin'!$A8),'Paramètres - Admin'!$A9,"/")) -> / | O106: =IF(N106<>"/",VLOOKUP(N106,COSTS_Wizard_Tower[#All],2),"/") -> / | P106: =IF(N106<>"/",VLOOKUP(N106,COSTS_Wizard_Tower[#All],3),"/") -> / | Q106: 0 | R106: 0
A107: 5 | B107: =IF(Paramètres!O10=0,"",Paramètres!O10) ->  | C107: 0 | D107: / | E107: =IF(G$101="Error","Error",IF(AND($E$101<>"/",$E$101>'Paramètres - Admin'!$A6),'Paramètres - Admin'!$A7,"/")) -> / | F107: =IF(E107<>"/",VLOOKUP(E107,COSTS_Cannon[#All],2),"/") -> / | G107: =IF(E107<>"/",VLOOKUP(E107,COSTS_Cannon[#All],3),"/") -> / | H107: 0 | I107: 0 | J107: 8 | K107: =IF(Paramètres!S13=0,"",Paramètres!S13) ->  | L107: 0 | M107: / | N107: =IF(P$98="Error","Error",IF(AND($N$98<>"/",$N$98>'Paramètres - Admin'!$A9),'Paramètres - Admin'!$A10,"/")) -> / | O107: =IF(N107<>"/",VLOOKUP(N107,COSTS_Wizard_Tower[#All],2),"/") -> / | P107: =IF(N107<>"/",VLOOKUP(N107,COSTS_Wizard_Tower[#All],3),"/") -> / | Q107: 0 | R107: 0
A108: 6 | B108: =IF(Paramètres!O11=0,"",Paramètres!O11) ->  | C108: 0 | D108: / | E108: =IF(G$101="Error","Error",IF(AND($E$101<>"/",$E$101>'Paramètres - Admin'!$A7),'Paramètres - Admin'!$A8,"/")) -> / | F108: =IF(E108<>"/",VLOOKUP(E108,COSTS_Cannon[#All],2),"/") -> / | G108: =IF(E108<>"/",VLOOKUP(E108,COSTS_Cannon[#All],3),"/") -> / | H108: 0 | I108: 0 | J108: 9 | K108: =IF(Paramètres!S14=0,"",Paramètres!S14) ->  | L108: 0 | M108: / | N108: =IF(P$98="Error","Error",IF(AND($N$98<>"/",$N$98>'Paramètres - Admin'!$A10),'Paramètres - Admin'!$A11,"/")) -> / | O108: =IF(N108<>"/",VLOOKUP(N108,COSTS_Wizard_Tower[#All],2),"/") -> / | P108: =IF(N108<>"/",VLOOKUP(N108,COSTS_Wizard_Tower[#All],3),"/") -> / | Q108: 0 | R108: 0
A109: 7 | B109: =IF(Paramètres!O12=0,"",Paramètres!O12) ->  | C109: 0 | D109: / | E109: =IF(G$101="Error","Error",IF(AND($E$101<>"/",$E$101>'Paramètres - Admin'!$A8),'Paramètres - Admin'!$A9,"/")) -> / | F109: =IF(E109<>"/",VLOOKUP(E109,COSTS_Cannon[#All],2),"/") -> / | G109: =IF(E109<>"/",VLOOKUP(E109,COSTS_Cannon[#All],3),"/") -> / | H109: 0 | I109: 0 | P109: Total | Q109: =IF(P$98="Error","Error",SUM(Q100:Q108)) -> 0 | R109: =IF(P$98="Error","Error",SUM(R100:R108)) -> 0
A110: 8 | B110: =IF(Paramètres!O13=0,"",Paramètres!O13) ->  | C110: 0 | D110: / | E110: =IF(G$101="Error","Error",IF(AND($E$101<>"/",$E$101>'Paramètres - Admin'!$A9),'Paramètres - Admin'!$A10,"/")) -> / | F110: =IF(E110<>"/",VLOOKUP(E110,COSTS_Cannon[#All],2),"/") -> / | G110: =IF(E110<>"/",VLOOKUP(E110,COSTS_Cannon[#All],3),"/") -> / | H110: 0 | I110: 0 | J110: Tesla Camouflée | M110: Max | N110: Max + | P110: Actuel | Q110: À Faire | R110: Améliorations
A111: 9 | B111: =IF(Paramètres!O14=0,"",Paramètres!O14) ->  | C111: 0 | D111: / | E111: =IF(G$101="Error","Error",IF(AND($E$101<>"/",$E$101>'Paramètres - Admin'!$A10),'Paramètres - Admin'!$A11,"/")) -> / | F111: =IF(E111<>"/",VLOOKUP(E111,COSTS_Cannon[#All],2),"/") -> / | G111: =IF(E111<>"/",VLOOKUP(E111,COSTS_Cannon[#All],3),"/") -> / | H111: 0 | I111: 0 | M111: =VLOOKUP($A$2,AVAILABLE_Buildings_Defensive[#All],MATCH(J110,AVAILABLE_Buildings_Defensive[#Headers],0)) -> 0 | N111: =VLOOKUP($A$2,AVAILABLE_Buildings_Defensive[#All],MATCH(J110,AVAILABLE_Buildings_Defensive[#Headers],0)+1) -> 0 | P111: =IF(SUM(K113:K120)>M111,"Error",SUM(K113:K120)) -> 0 | Q111: =IF(P$111="Error","Error",M111-P111) -> 0 | R111: =IF(P$111="Error","Error",SUM(M113:M120)) -> 0
A112: 10 | B112: =IF(Paramètres!O15=0,"",Paramètres!O15) ->  | C112: 0 | D112: / | E112: =IF(G$101="Error","Error",IF(AND($E$101<>"/",$E$101>'Paramètres - Admin'!$A11),'Paramètres - Admin'!$A12,"/")) -> / | F112: =IF(E112<>"/",VLOOKUP(E112,COSTS_Cannon[#All],2),"/") -> / | G112: =IF(E112<>"/",VLOOKUP(E112,COSTS_Cannon[#All],3),"/") -> / | H112: 0 | I112: 0 | J112: + | K112: NB | M112: NB | N112: + | O112: Coût | P112: Temps | Q112: Coût Total | R112: Temps Total
A113: 11 | B113: =IF(Paramètres!O16=0,"",Paramètres!O16) ->  | C113: 0 | D113: / | E113: =IF(G$101="Error","Error",IF(AND($E$101<>"/",$E$101>'Paramètres - Admin'!$A12),'Paramètres - Admin'!$A13,"/")) -> / | F113: =IF(E113<>"/",VLOOKUP(E113,COSTS_Cannon[#All],2),"/") -> / | G113: =IF(E113<>"/",VLOOKUP(E113,COSTS_Cannon[#All],3),"/") -> / | H113: 0 | I113: 0 | J113: 1 | K113: =IF(Paramètres!U6=0,"",Paramètres!U6) ->  | L113: =IF(L112<>0,L112+IF(AND(K112<>"",J112<N$111),K112,0),IF(AND(K112<>"",J112<N$111),K112,0)) -> 0 | M113: =IF(N113<>"/",IF(P$111="Error","Error",$Q$111+L113),"/") -> / | N113: =IF(P$111="Error","Error",IF(AND($N$111<>"/",$N$111>'Paramètres - Admin'!$A2),'Paramètres - Admin'!$A3,"/")) -> / | O113: =IF(N113<>"/",VLOOKUP(N113,COSTS_Hidden_Tesla[#All],2),"/") -> / | P113: =IF(N113<>"/",VLOOKUP(N113,COSTS_Hidden_Tesla[#All],3),"/") -> / | Q113: =IF(P$111="Error","Error",IF(O113<>"/",M113*O113,0)) -> 0 | R113: =IF(P$111="Error","Error",IF(P113<>"/",M113*P113,0)) -> 0
A114: 12 | B114: =IF(Paramètres!O17=0,"",Paramètres!O17) ->  | C114: 0 | D114: / | E114: =IF(G$101="Error","Error",IF(AND($E$101<>"/",$E$101>'Paramètres - Admin'!$A13),'Paramètres - Admin'!$A14,"/")) -> / | F114: =IF(E114<>"/",VLOOKUP(E114,COSTS_Cannon[#All],2),"/") -> / | G114: =IF(E114<>"/",VLOOKUP(E114,COSTS_Cannon[#All],3),"/") -> / | H114: 0 | I114: 0 | J114: 2 | K114: =IF(Paramètres!U7=0,"",Paramètres!U7) ->  | L114: 0 | M114: / | N114: =IF(P$111="Error","Error",IF(AND($N$111<>"/",$N$111>'Paramètres - Admin'!$A3),'Paramètres - Admin'!$A4,"/")) -> / | O114: =IF(N114<>"/",VLOOKUP(N114,COSTS_Hidden_Tesla[#All],2),"/") -> / | P114: =IF(N114<>"/",VLOOKUP(N114,COSTS_Hidden_Tesla[#All],3),"/") -> / | Q114: 0 | R114: 0
A115: 13 | B115: =IF(Paramètres!O18=0,"",Paramètres!O18) ->  | C115: 0 | D115: / | E115: =IF(G$101="Error","Error",IF(AND($E$101<>"/",$E$101>'Paramètres - Admin'!$A14),'Paramètres - Admin'!$A15,"/")) -> / | F115: =IF(E115<>"/",VLOOKUP(E115,COSTS_Cannon[#All],2),"/") -> / | G115: =IF(E115<>"/",VLOOKUP(E115,COSTS_Cannon[#All],3),"/") -> / | H115: 0 | I115: 0 | J115: 3 | K115: =IF(Paramètres!U8=0,"",Paramètres!U8) ->  | L115: 0 | M115: / | N115: =IF(P$111="Error","Error",IF(AND($N$111<>"/",$N$111>'Paramètres - Admin'!$A4),'Paramètres - Admin'!$A5,"/")) -> / | O115: =IF(N115<>"/",VLOOKUP(N115,COSTS_Hidden_Tesla[#All],2),"/") -> / | P115: =IF(N115<>"/",VLOOKUP(N115,COSTS_Hidden_Tesla[#All],3),"/") -> / | Q115: 0 | R115: 0
G116: Total | H116: =IF(G$101="Error","Error",SUM(H103:H115)) -> 2500 | I116: =IF(G$101="Error","Error",SUM(I103:I115)) -> 0.5333333333 | J116: 4 | K116: =IF(Paramètres!U9=0,"",Paramètres!U9) ->  | L116: 0 | M116: / | N116: =IF(P$111="Error","Error",IF(AND($N$111<>"/",$N$111>'Paramètres - Admin'!$A5),'Paramètres - Admin'!$A6,"/")) -> / | O116: =IF(N116<>"/",VLOOKUP(N116,COSTS_Hidden_Tesla[#All],2),"/") -> / | P116: =IF(N116<>"/",VLOOKUP(N116,COSTS_Hidden_Tesla[#All],3),"/") -> / | Q116: 0 | R116: 0
A117: Tour d'Archers | D117: Max | E117: Max + | G117: Actuel | H117: À Faire | I117: Améliorations | J117: 5 | K117: =IF(Paramètres!U10=0,"",Paramètres!U10) ->  | L117: 0 | M117: / | N117: =IF(P$111="Error","Error",IF(AND($N$111<>"/",$N$111>'Paramètres - Admin'!$A6),'Paramètres - Admin'!$A7,"/")) -> / | O117: =IF(N117<>"/",VLOOKUP(N117,COSTS_Hidden_Tesla[#All],2),"/") -> / | P117: =IF(N117<>"/",VLOOKUP(N117,COSTS_Hidden_Tesla[#All],3),"/") -> / | Q117: 0 | R117: 0
D118: =VLOOKUP($A$2,AVAILABLE_Buildings_Defensive[#All],MATCH(A117,AVAILABLE_Buildings_Defensive[#Headers],0)) -> 0 | E118: =VLOOKUP($A$2,AVAILABLE_Buildings_Defensive[#All],MATCH(A117,AVAILABLE_Buildings_Defensive[#Headers],0)+1) -> 0 | G118: =IF(SUM(B120:B132)>D118,"Error",SUM(B120:B132)) -> 0 | H118: =IF(G$118="Error","Error",D118-G118) -> 0 | I118: =IF(G$118="Error","Error",SUM(D120:D132)) -> 0 | J118: 6 | K118: =IF(Paramètres!U11=0,"",Paramètres!U11) ->  | L118: 0 | M118: / | N118: =IF(P$111="Error","Error",IF(AND($N$111<>"/",$N$111>'Paramètres - Admin'!$A7),'Paramètres - Admin'!$A8,"/")) -> / | O118: =IF(N118<>"/",VLOOKUP(N118,COSTS_Hidden_Tesla[#All],2),"/") -> / | P118: =IF(N118<>"/",VLOOKUP(N118,COSTS_Hidden_Tesla[#All],3),"/") -> / | Q118: 0 | R118: 0
A119: + | B119: NB | D119: NB | E119: + | F119: Coût | G119: Temps | H119: Coût Total | I119: Temps Total | J119: 7 | K119: =IF(Paramètres!U12=0,"",Paramètres!U12) ->  | L119: 0 | M119: / | N119: =IF(P$111="Error","Error",IF(AND($N$111<>"/",$N$111>'Paramètres - Admin'!$A8),'Paramètres - Admin'!$A9,"/")) -> / | O119: =IF(N119<>"/",VLOOKUP(N119,COSTS_Hidden_Tesla[#All],2),"/") -> / | P119: =IF(N119<>"/",VLOOKUP(N119,COSTS_Hidden_Tesla[#All],3),"/") -> / | Q119: 0 | R119: 0
A120: 1 | B120: =IF(Paramètres!P6=0,"",Paramètres!P6) ->  | C120: =IF(C119<>0,C119+IF(AND(B119<>"",A119<$E$118),B119,0),IF(AND(B119<>"",A119<$E$118),B119,0)) -> 0 | D120: =IF(E120<>"/",IF(G$118="Error","Error",$H$118+C120),"/") -> / | E120: =IF(G$118="Error","Error",IF(AND($E$118<>"/",$E$118>'Paramètres - Admin'!$A2),'Paramètres - Admin'!$A3,"/")) -> / | F120: =IF(E120<>"/",VLOOKUP(E120,COSTS_Archer_Tower[#All],2),"/") -> / | G120: =IF(E120<>"/",VLOOKUP(E120,COSTS_Archer_Tower[#All],3),"/") -> / | H120: =IF(G$118="Error","Error",IF(F120<>"/",D120*F120,0)) -> 0 | I120: =IF(G$118="Error","Error",IF(G120<>"/",D120*G120,0)) -> 0 | J120: 8 | K120: =IF(Paramètres!U13=0,"",Paramètres!U13) ->  | L120: 0 | M120: / | N120: =IF(P$111="Error","Error",IF(AND($N$111<>"/",$N$111>'Paramètres - Admin'!$A9),'Paramètres - Admin'!$A10,"/")) -> / | O120: =IF(N120<>"/",VLOOKUP(N120,COSTS_Hidden_Tesla[#All],2),"/") -> / | P120: =IF(N120<>"/",VLOOKUP(N120,COSTS_Hidden_Tesla[#All],3),"/") -> / | Q120: 0 | R120: 0
A121: 2 | B121: =IF(Paramètres!P7=0,"",Paramètres!P7) ->  | C121: 0 | D121: / | E121: =IF(G$118="Error","Error",IF(AND($E$118<>"/",$E$118>'Paramètres - Admin'!$A3),'Paramètres - Admin'!$A4,"/")) -> / | F121: =IF(E121<>"/",VLOOKUP(E121,COSTS_Archer_Tower[#All],2),"/") -> / | G121: =IF(E121<>"/",VLOOKUP(E121,COSTS_Archer_Tower[#All],3),"/") -> / | H121: 0 | I121: 0 | P121: Total | Q121: =IF(P$111="Error","Error",SUM(Q113:Q120)) -> 0 | R121: =IF(P$111="Error","Error",SUM(R113:R120)) -> 0
A122: 3 | B122: =IF(Paramètres!P8=0,"",Paramètres!P8) ->  | C122: 0 | D122: / | E122: =IF(G$118="Error","Error",IF(AND($E$118<>"/",$E$118>'Paramètres - Admin'!$A4),'Paramètres - Admin'!$A5,"/")) -> / | F122: =IF(E122<>"/",VLOOKUP(E122,COSTS_Archer_Tower[#All],2),"/") -> / | G122: =IF(E122<>"/",VLOOKUP(E122,COSTS_Archer_Tower[#All],3),"/") -> / | H122: 0 | I122: 0 | J122: Arc-X | M122: Max | N122: Max + | P122: Actuel | Q122: À Faire | R122: Améliorations
A123: 4 | B123: =IF(Paramètres!P9=0,"",Paramètres!P9) ->  | C123: 0 | D123: / | E123: =IF(G$118="Error","Error",IF(AND($E$118<>"/",$E$118>'Paramètres - Admin'!$A5),'Paramètres - Admin'!$A6,"/")) -> / | F123: =IF(E123<>"/",VLOOKUP(E123,COSTS_Archer_Tower[#All],2),"/") -> / | G123: =IF(E123<>"/",VLOOKUP(E123,COSTS_Archer_Tower[#All],3),"/") -> / | H123: 0 | I123: 0 | M123: =VLOOKUP($A$2,AVAILABLE_Buildings_Defensive[#All],MATCH(J122,AVAILABLE_Buildings_Defensive[#Headers],0)) -> 0 | N123: =VLOOKUP($A$2,AVAILABLE_Buildings_Defensive[#All],MATCH(J122,AVAILABLE_Buildings_Defensive[#Headers],0)+1) -> 0 | P123: =IF(SUM(K125:K128)>M123,"Error",SUM(K125:K128)) -> 0 | Q123: =IF(P$123="Error","Error",M123-P123) -> 0 | R123: =IF(P$123="Error","Error",SUM(M125:M128)) -> 0
A124: 5 | B124: =IF(Paramètres!P10=0,"",Paramètres!P10) ->  | C124: 0 | D124: / | E124: =IF(G$118="Error","Error",IF(AND($E$118<>"/",$E$118>'Paramètres - Admin'!$A6),'Paramètres - Admin'!$A7,"/")) -> / | F124: =IF(E124<>"/",VLOOKUP(E124,COSTS_Archer_Tower[#All],2),"/") -> / | G124: =IF(E124<>"/",VLOOKUP(E124,COSTS_Archer_Tower[#All],3),"/") -> / | H124: 0 | I124: 0 | J124: + | K124: NB | M124: NB | N124: + | O124: Coût | P124: Temps | Q124: Coût Total | R124: Temps Total
A125: 6 | B125: =IF(Paramètres!P11=0,"",Paramètres!P11) ->  | C125: 0 | D125: / | E125: =IF(G$118="Error","Error",IF(AND($E$118<>"/",$E$118>'Paramètres - Admin'!$A7),'Paramètres - Admin'!$A8,"/")) -> / | F125: =IF(E125<>"/",VLOOKUP(E125,COSTS_Archer_Tower[#All],2),"/") -> / | G125: =IF(E125<>"/",VLOOKUP(E125,COSTS_Archer_Tower[#All],3),"/") -> / | H125: 0 | I125: 0 | J125: 1 | K125: =IF(Paramètres!V6=0,"",Paramètres!V6) ->  | L125: =IF(L124<>0,L124+IF(AND(K124<>"",J124<N$123),K124,0),IF(AND(K124<>"",J124<N$123),K124,0)) -> 0 | M125: =IF(N125<>"/",IF(P$123="Error","Error",$Q$123+L125),"/") -> / | N125: =IF(P$123="Error","Error",IF(AND($N$123<>"/",$N$123>'Paramètres - Admin'!$A2),'Paramètres - Admin'!$A3,"/")) -> / | O125: =IF(N125<>"/",VLOOKUP(N125,COSTS_XBow[#All],2),"/") -> / | P125: =IF(N125<>"/",VLOOKUP(N125,COSTS_XBow[#All],3),"/") -> / | Q125: =IF(P$123="Error","Error",IF(O125<>"/",M125*O125,0)) -> 0 | R125: =IF(P$123="Error","Error",IF(P125<>"/",M125*P125,0)) -> 0
A126: 7 | B126: =IF(Paramètres!P12=0,"",Paramètres!P12) ->  | C126: 0 | D126: / | E126: =IF(G$118="Error","Error",IF(AND($E$118<>"/",$E$118>'Paramètres - Admin'!$A8),'Paramètres - Admin'!$A9,"/")) -> / | F126: =IF(E126<>"/",VLOOKUP(E126,COSTS_Archer_Tower[#All],2),"/") -> / | G126: =IF(E126<>"/",VLOOKUP(E126,COSTS_Archer_Tower[#All],3),"/") -> / | H126: 0 | I126: 0 | J126: 2 | K126: =IF(Paramètres!V7=0,"",Paramètres!V7) ->  | L126: =IF(L125<>0,L125+IF(AND(K125<>"",J125<N$123),K125,0),IF(AND(K125<>"",J125<N$123),K125,0)) -> 0 | M126: =IF(N126<>"/",IF(P$123="Error","Error",$Q$123+L126),"/") -> / | N126: =IF(P$123="Error","Error",IF(AND($N$123<>"/",$N$123>'Paramètres - Admin'!$A3),'Paramètres - Admin'!$A4,"/")) -> / | O126: =IF(N126<>"/",VLOOKUP(N126,COSTS_XBow[#All],2),"/") -> / | P126: =IF(N126<>"/",VLOOKUP(N126,COSTS_XBow[#All],3),"/") -> / | Q126: =IF(P$123="Error","Error",IF(O126<>"/",M126*O126,0)) -> 0 | R126: =IF(P$123="Error","Error",IF(P126<>"/",M126*P126,0)) -> 0
A127: 8 | B127: =IF(Paramètres!P13=0,"",Paramètres!P13) ->  | C127: 0 | D127: / | E127: =IF(G$118="Error","Error",IF(AND($E$118<>"/",$E$118>'Paramètres - Admin'!$A9),'Paramètres - Admin'!$A10,"/")) -> / | F127: =IF(E127<>"/",VLOOKUP(E127,COSTS_Archer_Tower[#All],2),"/") -> / | G127: =IF(E127<>"/",VLOOKUP(E127,COSTS_Archer_Tower[#All],3),"/") -> / | H127: 0 | I127: 0 | J127: 3 | K127: =IF(Paramètres!V8=0,"",Paramètres!V8) ->  | L127: =IF(L126<>0,L126+IF(AND(K126<>"",J126<N$123),K126,0),IF(AND(K126<>"",J126<N$123),K126,0)) -> 0 | M127: =IF(N127<>"/",IF(P$123="Error","Error",$Q$123+L127),"/") -> / | N127: =IF(P$123="Error","Error",IF(AND($N$123<>"/",$N$123>'Paramètres - Admin'!$A4),'Paramètres - Admin'!$A5,"/")) -> / | O127: =IF(N127<>"/",VLOOKUP(N127,COSTS_XBow[#All],2),"/") -> / | P127: =IF(N127<>"/",VLOOKUP(N127,COSTS_XBow[#All],3),"/") -> / | Q127: =IF(P$123="Error","Error",IF(O127<>"/",M127*O127,0)) -> 0 | R127: =IF(P$123="Error","Error",IF(P127<>"/",M127*P127,0)) -> 0
A128: 9 | B128: =IF(Paramètres!P14=0,"",Paramètres!P14) ->  | C128: 0 | D128: / | E128: =IF(G$118="Error","Error",IF(AND($E$118<>"/",$E$118>'Paramètres - Admin'!$A10),'Paramètres - Admin'!$A11,"/")) -> / | F128: =IF(E128<>"/",VLOOKUP(E128,COSTS_Archer_Tower[#All],2),"/") -> / | G128: =IF(E128<>"/",VLOOKUP(E128,COSTS_Archer_Tower[#All],3),"/") -> / | H128: 0 | I128: 0 | J128: 4 | K128: =IF(Paramètres!V9=0,"",Paramètres!V9) ->  | L128: =IF(L127<>0,L127+IF(AND(K127<>"",J127<N$123),K127,0),IF(AND(K127<>"",J127<N$123),K127,0)) -> 0 | M128: =IF(N128<>"/",IF(P$123="Error","Error",$Q$123+L128),"/") -> / | N128: =IF(P$123="Error","Error",IF(AND($N$123<>"/",$N$123>'Paramètres - Admin'!$A5),'Paramètres - Admin'!$A6,"/")) -> / | O128: =IF(N128<>"/",VLOOKUP(N128,COSTS_XBow[#All],2),"/") -> / | P128: =IF(N128<>"/",VLOOKUP(N128,COSTS_XBow[#All],3),"/") -> / | Q128: =IF(P$123="Error","Error",IF(O128<>"/",M128*O128,0)) -> 0 | R128: =IF(P$123="Error","Error",IF(P128<>"/",M128*P128,0)) -> 0
A129: 10 | B129: =IF(Paramètres!P15=0,"",Paramètres!P15) ->  | C129: 0 | D129: / | E129: =IF(G$118="Error","Error",IF(AND($E$118<>"/",$E$118>'Paramètres - Admin'!$A11),'Paramètres - Admin'!$A12,"/")) -> / | F129: =IF(E129<>"/",VLOOKUP(E129,COSTS_Archer_Tower[#All],2),"/") -> / | G129: =IF(E129<>"/",VLOOKUP(E129,COSTS_Archer_Tower[#All],3),"/") -> / | H129: 0 | I129: 0 | P129: Total | Q129: =IF(P$123="Error","Error",SUM(Q125:Q128)) -> 0 | R129: =IF(P$123="Error","Error",SUM(R125:R128)) -> 0
A130: 11 | B130: =IF(Paramètres!P16=0,"",Paramètres!P16) ->  | C130: 0 | D130: / | E130: =IF(G$118="Error","Error",IF(AND($E$118<>"/",$E$118>'Paramètres - Admin'!$A12),'Paramètres - Admin'!$A13,"/")) -> / | F130: =IF(E130<>"/",VLOOKUP(E130,COSTS_Archer_Tower[#All],2),"/") -> / | G130: =IF(E130<>"/",VLOOKUP(E130,COSTS_Archer_Tower[#All],3),"/") -> / | H130: 0 | I130: 0 | J130: Tour de l'Enfer | M130: Max | N130: Max + | P130: Actuel | Q130: À Faire | R130: Améliorations
A131: 12 | B131: =IF(Paramètres!P17=0,"",Paramètres!P17) ->  | C131: 0 | D131: / | E131: =IF(G$118="Error","Error",IF(AND($E$118<>"/",$E$118>'Paramètres - Admin'!$A13),'Paramètres - Admin'!$A14,"/")) -> / | F131: =IF(E131<>"/",VLOOKUP(E131,COSTS_Archer_Tower[#All],2),"/") -> / | G131: =IF(E131<>"/",VLOOKUP(E131,COSTS_Archer_Tower[#All],3),"/") -> / | H131: 0 | I131: 0 | M131: =VLOOKUP($A$2,AVAILABLE_Buildings_Defensive[#All],MATCH(J130,AVAILABLE_Buildings_Defensive[#Headers],0)) -> 0 | N131: =VLOOKUP($A$2,AVAILABLE_Buildings_Defensive[#All],MATCH(J130,AVAILABLE_Buildings_Defensive[#Headers],0)+1) -> 0 | P131: =IF(SUM(K133:K135)>M131,"Error",SUM(K133:K135)) -> 0 | Q131: =IF(P$131="Error","Error",M131-P131) -> 0 | R131: =IF(P$131="Error","Error",SUM(M133:M135)) -> 0
A132: 13 | B132: =IF(Paramètres!P18=0,"",Paramètres!P18) ->  | C132: 0 | D132: / | E132: =IF(G$118="Error","Error",IF(AND($E$118<>"/",$E$118>'Paramètres - Admin'!$A14),'Paramètres - Admin'!$A15,"/")) -> / | F132: =IF(E132<>"/",VLOOKUP(E132,COSTS_Archer_Tower[#All],2),"/") -> / | G132: =IF(E132<>"/",VLOOKUP(E132,COSTS_Archer_Tower[#All],3),"/") -> / | H132: 0 | I132: 0 | J132: + | K132: NB | M132: NB | N132: + | O132: Coût | P132: Temps | Q132: Coût Total | R132: Temps Total
G133: Total | H133: =IF(G$118="Error","Error",SUM(H120:H132)) -> 0 | I133: =IF(G$118="Error","Error",SUM(I120:I132)) -> 0 | J133: 1 | K133: =IF(Paramètres!W6=0,"",Paramètres!X6) ->  | L133: =IF(L132<>0,L132+IF(AND(K132<>"",J132<N$131),K132,0),IF(AND(K132<>"",J132<N$131),K132,0)) -> 0 | M133: =IF(N133<>"/",IF(P$131="Error","Error",$Q$131+L133),"/") -> / | N133: =IF(P$131="Error","Error",IF(AND($N$131<>"/",$N$131>'Paramètres - Admin'!$A2),'Paramètres - Admin'!$A3,"/")) -> / | O133: =IF(N133<>"/",VLOOKUP(N133,COSTS_Inferno_Tower[#All],2),"/") -> / | P133: =IF(N133<>"/",VLOOKUP(N133,COSTS_Inferno_Tower[#All],3),"/") -> / | Q133: =IF(P$131="Error","Error",IF(O133<>"/",M133*O133,0)) -> 0 | R133: =IF(P$131="Error","Error",IF(P133<>"/",M133*P133,0)) -> 0
A134: Mortier | D134: Max | E134: Max + | G134: Actuel | H134: À Faire | I134: Améliorations | J134: 2 | K134: =IF(Paramètres!W7=0,"",Paramètres!X7) ->  | L134: =IF(L133<>0,L133+IF(AND(K133<>"",J133<N$131),K133,0),IF(AND(K133<>"",J133<N$131),K133,0)) -> 0 | M134: =IF(N134<>"/",IF(P$131="Error","Error",$Q$131+L134),"/") -> / | N134: =IF(P$131="Error","Error",IF(AND($N$131<>"/",$N$131>'Paramètres - Admin'!$A3),'Paramètres - Admin'!$A4,"/")) -> / | O134: =IF(N134<>"/",VLOOKUP(N134,COSTS_Inferno_Tower[#All],2),"/") -> / | P134: =IF(N134<>"/",VLOOKUP(N134,COSTS_Inferno_Tower[#All],3),"/") -> / | Q134: =IF(P$131="Error","Error",IF(O134<>"/",M134*O134,0)) -> 0 | R134: =IF(P$131="Error","Error",IF(P134<>"/",M134*P134,0)) -> 0
D135: =VLOOKUP($A$2,AVAILABLE_Buildings_Defensive[#All],MATCH(A134,AVAILABLE_Buildings_Defensive[#Headers],0)) -> 0 | E135: =VLOOKUP($A$2,AVAILABLE_Buildings_Defensive[#All],MATCH(A134,AVAILABLE_Buildings_Defensive[#Headers],0)+1) -> 0 | G135: =IF(SUM(B137:B144)>D135,"Error",SUM(B137:B144)) -> 0 | H135: =IF(G$135="Error","Error",D135-G135) -> 0 | I135: =IF(G$135="Error","Error",SUM(D137:D144)) -> 0 | J135: 3 | K135: =IF(Paramètres!W8=0,"",Paramètres!X8) ->  | L135: =IF(L134<>0,L134+IF(AND(K134<>"",J134<N$131),K134,0),IF(AND(K134<>"",J134<N$131),K134,0)) -> 0 | M135: =IF(N135<>"/",IF(P$131="Error","Error",$Q$131+L135),"/") -> / | N135: =IF(P$131="Error","Error",IF(AND($N$131<>"/",$N$131>'Paramètres - Admin'!$A4),'Paramètres - Admin'!$A5,"/")) -> / | O135: =IF(N135<>"/",VLOOKUP(N135,COSTS_Inferno_Tower[#All],2),"/") -> / | P135: =IF(N135<>"/",VLOOKUP(N135,COSTS_Inferno_Tower[#All],3),"/") -> / | Q135: =IF(P$131="Error","Error",IF(O135<>"/",M135*O135,0)) -> 0 | R135: =IF(P$131="Error","Error",IF(P135<>"/",M135*P135,0)) -> 0
A136: + | B136: NB | D136: NB | E136: + | F136: Coût | G136: Temps | H136: Coût Total | I136: Temps Total | P136: Total | Q136: =IF(P$131="Error","Error",SUM(Q133:Q135)) -> 0 | R136: =IF(P$131="Error","Error",SUM(R133:R135)) -> 0
A137: 1 | B137: =IF(Paramètres!Q6=0,"",Paramètres!Q6) ->  | C137: =IF(C136<>0,C136+IF(AND(B136<>"",A136<E$135),B136,0),IF(AND(B136<>"",A136<E$135),B136,0)) -> 0 | D137: =IF(E137<>"/",IF(G$135="Error","Error",$H$135+C137),"/") -> / | E137: =IF(G$135="Error","Error",IF(AND($E$135<>"/",$E$135>'Paramètres - Admin'!$A2),'Paramètres - Admin'!$A3,"/")) -> / | F137: =IF(E137<>"/",VLOOKUP(E137,COSTS_Mortar[#All],2),"/") -> / | G137: =IF(E137<>"/",VLOOKUP(E137,COSTS_Mortar[#All],3),"/") -> / | H137: =IF(G$135="Error","Error",IF(F137<>"/",D137*F137,0)) -> 0 | I137: =IF(G$135="Error","Error",IF(G137<>"/",D137*G137,0)) -> 0 | J137: Propulseur d'air | M137: Max | N137: Max + | P137: Actuel | Q137: À Faire | R137: Améliorations
A138: 2 | B138: =IF(Paramètres!Q7=0,"",Paramètres!Q7) ->  | C138: =IF(C137<>0,C137+IF(AND(B137<>"",A137<E$135),B137,0),IF(AND(B137<>"",A137<E$135),B137,0)) -> 0 | D138: / | E138: =IF(G$135="Error","Error",IF(AND($E$135<>"/",$E$135>'Paramètres - Admin'!$A3),'Paramètres - Admin'!$A4,"/")) -> / | F138: =IF(E138<>"/",VLOOKUP(E138,COSTS_Mortar[#All],2),"/") -> / | G138: =IF(E138<>"/",VLOOKUP(E138,COSTS_Mortar[#All],3),"/") -> / | H138: 0 | I138: 0 | M138: =VLOOKUP($A$2,AVAILABLE_Buildings_Defensive[#All],MATCH(J137,AVAILABLE_Buildings_Defensive[#Headers],0)) -> 0 | N138: =VLOOKUP($A$2,AVAILABLE_Buildings_Defensive[#All],MATCH(J137,AVAILABLE_Buildings_Defensive[#Headers],0)+1) -> 0 | P138: =IF(SUM(K140:K145)>M138,"Error",SUM(K140:K145)) -> 0 | Q138: =IF(P$138="Error","Error",M138-P138) -> 0 | R138: =IF(P$138="Error","Error",SUM(M140:M145)) -> 0
A139: 3 | B139: =IF(Paramètres!Q8=0,"",Paramètres!Q8) ->  | C139: 0 | D139: / | E139: =IF(G$135="Error","Error",IF(AND($E$135<>"/",$E$135>'Paramètres - Admin'!$A4),'Paramètres - Admin'!$A5,"/")) -> / | F139: =IF(E139<>"/",VLOOKUP(E139,COSTS_Mortar[#All],2),"/") -> / | G139: =IF(E139<>"/",VLOOKUP(E139,COSTS_Mortar[#All],3),"/") -> / | H139: 0 | I139: 0 | J139: + | K139: NB | M139: NB | N139: + | O139: Coût | P139: Temps | Q139: Coût Total | R139: Temps Total
A140: 4 | B140: =IF(Paramètres!Q9=0,"",Paramètres!Q9) ->  | C140: 0 | D140: / | E140: =IF(G$135="Error","Error",IF(AND($E$135<>"/",$E$135>'Paramètres - Admin'!$A5),'Paramètres - Admin'!$A6,"/")) -> / | F140: =IF(E140<>"/",VLOOKUP(E140,COSTS_Mortar[#All],2),"/") -> / | G140: =IF(E140<>"/",VLOOKUP(E140,COSTS_Mortar[#All],3),"/") -> / | H140: 0 | I140: 0 | J140: 1 | K140: =IF(Paramètres!T6=0,"",Paramètres!T6) ->  | L140: =IF(L139<>0,L139+IF(AND(K139<>"",J139<N$138),K139,0),IF(AND(K139<>"",J139<N$138),K139,0)) -> 0 | M140: =IF(N140<>"/",IF(P$138="Error","Error",$Q$138+L140),"/") -> / | N140: =IF(P$138="Error","Error",IF(AND($N$138<>"/",$N$138>'Paramètres - Admin'!$A2),'Paramètres - Admin'!$A3,"/")) -> / | O140: =IF(N140<>"/",VLOOKUP(N140,COSTS_Air_Sweeper[#All],2),"/") -> / | P140: =IF(N140<>"/",VLOOKUP(N140,COSTS_Air_Sweeper[#All],3),"/") -> / | Q140: =IF(P$138="Error","Error",IF(O140<>"/",M140*O140,0)) -> 0 | R140: =IF(P$138="Error","Error",IF(P140<>"/",M140*P140,0)) -> 0
A141: 5 | B141: =IF(Paramètres!Q10=0,"",Paramètres!Q10) ->  | C141: 0 | D141: / | E141: =IF(G$135="Error","Error",IF(AND($E$135<>"/",$E$135>'Paramètres - Admin'!$A6),'Paramètres - Admin'!$A7,"/")) -> / | F141: =IF(E141<>"/",VLOOKUP(E141,COSTS_Mortar[#All],2),"/") -> / | G141: =IF(E141<>"/",VLOOKUP(E141,COSTS_Mortar[#All],3),"/") -> / | H141: 0 | I141: 0 | J141: 2 | K141: =IF(Paramètres!T7=0,"",Paramètres!T7) ->  | L141: 0 | M141: / | N141: =IF(P$138="Error","Error",IF(AND($N$138<>"/",$N$138>'Paramètres - Admin'!$A3),'Paramètres - Admin'!$A4,"/")) -> / | O141: =IF(N141<>"/",VLOOKUP(N141,COSTS_Air_Sweeper[#All],2),"/") -> / | P141: =IF(N141<>"/",VLOOKUP(N141,COSTS_Air_Sweeper[#All],3),"/") -> / | Q141: 0 | R141: 0
A142: 6 | B142: =IF(Paramètres!Q11=0,"",Paramètres!Q11) ->  | C142: 0 | D142: / | E142: =IF(G$135="Error","Error",IF(AND($E$135<>"/",$E$135>'Paramètres - Admin'!$A7),'Paramètres - Admin'!$A8,"/")) -> / | F142: =IF(E142<>"/",VLOOKUP(E142,COSTS_Mortar[#All],2),"/") -> / | G142: =IF(E142<>"/",VLOOKUP(E142,COSTS_Mortar[#All],3),"/") -> / | H142: 0 | I142: 0 | J142: 3 | K142: =IF(Paramètres!T8=0,"",Paramètres!T8) ->  | L142: 0 | M142: / | N142: =IF(P$138="Error","Error",IF(AND($N$138<>"/",$N$138>'Paramètres - Admin'!$A4),'Paramètres - Admin'!$A5,"/")) -> / | O142: =IF(N142<>"/",VLOOKUP(N142,COSTS_Air_Sweeper[#All],2),"/") -> / | P142: =IF(N142<>"/",VLOOKUP(N142,COSTS_Air_Sweeper[#All],3),"/") -> / | Q142: 0 | R142: 0
A143: 7 | B143: =IF(Paramètres!Q12=0,"",Paramètres!Q12) ->  | C143: 0 | D143: / | E143: =IF(G$135="Error","Error",IF(AND($E$135<>"/",$E$135>'Paramètres - Admin'!$A8),'Paramètres - Admin'!$A9,"/")) -> / | F143: =IF(E143<>"/",VLOOKUP(E143,COSTS_Mortar[#All],2),"/") -> / | G143: =IF(E143<>"/",VLOOKUP(E143,COSTS_Mortar[#All],3),"/") -> / | H143: 0 | I143: 0 | J143: 4 | K143: =IF(Paramètres!T9=0,"",Paramètres!T9) ->  | L143: 0 | M143: / | N143: =IF(P$138="Error","Error",IF(AND($N$138<>"/",$N$138>'Paramètres - Admin'!$A5),'Paramètres - Admin'!$A6,"/")) -> / | O143: =IF(N143<>"/",VLOOKUP(N143,COSTS_Air_Sweeper[#All],2),"/") -> / | P143: =IF(N143<>"/",VLOOKUP(N143,COSTS_Air_Sweeper[#All],3),"/") -> / | Q143: 0 | R143: 0
A144: 8 | B144: =IF(Paramètres!Q13=0,"",Paramètres!Q13) ->  | C144: 0 | D144: / | E144: =IF(G$135="Error","Error",IF(AND($E$135<>"/",$E$135>'Paramètres - Admin'!$A9),'Paramètres - Admin'!$A10,"/")) -> / | F144: =IF(E144<>"/",VLOOKUP(E144,COSTS_Mortar[#All],2),"/") -> / | G144: =IF(E144<>"/",VLOOKUP(E144,COSTS_Mortar[#All],3),"/") -> / | H144: 0 | I144: 0 | J144: 5 | K144: =IF(Paramètres!T10=0,"",Paramètres!T10) ->  | L144: 0 | M144: / | N144: =IF(P$138="Error","Error",IF(AND($N$138<>"/",$N$138>'Paramètres - Admin'!$A6),'Paramètres - Admin'!$A7,"/")) -> / | O144: =IF(N144<>"/",VLOOKUP(N144,COSTS_Air_Sweeper[#All],2),"/") -> / | P144: =IF(N144<>"/",VLOOKUP(N144,COSTS_Air_Sweeper[#All],3),"/") -> / | Q144: 0 | R144: 0
G145: Total | H145: =IF(G$135="Error","Error",SUM(H137:H144)) -> 0 | I145: =IF(G$135="Error","Error",SUM(I137:I144)) -> 0 | J145: 6 | K145: =IF(Paramètres!T11=0,"",Paramètres!T11) ->  | L145: 0 | M145: / | N145: =IF(P$138="Error","Error",IF(AND($N$138<>"/",$N$138>'Paramètres - Admin'!$A7),'Paramètres - Admin'!$A8,"/")) -> / | O145: =IF(N145<>"/",VLOOKUP(N145,COSTS_Air_Sweeper[#All],2),"/") -> / | P145: =IF(N145<>"/",VLOOKUP(N145,COSTS_Air_Sweeper[#All],3),"/") -> / | Q145: 0 | R145: 0
A146: Aigle Artilleur | D146: Max | E146: Max + | G146: Actuel | H146: À Faire | I146: Améliorations | P146: Total | Q146: =IF(P$138="Error","Error",SUM(Q140:Q145)) -> 0 | R146: =IF(P$138="Error","Error",SUM(R140:R145)) -> 0
D147: =VLOOKUP($A$2,AVAILABLE_Buildings_Defensive[#All],MATCH(A146,AVAILABLE_Buildings_Defensive[#Headers],0)) -> 0 | E147: =VLOOKUP($A$2,AVAILABLE_Buildings_Defensive[#All],MATCH(A146,AVAILABLE_Buildings_Defensive[#Headers],0)+1) -> 0 | G147: =IF(SUM(B149:B150)>D147,"Error",SUM(B149:B150)) -> 0 | H147: =IF(D$147="Error","Error",D147-G147) -> 0 | I147: =IF(G$147="Error","Error",SUM(D149:D150)) -> 0
A148: + | B148: NB | D148: NB | E148: + | F148: Coût | G148: Temps | H148: Coût Total | I148: Temps Total
A149: 1 | B149: =IF(Paramètres!X6=0,"",Paramètres!X6) ->  | C149: =IF(C148<>0,C148+IF(AND(B148<>"",A148<E$147),B148,0),IF(AND(B148<>"",A148<E$147),B148,0)) -> 0 | D149: =IF(E149<>"/",IF(G$147="Error","Error",$H$147+C149),"/") -> / | E149: =IF(G$147="Error","Error",IF(AND($E$147<>"/",$E$147>'Paramètres - Admin'!$A2),'Paramètres - Admin'!$A3,"/")) -> / | F149: =IF(E149<>"/",VLOOKUP(E149,COSTS_Defense_Aigle[#All],2),"/") -> / | G149: =IF(E149<>"/",VLOOKUP(E149,COSTS_Defense_Aigle[#All],3),"/") -> / | H149: =IF(G$110="Error","Error",IF(F149<>"/",D149*F149,0)) -> 0 | I149: =IF(G$110="Error","Error",IF(G149<>"/",D149*G149,0)) -> 0
A150: 2 | B150: =IF(Paramètres!X7=0,"",Paramètres!X7) ->  | C150: =IF(C149<>0,C149+IF(AND(B149<>"",A149<E$147),B149,0),IF(AND(B149<>"",A149<E$147),B149,0)) -> 0 | D150: =IF(E150<>"/",IF(G$147="Error","Error",$H$147+C150),"/") -> / | E150: =IF(G$147="Error","Error",IF(AND($E$147<>"/",$E$147>'Paramètres - Admin'!$A3),'Paramètres - Admin'!$A4,"/")) -> / | F150: =IF(E150<>"/",VLOOKUP(E150,COSTS_Defense_Aigle[#All],2),"/") -> / | G150: =IF(E150<>"/",VLOOKUP(E150,COSTS_Defense_Aigle[#All],3),"/") -> / | H150: =IF(G$147="Error","Error",IF(F150<>"/",D150*F150,0)) -> 0 | I150: =IF(G$147="Error","Error",IF(G150<>"/",D150*G150,0)) -> 0
G151: Total | H151: =IF(G$130="Error","Error",SUM(H149:H150)) -> 0 | I151: =IF(G$130="Error","Error",SUM(I149:I150)) -> 0
A153: Pièges Défensifs
A154: Bombe | D154: Max | E154: Max + | G154: Actuel | H154: À Faire | I154: Améliorations | J154: Bombe aérienne | M154: Max | N154: Max + | P154: Actuel | Q154: À Faire | R154: Améliorations
D155: =VLOOKUP($A$2,AVAILABLE_Traps[#All],MATCH(A154,AVAILABLE_Traps[#Headers],0)) -> 0 | E155: =VLOOKUP($A$2,AVAILABLE_Traps[#All],MATCH(A154,AVAILABLE_Traps[#Headers],0)+1) -> 0 | G155: =IF(SUM(B157:B162)>D155,"Error",SUM(B157:B162)) -> 0 | H155: =IF(G$155="Error","Error",D155-G155) -> 0 | I155: =IF(G$155="Error","Error",SUM(D157:D162)) -> 0 | M155: =VLOOKUP($A$2,AVAILABLE_Traps[#All],MATCH(J154,AVAILABLE_Traps[#Headers],0)) -> 0 | N155: =VLOOKUP($A$2,AVAILABLE_Traps[#All],MATCH(J154,AVAILABLE_Traps[#Headers],0)+1) -> 0 | P155: =IF(SUM(K157:K160)>M155,"Error",SUM(K157:K160)) -> 0 | Q155: =IF(P$155="Error","Error",M155-P155) -> 0 | R155: =IF(P$155="Error","Error",SUM(M157:M160)) -> 0
A156: + | B156: NB | D156: NB | E156: + | F156: Coût | G156: Temps | H156: Coût Total | I156: Temps Total | J156: + | K156: NB | M156: NB | N156: + | O156: Coût | P156: Temps | Q156: Coût Total | R156: Temps Total
A157: 1 | B157: =IF(Paramètres!Y6=0,"",Paramètres!Y6) ->  | C157: =IF(C156<>0,C156+IF(AND(B156<>"",A156<E$155),B156,0),IF(AND(B156<>"",A156<E$155),B156,0)) -> 0 | D157: =IF(E157<>"/",IF($G$155="Error","Error",$H$155+C157),"/") -> / | E157: =IF(G$155="Error","Error",IF(AND($E$155<>"/",$E$155>'Paramètres - Admin'!$A2),'Paramètres - Admin'!$A3,"/")) -> / | F157: =IF(E157<>"/",VLOOKUP(E157,COSTS_Bomb[#All],2),"/") -> / | G157: =IF(E157<>"/",VLOOKUP(E157,COSTS_Bomb[#All],3),"/") -> / | H157: =IF(G$155="Error","Error",IF(F157<>"/",D157*F157,0)) -> 0 | I157: =IF(G$155="Error","Error",IF(G157<>"/",D157*G157,0)) -> 0 | J157: 1 | K157: =IF(Paramètres!AB6=0,"",Paramètres!AB6) ->  | L157: =IF(L156<>0,L156+IF(AND(K156<>"",J156<N$155),K156,0),IF(AND(K156<>"",J156<N$155),K156,0)) -> 0 | M157: =IF(N157<>"/",IF($P$155="Error","Error",$Q$155+L157),"/") -> / | N157: =IF(P$155="Error","Error",IF(AND($N$155<>"/",$N$155>'Paramètres - Admin'!$A2),'Paramètres - Admin'!$A3,"/")) -> / | O157: =IF(N157<>"/",VLOOKUP(N157,COST_Air_Bomb[#All],2),"/") -> / | P157: =IF(N157<>"/",VLOOKUP(N157,COST_Air_Bomb[#All],3),"/") -> / | Q157: =IF(P$155="Error","Error",IF(O157<>"/",M157*O157,0)) -> 0 | R157: =IF(P$155="Error","Error",IF(P157<>"/",M157*P157,0)) -> 0
A158: 2 | B158: =IF(Paramètres!Y7=0,"",Paramètres!Y7) ->  | C158: 0 | D158: / | E158: =IF(G$155="Error","Error",IF(AND($E$155<>"/",$E$155>'Paramètres - Admin'!$A3),'Paramètres - Admin'!$A4,"/")) -> / | F158: =IF(E158<>"/",VLOOKUP(E158,COSTS_Bomb[#All],2),"/") -> / | G158: =IF(E158<>"/",VLOOKUP(E158,COSTS_Bomb[#All],3),"/") -> / | H158: 0 | I158: =IF(G$86="Error","Error",IF(G158<>"/",D158*G158,0)) -> 0 | J158: 2 | K158: =IF(Paramètres!AB7=0,"",Paramètres!AB7) ->  | L158: =IF(L157<>0,L157+IF(AND(K157<>"",J157<N$155),K157,0),IF(AND(K157<>"",J157<N$155),K157,0)) -> 0 | M158: =IF(N158<>"/",IF($P$155="Error","Error",$Q$155+L158),"/") -> / | N158: =IF(P$155="Error","Error",IF(AND($N$155<>"/",$N$155>'Paramètres - Admin'!$A3),'Paramètres - Admin'!$A4,"/")) -> / | O158: =IF(N158<>"/",VLOOKUP(N158,COST_Air_Bomb[#All],2),"/") -> / | P158: =IF(N158<>"/",VLOOKUP(N158,COST_Air_Bomb[#All],3),"/") -> / | Q158: =IF(P$155="Error","Error",IF(O158<>"/",M158*O158,0)) -> 0 | R158: =IF(P$155="Error","Error",IF(P158<>"/",M158*P158,0)) -> 0
A159: 3 | B159: =IF(Paramètres!Y8=0,"",Paramètres!Y8) ->  | C159: 0 | D159: / | E159: =IF(G$155="Error","Error",IF(AND($E$155<>"/",$E$155>'Paramètres - Admin'!$A4),'Paramètres - Admin'!$A5,"/")) -> / | F159: =IF(E159<>"/",VLOOKUP(E159,COSTS_Bomb[#All],2),"/") -> / | G159: =IF(E159<>"/",VLOOKUP(E159,COSTS_Bomb[#All],3),"/") -> / | H159: 0 | I159: =IF(G$86="Error","Error",IF(G159<>"/",D159*G159,0)) -> 0 | J159: 3 | K159: =IF(Paramètres!AB8=0,"",Paramètres!AB8) ->  | L159: =IF(L158<>0,L158+IF(AND(K158<>"",J158<N$155),K158,0),IF(AND(K158<>"",J158<N$155),K158,0)) -> 0 | M159: =IF(N159<>"/",IF($P$155="Error","Error",$Q$155+L159),"/") -> / | N159: =IF(P$155="Error","Error",IF(AND($N$155<>"/",$N$155>'Paramètres - Admin'!$A4),'Paramètres - Admin'!$A5,"/")) -> / | O159: =IF(N159<>"/",VLOOKUP(N159,COST_Air_Bomb[#All],2),"/") -> / | P159: =IF(N159<>"/",VLOOKUP(N159,COST_Air_Bomb[#All],3),"/") -> / | Q159: =IF(P$155="Error","Error",IF(O159<>"/",M159*O159,0)) -> 0 | R159: =IF(P$155="Error","Error",IF(P159<>"/",M159*P159,0)) -> 0
A160: 4 | B160: =IF(Paramètres!Y9=0,"",Paramètres!Y9) ->  | C160: 0 | D160: / | E160: =IF(G$155="Error","Error",IF(AND($E$155<>"/",$E$155>'Paramètres - Admin'!$A5),'Paramètres - Admin'!$A6,"/")) -> / | F160: =IF(E160<>"/",VLOOKUP(E160,COSTS_Bomb[#All],2),"/") -> / | G160: =IF(E160<>"/",VLOOKUP(E160,COSTS_Bomb[#All],3),"/") -> / | H160: 0 | I160: =IF(G$86="Error","Error",IF(G160<>"/",D160*G160,0)) -> 0 | J160: 4 | K160: =IF(Paramètres!AB9=0,"",Paramètres!AB9) ->  | L160: =IF(L159<>0,L159+IF(AND(K159<>"",J159<N$155),K159,0),IF(AND(K159<>"",J159<N$155),K159,0)) -> 0 | M160: =IF(N160<>"/",IF($P$155="Error","Error",$Q$155+L160),"/") -> / | N160: =IF(P$155="Error","Error",IF(AND($N$155<>"/",$N$155>'Paramètres - Admin'!$A5),'Paramètres - Admin'!$A6,"/")) -> / | O160: =IF(N160<>"/",VLOOKUP(N160,COST_Air_Bomb[#All],2),"/") -> / | P160: =IF(N160<>"/",VLOOKUP(N160,COST_Air_Bomb[#All],3),"/") -> / | Q160: =IF(P$155="Error","Error",IF(O160<>"/",M160*O160,0)) -> 0 | R160: =IF(P$155="Error","Error",IF(P160<>"/",M160*P160,0)) -> 0
A161: 5 | B161: =IF(Paramètres!Y10=0,"",Paramètres!Y10) ->  | C161: 0 | D161: / | E161: =IF(G$155="Error","Error",IF(AND($E$155<>"/",$E$155>'Paramètres - Admin'!$A6),'Paramètres - Admin'!$A7,"/")) -> / | F161: =IF(E161<>"/",VLOOKUP(E161,COSTS_Bomb[#All],2),"/") -> / | G161: =IF(E161<>"/",VLOOKUP(E161,COSTS_Bomb[#All],3),"/") -> / | H161: 0 | I161: =IF(G$86="Error","Error",IF(G161<>"/",D161*G161,0)) -> 0 | P161: Total | Q161: =IF(P$155="Error","Error",SUM(Q157:Q160)) -> 0 | R161: =IF(P$155="Error","Error",SUM(R157:R160)) -> 0
A162: 6 | B162: =IF(Paramètres!Y11=0,"",Paramètres!Y11) ->  | C162: 0 | D162: / | E162: =IF(G$155="Error","Error",IF(AND($E$155<>"/",$E$155>'Paramètres - Admin'!$A7),'Paramètres - Admin'!$A8,"/")) -> / | F162: =IF(E162<>"/",VLOOKUP(E162,COSTS_Bomb[#All],2),"/") -> / | G162: =IF(E162<>"/",VLOOKUP(E162,COSTS_Bomb[#All],3),"/") -> / | H162: 0 | I162: =IF(G$155="Error","Error",IF(G162<>"/",D162*G162,0)) -> 0 | J162: Tête chercheuse | M162: Max | N162: Max + | P162: Actuel | Q162: À Faire | R162: Améliorations
G163: Total | H163: =IF(G$155="Error","Error",SUM(H157:H162)) -> 0 | I163: =IF(G$155="Error","Error",SUM(I157:I162)) -> 0 | M163: =VLOOKUP($A$2,AVAILABLE_Traps[#All],MATCH(J162,AVAILABLE_Traps[#Headers],0)) -> 0 | N163: =VLOOKUP($A$2,AVAILABLE_Traps[#All],MATCH(J162,AVAILABLE_Traps[#Headers],0)+1) -> 0 | P163: =IF(SUM(K165:K167)>M163,"Error",SUM(K165:K167)) -> 0 | Q163: =IF(P$163="Error","Error",M163-P163) -> 0 | R163: =IF(P$163="Error","Error",SUM(M165:M167)) -> 0
A164: Piège à ressort | D164: Max | E164: Max + | G164: Actuel | H164: À Faire | I164: Améliorations | J164: + | K164: NB | M164: NB | N164: + | O164: Coût | P164: Temps | Q164: Coût Total | R164: Temps Total
D165: =VLOOKUP($A$2,AVAILABLE_Traps[#All],MATCH(A164,AVAILABLE_Traps[#Headers],0)) -> 0 | E165: =VLOOKUP($A$2,AVAILABLE_Traps[#All],MATCH(A164,AVAILABLE_Traps[#Headers],0)+1) -> 0 | G165: =IF(SUM(B167:B167)>D165,"Error",SUM(B167:B167)) -> 0 | H165: =IF(G$165="Error","Error",D165-G165) -> 0 | I165: =IF(G$165="Error","Error",SUM(D167:D167)) -> 0 | J165: 1 | K165: =IF(Paramètres!AC6=0,"",Paramètres!AC6) ->  | L165: =IF(L164<>0,L164+IF(AND(K164<>"",J164<N$163),K164,0),IF(AND(K164<>"",J164<N$163),K164,0)) -> 0 | M165: =IF(N165<>"/",IF($P$163="Error","Error",$Q$163+L165),"/") -> / | N165: =IF(P$163="Error","Error",IF(AND($N$163<>"/",$N$163>'Paramètres - Admin'!$A2),'Paramètres - Admin'!$A3,"/")) -> / | O165: =IF(N165<>"/",VLOOKUP(N165,COST_Seeking_Air_Mine[#All],2),"/") -> / | P165: =IF(N165<>"/",VLOOKUP(N165,COST_Seeking_Air_Mine[#All],3),"/") -> / | Q165: =IF(P$163="Error","Error",IF(O165<>"/",M165*O165,0)) -> 0 | R165: =IF(P$163="Error","Error",IF(P165<>"/",M165*P165,0)) -> 0
A166: + | B166: NB | D166: NB | E166: + | F166: Coût | G166: Temps | H166: Coût Total | I166: Temps Total | J166: 2 | K166: =IF(Paramètres!AC7=0,"",Paramètres!AC7) ->  | L166: =IF(L165<>0,L165+IF(AND(K165<>"",J165<N$163),K165,0),IF(AND(K165<>"",J165<N$163),K165,0)) -> 0 | M166: =IF(N166<>"/",IF($P$163="Error","Error",$Q$163+L166),"/") -> / | N166: =IF(P$163="Error","Error",IF(AND($N$163<>"/",$N$163>'Paramètres - Admin'!$A3),'Paramètres - Admin'!$A4,"/")) -> / | O166: =IF(N166<>"/",VLOOKUP(N166,COST_Seeking_Air_Mine[#All],2),"/") -> / | P166: =IF(N166<>"/",VLOOKUP(N166,COST_Seeking_Air_Mine[#All],3),"/") -> / | Q166: =IF(P$163="Error","Error",IF(O166<>"/",M166*O166,0)) -> 0 | R166: =IF(P$163="Error","Error",IF(P166<>"/",M166*P166,0)) -> 0
A167: 1 | B167: =IF(Paramètres!Z6=0,"",Paramètres!Z6) ->  | C167: =IF(C166<>0,C166+IF(AND(B166<>"",A166<E$165),B166,0),IF(AND(B166<>"",A166<E$165),B166,0)) -> 0 | D167: =IF(E167<>"/",IF($G$165="Error","Error",$H$165+C167),"/") -> / | E167: =IF(G$165="Error","Error",IF(AND($E$165<>"/",$E$165>'Paramètres - Admin'!$A2),'Paramètres - Admin'!$A3,"/")) -> / | F167: =IF(E167<>"/",VLOOKUP(E167,COSTS_Spring_Trap[#All],2),"/") -> / | G167: =IF(E167<>"/",VLOOKUP(E167,COSTS_Spring_Trap[#All],3),"/") -> / | H167: =IF(G$165="Error","Error",IF(F167<>"/",D167*F167,0)) -> 0 | I167: =IF(G$165="Error","Error",IF(G167<>"/",D167*G167,0)) -> 0 | J167: 3 | K167: =IF(Paramètres!AC8=0,"",Paramètres!AC8) ->  | L167: =IF(L166<>0,L166+IF(AND(K166<>"",J166<N$163),K166,0),IF(AND(K166<>"",J166<N$163),K166,0)) -> 0 | M167: =IF(N167<>"/",IF($P$163="Error","Error",$Q$163+L167),"/") -> / | N167: =IF(P$163="Error","Error",IF(AND($N$163<>"/",$N$163>'Paramètres - Admin'!$A4),'Paramètres - Admin'!$A5,"/")) -> / | O167: =IF(N167<>"/",VLOOKUP(N167,COST_Seeking_Air_Mine[#All],2),"/") -> / | P167: =IF(N167<>"/",VLOOKUP(N167,COST_Seeking_Air_Mine[#All],3),"/") -> / | Q167: =IF(P$163="Error","Error",IF(O167<>"/",M167*O167,0)) -> 0 | R167: =IF(P$163="Error","Error",IF(P167<>"/",M167*P167,0)) -> 0
G168: Total | H168: =IF(G$165="Error","Error",SUM(H167:H167)) -> 0 | I168: =IF(G$165="Error","Error",SUM(I167:I167)) -> 0 | P168: Total | Q168: =IF(P$163="Error","Error",SUM(Q165:Q167)) -> 0 | R168: =IF(P$163="Error","Error",SUM(R165:R167)) -> 0
A169: Bombe géante | D169: Max | E169: Max + | G169: Actuel | H169: À Faire | I169: Améliorations | J169: Piège squelettique | M169: Max | N169: Max + | P169: Actuel | Q169: À Faire | R169: Améliorations
D170: =VLOOKUP($A$2,AVAILABLE_Traps[#All],MATCH(A169,AVAILABLE_Traps[#Headers],0)) -> 0 | E170: =VLOOKUP($A$2,AVAILABLE_Traps[#All],MATCH(A169,AVAILABLE_Traps[#Headers],0)+1) -> 0 | G170: =IF(SUM(B172:B175)>D170,"Error",SUM(B172:B175)) -> 0 | H170: =IF(G$170="Error","Error",D170-G170) -> 0 | I170: =IF(G$170="Error","Error",SUM(D172:D175)) -> 0 | M170: =VLOOKUP($A$2,AVAILABLE_Traps[#All],MATCH(J169,AVAILABLE_Traps[#Headers],0)) -> 0 | N170: =VLOOKUP($A$2,AVAILABLE_Traps[#All],MATCH(J169,AVAILABLE_Traps[#Headers],0)+1) -> 0 | P170: =IF(SUM(K172:K174)>M170,"Error",SUM(K172:K174)) -> 0 | Q170: =IF(P$170="Error","Error",M170-P170) -> 0 | R170: =IF(P$170="Error","Error",SUM(M172:M174)) -> 0
A171: + | B171: NB | D171: NB | E171: + | F171: Coût | G171: Temps | H171: Coût Total | I171: Temps Total | J171: + | K171: NB | M171: NB | N171: + | O171: Coût | P171: Temps | Q171: Coût Total | R171: Temps Total
A172: 1 | B172: =IF(Paramètres!AA6=0,"",Paramètres!AA6) ->  | C172: =IF(C171<>0,C171+IF(AND(B171<>"",A171<E$170),B171,0),IF(AND(B171<>"",A171<E$170),B171,0)) -> 0 | D172: =IF(E172<>"/",IF($G$170="Error","Error",$H$170+C172),"/") -> / | E172: =IF(G$170="Error","Error",IF(AND($E$170<>"/",$E$170>'Paramètres - Admin'!$A2),'Paramètres - Admin'!$A3,"/")) -> / | F172: =IF(E172<>"/",VLOOKUP(E172,COSTS_Giant_Bomb[#All],2),"/") -> / | G172: =IF(E172<>"/",VLOOKUP(E172,COSTS_Giant_Bomb[#All],3),"/") -> / | H172: =IF(G$170="Error","Error",IF(F172<>"/",D172*F172,0)) -> 0 | I172: =IF(G$170="Error","Error",IF(G172<>"/",D172*G172,0)) -> 0 | J172: 1 | K172: =IF(Paramètres!AD6=0,"",Paramètres!AD6) ->  | L172: =IF(L171<>0,L171+IF(AND(K171<>"",J171<N$170),K171,0),IF(AND(K171<>"",J171<N$170),K171,0)) -> 0 | M172: =IF(N172<>"/",IF($P$170="Error","Error",$Q$170+L172),"/") -> / | N172: =IF(P$170="Error","Error",IF(AND($N$170<>"/",$N$170>'Paramètres - Admin'!$A2),'Paramètres - Admin'!$A3,"/")) -> / | O172: =IF(N172<>"/",VLOOKUP(N172,COST_Skeleton_Trap[#All],2),"/") -> / | P172: =IF(N172<>"/",VLOOKUP(N172,COST_Skeleton_Trap[#All],3),"/") -> / | Q172: =IF(P$170="Error","Error",IF(O172<>"/",M172*O172,0)) -> 0 | R172: =IF(P$170="Error","Error",IF(P172<>"/",M172*P172,0)) -> 0
A173: 2 | B173: =IF(Paramètres!AA7=0,"",Paramètres!AA7) ->  | C173: =IF(C172<>0,C172+IF(AND(B172<>"",A172<E$170),B172,0),IF(AND(B172<>"",A172<E$170),B172,0)) -> 0 | D173: =IF(E173<>"/",IF($G$170="Error","Error",$H$170+C173),"/") -> / | E173: =IF(G$170="Error","Error",IF(AND($E$170<>"/",$E$170>'Paramètres - Admin'!$A3),'Paramètres - Admin'!$A4,"/")) -> / | F173: =IF(E173<>"/",VLOOKUP(E173,COSTS_Giant_Bomb[#All],2),"/") -> / | G173: =IF(E173<>"/",VLOOKUP(E173,COSTS_Giant_Bomb[#All],3),"/") -> / | H173: =IF(G$170="Error","Error",IF(F173<>"/",D173*F173,0)) -> 0 | I173: =IF(G$170="Error","Error",IF(G173<>"/",D173*G173,0)) -> 0 | J173: 2 | K173: =IF(Paramètres!AD7=0,"",Paramètres!AD7) ->  | L173: =IF(L172<>0,L172+IF(AND(K172<>"",J172<N$170),K172,0),IF(AND(K172<>"",J172<N$170),K172,0)) -> 0 | M173: =IF(N173<>"/",IF($P$170="Error","Error",$Q$170+L173),"/") -> / | N173: =IF(P$170="Error","Error",IF(AND($N$170<>"/",$N$170>'Paramètres - Admin'!$A3),'Paramètres - Admin'!$A4,"/")) -> / | O173: =IF(N173<>"/",VLOOKUP(N173,COST_Skeleton_Trap[#All],2),"/") -> / | P173: =IF(N173<>"/",VLOOKUP(N173,COST_Skeleton_Trap[#All],3),"/") -> / | Q173: =IF(P$170="Error","Error",IF(O173<>"/",M173*O173,0)) -> 0 | R173: =IF(P$170="Error","Error",IF(P173<>"/",M173*P173,0)) -> 0
A174: 3 | B174: =IF(Paramètres!AA8=0,"",Paramètres!AA8) ->  | C174: =IF(C173<>0,C173+IF(AND(B173<>"",A173<E$170),B173,0),IF(AND(B173<>"",A173<E$170),B173,0)) -> 0 | D174: =IF(E174<>"/",IF($G$170="Error","Error",$H$170+C174),"/") -> / | E174: =IF(G$170="Error","Error",IF(AND($E$170<>"/",$E$170>'Paramètres - Admin'!$A4),'Paramètres - Admin'!$A5,"/")) -> / | F174: =IF(E174<>"/",VLOOKUP(E174,COSTS_Giant_Bomb[#All],2),"/") -> / | G174: =IF(E174<>"/",VLOOKUP(E174,COSTS_Giant_Bomb[#All],3),"/") -> / | H174: =IF(G$170="Error","Error",IF(F174<>"/",D174*F174,0)) -> 0 | I174: =IF(G$170="Error","Error",IF(G174<>"/",D174*G174,0)) -> 0 | J174: 3 | K174: =IF(Paramètres!AD8=0,"",Paramètres!AD8) ->  | L174: =IF(L173<>0,L173+IF(AND(K173<>"",J173<N$170),K173,0),IF(AND(K173<>"",J173<N$170),K173,0)) -> 0 | M174: =IF(N174<>"/",IF($P$170="Error","Error",$Q$170+L174),"/") -> / | N174: =IF(P$170="Error","Error",IF(AND($N$170<>"/",$N$170>'Paramètres - Admin'!$A4),'Paramètres - Admin'!$A5,"/")) -> / | O174: =IF(N174<>"/",VLOOKUP(N174,COST_Skeleton_Trap[#All],2),"/") -> / | P174: =IF(N174<>"/",VLOOKUP(N174,COST_Skeleton_Trap[#All],3),"/") -> / | Q174: =IF(P$170="Error","Error",IF(O174<>"/",M174*O174,0)) -> 0 | R174: =IF(P$170="Error","Error",IF(P174<>"/",M174*P174,0)) -> 0
A175: 4 | B175: =IF(Paramètres!AA9=0,"",Paramètres!AA9) ->  | C175: =IF(C174<>0,C174+IF(AND(B174<>"",A174<E$170),B174,0),IF(AND(B174<>"",A174<E$170),B174,0)) -> 0 | D175: =IF(E175<>"/",IF($G$170="Error","Error",$H$170+C175),"/") -> / | E175: =IF(G$170="Error","Error",IF(AND($E$170<>"/",$E$170>'Paramètres - Admin'!$A5),'Paramètres - Admin'!$A6,"/")) -> / | F175: =IF(E175<>"/",VLOOKUP(E175,COSTS_Giant_Bomb[#All],2),"/") -> / | G175: =IF(E175<>"/",VLOOKUP(E175,COSTS_Giant_Bomb[#All],3),"/") -> / | H175: =IF(G$170="Error","Error",IF(F175<>"/",D175*F175,0)) -> 0 | I175: =IF(G$170="Error","Error",IF(G175<>"/",D175*G175,0)) -> 0 | P175: Total | Q175: =IF(P$170="Error","Error",SUM(Q172:Q174)) -> 0 | R175: =IF(P$170="Error","Error",SUM(R172:R174)) -> 0
G176: Total | H176: =IF(G$170="Error","Error",SUM(H172:H175)) -> 0 | I176: =IF(G$170="Error","Error",SUM(I172:I175)) -> 0
A178: Bâtiments Autres
A179: Château de Clan | D179: Max | E179: Max + | G179: Actuel | H179: À Faire | I179: Améliorations | J179: Hôtel de Ville | M179: Max | N179: Max + | P179: Actuel | Q179: À Faire | R179: Améliorations
D180: =VLOOKUP($A$2,AVAILABLE_Buildings_Other[#All],MATCH(A179,AVAILABLE_Buildings_Other[#Headers],0)) -> 0 | E180: =VLOOKUP($A$2,AVAILABLE_Buildings_Other[#All],MATCH(A179,AVAILABLE_Buildings_Other[#Headers],0)+1) -> 0 | G180: =IF(SUM(B182:B187)>D180,"Error",SUM(B182:B187)) -> 0 | H180: =IF(G$180="Error","Error",D180-G180) -> 0 | I180: =IF(G$180="Error","Error",SUM(D182:D187)) -> 0 | M180: =VLOOKUP($A$2,AVAILABLE_Buildings_Other[#All],MATCH(J179,AVAILABLE_Buildings_Other[#Headers],0)) -> 1 | N180: =VLOOKUP($A$2,AVAILABLE_Buildings_Other[#All],MATCH(J179,AVAILABLE_Buildings_Other[#Headers],0)+1) -> 2 | P180: =IF(SUM(K182:K192)>M180,"Error",SUM(K182:K192)) -> 1 | Q180: =IF(P$180="Error","Error",M180-P180) -> 0 | R180: =IF(P$180="Error","Error",SUM(M182:M191)) -> 1
A181: + | B181: NB | D181: NB | E181: + | F181: Coût | G181: Temps | H181: Coût Total | I181: Temps Total | J181: + | K181: NB | M181: NB | N181: + | O181: Coût | P181: Temps | Q181: Coût Total | R181: Temps Total
A182: 1 | B182: =IF(Paramètres!AE6=0,"",Paramètres!AE6) ->  | C182: =IF(C181<>0,C181+IF(AND(B181<>"",A181<E$180),B181,0),IF(AND(B181<>"",A181<E$180),B181,0)) -> 0 | D182: =IF(E182<>"/",IF(G$180="Error","Error",$H$180+C182),"/") -> / | E182: =IF(G$180="Error","Error",IF(AND($E$180<>"/",$E$180>'Paramètres - Admin'!$A2),'Paramètres - Admin'!$A3,"/")) -> / | F182: =IF(E182<>"/",VLOOKUP(E182,COSTS_Clan_Castle[#All],2),"/") -> / | G182: =IF(E182<>"/",VLOOKUP(E182,COSTS_Clan_Castle[#All],3),"/") -> / | H182: =IF(G$180="Error","Error",IF(F182<>"/",D182*F182,0)) -> 0 | I182: =IF(G$180="Error","Error",IF(G182<>"/",D182*G182,0)) -> 0 | J182: 1 | K182: =IF(Paramètres!AF6=0,"",Paramètres!AF6) -> 1 | L182: =IF(L181<>0,L181+IF(AND(K181<>"",J181<N$180),K181,0),IF(AND(K181<>"",J181<N$180),K181,0)) -> 0 | M182: =IF(N182<>"/",IF(P$180="Error","Error",$Q$180+L182),"/") -> 0 | N182: =IF(P$180="Error","Error",IF(AND($N$180<>"/",$N$180>'Paramètres - Admin'!$A2),'Paramètres - Admin'!$A3,"/")) -> 1 | O182: =IF(N182<>"/",VLOOKUP(N182,COSTS_Town_Home[#All],2),"/") -> 0 | P182: =IF(N182<>"/",VLOOKUP(N182,COSTS_Town_Home[#All],3),"/") -> 0 | Q182: =IF(P$180="Error","Error",IF(O182<>"/",M182*O182,0)) -> 0 | R182: =IF(P$180="Error","Error",IF(P182<>"/",M182*P182,0)) -> 0
A183: 2 | B183: =IF(Paramètres!AE7=0,"",Paramètres!AE7) ->  | C183: 0 | D183: / | E183: =IF(G$180="Error","Error",IF(AND($E$180<>"/",$E$180>'Paramètres - Admin'!$A3),'Paramètres - Admin'!$A4,"/")) -> / | F183: =IF(E183<>"/",VLOOKUP(E183,COSTS_Clan_Castle[#All],2),"/") -> / | G183: =IF(E183<>"/",VLOOKUP(E183,COSTS_Clan_Castle[#All],3),"/") -> / | H183: 0 | I183: 0 | J183: 2 | K183: =IF(Paramètres!AF7=0,"",Paramètres!AF7) ->  | L183: 1 | M183: 1 | N183: =IF(P$180="Error","Error",IF(AND($N$180<>"/",$N$180>'Paramètres - Admin'!$A3),'Paramètres - Admin'!$A4,"/")) -> 2 | O183: =IF(N183<>"/",VLOOKUP(N183,COSTS_Town_Home[#All],2),"/") -> 1000 | P183: =IF(N183<>"/",VLOOKUP(N183,COSTS_Town_Home[#All],3),"/") -> 0.08333333333 | Q183: 1000 | R183: 0.08333333333
A184: 3 | B184: =IF(Paramètres!AE8=0,"",Paramètres!AE8) ->  | C184: 0 | D184: / | E184: =IF(G$180="Error","Error",IF(AND($E$180<>"/",$E$180>'Paramètres - Admin'!$A4),'Paramètres - Admin'!$A5,"/")) -> / | F184: =IF(E184<>"/",VLOOKUP(E184,COSTS_Clan_Castle[#All],2),"/") -> / | G184: =IF(E184<>"/",VLOOKUP(E184,COSTS_Clan_Castle[#All],3),"/") -> / | H184: 0 | I184: 0 | J184: 3 | K184: =IF(Paramètres!AF8=0,"",Paramètres!AF8) ->  | L184: 1 | M184: / | N184: =IF(P$180="Error","Error",IF(AND($N$180<>"/",$N$180>'Paramètres - Admin'!$A4),'Paramètres - Admin'!$A5,"/")) -> / | O184: =IF(N184<>"/",VLOOKUP(N184,COSTS_Town_Home[#All],2),"/") -> / | P184: =IF(N184<>"/",VLOOKUP(N184,COSTS_Town_Home[#All],3),"/") -> / | Q184: 0 | R184: 0
A185: 4 | B185: =IF(Paramètres!AE9=0,"",Paramètres!AE9) ->  | C185: 0 | D185: / | E185: =IF(G$180="Error","Error",IF(AND($E$180<>"/",$E$180>'Paramètres - Admin'!$A5),'Paramètres - Admin'!$A6,"/")) -> / | F185: =IF(E185<>"/",VLOOKUP(E185,COSTS_Clan_Castle[#All],2),"/") -> / | G185: =IF(E185<>"/",VLOOKUP(E185,COSTS_Clan_Castle[#All],3),"/") -> / | H185: 0 | I185: 0 | J185: 4 | K185: =IF(Paramètres!AF9=0,"",Paramètres!AF9) ->  | L185: 1 | M185: / | N185: =IF(P$180="Error","Error",IF(AND($N$180<>"/",$N$180>'Paramètres - Admin'!$A5),'Paramètres - Admin'!$A6,"/")) -> / | O185: =IF(N185<>"/",VLOOKUP(N185,COSTS_Town_Home[#All],2),"/") -> / | P185: =IF(N185<>"/",VLOOKUP(N185,COSTS_Town_Home[#All],3),"/") -> / | Q185: 0 | R185: 0
A186: 5 | B186: =IF(Paramètres!AE10=0,"",Paramètres!AE10) ->  | C186: 0 | D186: / | E186: =IF(G$180="Error","Error",IF(AND($E$180<>"/",$E$180>'Paramètres - Admin'!$A6),'Paramètres - Admin'!$A7,"/")) -> / | F186: =IF(E186<>"/",VLOOKUP(E186,COSTS_Clan_Castle[#All],2),"/") -> / | G186: =IF(E186<>"/",VLOOKUP(E186,COSTS_Clan_Castle[#All],3),"/") -> / | H186: 0 | I186: 0 | J186: 5 | K186: =IF(Paramètres!AF10=0,"",Paramètres!AF10) ->  | L186: 1 | M186: / | N186: =IF(P$180="Error","Error",IF(AND($N$180<>"/",$N$180>'Paramètres - Admin'!$A6),'Paramètres - Admin'!$A7,"/")) -> / | O186: =IF(N186<>"/",VLOOKUP(N186,COSTS_Town_Home[#All],2),"/") -> / | P186: =IF(N186<>"/",VLOOKUP(N186,COSTS_Town_Home[#All],3),"/") -> / | Q186: 0 | R186: 0
A187: 6 | B187: =IF(Paramètres!AE11=0,"",Paramètres!AE11) ->  | C187: 0 | D187: / | E187: =IF(G$180="Error","Error",IF(AND($E$180<>"/",$E$180>'Paramètres - Admin'!$A7),'Paramètres - Admin'!$A8,"/")) -> / | F187: =IF(E187<>"/",VLOOKUP(E187,COSTS_Clan_Castle[#All],2),"/") -> / | G187: =IF(E187<>"/",VLOOKUP(E187,COSTS_Clan_Castle[#All],3),"/") -> / | H187: 0 | I187: 0 | J187: 6 | K187: =IF(Paramètres!AF11=0,"",Paramètres!AF11) ->  | L187: 1 | M187: / | N187: =IF(P$180="Error","Error",IF(AND($N$180<>"/",$N$180>'Paramètres - Admin'!$A7),'Paramètres - Admin'!$A8,"/")) -> / | O187: =IF(N187<>"/",VLOOKUP(N187,COSTS_Town_Home[#All],2),"/") -> / | P187: =IF(N187<>"/",VLOOKUP(N187,COSTS_Town_Home[#All],3),"/") -> / | Q187: 0 | R187: 0
G188: Total | H188: =IF(G$180="Error","Error",SUM(H182:H187)) -> 0 | I188: =IF(G$180="Error","Error",SUM(I182:I187)) -> 0 | J188: 7 | K188: =IF(Paramètres!AF12=0,"",Paramètres!AF12) ->  | L188: 1 | M188: / | N188: =IF(P$180="Error","Error",IF(AND($N$180<>"/",$N$180>'Paramètres - Admin'!$A8),'Paramètres - Admin'!$A9,"/")) -> / | O188: =IF(N188<>"/",VLOOKUP(N188,COSTS_Town_Home[#All],2),"/") -> / | P188: =IF(N188<>"/",VLOOKUP(N188,COSTS_Town_Home[#All],3),"/") -> / | Q188: 0 | R188: 0
J189: 8 | K189: =IF(Paramètres!AF13=0,"",Paramètres!AF13) ->  | L189: 1 | M189: / | N189: =IF(P$180="Error","Error",IF(AND($N$180<>"/",$N$180>'Paramètres - Admin'!$A9),'Paramètres - Admin'!$A10,"/")) -> / | O189: =IF(N189<>"/",VLOOKUP(N189,COSTS_Town_Home[#All],2),"/") -> / | P189: =IF(N189<>"/",VLOOKUP(N189,COSTS_Town_Home[#All],3),"/") -> / | Q189: 0 | R189: 0
J190: 9 | K190: =IF(Paramètres!AF14=0,"",Paramètres!AF14) ->  | L190: 1 | M190: / | N190: =IF(P$180="Error","Error",IF(AND($N$180<>"/",$N$180>'Paramètres - Admin'!$A10),'Paramètres - Admin'!$A11,"/")) -> / | O190: =IF(N190<>"/",VLOOKUP(N190,COSTS_Town_Home[#All],2),"/") -> / | P190: =IF(N190<>"/",VLOOKUP(N190,COSTS_Town_Home[#All],3),"/") -> / | Q190: 0 | R190: 0
J191: 10 | K191: =IF(Paramètres!AF15=0,"",Paramètres!AF15) ->  | L191: 1 | M191: / | N191: =IF(P$180="Error","Error",IF(AND($N$180<>"/",$N$180>'Paramètres - Admin'!$A11),'Paramètres - Admin'!$A12,"/")) -> / | O191: =IF(N191<>"/",VLOOKUP(N191,COSTS_Town_Home[#All],2),"/") -> / | P191: =IF(N191<>"/",VLOOKUP(N191,COSTS_Town_Home[#All],3),"/") -> / | Q191: 0 | R191: 0
J192: 11 | K192: =IF(Paramètres!AF16=0,"",Paramètres!AF16) ->  | L192: 1 | M192: / | N192: =IF(P$180="Error","Error",IF(AND($N$180<>"/",$N$180>'Paramètres - Admin'!$A12),'Paramètres - Admin'!$A13,"/")) -> / | O192: =IF(N192<>"/",VLOOKUP(N192,COSTS_Town_Home[#All],2),"/") -> / | P192: =IF(N192<>"/",VLOOKUP(N192,COSTS_Town_Home[#All],3),"/") -> / | Q192: 0 | R192: 0
P193: Total | Q193: =IF(P$180="Error","Error",SUM(Q182:Q192)) -> 1000 | R193: =IF(P$180="Error","Error",SUM(R182:R192)) -> 0.08333333333
A195: Améliorations de Sorts
A196: Sort de Foudre | D196: Max | E196: Max + | G196: Actuel | H196: À Faire | I196: Améliorations | J196: Sort de Guérison | M196: Max | N196: Max + | P196: Actuel | Q196: À Faire | R196: Améliorations
D197: =VLOOKUP($A$2,AVAILABLE_Upgrades_Spells[#All],MATCH(A196,AVAILABLE_Upgrades_Spells[#Headers],0)) -> 0 | E197: =VLOOKUP(IF(ISERROR(LOOKUP(MATCH(1,Paramètres!$K$6:$K$45,0),Paramètres!$A$6:$A$45)),0,LOOKUP(MATCH(1,Paramètres!$K$6:$K$45,0),Paramètres!$A$6:$A$45)),AVAILABLE_Upgrades_Spells[#All],MATCH(A196,AVAILABLE_Upgrades_Spells[#Headers],0)+1) -> 0 | G197: =IF(SUM(B199:B205)>D197,"Error",SUM(B199:B205)) -> 0 | H197: =IF(G$197="Error","Error",D197-G197) -> 0 | I197: =IF(G$197="Error","Error",SUM(D199:D204)) -> 0 | M197: =VLOOKUP($A$2,AVAILABLE_Upgrades_Spells[#All],MATCH(J196,AVAILABLE_Upgrades_Spells[#Headers],0)) -> 0 | N197: =VLOOKUP(IF(ISERROR(LOOKUP(MATCH(1,Paramètres!$K$6:$K$45,0),Paramètres!$A$6:$A$45)),0,LOOKUP(MATCH(1,Paramètres!$K$6:$K$45,0),Paramètres!$A$6:$A$45)),AVAILABLE_Upgrades_Spells[#All],MATCH(J196,AVAILABLE_Upgrades_Spells[#Headers],0)+1) -> 0 | P197: =IF(SUM(K199:K204)>M197,"Error",SUM(K199:K204)) -> 0 | Q197: =IF(P$197="Error","Error",M197-P197) -> 0 | R197: =IF(P$197="Error","Error",SUM(M199:M204)) -> 0
A198: + | B198: NB | D198: NB | E198: + | F198: Coût | G198: Temps | H198: Coût Total | I198: Temps Total | J198: + | K198: NB | M198: NB | N198: + | O198: Coût | P198: Temps | Q198: Coût Total | R198: Temps Total
A199: 1 | B199: =IF(Paramètres!AG6=0,"",Paramètres!AG6) ->  | C199: =IF(C198<>0,C198+IF(AND(B198<>"",A198<E$197),B198,0),IF(AND(B198<>"",A198<E$197),B198,0)) -> 0 | D199: =IF(E199<>"/",IF(G$197="Error","Error",$H$197+C199),"/") -> / | E199: =IF(G$197="Error","Error",IF(AND($E$197<>"/",$E$197>'Paramètres - Admin'!$A2),'Paramètres - Admin'!$A3,"/")) -> / | F199: =IF(E199<>"/",VLOOKUP(E199,COSTS_Spell_Lightning[#All],2),"/") -> / | G199: =IF(E199<>"/",VLOOKUP(E199,COSTS_Spell_Lightning[#All],3),"/") -> / | H199: =IF(G$197="Error","Error",IF(F199<>"/",D199*F199,0)) -> 0 | I199: =IF(G$197="Error","Error",IF(G199<>"/",D199*G199,0)) -> 0 | J199: 1 | K199: =IF(Paramètres!AH6=0,"",Paramètres!AH6) ->  | L199: =IF(L198<>0,L198+IF(AND(K198<>"",J198<N$197),K198,0),IF(AND(K198<>"",J198<N$197),K198,0)) -> 0 | M199: =IF(N199<>"/",IF(P$197="Error","Error",$Q$197+L199),"/") -> / | N199: =IF(P$197="Error","Error",IF(AND($N$197<>"/",$N$197>'Paramètres - Admin'!$A2),'Paramètres - Admin'!$A3,"/")) -> / | O199: =IF(N199<>"/",VLOOKUP(N199,COSTS_Spell_Healing[#All],2),"/") -> / | P199: =IF(N199<>"/",VLOOKUP(N199,COSTS_Spell_Healing[#All],3),"/") -> / | Q199: =IF(P$197="Error","Error",IF(O199<>"/",M199*O199,0)) -> 0 | R199: =IF(P$197="Error","Error",IF(P199<>"/",M199*P199,0)) -> 0
A200: 2 | B200: =IF(Paramètres!AG7=0,"",Paramètres!AG7) ->  | C200: =IF(C199<>0,C199+IF(AND(B199<>"",A199<E$197),B199,0),IF(AND(B199<>"",A199<E$197),B199,0)) -> 0 | D200: / | E200: =IF(G$197="Error","Error",IF(AND($E$197<>"/",$E$197>'Paramètres - Admin'!$A3),'Paramètres - Admin'!$A4,"/")) -> / | F200: =IF(E200<>"/",VLOOKUP(E200,COSTS_Spell_Lightning[#All],2),"/") -> / | G200: =IF(E200<>"/",VLOOKUP(E200,COSTS_Spell_Lightning[#All],3),"/") -> / | H200: 0 | I200: 0 | J200: 2 | K200: =IF(Paramètres!AH7=0,"",Paramètres!AH7) ->  | L200: 0 | M200: / | N200: =IF(P$197="Error","Error",IF(AND($N$197<>"/",$N$197>'Paramètres - Admin'!$A3),'Paramètres - Admin'!$A4,"/")) -> / | O200: =IF(N200<>"/",VLOOKUP(N200,COSTS_Spell_Healing[#All],2),"/") -> / | P200: =IF(N200<>"/",VLOOKUP(N200,COSTS_Spell_Healing[#All],3),"/") -> / | Q200: 0 | R200: 0
A201: 3 | B201: =IF(Paramètres!AG8=0,"",Paramètres!AG8) ->  | C201: 0 | D201: / | E201: =IF(G$197="Error","Error",IF(AND($E$197<>"/",$E$197>'Paramètres - Admin'!$A4),'Paramètres - Admin'!$A5,"/")) -> / | F201: =IF(E201<>"/",VLOOKUP(E201,COSTS_Spell_Lightning[#All],2),"/") -> / | G201: =IF(E201<>"/",VLOOKUP(E201,COSTS_Spell_Lightning[#All],3),"/") -> / | H201: 0 | I201: 0 | J201: 3 | K201: =IF(Paramètres!AH8=0,"",Paramètres!AH8) ->  | L201: 0 | M201: / | N201: =IF(P$197="Error","Error",IF(AND($N$197<>"/",$N$197>'Paramètres - Admin'!$A4),'Paramètres - Admin'!$A5,"/")) -> / | O201: =IF(N201<>"/",VLOOKUP(N201,COSTS_Spell_Healing[#All],2),"/") -> / | P201: =IF(N201<>"/",VLOOKUP(N201,COSTS_Spell_Healing[#All],3),"/") -> / | Q201: 0 | R201: 0
A202: 4 | B202: =IF(Paramètres!AG9=0,"",Paramètres!AG9) ->  | C202: 0 | D202: / | E202: =IF(G$197="Error","Error",IF(AND($E$197<>"/",$E$197>'Paramètres - Admin'!$A5),'Paramètres - Admin'!$A6,"/")) -> / | F202: =IF(E202<>"/",VLOOKUP(E202,COSTS_Spell_Lightning[#All],2),"/") -> / | G202: =IF(E202<>"/",VLOOKUP(E202,COSTS_Spell_Lightning[#All],3),"/") -> / | H202: 0 | I202: 0 | J202: 4 | K202: =IF(Paramètres!AH9=0,"",Paramètres!AH9) ->  | L202: 0 | M202: / | N202: =IF(P$197="Error","Error",IF(AND($N$197<>"/",$N$197>'Paramètres - Admin'!$A5),'Paramètres - Admin'!$A6,"/")) -> / | O202: =IF(N202<>"/",VLOOKUP(N202,COSTS_Spell_Healing[#All],2),"/") -> / | P202: =IF(N202<>"/",VLOOKUP(N202,COSTS_Spell_Healing[#All],3),"/") -> / | Q202: 0 | R202: 0
A203: 5 | B203: =IF(Paramètres!AG10=0,"",Paramètres!AG10) ->  | C203: 0 | D203: / | E203: =IF(G$197="Error","Error",IF(AND($E$197<>"/",$E$197>'Paramètres - Admin'!$A6),'Paramètres - Admin'!$A7,"/")) -> / | F203: =IF(E203<>"/",VLOOKUP(E203,COSTS_Spell_Lightning[#All],2),"/") -> / | G203: =IF(E203<>"/",VLOOKUP(E203,COSTS_Spell_Lightning[#All],3),"/") -> / | H203: 0 | I203: 0 | J203: 5 | K203: =IF(Paramètres!AH10=0,"",Paramètres!AH10) ->  | L203: 0 | M203: / | N203: =IF(P$197="Error","Error",IF(AND($N$197<>"/",$N$197>'Paramètres - Admin'!$A6),'Paramètres - Admin'!$A7,"/")) -> / | O203: =IF(N203<>"/",VLOOKUP(N203,COSTS_Spell_Healing[#All],2),"/") -> / | P203: =IF(N203<>"/",VLOOKUP(N203,COSTS_Spell_Healing[#All],3),"/") -> / | Q203: 0 | R203: 0
A204: 6 | B204: =IF(Paramètres!AG11=0,"",Paramètres!AG11) ->  | C204: 0 | D204: / | E204: =IF(G$197="Error","Error",IF(AND($E$197<>"/",$E$197>'Paramètres - Admin'!$A7),'Paramètres - Admin'!$A8,"/")) -> / | F204: =IF(E204<>"/",VLOOKUP(E204,COSTS_Spell_Lightning[#All],2),"/") -> / | G204: =IF(E204<>"/",VLOOKUP(E204,COSTS_Spell_Lightning[#All],3),"/") -> / | H204: 0 | I204: 0 | J204: 6 | K204: =IF(Paramètres!AH11=0,"",Paramètres!AH11) ->  | L204: 0 | M204: / | N204: =IF(P$197="Error","Error",IF(AND($N$197<>"/",$N$197>'Paramètres - Admin'!$A7),'Paramètres - Admin'!$A8,"/")) -> / | O204: =IF(N204<>"/",VLOOKUP(N204,COSTS_Spell_Healing[#All],2),"/") -> / | P204: =IF(N204<>"/",VLOOKUP(N204,COSTS_Spell_Healing[#All],3),"/") -> / | Q204: 0 | R204: 0
A205: 7 | B205: =IF(Paramètres!AG12=0,"",Paramètres!AG12) ->  | C205: =IF(C204<>0,C204+IF(AND(B204<>"",A204<E$197),B204,0),IF(AND(B204<>"",A204<E$197),B204,0)) -> 0 | D205: / | E205: =IF(G$197="Error","Error",IF(AND($E$197<>"/",$E$197>'Paramètres - Admin'!$A8),'Paramètres - Admin'!$A9,"/")) -> / | F205: =IF(E205<>"/",VLOOKUP(E205,COSTS_Spell_Lightning[#All],2),"/") -> / | G205: =IF(E205<>"/",VLOOKUP(E205,COSTS_Spell_Lightning[#All],3),"/") -> / | H205: 0 | I205: 0 | P205: Total | Q205: =IF(P$197="Error","Error",SUM(Q199:Q204)) -> 0 | R205: =IF(P$197="Error","Error",SUM(R199:R204)) -> 0
G206: Total | H206: =IF(G$197="Error","Error",SUM(H199:H205)) -> 0 | I206: =IF(G$197="Error","Error",SUM(I199:I205)) -> 0 | J206: Sort de Gel | M206: Max | N206: Max + | P206: Actuel | Q206: À Faire | R206: Améliorations
A207: Sort de Rage | D207: Max | E207: Max + | G207: Actuel | H207: À Faire | I207: Améliorations | M207: =VLOOKUP($A$2,AVAILABLE_Upgrades_Spells[#All],MATCH(J206,AVAILABLE_Upgrades_Spells[#Headers],0)) -> 0 | N207: =VLOOKUP(IF(ISERROR(LOOKUP(MATCH(1,Paramètres!$K$6:$K$45,0),Paramètres!$A$6:$A$45)),0,LOOKUP(MATCH(1,Paramètres!$K$6:$K$45,0),Paramètres!$A$6:$A$45)),AVAILABLE_Upgrades_Spells[#All],MATCH(J206,AVAILABLE_Upgrades_Spells[#Headers],0)+1) -> 0 | P207: =IF(SUM(K209:K213)>M207,"Error",SUM(K209:K213)) -> 0 | Q207: =IF(P$207="Error","Error",M207-P207) -> 0 | R207: =IF(P$207="Error","Error",SUM(M209:M213)) -> 0
... 158 more rows

Sheet Production (hidden)
A1: LVL HdV | B1: Période | C1: Or Total : | D1: Élixir Total : | E1: Élixir Noir Total :
A2: =Paramètres!$BI$2 -> 1 | B2: 2 jours | C2: ='À Faire - Récapitulatif'!H2 -> 4 250 | D2: ='À Faire - Récapitulatif'!K2 -> 4 700 | E2: ='À Faire - Récapitulatif'!M2 -> 0
A3: Production
A4: Type | B4: Mine d'Or | C4: Extracteur d'Élixir | D4: Foreuse d'Élixir Noir
A5: Max + | B5: =VLOOKUP($A$2,AVAILABLE_Buildings_Resource[#All],MATCH(B$4,AVAILABLE_Buildings_Resource[#Headers],0)+1) -> 2 | C5: =VLOOKUP($A$2,AVAILABLE_Buildings_Resource[#All],MATCH(C$4,AVAILABLE_Buildings_Resource[#Headers],0)+1) -> 2 | D5: =VLOOKUP($A$2,AVAILABLE_Buildings_Resource[#All],MATCH(D$4,AVAILABLE_Buildings_Resource[#Headers],0)+1) -> 0
A6: 1 | B6: =Paramètres!B6 -> 0 | C6: =Paramètres!C6 -> 0 | D6: =Paramètres!D6 -> 0
A7: 2 | B7: =Paramètres!B7 -> 0 | C7: =Paramètres!C7 -> 0 | D7: =Paramètres!D7 -> 0
A8: 3 | B8: =Paramètres!B8 -> 0 | C8: =Paramètres!C8 -> 0 | D8: =Paramètres!D8 -> 0
A9: 4 | B9: =Paramètres!B9 -> 0 | C9: =Paramètres!C9 -> 0 | D9: =Paramètres!D9 -> 0
A10: 5 | B10: =Paramètres!B10 -> 0 | C10: =Paramètres!C10 -> 0 | D10: =Paramètres!D10 -> 0
A11: 6 | B11: =Paramètres!B11 -> 0 | C11: =Paramètres!C11 -> 0 | D11: =Paramètres!D11 -> 0
A12: 7 | B12: =Paramètres!B12 -> 0 | C12: =Paramètres!C12 -> 0 | D12: =Paramètres!D12 -> 0
A13: 8 | B13: =Paramètres!B13 -> 0 | C13: =Paramètres!C13 -> 0 | D13: =Paramètres!D13 -> 0
A14: 9 | B14: =Paramètres!B14 -> 0 | C14: =Paramètres!C14 -> 0 | D14: =Paramètres!D14 -> 0
A15: 10 | B15: =Paramètres!B15 -> 0 | C15: =Paramètres!C15 -> 0 | D15: =Paramètres!D15 -> 0
A16: 11 | B16: =Paramètres!B16 -> 0 | C16: =Paramètres!C16 -> 0 | D16: =Paramètres!D16 -> 0
A17: 12 | B17: =Paramètres!B17 -> 0 | C17: =Paramètres!C17 -> 0 | D17: =Paramètres!D17 -> 0
A18: Production / heure | B18: =SUMPRODUCT(B6:B17,EARNINGS_Gold_Mine[Production]) -> 0 | C18: =SUMPRODUCT(C6:C17,EARNINGS_Elixir_Collector[Production]) -> 0 | D18: =SUMPRODUCT(D6:D11,EARNINGS_Dark_Elixir_Drill[Production]) -> 0
A19: Production / période | B19: =IF($B$2='Paramètres - Admin'!$E$2,B18,IF($B$2='Paramètres - Admin'!$E$3,B18*2,IF($B$2='Paramètres - Admin'!$E$4,B18*4,IF($B$2='Paramètres - Admin'!$E$5,B18*8,IF($B$2='Paramètres - Admin'!$E$6,B18*12,IF($B$2='Paramètres - Admin'!$E$7,B18*16,IF($B$2='Paramètres - Admin'!$E$8,B18*24,IF($B$2='Paramètres - Admin'!$E$9,B18*48,IF($B$2='Paramètres - Admin'!$E$10,B18*72,IF($B$2='Paramètres - Admin'!$E$11,B18*168,IF($B$2='Paramètres - Admin'!$E$12,B18*720))))))))))) -> 0 | C19: =IF($B$2='Paramètres - Admin'!$E$2,C18,IF($B$2='Paramètres - Admin'!$E$3,C18*2,IF($B$2='Paramètres - Admin'!$E$4,C18*4,IF($B$2='Paramètres - Admin'!$E$5,C18*8,IF($B$2='Paramètres - Admin'!$E$6,C18*12,IF($B$2='Paramètres - Admin'!$E$7,C18*16,IF($B$2='Paramètres - Admin'!$E$8,C18*24,IF($B$2='Paramètres - Admin'!$E$9,C18*48,IF($B$2='Paramètres - Admin'!$E$10,C18*72,IF($B$2='Paramètres - Admin'!$E$11,C18*168,IF($B$2='Paramètres - Admin'!$E$12,C18*720))))))))))) -> 0 | D19: =IF($B$2='Paramètres - Admin'!$E$2,D18,IF($B$2='Paramètres - Admin'!$E$3,D18*2,IF($B$2='Paramètres - Admin'!$E$4,D18*4,IF($B$2='Paramètres - Admin'!$E$5,D18*8,IF($B$2='Paramètres - Admin'!$E$6,D18*12,IF($B$2='Paramètres - Admin'!$E$7,D18*16,IF($B$2='Paramètres - Admin'!$E$8,D18*24,IF($B$2='Paramètres - Admin'!$E$9,D18*48,IF($B$2='Paramètres - Admin'!$E$10,D18*72,IF($B$2='Paramètres - Admin'!$E$11,D18*168,IF($B$2='Paramètres - Admin'!$E$12,D18*720))))))))))) -> 0
A20: Temps pour obtenir besoins | B20: =IF(B$18<>0,IF($B$2='Paramètres - Admin'!$B$2,TEXT((('À Faire - Récapitulatif'!D8+'À Faire - Récapitulatif'!D11+'À Faire - Récapitulatif'!D28+'À Faire - Récapitulatif'!P27)/B$18)*60*60,"# 0")&" " & 'Paramètres - Admin'!$B$2,IF($B$2='Paramètres - Admin'!$B$3,TEXT((('À Faire - Récapitulatif'!D8+'À Faire - Récapitulatif'!D11+'À Faire - Récapitulatif'!D28+'À Faire - Récapitulatif'!P27)/B$18)*60,"# 0")&" " & 'Paramètres - Admin'!$B$3,IF($B$2='Paramètres - Admin'!$B$4,TEXT((('À Faire - Récapitulatif'!D8+'À Faire - Récapitulatif'!D11+'À Faire - Récapitulatif'!D28+'À Faire - Récapitulatif'!P27)/B$18),"# 0,00")&" " & 'Paramètres - Admin'!$B$4,IF($B$2='Paramètres - Admin'!$B$5,TEXT((('À Faire - Récapitulatif'!D8+'À Faire - Récapitulatif'!D11+'À Faire - Récapitulatif'!D28+'À Faire - Récapitulatif'!P27)/B$18)/24,"# 0,00")&" " & 'Paramètres - Admin'!$B$5,IF($B$2='Paramètres - Admin'!$B$6,TEXT(((('À Faire - Récapitulatif'!D8+'À Faire - Récapitulatif'!D11+'À Faire - Récapitulatif'!D28+'À Faire - Récapitulatif'!P27)/B$18)/24)/30,"# 0,00")&" " & 'Paramètres - Admin'!$B$6,IF((('À Faire - Récapitulatif'!D8+'À Faire - Récapitulatif'!D11+'À Faire - Récapitulatif'!D28+'À Faire - Récapitulatif'!P27)/B$18)/24>=1,INT((('À Faire - Récapitulatif'!D8+'À Faire - Récapitulatif'!D11+'À Faire - Récapitulatif'!D28+'À Faire - Récapitulatif'!P27)/B$18)/24)&" " & 'Paramètres - Admin'!$D$4 & " " & HOUR((('À Faire - Récapitulatif'!D8+'À Faire - Récapitulatif'!D11+'À Faire - Récapitulatif'!D28+'À Faire - Récapitulatif'!P27)/B$18)/24-INT((('À Faire - Récapitulatif'!D8+'À Faire - Récapitulatif'!D11+'À Faire - Récapitulatif'!D28+'À Faire - Récapitulatif'!P27)/B$18)/24))&" " & 'Paramètres - Admin'!$D$3 & " " & MINUTE((('À Faire - Récapitulatif'!D8+'À Faire - Récapitulatif'!D11+'À Faire - Récapitulatif'!D28+'À Faire - Récapitulatif'!P27)/B$18)/24-INT((('À Faire - Récapitulatif'!D8+'À Faire - Récapitulatif'!D11+'À Faire - Récapitulatif'!D28+'À Faire - Récapitulatif'!P27)/B$18)/24))&" " & 'Paramètres - Admin'!$D$2,HOUR((('À Faire - Récapitulatif'!D8+'À Faire - Récapitulatif'!D11+'À Faire - Récapitulatif'!D28+'À Faire - Récapitulatif'!P27)/B$18)/24-INT((('À Faire - Récapitulatif'!D8+'À Faire - Récapitulatif'!D11+'À Faire - Récapitulatif'!D28+'À Faire - Récapitulatif'!P27)/B$18)/24))&" " & 'Paramètres - Admin'!$D$3 & " " & MINUTE((('À Faire - Récapitulatif'!D8+'À Faire - Récapitulatif'!D11+'À Faire - Récapitulatif'!D28+'À Faire - Récapitulatif'!P27)/B$18)/24-INT((('À Faire - Récapitulatif'!D8+'À Faire - Récapitulatif'!D11+'À Faire - Récapitulatif'!D28+'À Faire - Récapitulatif'!P27)/B$18)/24))&" " & 'Paramètres - Admin'!$D$2)))))),0) -> 0 | C20: =IF(C$18<>0,IF($B$2='Paramètres - Admin'!$B$2,TEXT((('À Faire - Récapitulatif'!D7+'À Faire - Récapitulatif'!D9+'À Faire - Récapitulatif'!D10+'À Faire - Récapitulatif'!D12+'À Faire - Récapitulatif'!J13+'À Faire - Récapitulatif'!P22+'À Faire - Récapitulatif'!J27)/C$18)*60*60,"# 0")&" " & 'Paramètres - Admin'!$B$2,IF($B$2='Paramètres - Admin'!$B$3,TEXT((('À Faire - Récapitulatif'!D7+'À Faire - Récapitulatif'!D9+'À Faire - Récapitulatif'!D10+'À Faire - Récapitulatif'!D12+'À Faire - Récapitulatif'!J13+'À Faire - Récapitulatif'!P22+'À Faire - Récapitulatif'!J27)/C$18)*60,"# 0")&" " & 'Paramètres - Admin'!$B$3,IF($B$2='Paramètres - Admin'!$B$4,TEXT((('À Faire - Récapitulatif'!D7+'À Faire - Récapitulatif'!D9+'À Faire - Récapitulatif'!D10+'À Faire - Récapitulatif'!D12+'À Faire - Récapitulatif'!J13+'À Faire - Récapitulatif'!P22+'À Faire - Récapitulatif'!J27)/C$18),"# 0,00")&" " & 'Paramètres - Admin'!$B$4,IF($B$2='Paramètres - Admin'!$B$5,TEXT((('À Faire - Récapitulatif'!D7+'À Faire - Récapitulatif'!D9+'À Faire - Récapitulatif'!D10+'À Faire - Récapitulatif'!D12+'À Faire - Récapitulatif'!J13+'À Faire - Récapitulatif'!P22+'À Faire - Récapitulatif'!J27)/C$18)/24,"# 0,00")&" " & 'Paramètres - Admin'!$B$5,IF($B$2='Paramètres - Admin'!$B$6,TEXT(((('À Faire - Récapitulatif'!D7+'À Faire - Récapitulatif'!D9+'À Faire - Récapitulatif'!D10+'À Faire - Récapitulatif'!D12+'À Faire - Récapitulatif'!J13+'À Faire - Récapitulatif'!P22+'À Faire - Récapitulatif'!J27)/C$18)/24)/30,"# 0,00")&" " & 'Paramètres - Admin'!$B$6,IF((('À Faire - Récapitulatif'!D7+'À Faire - Récapitulatif'!D9+'À Faire - Récapitulatif'!D10+'À Faire - Récapitulatif'!D12+'À Faire - Récapitulatif'!J13+'À Faire - Récapitulatif'!P22+'À Faire - Récapitulatif'!J27)/C$18)/24>=1,INT((('À Faire - Récapitulatif'!D7+'À Faire - Récapitulatif'!D9+'À Faire - Récapitulatif'!D10+'À Faire - Récapitulatif'!D12+'À Faire - Récapitulatif'!J13+'À Faire - Récapitulatif'!P22+'À Faire - Récapitulatif'!J27)/C$18)/24)&" " & 'Paramètres - Admin'!$D$4 & " " & HOUR((('À Faire - Récapitulatif'!D7+'À Faire - Récapitulatif'!D9+'À Faire - Récapitulatif'!D10+'À Faire - Récapitulatif'!D12+'À Faire - Récapitulatif'!J13+'À Faire - Récapitulatif'!P22+'À Faire - Récapitulatif'!J27)/C$18)/24-INT((('À Faire - Récapitulatif'!D7+'À Faire - Récapitulatif'!D9+'À Faire - Récapitulatif'!D10+'À Faire - Récapitulatif'!D12+'À Faire - Récapitulatif'!J13+'À Faire - Récapitulatif'!P22+'À Faire - Récapitulatif'!J27)/C$18)/24))&" " & 'Paramètres - Admin'!$D$3 & " " & MINUTE((('À Faire - Récapitulatif'!D7+'À Faire - Récapitulatif'!D9+'À Faire - Récapitulatif'!D10+'À Faire - Récapitulatif'!D12+'À Faire - Récapitulatif'!J13+'À Faire - Récapitulatif'!P22+'À Faire - Récapitulatif'!J27)/C$18)/24-INT((('À Faire - Récapitulatif'!D7+'À Faire - Récapitulatif'!D9+'À Faire - Récapitulatif'!D10+'À Faire - Récapitulatif'!D12+'À Faire - Récapitulatif'!J13+'À Faire - Récapitulatif'!P22+'À Faire - Récapitulatif'!J27)/C$18)/24))&" " & 'Paramètres - Admin'!$D$2,HOUR((('À Faire - Récapitulatif'!D7+'À Faire - Récapitulatif'!D9+'À Faire - Récapitulatif'!D10+'À Faire - Récapitulatif'!D12+'À Faire - Récapitulatif'!J13+'À Faire - Récapitulatif'!P22+'À Faire - Récapitulatif'!J27)/C$18)/24-INT((('À Faire - Récapitulatif'!D7+'À Faire - Récapitulatif'!D9+'À Faire - Récapitulatif'!D10+'À Faire - Récapitulatif'!D12+'À Faire - Récapitulatif'!J13+'À Faire - Récapitulatif'!P22+'À Faire - Récapitulatif'!J27)/C$18)/24))&" " & 'Paramètres - Admin'!$D$3 & " " & MINUTE((('À Faire - Récapitulatif'!D7+'À Faire - Récapitulatif'!D9+'À Faire - Récapitulatif'!D10+'À Faire - Récapitulatif'!D12+'À Faire - Récapitulatif'!J13+'À Faire - Récapitulatif'!P22+'À Faire - Récapitulatif'!J27)/C$18)/24-INT((('À Faire - Récapitulatif'!D7+'À Faire - Récapitulatif'!D9+'À Faire - Récapitulatif'!D10+'À Faire - Récapitulatif'!D12+'À Faire - Récapitulatif'!J13+'À Faire - Récapitulatif'!P22+'À Faire - Récapitulatif'!J27)/C$18)/24))&" " & 'Paramètres - Admin'!$D$2)))))),0) -> 0 | D20: =IF(D$18<>0,IF($B$2='Paramètres - Admin'!$B$2,TEXT((('À Faire - Récapitulatif'!V13+'À Faire - Récapitulatif'!V27)/D$18)*60*60,"# 0")&" " & 'Paramètres - Admin'!$B$2,IF($B$2='Paramètres - Admin'!$B$3,TEXT((('À Faire - Récapitulatif'!V13+'À Faire - Récapitulatif'!V27)/D$18)*60,"# 0")&" " & 'Paramètres - Admin'!$B$3,IF($B$2='Paramètres - Admin'!$B$4,TEXT((('À Faire - Récapitulatif'!V13+'À Faire - Récapitulatif'!V27)/D$18),"# 0,00")&" " & 'Paramètres - Admin'!$B$4,IF($B$2='Paramètres - Admin'!$B$5,TEXT((('À Faire - Récapitulatif'!V13+'À Faire - Récapitulatif'!V27)/D$18)/24,"# 0,00")&" " & 'Paramètres - Admin'!$B$5,IF($B$2='Paramètres - Admin'!$B$6,TEXT(((('À Faire - Récapitulatif'!V13+'À Faire - Récapitulatif'!V27)/D$18)/24)/30,"# 0,00")&" " & 'Paramètres - Admin'!$B$6,IF((('À Faire - Récapitulatif'!V13+'À Faire - Récapitulatif'!V27)/D$18)/24>=1,INT((('À Faire - Récapitulatif'!V13+'À Faire - Récapitulatif'!V27)/D$18)/24)&" " & 'Paramètres - Admin'!$D$4 & " " & HOUR((('À Faire - Récapitulatif'!V13+'À Faire - Récapitulatif'!V27)/D$18)/24-INT((('À Faire - Récapitulatif'!V13+'À Faire - Récapitulatif'!V27)/D$18)/24))&" " & 'Paramètres - Admin'!$D$3 & " " & MINUTE((('À Faire - Récapitulatif'!V13+'À Faire - Récapitulatif'!V27)/D$18)/24-INT((('À Faire - Récapitulatif'!V13+'À Faire - Récapitulatif'!V27)/D$18)/24))&" " & 'Paramètres - Admin'!$D$2,HOUR((('À Faire - Récapitulatif'!V13+'À Faire - Récapitulatif'!V27)/D$18)/24-INT((('À Faire - Récapitulatif'!V13+'À Faire - Récapitulatif'!V27)/D$18)/24))&" " & 'Paramètres - Admin'!$D$3 & " " & MINUTE((('À Faire - Récapitulatif'!V13+'À Faire - Récapitulatif'!V27)/D$18)/24-INT((('À Faire - Récapitulatif'!V13+'À Faire - Récapitulatif'!V27)/D$18)/24))&" " & 'Paramètres - Admin'!$D$2)))))),0) -> 0

Sheet Rentabilité
A1: LVL HdV | B1: Trophées | I1: NB Caserne
A2: =Paramètres!$BI$2 -> 1 | B2: =Paramètres!BL2 -> 100 | I2: =Paramètres!H46 -> 0
A3: Combat - Gains | I3: Formation de Troupes Normales
A4: Type | B4: Montant | D4: Bonus | E4: Non | J4: Max + | K4: Actuel + | L4: Espace | M4: Coût | N4: Caserne
A5: Or | D5: =IF($E$4="Oui",VLOOKUP(1,LEAGUES_Bonus[#All],3),0)-VLOOKUP(1,LEAGUES_Find[#All],2) -> -10 | I5: Barbare | J5: =VLOOKUP($A$2,AVAILABLE_Upgrades_Normal_Troops[#All],MATCH($I5,AVAILABLE_Upgrades_Normal_Troops[#Headers],0)+1) -> 0 | K5: =IF(ISERROR(MATCH(1,Paramètres!AO$6:AO$45,0)),0,MATCH(1,Paramètres!AO$6:AO$45,0)) -> 0 | L5: =IF($K5<>0,VLOOKUP($K5,TRAINING_Barbarian[#All],2),0) -> 0 | M5: =IF($K5<>0,VLOOKUP($K5,TRAINING_Barbarian[#All],3),0) -> 0 | N5: 10
A6: Élixir | D6: =IF($E$4="Oui",VLOOKUP(1,LEAGUES_Bonus[#All],4),0) -> 0 | I6: Archer | J6: =VLOOKUP($A$2,AVAILABLE_Upgrades_Normal_Troops[#All],MATCH($I6,AVAILABLE_Upgrades_Normal_Troops[#Headers],0)+1) -> 0 | K6: =IF(ISERROR(MATCH(1,Paramètres!AP$6:AP$45,0)),0,MATCH(1,Paramètres!AP$6:AP$45,0)) -> 0 | L6: =IF($K6<>0,VLOOKUP($K6,TRAINING_Archer[#All],2),0) -> 0 | M6: =IF($K6<>0,VLOOKUP($K6,TRAINING_Archer[#All],3),0) -> 0
A7: Élixir Noir | D7: =IF($E$4="Oui",VLOOKUP(1,LEAGUES_Bonus[#All],5),0) -> 0 | I7: Gobelin | J7: =VLOOKUP($A$2,AVAILABLE_Upgrades_Normal_Troops[#All],MATCH($I7,AVAILABLE_Upgrades_Normal_Troops[#Headers],0)+1) -> 0 | K7: =IF(ISERROR(MATCH(1,Paramètres!AQ$6:AQ$45,0)),0,MATCH(1,Paramètres!AQ$6:AQ$45,0)) -> 0 | L7: =IF($K7<>0,VLOOKUP($K7,TRAINING_Goblin[#All],2),0) -> 0 | M7: =IF($K7<>0,VLOOKUP($K7,TRAINING_Goblin[#All],3),0) -> 0
I8: Géant | J8: =VLOOKUP($A$2,AVAILABLE_Upgrades_Normal_Troops[#All],MATCH($I8,AVAILABLE_Upgrades_Normal_Troops[#Headers],0)+1) -> 0 | K8: =IF(ISERROR(MATCH(1,Paramètres!AR$6:AR$45,0)),0,MATCH(1,Paramètres!AR$6:AR$45,0)) -> 0 | L8: =IF($K8<>0,VLOOKUP($K8,TRAINING_Giant[#All],2),0) -> 0 | M8: =IF($K8<>0,VLOOKUP($K8,TRAINING_Giant[#All],3),0) -> 0
A9: Combat - Profits | I9: Sapeur | J9: =VLOOKUP($A$2,AVAILABLE_Upgrades_Normal_Troops[#All],MATCH($I9,AVAILABLE_Upgrades_Normal_Troops[#Headers],0)+1) -> 0 | K9: =IF(ISERROR(MATCH(1,Paramètres!AS$6:AS$45,0)),0,MATCH(1,Paramètres!AS$6:AS$45,0)) -> 0 | L9: =IF($K9<>0,VLOOKUP($K9,TRAINING_Wall_Breaker[#All],2),0) -> 0 | M9: =IF($K9<>0,VLOOKUP($K9,TRAINING_Wall_Breaker[#All],3),0) -> 0
A10: Type | B10: Montant | I10: Ballon | J10: =VLOOKUP($A$2,AVAILABLE_Upgrades_Normal_Troops[#All],MATCH($I10,AVAILABLE_Upgrades_Normal_Troops[#Headers],0)+1) -> 0 | K10: =IF(ISERROR(MATCH(1,Paramètres!AT$6:AT$45,0)),0,MATCH(1,Paramètres!AT$6:AT$45,0)) -> 0 | L10: =IF($K10<>0,VLOOKUP($K10,TRAINING_Balloon[#All],2),0) -> 0 | M10: =IF($K10<>0,VLOOKUP($K10,TRAINING_Balloon[#All],3),0) -> 0
A11: Or | B11: =B5+D5 -> -10 | I11: Sorcier | J11: =VLOOKUP($A$2,AVAILABLE_Upgrades_Normal_Troops[#All],MATCH($I11,AVAILABLE_Upgrades_Normal_Troops[#Headers],0)+1) -> 0 | K11: =IF(ISERROR(MATCH(1,Paramètres!AU$6:AU$45,0)),0,MATCH(1,Paramètres!AU$6:AU$45,0)) -> 0 | L11: =IF($K11<>0,VLOOKUP($K11,TRAINING_Wizard[#All],2),0) -> 0 | M11: =IF($K11<>0,VLOOKUP($K11,TRAINING_Wizard[#All],3),0) -> 0
A12: Élixir | B12: =(B6+D6)-(F32+N17) -> 0 | I12: Guérisseuse | J12: =VLOOKUP($A$2,AVAILABLE_Upgrades_Normal_Troops[#All],MATCH($I12,AVAILABLE_Upgrades_Normal_Troops[#Headers],0)+1) -> 0 | K12: =IF(ISERROR(MATCH(1,Paramètres!AV$6:AV$45,0)),0,MATCH(1,Paramètres!AV$6:AV$45,0)) -> 0 | L12: =IF($K12<>0,VLOOKUP($K12,TRAINING_Healer[#All],2),0) -> 0 | M12: =IF($K12<>0,VLOOKUP($K12,TRAINING_Healer[#All],3),0) -> 0
A13: Élixir Noir | B13: =B7+D7-(F33+N30) -> 0 | I13: Dragon | J13: =VLOOKUP($A$2,AVAILABLE_Upgrades_Normal_Troops[#All],MATCH($I13,AVAILABLE_Upgrades_Normal_Troops[#Headers],0)+1) -> 0 | K13: =IF(ISERROR(MATCH(1,Paramètres!AW$6:AW$45,0)),0,MATCH(1,Paramètres!AW$6:AW$45,0)) -> 0 | L13: =IF($K13<>0,VLOOKUP($K13,TRAINING_Dragon[#All],2),0) -> 0 | M13: =IF($K13<>0,VLOOKUP($K13,TRAINING_Dragon[#All],3),0) -> 0
I14: P.E.K.K.A | J14: =VLOOKUP($A$2,AVAILABLE_Upgrades_Normal_Troops[#All],MATCH($I14,AVAILABLE_Upgrades_Normal_Troops[#Headers],0)+1) -> 0 | K14: =IF(ISERROR(MATCH(1,Paramètres!AX$6:AX$45,0)),0,MATCH(1,Paramètres!AX$6:AX$45,0)) -> 0 | L14: =IF($K14<>0,VLOOKUP($K14,TRAINING_PEKKA[#All],2),0) -> 0 | M14: =IF($K14<>0,VLOOKUP($K14,TRAINING_PEKKA[#All],3),0) -> 0
B15: Cellule rouge : | D15: Troupe/Sort non disponible | J15: Espace Total | N15: =SUMPRODUCT(N$5:N$14,$L$5:$L$14) -> 0
B16: Ligne jaune : | D16: Max. total atteint - Camp Militaire - Sorts | J16: Camp Militaire | N16: =SUMPRODUCT(Paramètres!J6:J13,'Coûts de Formation'!AH31:AH38) -> 0
J17: Coût Total | N17: =SUMPRODUCT(N$5:N$14,$M$5:$M$14) -> 0
A18: LVL Usine de Sorts | B18: =IF(ISERROR(MATCH(1,Paramètres!L$6:L$45,0)),0,MATCH(1,Paramètres!L$6:L$45,0)) -> 0
A19: LVL Usine de Sorts Noirs | B19: =IF(ISERROR(MATCH(1,Paramètres!M$6:M$45,0)),0,MATCH(1,Paramètres!M$6:M$45,0)) -> 0 | I19: NB Caserne Noire
A20: Création de Sorts | I20: =Paramètres!I46 -> 0
B21: Max + | C21: Actuel + | D21: Espace | E21: Coût | F21: Laboratoire | I21: Formation de Troupes Noires
A22: Sort de Foudre | B22: =VLOOKUP($A$2,AVAILABLE_Upgrades_Spells[#All],MATCH($A22,AVAILABLE_Upgrades_Spells[#Headers],0)+1) -> 0 | C22: =IF(ISERROR(MATCH(1,Paramètres!AG$6:AG$45,0)),0,MATCH(1,Paramètres!AG$6:AG$45,0)) -> 0 | D22: =IF($C22<>0,VLOOKUP($C22,TRAINING_Spell_Lightning[#All],2),0) -> 0 | E22: =IF($C22<>0,VLOOKUP($C22,TRAINING_Spell_Lightning[#All],3),0) -> 0 | J22: Max + | K22: Actuel + | L22: Espace | M22: Coût | N22: Caserne Noire
A23: Sort de Guérison | B23: =VLOOKUP($A$2,AVAILABLE_Upgrades_Spells[#All],MATCH($A23,AVAILABLE_Upgrades_Spells[#Headers],0)+1) -> 0 | C23: =IF(ISERROR(MATCH(1,Paramètres!AH$6:AH$45,0)),0,MATCH(1,Paramètres!AH$6:AH$45,0)) -> 0 | D23: =IF($C23<>0,VLOOKUP($C23,TRAINING_Spell_Healing[#All],2),0) -> 0 | E23: =IF($C23<>0,VLOOKUP($C23,TRAINING_Spell_Healing[#All],3),0) -> 0 | I23: Serviteur | J23: =VLOOKUP($A$2,AVAILABLE_Upgrades_Dark_Troops[#All],MATCH($I23,AVAILABLE_Upgrades_Dark_Troops[#Headers],0)+1) -> 0 | K23: =IF(ISERROR(MATCH(1,Paramètres!AY$6:AY$45,0)),0,MATCH(1,Paramètres!AY$6:AY$45,0)) -> 0 | L23: =IF($K23<>0,VLOOKUP($K23,TRAINING_Minion[#All],2),0) -> 0 | M23: =IF($K23<>0,VLOOKUP($K23,TRAINING_Minion[#All],3),0) -> 0
A24: Sort de Rage | B24: =VLOOKUP($A$2,AVAILABLE_Upgrades_Spells[#All],MATCH($A24,AVAILABLE_Upgrades_Spells[#Headers],0)+1) -> 0 | C24: =IF(ISERROR(MATCH(1,Paramètres!AI$6:AI$45,0)),0,MATCH(1,Paramètres!AI$6:AI$45,0)) -> 0 | D24: =IF($C24<>0,VLOOKUP($C24,TRAINING_Spell_Rage[#All],2),0) -> 0 | E24: =IF($C24<>0,VLOOKUP($C24,TRAINING_Spell_Rage[#All],3),0) -> 0 | I24: Chevaucheur de Cochon | J24: =VLOOKUP($A$2,AVAILABLE_Upgrades_Dark_Troops[#All],MATCH($I24,AVAILABLE_Upgrades_Dark_Troops[#Headers],0)+1) -> 0 | K24: =IF(ISERROR(MATCH(1,Paramètres!AZ$6:AZ$45,0)),0,MATCH(1,Paramètres!AZ$6:AZ$45,0)) -> 0 | L24: =IF($K24<>0,VLOOKUP($K24,TRAINING_Hog_Rider[#All],2),0) -> 0 | M24: =IF($K24<>0,VLOOKUP($K24,TRAINING_Hog_Rider[#All],3),0) -> 0
A25: Sort de Saut | B25: =VLOOKUP($A$2,AVAILABLE_Upgrades_Spells[#All],MATCH($A25,AVAILABLE_Upgrades_Spells[#Headers],0)+1) -> 0 | C25: =IF(ISERROR(MATCH(1,Paramètres!AJ$6:AJ$45,0)),0,MATCH(1,Paramètres!AJ$6:AJ$45,0)) -> 0 | D25: =IF($C25<>0,VLOOKUP($C25,TRAINING_Spell_Jump[#All],2),0) -> 0 | E25: =IF($C25<>0,VLOOKUP($C25,TRAINING_Spell_Jump[#All],3),0) -> 0 | I25: Valkyrie | J25: =VLOOKUP($A$2,AVAILABLE_Upgrades_Dark_Troops[#All],MATCH($I25,AVAILABLE_Upgrades_Dark_Troops[#Headers],0)+1) -> 0 | K25: =IF(ISERROR(MATCH(1,Paramètres!BA$6:BA$45,0)),0,MATCH(1,Paramètres!BA$6:BA$45,0)) -> 0 | L25: =IF($K25<>0,VLOOKUP($K25,TRAINING_Valkyrie[#All],2),0) -> 0 | M25: =IF($K25<>0,VLOOKUP($K25,TRAINING_Valkyrie[#All],3),0) -> 0
A26: Sort de Gel | B26: =VLOOKUP($A$2,AVAILABLE_Upgrades_Spells[#All],MATCH($A26,AVAILABLE_Upgrades_Spells[#Headers],0)+1) -> 0 | C26: =IF(ISERROR(MATCH(1,Paramètres!AK$6:AK$45,0)),0,MATCH(1,Paramètres!AK$6:AK$45,0)) -> 0 | D26: =IF($C26<>0,VLOOKUP($C26,TRAINING_Spell_Freeze[#All],2),0) -> 0 | E26: =IF($C26<>0,VLOOKUP($C26,TRAINING_Spell_Freeze[#All],3),0) -> 0 | I26: Golem | J26: =VLOOKUP($A$2,AVAILABLE_Upgrades_Dark_Troops[#All],MATCH($I26,AVAILABLE_Upgrades_Dark_Troops[#Headers],0)+1) -> 0 | K26: =IF(ISERROR(MATCH(1,Paramètres!BB$6:BB$45,0)),0,MATCH(1,Paramètres!BB$6:BB$45,0)) -> 0 | L26: =IF($K26<>0,VLOOKUP($K26,TRAINING_Golem[#All],2),0) -> 0 | M26: =IF($K26<>0,VLOOKUP($K26,TRAINING_Golem[#All],3),0) -> 0
A27: Sort de Poison | B27: =VLOOKUP($A$2,AVAILABLE_Upgrades_Dark_Spells[#All],MATCH($A27,AVAILABLE_Upgrades_Dark_Spells[#Headers],0)+1) -> 0 | C27: =IF(ISERROR(MATCH(1,Paramètres!AL$6:AL$45,0)),0,MATCH(1,Paramètres!AL$6:AL$45,0)) -> 0 | D27: =IF($C27<>0,VLOOKUP($C27,TRAINING_Spell_Poison[#All],2),0) -> 0 | E27: =IF($C27<>0,VLOOKUP($C27,TRAINING_Spell_Poison[#All],3),0) -> 0 | I27: Sorcière | J27: =VLOOKUP($A$2,AVAILABLE_Upgrades_Dark_Troops[#All],MATCH($I27,AVAILABLE_Upgrades_Dark_Troops[#Headers],0)+1) -> 0 | K27: =IF(ISERROR(MATCH(1,Paramètres!BC$6:BC$45,0)),0,MATCH(1,Paramètres!BC$6:BC$45,0)) -> 0 | L27: =IF($K27<>0,VLOOKUP($K27,TRAINING_Witch[#All],2),0) -> 0 | M27: =IF($K27<>0,VLOOKUP($K27,TRAINING_Witch[#All],3),0) -> 0
A28: Sort de Séisme | B28: =VLOOKUP($A$2,AVAILABLE_Upgrades_Dark_Spells[#All],MATCH($A28,AVAILABLE_Upgrades_Dark_Spells[#Headers],0)+1) -> 0 | C28: =IF(ISERROR(MATCH(1,Paramètres!AM$6:AM$45,0)),0,MATCH(1,Paramètres!AM$6:AM$45,0)) -> 0 | D28: =IF($C28<>0,VLOOKUP($C28,TRAINING_Spell_Earthquake[#All],2),0) -> 0 | E28: =IF($C28<>0,VLOOKUP($C28,TRAINING_Spell_Earthquake[#All],3),0) -> 0 | I28: Molosse de lave | J28: =VLOOKUP($A$2,AVAILABLE_Upgrades_Dark_Troops[#All],MATCH($I28,AVAILABLE_Upgrades_Dark_Troops[#Headers],0)+1) -> 0 | K28: =IF(ISERROR(MATCH(1,Paramètres!BD$6:BD$45,0)),0,MATCH(1,Paramètres!BD$6:BD$45,0)) -> 0 | L28: =IF($K28<>0,VLOOKUP($K28,TRAINING_Lava_Hound[#All],2),0) -> 0 | M28: =IF($K28<>0,VLOOKUP($K28,TRAINING_Lava_Hound[#All],3),0) -> 0
A29: Sort de Hâte | B29: =VLOOKUP($A$2,AVAILABLE_Upgrades_Dark_Spells[#All],MATCH($A29,AVAILABLE_Upgrades_Dark_Spells[#Headers],0)+1) -> 0 | C29: =IF(ISERROR(MATCH(1,Paramètres!AN$6:AN$45,0)),0,MATCH(1,Paramètres!AN$6:AN$45,0)) -> 0 | D29: =IF($C29<>0,VLOOKUP($C29,TRAINING_Spell_Haste[#All],2),0) -> 0 | E29: =IF($C29<>0,VLOOKUP($C29,TRAINING_Spell_Haste[#All],3),0) -> 0 | J29: Espace Total | N29: =SUMPRODUCT(N$23:N$28,$L$23:$L$28) -> 0
B30: Espace Total | F30: =SUMPRODUCT(F$22:F$29,$D$22:$D$29) -> 0 | J30: Coût Total | N30: =SUMPRODUCT(N$23:N$28,$M$23:$M$28) -> 0
B31: Capacité Totale | F31: =VLOOKUP($B$19,TRAINING_Dark_Spell_Factory[#All],2)+VLOOKUP($B$18,TRAINING_Spell_Factory[#All],2) -> 0
B32: Coût Total | F32: =SUMPRODUCT(F$22:F$26,$E$22:$E$26) -> 0
B33: Coût Total | F33: =SUMPRODUCT(F$27:F$29,$E$27:$E$29) -> 0

Sheet Combats - Loots (hidden)
A1: LVL HdV | B1: Attaque / Défense | C1: LVL HdV Opposant | D1: Différence LVL HdV
A2: =Paramètres!$BI$2 -> 1 | B2: Attaque | C2: 9 | D2: =IF($B$2='Paramètres - Admin'!$F$2,$C$2-$A$2,IF(B2='Paramètres - Admin'!$F$3,$A$2-$C$2)) -> 8
A3: Combat - Nombre Total de Ressources | I3: =IF($B$2='Paramètres - Admin'!$F$2,$G$29 & C2,IF($B$2='Paramètres - Admin'!$F$3,$H$29 & C2)) -> Loots - Gains Possibles vs HdV LVL 9
B4: Réserve d'Or | C4: Réservoir d'Élixir | D4: Réservoir d'Élixir Noir | E4: Mine d'Or | F4: Extracteur d'Élixir | G4: Foreuse d'Élixir Noir | J4: Multiplicateur de Loot | K4: Or | L4: Élixir | M4: Élixir Noir | R4: Cellule rouge : | S4: Bâtiment non disponible
A5: Max | B5: =IF($B$2='Paramètres - Admin'!$F$2,VLOOKUP($C$2,AVAILABLE_Buildings_Resource[#All],MATCH(B$4,AVAILABLE_Buildings_Resource[#Headers],0)),IF($B$2='Paramètres - Admin'!$F$3,VLOOKUP($A$2,AVAILABLE_Buildings_Resource[#All],MATCH(B$4,AVAILABLE_Buildings_Resource[#Headers],0)))) -> 4 | C5: =IF($B$2='Paramètres - Admin'!$F$2,VLOOKUP($C$2,AVAILABLE_Buildings_Resource[#All],MATCH(C$4,AVAILABLE_Buildings_Resource[#Headers],0)),IF($B$2='Paramètres - Admin'!$F$3,VLOOKUP($A$2,AVAILABLE_Buildings_Resource[#All],MATCH(C$4,AVAILABLE_Buildings_Resource[#Headers],0)))) -> 4 | D5: =IF($B$2='Paramètres - Admin'!$F$2,VLOOKUP($C$2,AVAILABLE_Buildings_Resource[#All],MATCH(D$4,AVAILABLE_Buildings_Resource[#Headers],0)),IF($B$2='Paramètres - Admin'!$F$3,VLOOKUP($A$2,AVAILABLE_Buildings_Resource[#All],MATCH(D$4,AVAILABLE_Buildings_Resource[#Headers],0)))) -> 1 | E5: =IF($B$2='Paramètres - Admin'!$F$2,VLOOKUP($C$2,AVAILABLE_Buildings_Resource[#All],MATCH(E$4,AVAILABLE_Buildings_Resource[#Headers],0)),IF($B$2='Paramètres - Admin'!$F$3,VLOOKUP($A$2,AVAILABLE_Buildings_Resource[#All],MATCH(E$4,AVAILABLE_Buildings_Resource[#Headers],0)))) -> 6 | F5: =IF($B$2='Paramètres - Admin'!$F$2,VLOOKUP($C$2,AVAILABLE_Buildings_Resource[#All],MATCH(F$4,AVAILABLE_Buildings_Resource[#Headers],0)),IF($B$2='Paramètres - Admin'!$F$3,VLOOKUP($A$2,AVAILABLE_Buildings_Resource[#All],MATCH(F$4,AVAILABLE_Buildings_Resource[#Headers],0)))) -> 6 | G5: =IF($B$2='Paramètres - Admin'!$F$2,VLOOKUP($C$2,AVAILABLE_Buildings_Resource[#All],MATCH(G$4,AVAILABLE_Buildings_Resource[#Headers],0)),IF($B$2='Paramètres - Admin'!$F$3,VLOOKUP($A$2,AVAILABLE_Buildings_Resource[#All],MATCH(G$4,AVAILABLE_Buildings_Resource[#Headers],0)))) -> 2 | I5: Stockages | J5: =VLOOKUP(1,LEAGUES_Loot_Multiplier[#All],3) -> 2 | K5: =B25*$J5 -> 0 | L5: =C25*$J5 -> 20000 | M5: =D25*$J5 -> 0
A6: Stockage Max | B6: =IF($B$2='Paramètres - Admin'!$F$2,IF(ISERROR(VLOOKUP(VLOOKUP($C$2,AVAILABLE_Buildings_Resource[#All],MATCH(B$4,AVAILABLE_Buildings_Resource[#Headers],0)+1),EARNINGS_Gold_Storage[#All],2)),0,VLOOKUP(VLOOKUP($C$2,AVAILABLE_Buildings_Resource[#All],MATCH(B$4,AVAILABLE_Buildings_Resource[#Headers],0)+1),EARNINGS_Gold_Storage[#All],2)),IF($B$2='Paramètres - Admin'!$F$3,IF(ISERROR(VLOOKUP(VLOOKUP($A$2,AVAILABLE_Buildings_Resource[#All],MATCH(B$4,AVAILABLE_Buildings_Resource[#Headers],0)+1),EARNINGS_Gold_Storage[#All],2)),0,VLOOKUP(VLOOKUP($A$2,AVAILABLE_Buildings_Resource[#All],MATCH(B$4,AVAILABLE_Buildings_Resource[#Headers],0)+1),EARNINGS_Gold_Storage[#All],2)))) -> 1750000 | C6: =IF($B$2='Paramètres - Admin'!$F$2,IF(ISERROR(VLOOKUP(VLOOKUP($C$2,AVAILABLE_Buildings_Resource[#All],MATCH(C$4,AVAILABLE_Buildings_Resource[#Headers],0)+1),EARNINGS_Elixir_Storage[#All],2)),0,VLOOKUP(VLOOKUP($C$2,AVAILABLE_Buildings_Resource[#All],MATCH(C$4,AVAILABLE_Buildings_Resource[#Headers],0)+1),EARNINGS_Elixir_Storage[#All],2)),IF($B$2='Paramètres - Admin'!$F$3,IF(ISERROR(VLOOKUP(VLOOKUP($A$2,AVAILABLE_Buildings_Resource[#All],MATCH(C$4,AVAILABLE_Buildings_Resource[#Headers],0)+1),EARNINGS_Elixir_Storage[#All],2)),0,VLOOKUP(VLOOKUP($A$2,AVAILABLE_Buildings_Resource[#All],MATCH(C$4,AVAILABLE_Buildings_Resource[#Headers],0)+1),EARNINGS_Elixir_Storage[#All],2)))) -> 1750000 | D6: =IF($B$2='Paramètres - Admin'!$F$2,IF(ISERROR(VLOOKUP(VLOOKUP($C$2,AVAILABLE_Buildings_Resource[#All],MATCH(D$4,AVAILABLE_Buildings_Resource[#Headers],0)+1),EARNINGS_Dark_Elixir_Storage[#All],2)),0,VLOOKUP(VLOOKUP($C$2,AVAILABLE_Buildings_Resource[#All],MATCH(D$4,AVAILABLE_Buildings_Resource[#Headers],0)+1),EARNINGS_Dark_Elixir_Storage[#All],2)),IF($B$2='Paramètres - Admin'!$F$3,IF(ISERROR(VLOOKUP(VLOOKUP($A$2,AVAILABLE_Buildings_Resource[#All],MATCH(D$4,AVAILABLE_Buildings_Resource[#Headers],0)+1),EARNINGS_Dark_Elixir_Storage[#All],2)),0,VLOOKUP(VLOOKUP($A$2,AVAILABLE_Buildings_Resource[#All],MATCH(D$4,AVAILABLE_Buildings_Resource[#Headers],0)+1),EARNINGS_Dark_Elixir_Storage[#All],2)))) -> 180000 | E6: =IF($B$2='Paramètres - Admin'!$F$2,IF(ISERROR(VLOOKUP(VLOOKUP($C$2,AVAILABLE_Buildings_Resource[#All],MATCH(E$4,AVAILABLE_Buildings_Resource[#Headers],0)+1),EARNINGS_Gold_Mine[#All],3)),0,VLOOKUP(VLOOKUP($C$2,AVAILABLE_Buildings_Resource[#All],MATCH(E$4,AVAILABLE_Buildings_Resource[#Headers],0)+1),EARNINGS_Gold_Mine[#All],3)),IF($B$2='Paramètres - Admin'!$F$3,IF(ISERROR(VLOOKUP(VLOOKUP($A$2,AVAILABLE_Buildings_Resource[#All],MATCH(E$4,AVAILABLE_Buildings_Resource[#Headers],0)+1),EARNINGS_Gold_Mine[#All],3)),0,VLOOKUP(VLOOKUP($A$2,AVAILABLE_Buildings_Resource[#All],MATCH(E$4,AVAILABLE_Buildings_Resource[#Headers],0)+1),EARNINGS_Gold_Mine[#All],3)))) -> 200000 | F6: =IF($B$2='Paramètres - Admin'!$F$2,IF(ISERROR(VLOOKUP(VLOOKUP($C$2,AVAILABLE_Buildings_Resource[#All],MATCH(F$4,AVAILABLE_Buildings_Resource[#Headers],0)+1),EARNINGS_Elixir_Collector[#All],3)),0,VLOOKUP(VLOOKUP($C$2,AVAILABLE_Buildings_Resource[#All],MATCH(F$4,AVAILABLE_Buildings_Resource[#Headers],0)+1),EARNINGS_Elixir_Collector[#All],3)),IF($B$2='Paramètres - Admin'!$F$3,IF(ISERROR(VLOOKUP(VLOOKUP($A$2,AVAILABLE_Buildings_Resource[#All],MATCH(F$4,AVAILABLE_Buildings_Resource[#Headers],0)+1),EARNINGS_Elixir_Collector[#All],3)),0,VLOOKUP(VLOOKUP($A$2,AVAILABLE_Buildings_Resource[#All],MATCH(F$4,AVAILABLE_Buildings_Resource[#Headers],0)+1),EARNINGS_Elixir_Collector[#All],3)))) -> 200000 | G6: =IF($B$2='Paramètres - Admin'!$F$2,IF(ISERROR(VLOOKUP(VLOOKUP($C$2,AVAILABLE_Buildings_Resource[#All],MATCH(E$4,AVAILABLE_Buildings_Resource[#Headers],0)+1),EARNINGS_Dark_Elixir_Drill[#All],3)),0,VLOOKUP(VLOOKUP($C$2,AVAILABLE_Buildings_Resource[#All],MATCH(E$4,AVAILABLE_Buildings_Resource[#Headers],0)+1),EARNINGS_Dark_Elixir_Drill[#All],3)),IF($B$2='Paramètres - Admin'!$F$3,IF(ISERROR(VLOOKUP(VLOOKUP($A$2,AVAILABLE_Buildings_Resource[#All],MATCH(E$4,AVAILABLE_Buildings_Resource[#Headers],0)+1),EARNINGS_Dark_Elixir_Drill[#All],3)),0,VLOOKUP(VLOOKUP($A$2,AVAILABLE_Buildings_Resource[#All],MATCH(E$4,AVAILABLE_Buildings_Resource[#Headers],0)+1),EARNINGS_Dark_Elixir_Drill[#All],3)))) -> 1800 | I6: Mines/Extracteurs/Foreuses | J6: =VLOOKUP(1,LEAGUES_Loot_Multiplier[#All],3) -> 2 | K6: =E25*$J6 -> 0 | L6: =F25*$J6 -> 0 | M6: =G25*$J6 -> 0
A7: 1 | C7: 100000 | I7: Hôtel de Ville | J7: =IF(D2>0,1,VLOOKUP(1,LEAGUES_Loot_Multiplier[#All],3)) -> 1 | K7: =$K$24*$J7 -> 1000 | L7: =$K$25*$J7 -> 1000 | M7: 0 | R7: Cellule orange : | S7: Erreur - Bâtiment Max. total atteint
A8: 2 | I8: Bonus de Ligue | J8: / | K8: =IF($B$2='Paramètres - Admin'!$F$2,VLOOKUP(1,LEAGUES_Bonus[#All],3),0) -> 0 | L8: =IF($B$2='Paramètres - Admin'!$F$2,VLOOKUP(1,LEAGUES_Bonus[#All],4),0) -> 0 | M8: =IF($B$2='Paramètres - Admin'!$F$2,VLOOKUP(1,LEAGUES_Bonus[#All],5),0) -> 0
A9: 3 | J9: Total | K9: =SUM(K5:K8) -> 1000 | L9: =SUM(L5:L8) -> 21000 | M9: =SUM(M5:M8) -> 0
A10: 4
A11: 5
A12: 6
A13: 7
A14: Total | B14: =SUMIF($A7:$A13,"<="&B$5,B7:B13) -> 0 | C14: 100000 | D14: 0 | E14: 0 | F14: 0 | G14: 0
A16: Combat - Nombre de Ressources Disponibles
B17: Réserve d'Or | C17: Réservoir d'Élixir | D17: Réservoir d'Élixir Noir | E17: Mine d'Or | F17: Extracteur d'Élixir | G17: Foreuse d'Élixir Noir | I17: Type | J17: % | K17: Gain Maximum
A18: 1 | B18: =IF($A18>B$5,0,IF((B$7*$J$18)+(B$8*$J$18)+(B$9*$J$18)+(B$10*$J$18)+(B$11*$J$18)+(B$12*$J$18)+(B$13*$J$18)>$K$18,$K$18*(B7/B$14),B7*$J$18)) -> 0 | C18: =IF($A18>C$5,0,IF((C$7*$J$19)+(C$8*$J$19)+(C$9*$J$19)+(C$10*$J$19)+(C$11*$J$19)+(C$12*$J$19)+(C$13*$J$19)>$K$19,$K$19*(C7/C$14),C7*$J$19)) -> 10000 | D18: =IF($A18>D$5,0,IF((D$7*$J$20)+(D$8*$J$20)+(D$9*$J$20)+(D$10*$J$20)+(D$11*$J$20)+(D$12*$J$20)+(D$13*$J$20)>$K$20,$K$20*(D7/D$14),D7*$J$20)) -> 0 | E18: =IF($A18>E$5,0,IF(E7>$K$21,$K$21*$J$21,E7*$J$21)) -> 0 | F18: =IF($A18>F$5,0,IF(F7>$K$22,$K$22*$J$22,F7*$J$22)) -> 0 | G18: =IF($A18>G$5,0,IF(G7>$K$23,$K$23*$J$23,G7*$J$23)) -> 0 | I18: Réserve d'Or | J18: 0.1 | K18: 400000
A19: 2 | B19: 0 | C19: 0 | D19: 0 | E19: 0 | F19: 0 | G19: 0 | I19: Réservoir d'Élixir | J19: 0.1 | K19: 400000
A20: 3 | B20: 0 | C20: 0 | D20: 0 | E20: 0 | F20: 0 | G20: 0 | I20: Réservoir d'Élixir Noir | J20: 0.04 | K20: 3000
A21: 4 | B21: 0 | C21: 0 | D21: 0 | E21: 0 | F21: 0 | G21: 0 | I21: Mine d'Or | J21: 0.5 | K21: =IF($B$2='Paramètres - Admin'!$F$2,IF(ISERROR(VLOOKUP(VLOOKUP($C$2,AVAILABLE_Buildings_Resource[#All],MATCH(E$4,AVAILABLE_Buildings_Resource[#Headers],0)+1),EARNINGS_Gold_Storage[#All],2)),0,VLOOKUP(VLOOKUP($C$2,AVAILABLE_Buildings_Resource[#All],MATCH(E$4,AVAILABLE_Buildings_Resource[#Headers],0)+1),EARNINGS_Gold_Mine[#All],3)),IF($B$2='Paramètres - Admin'!$F$3,IF(ISERROR(VLOOKUP(VLOOKUP($A$2,AVAILABLE_Buildings_Resource[#All],MATCH(E$4,AVAILABLE_Buildings_Resource[#Headers],0)+1),EARNINGS_Gold_Storage[#All],2)),0,VLOOKUP(VLOOKUP($A$2,AVAILABLE_Buildings_Resource[#All],MATCH(E$4,AVAILABLE_Buildings_Resource[#Headers],0)+1),EARNINGS_Gold_Mine[#All],3)))) -> 200000
A22: 5 | B22: 0 | C22: 0 | D22: 0 | E22: 0 | F22: 0 | G22: 0 | I22: Extracteur d'Élixir | J22: 0.5 | K22: =IF($B$2='Paramètres - Admin'!$F$2,IF(ISERROR(VLOOKUP(VLOOKUP($C$2,AVAILABLE_Buildings_Resource[#All],MATCH(F$4,AVAILABLE_Buildings_Resource[#Headers],0)+1),EARNINGS_Gold_Storage[#All],2)),0,VLOOKUP(VLOOKUP($C$2,AVAILABLE_Buildings_Resource[#All],MATCH(F$4,AVAILABLE_Buildings_Resource[#Headers],0)+1),EARNINGS_Elixir_Collector[#All],3)),IF($B$2='Paramètres - Admin'!$F$3,IF(ISERROR(VLOOKUP(VLOOKUP($A$2,AVAILABLE_Buildings_Resource[#All],MATCH(F$4,AVAILABLE_Buildings_Resource[#Headers],0)+1),EARNINGS_Gold_Storage[#All],2)),0,VLOOKUP(VLOOKUP($A$2,AVAILABLE_Buildings_Resource[#All],MATCH(F$4,AVAILABLE_Buildings_Resource[#Headers],0)+1),EARNINGS_Elixir_Collector[#All],3)))) -> 200000
A23: 6 | B23: 0 | C23: 0 | D23: 0 | E23: 0 | F23: 0 | G23: 0 | I23: Foreuse d'Élixir Noir | J23: 0.75 | K23: 1600
A24: 7 | B24: 0 | C24: 0 | D24: 0 | E24: 0 | F24: 0 | G24: 0 | I24: Hôtel de Ville - Or | J24: 1 | K24: 1000
A25: Total | B25: =SUM(B18:B24) -> 0 | C25: 10000 | D25: 0 | E25: 0 | F25: 0 | G25: 0 | I25: Hôtel de Ville - Élixir | J25: 1 | K25: 1000
G29: Loots - Gains Possibles vs HdV LVL | H29: Loots - Pertes Possibles vs HdV LVL

Sheet Formation de Troupes (hidden)
A1: LVL HdV | B1: Affichage Temps | D1: LVL Usine de Sorts | F1: LVL Usine de Sorts Noirs | I1: NB Caserne | O1: LVL Caserne n°1 | P1: LVL Caserne n°2 | Q1: LVL Caserne n°3 | R1: LVL Caserne n°4
A2: =Paramètres!$BI$2 -> 1 | B2: heures | D2: =IF(ISERROR(MATCH(1,Paramètres!L$6:L$45,0)),0,MATCH(1,Paramètres!L$6:L$45,0)) -> 0 | F2: =IF(ISERROR(MATCH(1,Paramètres!M$6:M$45,0)),0,MATCH(1,Paramètres!M$6:M$45,0)) -> 0 | I2: =Paramètres!H46 -> 0 | O2: =IF(ISERROR(MATCH(2,Paramètres!H6:H45,0)),0,MATCH(2,Paramètres!H6:H45,0)) -> 0 | P2: 9 | Q2: 10 | R2: 10
A3: Création de Sorts | I3: Formation de Troupes Normales
B4: Max + | C4: Actuel + | D4: Espace | E4: Coût | F4: Time (s) | G4: Laboratoire - NB | J4: Max + | K4: Actuel + | L4: Espace | M4: Coût | N4: Time (s) | O4: Caserne n°1 - NB | P4: Caserne° 2 - NB | Q4: Caserne n°3 - NB | R4: Caserne n°4 - NB | S4: Total | T4: =AND(B$5<>"",$A6>B$5) -> TRUE
A5: Sort de Foudre | B5: =VLOOKUP($A$2,AVAILABLE_Upgrades_Spells[#All],MATCH($A5,AVAILABLE_Upgrades_Spells[#Headers],0)+1) -> 0 | C5: =IF(ISERROR(MATCH(1,Paramètres!AG$6:AG$45,0)),0,MATCH(1,Paramètres!AG$6:AG$45,0)) -> 0 | D5: =IF($C5<>0,VLOOKUP($C5,TRAINING_Spell_Lightning[#All],2),0) -> 0 | E5: =IF($C5<>0,VLOOKUP($C5,TRAINING_Spell_Lightning[#All],3),0) -> 0 | F5: =IF($C5<>0,VLOOKUP($C5,TRAINING_Spell_Lightning[#All],4),0) -> 0 | I5: Barbare | J5: =VLOOKUP($A$2,AVAILABLE_Upgrades_Normal_Troops[#All],MATCH($I5,AVAILABLE_Upgrades_Normal_Troops[#Headers],0)+1) -> 0 | K5: =IF(ISERROR(MATCH(1,Paramètres!AO$6:AO$45,0)),0,MATCH(1,Paramètres!AO$6:AO$45,0)) -> 0 | L5: =IF($K5<>0,VLOOKUP($K5,TRAINING_Barbarian[#All],2),0) -> 0 | M5: =IF($K5<>0,VLOOKUP($K5,TRAINING_Barbarian[#All],3),0) -> 0 | N5: =IF($K5<>0,VLOOKUP($K5,TRAINING_Barbarian[#All],4),0) -> 0 | S5: =SUM(O5:R5) -> 0
A6: Sort de Guérison | B6: =VLOOKUP($A$2,AVAILABLE_Upgrades_Spells[#All],MATCH($A6,AVAILABLE_Upgrades_Spells[#Headers],0)+1) -> 0 | C6: =IF(ISERROR(MATCH(1,Paramètres!AH$6:AH$45,0)),0,MATCH(1,Paramètres!AH$6:AH$45,0)) -> 0 | D6: =IF($C6<>0,VLOOKUP($C6,TRAINING_Spell_Healing[#All],2),0) -> 0 | E6: =IF($C6<>0,VLOOKUP($C6,TRAINING_Spell_Healing[#All],3),0) -> 0 | F6: =IF($C6<>0,VLOOKUP($C6,TRAINING_Spell_Healing[#All],4),0) -> 0 | I6: Archer | J6: =VLOOKUP($A$2,AVAILABLE_Upgrades_Normal_Troops[#All],MATCH($I6,AVAILABLE_Upgrades_Normal_Troops[#Headers],0)+1) -> 0 | K6: =IF(ISERROR(MATCH(1,Paramètres!AP$6:AP$45,0)),0,MATCH(1,Paramètres!AP$6:AP$45,0)) -> 0 | L6: =IF($K6<>0,VLOOKUP($K6,TRAINING_Archer[#All],2),0) -> 0 | M6: =IF($K6<>0,VLOOKUP($K6,TRAINING_Archer[#All],3),0) -> 0 | N6: =IF($K6<>0,VLOOKUP($K6,TRAINING_Archer[#All],4),0) -> 0 | S6: =SUM(O6:R6) -> 0
A7: Sort de Rage | B7: =VLOOKUP($A$2,AVAILABLE_Upgrades_Spells[#All],MATCH($A7,AVAILABLE_Upgrades_Spells[#Headers],0)+1) -> 0 | C7: =IF(ISERROR(MATCH(1,Paramètres!AI$6:AI$45,0)),0,MATCH(1,Paramètres!AI$6:AI$45,0)) -> 0 | D7: =IF($C7<>0,VLOOKUP($C7,TRAINING_Spell_Rage[#All],2),0) -> 0 | E7: =IF($C7<>0,VLOOKUP($C7,TRAINING_Spell_Rage[#All],3),0) -> 0 | F7: =IF($C7<>0,VLOOKUP($C7,TRAINING_Spell_Rage[#All],4),0) -> 0 | I7: Gobelin | J7: =VLOOKUP($A$2,AVAILABLE_Upgrades_Normal_Troops[#All],MATCH($I7,AVAILABLE_Upgrades_Normal_Troops[#Headers],0)+1) -> 0 | K7: =IF(ISERROR(MATCH(1,Paramètres!AQ$6:AQ$45,0)),0,MATCH(1,Paramètres!AQ$6:AQ$45,0)) -> 0 | L7: =IF($K7<>0,VLOOKUP($K7,TRAINING_Goblin[#All],2),0) -> 0 | M7: =IF($K7<>0,VLOOKUP($K7,TRAINING_Goblin[#All],3),0) -> 0 | N7: =IF($K7<>0,VLOOKUP($K7,TRAINING_Goblin[#All],4),0) -> 0 | S7: 0
A8: Sort de Saut | B8: =VLOOKUP($A$2,AVAILABLE_Upgrades_Spells[#All],MATCH($A8,AVAILABLE_Upgrades_Spells[#Headers],0)+1) -> 0 | C8: =IF(ISERROR(MATCH(1,Paramètres!AJ$6:AJ$45,0)),0,MATCH(1,Paramètres!AJ$6:AJ$45,0)) -> 0 | D8: =IF($C8<>0,VLOOKUP($C8,TRAINING_Spell_Jump[#All],2),0) -> 0 | E8: =IF($C8<>0,VLOOKUP($C8,TRAINING_Spell_Jump[#All],3),0) -> 0 | F8: =IF($C8<>0,VLOOKUP($C8,TRAINING_Spell_Jump[#All],4),0) -> 0 | I8: Géant | J8: =VLOOKUP($A$2,AVAILABLE_Upgrades_Normal_Troops[#All],MATCH($I8,AVAILABLE_Upgrades_Normal_Troops[#Headers],0)+1) -> 0 | K8: =IF(ISERROR(MATCH(1,Paramètres!AR$6:AR$45,0)),0,MATCH(1,Paramètres!AR$6:AR$45,0)) -> 0 | L8: =IF($K8<>0,VLOOKUP($K8,TRAINING_Giant[#All],2),0) -> 0 | M8: =IF($K8<>0,VLOOKUP($K8,TRAINING_Giant[#All],3),0) -> 0 | N8: =IF($K8<>0,VLOOKUP($K8,TRAINING_Giant[#All],4),0) -> 0 | S8: 0
A9: Sort de Gel | B9: =VLOOKUP($A$2,AVAILABLE_Upgrades_Spells[#All],MATCH($A9,AVAILABLE_Upgrades_Spells[#Headers],0)+1) -> 0 | C9: =IF(ISERROR(MATCH(1,Paramètres!AK$6:AK$45,0)),0,MATCH(1,Paramètres!AK$6:AK$45,0)) -> 0 | D9: =IF($C9<>0,VLOOKUP($C9,TRAINING_Spell_Freeze[#All],2),0) -> 0 | E9: =IF($C9<>0,VLOOKUP($C9,TRAINING_Spell_Freeze[#All],3),0) -> 0 | F9: =IF($C9<>0,VLOOKUP($C9,TRAINING_Spell_Freeze[#All],4),0) -> 0 | I9: Sapeur | J9: =VLOOKUP($A$2,AVAILABLE_Upgrades_Normal_Troops[#All],MATCH($I9,AVAILABLE_Upgrades_Normal_Troops[#Headers],0)+1) -> 0 | K9: =IF(ISERROR(MATCH(1,Paramètres!AS$6:AS$45,0)),0,MATCH(1,Paramètres!AS$6:AS$45,0)) -> 0 | L9: =IF($K9<>0,VLOOKUP($K9,TRAINING_Wall_Breaker[#All],2),0) -> 0 | M9: =IF($K9<>0,VLOOKUP($K9,TRAINING_Wall_Breaker[#All],3),0) -> 0 | N9: =IF($K9<>0,VLOOKUP($K9,TRAINING_Wall_Breaker[#All],4),0) -> 0 | S9: 0
A10: Sort de Poison | B10: =VLOOKUP($A$2,AVAILABLE_Upgrades_Dark_Spells[#All],MATCH($A10,AVAILABLE_Upgrades_Dark_Spells[#Headers],0)+1) -> 0 | C10: =IF(ISERROR(MATCH(1,Paramètres!AL$6:AL$45,0)),0,MATCH(1,Paramètres!AL$6:AL$45,0)) -> 0 | D10: =IF($C10<>0,VLOOKUP($C10,TRAINING_Spell_Poison[#All],2),0) -> 0 | E10: =IF($C10<>0,VLOOKUP($C10,TRAINING_Spell_Poison[#All],3),0) -> 0 | F10: =IF($C10<>0,VLOOKUP($C10,TRAINING_Spell_Poison[#All],4),0) -> 0 | I10: Ballon | J10: =VLOOKUP($A$2,AVAILABLE_Upgrades_Normal_Troops[#All],MATCH($I10,AVAILABLE_Upgrades_Normal_Troops[#Headers],0)+1) -> 0 | K10: =IF(ISERROR(MATCH(1,Paramètres!AT$6:AT$45,0)),0,MATCH(1,Paramètres!AT$6:AT$45,0)) -> 0 | L10: =IF($K10<>0,VLOOKUP($K10,TRAINING_Balloon[#All],2),0) -> 0 | M10: =IF($K10<>0,VLOOKUP($K10,TRAINING_Balloon[#All],3),0) -> 0 | N10: =IF($K10<>0,VLOOKUP($K10,TRAINING_Balloon[#All],4),0) -> 0 | S10: 0
A11: Sort de Séisme | B11: =VLOOKUP($A$2,AVAILABLE_Upgrades_Dark_Spells[#All],MATCH($A11,AVAILABLE_Upgrades_Dark_Spells[#Headers],0)+1) -> 0 | C11: =IF(ISERROR(MATCH(1,Paramètres!AM$6:AM$45,0)),0,MATCH(1,Paramètres!AM$6:AM$45,0)) -> 0 | D11: =IF($C11<>0,VLOOKUP($C11,TRAINING_Spell_Earthquake[#All],2),0) -> 0 | E11: =IF($C11<>0,VLOOKUP($C11,TRAINING_Spell_Earthquake[#All],3),0) -> 0 | F11: =IF($C11<>0,VLOOKUP($C11,TRAINING_Spell_Earthquake[#All],4),0) -> 0 | I11: Sorcier | J11: =VLOOKUP($A$2,AVAILABLE_Upgrades_Normal_Troops[#All],MATCH($I11,AVAILABLE_Upgrades_Normal_Troops[#Headers],0)+1) -> 0 | K11: =IF(ISERROR(MATCH(1,Paramètres!AU$6:AU$45,0)),0,MATCH(1,Paramètres!AU$6:AU$45,0)) -> 0 | L11: =IF($K11<>0,VLOOKUP($K11,TRAINING_Wizard[#All],2),0) -> 0 | M11: =IF($K11<>0,VLOOKUP($K11,TRAINING_Wizard[#All],3),0) -> 0 | N11: =IF($K11<>0,VLOOKUP($K11,TRAINING_Wizard[#All],4),0) -> 0 | S11: 0
A12: Sort de Hâte | B12: =VLOOKUP($A$2,AVAILABLE_Upgrades_Dark_Spells[#All],MATCH($A12,AVAILABLE_Upgrades_Dark_Spells[#Headers],0)+1) -> 0 | C12: =IF(ISERROR(MATCH(1,Paramètres!AN$6:AN$45,0)),0,MATCH(1,Paramètres!AN$6:AN$45,0)) -> 0 | D12: =IF($C12<>0,VLOOKUP($C12,TRAINING_Spell_Haste[#All],2),0) -> 0 | E12: =IF($C12<>0,VLOOKUP($C12,TRAINING_Spell_Haste[#All],3),0) -> 0 | F12: =IF($C12<>0,VLOOKUP($C12,TRAINING_Spell_Haste[#All],4),0) -> 0 | I12: Guérisseuse | J12: =VLOOKUP($A$2,AVAILABLE_Upgrades_Normal_Troops[#All],MATCH($I12,AVAILABLE_Upgrades_Normal_Troops[#Headers],0)+1) -> 0 | K12: =IF(ISERROR(MATCH(1,Paramètres!AV$6:AV$45,0)),0,MATCH(1,Paramètres!AV$6:AV$45,0)) -> 0 | L12: =IF($K12<>0,VLOOKUP($K12,TRAINING_Healer[#All],2),0) -> 0 | M12: =IF($K12<>0,VLOOKUP($K12,TRAINING_Healer[#All],3),0) -> 0 | N12: =IF($K12<>0,VLOOKUP($K12,TRAINING_Healer[#All],4),0) -> 0 | S12: 0
B13: Espace Max | G13: =VLOOKUP($F$2,TRAINING_Dark_Spell_Factory[#All],2)+VLOOKUP($D$2,TRAINING_Spell_Factory[#All],2) -> 0 | I13: Dragon | J13: =VLOOKUP($A$2,AVAILABLE_Upgrades_Normal_Troops[#All],MATCH($I13,AVAILABLE_Upgrades_Normal_Troops[#Headers],0)+1) -> 0 | K13: =IF(ISERROR(MATCH(1,Paramètres!AW$6:AW$45,0)),0,MATCH(1,Paramètres!AW$6:AW$45,0)) -> 0 | L13: =IF($K13<>0,VLOOKUP($K13,TRAINING_Dragon[#All],2),0) -> 0 | M13: =IF($K13<>0,VLOOKUP($K13,TRAINING_Dragon[#All],3),0) -> 0 | N13: =IF($K13<>0,VLOOKUP($K13,TRAINING_Dragon[#All],4),0) -> 0 | S13: 0
B14: Espace Total | G14: =SUMPRODUCT(G$5:G$9,$D$5:$D$9)+SUMPRODUCT(G$10:G$12,$D$10:$D$12) -> 0 | I14: P.E.K.K.A | J14: =VLOOKUP($A$2,AVAILABLE_Upgrades_Normal_Troops[#All],MATCH($I14,AVAILABLE_Upgrades_Normal_Troops[#Headers],0)+1) -> 0 | K14: =IF(ISERROR(MATCH(1,Paramètres!AX$6:AX$45,0)),0,MATCH(1,Paramètres!AX$6:AX$45,0)) -> 0 | L14: =IF($K14<>0,VLOOKUP($K14,TRAINING_PEKKA[#All],2),0) -> 0 | M14: =IF($K14<>0,VLOOKUP($K14,TRAINING_PEKKA[#All],3),0) -> 0 | N14: =IF($K14<>0,VLOOKUP($K14,TRAINING_PEKKA[#All],4),0) -> 0 | S14: 0
B15: Coût Total | G15: =SUMPRODUCT(G$5:G$9,$E$5:$E$9) -> 0 | J15: Espace Max | O15: =VLOOKUP(O$2,TRAINING_Barrack[#All],2) -> 0 | P15: =VLOOKUP(P$2,TRAINING_Barrack[#All],2) -> 60 | Q15: =VLOOKUP(Q$2,TRAINING_Barrack[#All],2) -> 75 | R15: =VLOOKUP(R$2,TRAINING_Barrack[#All],2) -> 75 | S15: =SUM(O15:R15) -> 210
B16: Coût Total | G16: =SUMPRODUCT(G$10:G$12,$E$10:$E$12) -> 0 | J16: Espace Total | O16: =SUMPRODUCT(O$5:O$14,$L$5:$L$14) -> 0 | P16: =SUMPRODUCT(P$5:P$14,$L$5:$L$14) -> 0 | Q16: =SUMPRODUCT(Q$5:Q$14,$L$5:$L$14) -> 0 | R16: =SUMPRODUCT(R$5:R$14,$L$5:$L$14) -> 0 | S16: =SUM(O16:R16) -> 0
B17: Temps Total | G17: =IF($B$2='Paramètres - Admin'!$B$2,TEXT(SUMPRODUCT(G$5:G$12,$F$5:$F$12),"# 0")&" " & 'Paramètres - Admin'!$B$2,IF($B$2='Paramètres - Admin'!$B$3,TEXT(SUMPRODUCT(G$5:G$12,$F$5:$F$12)/60,"# 0")&" " & 'Paramètres - Admin'!$B$3,IF($B$2='Paramètres - Admin'!$B$4,TEXT(SUMPRODUCT(G$5:G$12,$F$5:$F$12)/3600,"# 0,00")&" " & 'Paramètres - Admin'!$B$4,IF(SUMPRODUCT(G$5:G$12,$F$5:$F$12)/3600>=1,INT(SUMPRODUCT(G$5:G$12,$F$5:$F$12)/3600) &" " & 'Paramètres - Admin'!$D$3 & " " & MINUTE(SUMPRODUCT(G$5:G$12,$F$5:$F$12)/86400-INT(SUMPRODUCT(G$5:G$12,$F$5:$F$12)/86400)) &" " & 'Paramètres - Admin'!$D$2 & " " & SECOND(SUMPRODUCT(G$5:G$12,$F$5:$F$12)/86400-INT(SUMPRODUCT(G$5:G$12,$F$5:$F$12)/86400)) &" " & 'Paramètres - Admin'!$D$5,MINUTE(SUMPRODUCT(G$5:G$12,$F$5:$F$12)/86400-INT(SUMPRODUCT(G$5:G$12,$F$5:$F$12)/86400)) &" " & 'Paramètres - Admin'!$D$2 & " " & SECOND(SUMPRODUCT(G$5:G$12,$F$5:$F$12)/86400-INT(SUMPRODUCT(G$5:G$12,$F$5:$F$12)/86400)) &" " & 'Paramètres - Admin'!$D$5)))) -> 0,00 heures | J17: Coût Total | O17: =SUMPRODUCT(O$5:O$14,$M$5:$M$14) -> 0 | P17: =SUMPRODUCT(P$5:P$14,$M$5:$M$14) -> 0 | Q17: =SUMPRODUCT(Q$5:Q$14,$M$5:$M$14) -> 0 | R17: =SUMPRODUCT(R$5:R$14,$M$5:$M$14) -> 0 | S17: =SUM(O17:R17) -> 0
